Workbook

Sheet Main Menu
B2: Transit Cooperative Research Program - Transit Asset Prioritization Tool | V2: Version 1.00
B3: Start Screen
C5: MODEL PARAMETERS | N5: SUMMARY STATISTICS
D7: ASSET GROUP ADMINISTRATION | O7: ASSET GROUPS
D8: Opens worksheet to enter or edit information for a new asset group. You will be asked for an Asset Group ID Code and model type (vehicle, age-based, or condition-based). | P8: Vehicle | T8: =E43 -> 0
P9: Non-Vehicle | T9: =E44 -> 0
P10: Total | T10: =T8+T9 -> 0
O12: INITIAL CONDITIONS
P13: Replacement Value ($ 000) | T13: =E47 -> 
P14: Initial Needs ($ 000)
P15: Avg. Age (years)
P16: Mean Distance Between Failures (miles)
D17: BUDGETS AND PARAMETERS INPUT | P17: Avg. Condition (non-vehicle)
D18: Opens worksheet to input budget amounts for each year and review (and, if desired, override) default economic analysis parameters. | P18: CO2 Emissions (tons)
O20: Replacement Value | T20: Initial Needs
N21: Graph Data
C22: PRIORITIZATION MODEL
N23: Vehicle
D24: PRIORITIZATION MODEL ADMINISTRATION | N24: Non-Vehicle | P24: Repl Value | Q24: Needs
D25: Runs the prioritization model using current budgets, parameters, and asset groups. You will be asked to specify a Run ID Code. | P25: =IF(T10=0,1,SUMIF('Asset List'!OU4:OU1003,">0",'Asset List'!CM4:CM1003)/1000/T13) -> 1 | Q25: =IF(SUMIF('Asset List'!DG4:DG1003,">"&PIThreshold,'Asset List'!CM4:CM1003)=0,1,SUMIFS('Asset List'!CM4:CM1003,'Asset List'!DG4:DG1003,">"&PIThreshold,'Asset List'!OU4:OU1003,">0")/1000/T14) -> 1
P26: =1-P25 -> 0 | Q26: =1-Q25 -> 0
N29: CHARTS
D31: PRIORITIZATION MODEL RESULTS | O31: ONE AND TWO RUN CHARTS
D32: Displays a summary table showing prioritization model results by year for a selected run. You will be asked to select a Run ID Code. | O32: Displays a chart showing prioritization model results by year for one model run or two. You will be asked to select a Run ID Code(s) and the output variable to be charted.
D36: ASSET REPLACEMENT PROGRAM
D37: Displays a listing of the asset replacement program from a prioritization model run. You will be asked to select the Run ID Code.
A42: Asset Groups
A43: Vehicle | E43: =COUNTIF('Asset Parameters'!JI4:JI1003,"=1")/2 -> 0
A44: Non-Vehicle | E44: =COUNTIF('Asset Parameters'!JI4:JI1003,"=2")+COUNTIF('Asset Parameters'!JI4:JI1003,"=3")/5 -> 0
A46: Initial Conditions
A47: Replacement Vale | E47: =IF(T10>0,SUM('Asset List'!CM4:CM1003)/1000,"") -> 
A48: Initial Needs | E48: =IF(T10>0,'Summary Output'!C8/1000,"") -> 
A49: Avg. Age | E49: =IF(T10>0,SUMPRODUCT('Asset List'!K4:K1003,'Asset List'!CM4:CM1003)/(T13*1000),"") -> 
A50: MDBF | E50: =IF(T8>0,IF(SUM('Asset List'!OA4:OA1004)>0,SUM('Asset List'!OU4:OU1004)/SUM('Asset List'!OA4:OA1004),""),"") -> 
A51: Avg. Condition | E51: =IF(T9>0,SUMPRODUCT('Asset List'!NG4:NG1003,'Asset List'!CM4:CM1003)/(P26*T13*1000),"") -> 
A52: CO2 Emissions | E52: =IF(T10>0,SUM('Asset List'!KY4:KY1004),"") -> 

Sheet Budgets and Parameters
B2: Transit Cooperative Research Program - Transit Asset Prioritization Tool | Y2: Parameters
B3: Budgets and Parameters | Y3: Description | AC3: Value
Y4: First Budget Year | AC4: =IF(P9="",M9,P9) -> 2015
C5: PARAMETERS | Y5: Allow budget to carry over? | AC5: =IF(P10="",M10,P10) -> TRUE
Y6: PI Threshold for Asset Replacement | AC6: =IF(P11="",M11,P11) -> 0
M7: Default | P7: Override Value | S7: Notes | Y7: Discount Rate | AC7: =IF(P13="",M13,P13) -> 0.07
Y8: Cost per Passenger Hour of Delay | AC8: 48.4
G9: First Budget Year | M9: =YEAR(TODAY())+1 -> 2015 | O9: i | Y9: External Cost per Ton of CO2 | AC9: 24
G10: Allow budget to carry over? | M10: TRUE | O10: i | Y10: Tons of CO2 per Gallon | AC10: 0.0111
G11: PI Threshold for Asset Replacement | M11: 0 | O11: i | Y11: Tons of CO2 per Kilowatt Hour | AC11: 0.001
Y12: Agency Cost per Gallon of Fuel | AC12: 3
G13: Discount Rate | M13: 0.07 | O13: i | Y13: Agency Cost per Kilowatt Hour | AC13: 0.15
G14: Cost per Passenger Hour of Delay ($) | M14: 48.4 | O14: i | Y14: Weight on Other Passenger Costs | AC14: =IF(P21="",N21,P21) -> 1
G15: External Cost per Ton of CO2 ($) | M15: 24 | O15: i | Y15: Weight on Other External Costs | AC15: =IF(P22="",N22,P22) -> 1
G16: Tons of CO2 per Gallon | M16: 0.0111 | O16: i
G17: Tons of CO2 per Kilowatt Hour | M17: 0.001 | O17: i | Y17: Summary Results
G18: Agency Cost per Gallon of Fuel ($) | M18: 3 | O18: i | Y18: Year | Z18: Constraint | AA18: Adjusted | AB18: Spent | AC18: Difference
G19: Agency Cost per Kilowatt Hour ($) | M19: 0.15 | O19: i | Y19: =+G28 -> 2015 | Z19: =+H28 -> 0 | AA19: =+Z19 -> 0 | AB19: =TRANSPOSE('Asset List'!HC1005:HV1005) ->  | AC19: =+AA19-AB19 -> 
Y20: 2016 | Z20: 0 | AA20: =IF($AC$5,Z20+AC19,Z20) ->  | AC20: =+AA20-AB20 -> 
G21: Weight on Other Passenger Costs | N21: 1 | O21: i | Y21: 2017 | Z21: 0
G22: Weight on Other External Costs | N22: 1 | O22: i | Y22: 2018 | Z22: 0
Y23: 2019 | Z23: 0
B24: i | C24: BUDGET FOR ASSET REPLACEMENT AND REHABILITATION ($) | Y24: 2020 | Z24: 0
Y25: 2021 | Z25: 0
G26: Year | H26: Amount ($) | J26: Notes | O26: Year | Q26: Amount ($) | S26: Notes | Y26: 2022 | Z26: 0
Y27: 2023 | Z27: 0
G28: =IF(F21<>"",F21,AC4) -> 2015 | H28: 0 | O28: =G37+1 -> 2025 | Q28: =H37 -> 0 | Y28: 2024 | Z28: 0
G29: =G28+1 -> 2016 | H29: =H28 -> 0 | O29: =O28+1 -> 2026 | Q29: =Q28 -> 0 | Y29: =+O28 -> 2025 | Z29: =+Q28 -> 0
G30: 2017 | H30: 0 | O30: 2027 | Q30: 0 | Y30: 2026 | Z30: 0
G31: 2018 | H31: 0 | O31: 2028 | Q31: 0 | Y31: 2027 | Z31: 0
G32: 2019 | H32: 0 | O32: 2029 | Q32: 0 | Y32: 2028 | Z32: 0
G33: 2020 | H33: 0 | O33: 2030 | Q33: 0 | Y33: 2029 | Z33: 0
G34: 2021 | H34: 0 | O34: 2031 | Q34: 0 | Y34: 2030 | Z34: 0
G35: 2022 | H35: 0 | O35: 2032 | Q35: 0 | Y35: 2031 | Z35: 0
G36: 2023 | H36: 0 | O36: 2033 | Q36: 0 | Y36: 2032 | Z36: 0
G37: 2024 | H37: 0 | O37: 2034 | Q37: 0 | Y37: 2033 | Z37: 0
Y38: 2034 | Z38: 0

Sheet Summary Output
B2: Transit Cooperative Research Program - Transit Asset Prioritization Tool
B3: Summary
B5: Year | C5: i Needs | E5: i Asset NPV | F5: i Budget ($) | G5: i Expenditures from Budget ($) | H5: i Remaining Backlog ($) | I5: i Energy Costs ($) | J5: i Other Agency Costs ($) | K5: i Cost of Passenger Delay ($) | L5: i Other Passenger Costs ($) | M5: i Cost of CO2 Emissions ($) | N5: i Other External Costs ($) | O5: i Total Agency, Pass., and Ext. Costs ($) | P5: i Passenger Delay (hours) | Q5: i CO2 Emissions (tons) | R5: i Avg. Condition (non-veh) | S5: i MDBF (miles)
C6: i Amount ($) | D6: i Percent
B8: =FirstBudgetYear -> 2015 | C8: =TRANSPOSE('Asset List'!CM1006:DF1006) ->  | D8: =TRANSPOSE('Asset List'!CM1008:DF1008) ->  | E8: =TRANSPOSE('Asset List'!MM1005:NF1005) ->  | F8: ='Budgets and Parameters'!AA19 -> 0 | G8: =TRANSPOSE('Asset List'!HC1005:HV1005) ->  | H8: =+C8-G8 ->  | I8: =TRANSPOSE('Asset List'!OV1005:PO1005) -> 0 | J8: =TRANSPOSE('Asset List'!HW1005:IP1005)-I8:I27 ->  | K8: =P8*CostPerPaxHour ->  | L8: =TRANSPOSE('Asset List'!KE1005:KX1005) ->  | M8: =CostPerTon*Q8 ->  | N8: =TRANSPOSE('Asset List'!LS1005:ML1005) ->  | O8: =SUM(G8,I8:N8) ->  | P8: =TRANSPOSE('Asset List'!JK1005:KD1005) ->  | Q8: =TRANSPOSE('Asset List'!KY1005:LR1005) ->  | R8: =TRANSPOSE('Asset List'!NG1007:NZ1007) ->  | S8: =TRANSPOSE('Asset List'!OA1007:OT1007) -> 
B9: =1+B8 -> 2016 | F9: ='Budgets and Parameters'!AA20 ->  | H9: =+C9-G9 ->  | I9: 0 | O9: =SUM(G9,I9:N9) -> 
B10: =1+B9 -> 2017 | F10: ='Budgets and Parameters'!AA21 ->  | I10: 0
B11: 2018 | F11: ='Budgets and Parameters'!AA22 ->  | I11: 0
B12: 2019 | F12: ='Budgets and Parameters'!AA23 ->  | I12: 0
B13: 2020 | F13: ='Budgets and Parameters'!AA24 ->  | I13: 0
B14: 2021 | F14: ='Budgets and Parameters'!AA25 ->  | I14: 0
B15: 2022 | F15: ='Budgets and Parameters'!AA26 ->  | I15: 0
B16: 2023 | F16: ='Budgets and Parameters'!AA27 ->  | I16: 0
B17: 2024 | F17: ='Budgets and Parameters'!AA28 ->  | I17: 0
B18: 2025 | F18: ='Budgets and Parameters'!AA29 ->  | I18: 0
B19: 2026 | F19: ='Budgets and Parameters'!AA30 ->  | I19: 0
B20: 2027 | F20: ='Budgets and Parameters'!AA31 ->  | I20: 0
B21: 2028 | F21: ='Budgets and Parameters'!AA32 ->  | I21: 0
B22: 2029 | F22: ='Budgets and Parameters'!AA33 ->  | I22: 0
B23: 2030 | F23: ='Budgets and Parameters'!AA34 ->  | I23: 0
B24: 2031 | F24: ='Budgets and Parameters'!AA35 ->  | I24: 0
B25: 2032 | F25: ='Budgets and Parameters'!AA36 ->  | I25: 0
B26: 2033 | F26: ='Budgets and Parameters'!AA37 ->  | I26: 0
B27: 2034 | F27: ='Budgets and Parameters'!AA38 ->  | I27: 0

Sheet Program List
B2: Transit Cooperative Research Program - Transit Asset Prioritization Tool
B3: Program List
B5: Program Year | C5: Asset ID Code | D5: Description | E5: No. of Assets | F5: Replacement Costs | G5: Project Rank | H5: PI | I5: Pipe-Lined? | J5: Project Code

Sheet ChartOneRun

Sheet ChartTwoRuns

Sheet Vehicle Model Template
BA1: =IF(O78="",M78,O78) -> TRUE | BB1: << Include | BD1: testveh | BF1: =BD1 -> testveh
B2: Transit Cooperative Research Program - Transit Asset Prioritization Tool | BA2: 2 | BB2: << Parameter Rows
B3: Vehicle Model
BA4: Asset Type Code | BB4: Replacement Asset Type Code | BC4: Replacement Impacts (delay in hours, CO2 in tons, others in dollars) | BH4: Weibull Parameters and Impacts (delay in hours, CO2 in tons, others in dollars) | BO4: Exponential Coefficients | BW4: Net Present Value of Asset Replacement by Age | GM4: Maintenance and Other Non-Capital Agency Costs by Age | LC4: PI Increment | LD4: TERM Condition Coefficients | LF4: MDBF Coefficents | LH4: Model Type | LI4: Energy Cost Coefficients
F5: i | G5: Vehicle Type | J5: Bus | BO5: Delay (hours) | BQ5: Other Pass. Cost | BS5: CO2 (tons) | BU5: Other External Cost
F6: i | G6: Asset Description | BC6: Agency | BD6: Delay | BE6: OthPax | BF6: CO2 | BG6: OthExt | BH6: Shape | BI6: Scale | BJ6: Agency | BK6: Delay | BL6: OthPax | BM6: CO2 | BN6: OthExt | BO6: D0 | BP6: D1 | BQ6: P0 | BR6: P1 | BS6: C0 | BT6: C1 | BU6: X0 | BV6: X1 | BW6: 1 | BX6: =1+BW6 -> 2 | BY6: =1+BX6 -> 3 | BZ6: 4 | CA6: 5 | CB6: 6 | CC6: 7 | CD6: 8 | CE6: 9 | CF6: 10 | CG6: 11 | CH6: 12 | CI6: 13 | CJ6: 14 | CK6: 15 | CL6: 16 | CM6: 17 | CN6: 18 | CO6: 19 | CP6: 20 | CQ6: 21 | CR6: 22 | CS6: 23 | CT6: 24 | CU6: 25 | CV6: 26 | CW6: 27 | CX6: 28 | CY6: 29 | CZ6: 30 | DA6: 31 | DB6: 32 | DC6: 33 | DD6: 34 | DE6: 35 | DF6: 36 | DG6: 37 | DH6: 38 | DI6: 39 | DJ6: 40 | DK6: 41 | DL6: 42 | DM6: 43 | DN6: 44 | DO6: 45 | DP6: 46 | DQ6: 47 | DR6: 48 | DS6: 49 | DT6: 50 | DU6: 51 | DV6: 52 | DW6: 53 | DX6: 54 | DY6: 55 | DZ6: 56 | EA6: 57 | EB6: 58 | EC6: 59 | ED6: 60 | EE6: 61 | EF6: 62 | EG6: 63 | EH6: 64 | EI6: 65 | EJ6: 66 | EK6: =1+EJ6 -> 67 | EL6: 68 | EM6: 69 | EN6: 70 | EO6: 71 | EP6: 72 | EQ6: 73 | ER6: 74 | ES6: 75 | ET6: 76 | EU6: 77 | EV6: 78 | EW6: 79 | EX6: 80 | EY6: 81 | EZ6: 82 | FA6: 83 | FB6: 84 | FC6: 85 | FD6: 86 | FE6: 87 | FF6: 88 | FG6: 89 | FH6: 90 | FI6: 91 | FJ6: 92 | FK6: 93 | FL6: 94 | FM6: 95 | FN6: 96 | FO6: 97 | FP6: 98 | FQ6: 99 | FR6: 100 | FS6: 101 | FT6: 102 | FU6: 103 | FV6: 104 | FW6: 105 | FX6: 106 | FY6: 107 | FZ6: 108 | GA6: 109 | GB6: 110 | GC6: 111 | GD6: 112 | GE6: 113 | GF6: 114 | GG6: 115 | GH6: 116 | GI6: 117 | GJ6: 118 | GK6: 119 | GL6: 120 | GM6: 1 | GN6: 2 | GO6: 3 | GP6: 4 | GQ6: 5 | GR6: 6 | GS6: 7 | GT6: 8 | GU6: 9 | GV6: 10 | GW6: =1+GV6 -> 11 | GX6: 12 | GY6: 13 | GZ6: 14 | HA6: 15 | HB6: 16 | HC6: 17 | HD6: 18 | HE6: 19 | HF6: 20 | HG6: 21 | HH6: 22 | HI6: 23 | HJ6: 24 | HK6: 25 | HL6: 26 | HM6: 27 | HN6: 28 | HO6: 29 | HP6: 30 | HQ6: 31 | HR6: 32 | HS6: 33 | HT6: 34 | HU6: 35 | HV6: 36 | HW6: 37 | HX6: 38 | HY6: 39 | HZ6: 40 | IA6: 41 | IB6: 42 | IC6: 43 | ID6: 44 | IE6: 45 | IF6: 46 | IG6: 47 | IH6: 48 | II6: 49 | IJ6: 50 | IK6: 51 | IL6: 52 | IM6: 53 | IN6: 54 | IO6: 55 | IP6: 56 | IQ6: 57 | IR6: 58 | IS6: 59 | IT6: 60 | IU6: 61 | IV6: 62 | IW6: 63 | IX6: 64 | IY6: 65 | IZ6: 66 | JA6: 67 | JB6: 68 | JC6: 69 | JD6: 70 | JE6: 71 | JF6: 72 | JG6: 73 | JH6: 74 | JI6: =1+JH6 -> 75 | JJ6: 76 | JK6: 77 | JL6: 78 | JM6: 79 | JN6: 80 | JO6: 81 | JP6: 82 | JQ6: 83 | JR6: 84 | JS6: 85 | JT6: 86 | JU6: 87 | JV6: 88 | JW6: 89 | JX6: 90 | JY6: 91 | JZ6: 92 | KA6: 93 | KB6: 94 | KC6: 95 | KD6: 96 | KE6: 97 | KF6: 98 | KG6: 99 | KH6: 100 | KI6: 101 | KJ6: 102 | KK6: 103 | KL6: 104 | KM6: 105 | KN6: 106 | KO6: 107 | KP6: 108 | KQ6: 109 | KR6: 110 | KS6: 111 | KT6: 112 | KU6: 113 | KV6: 114 | KW6: 115 | KX6: 116 | KY6: 117 | KZ6: 118 | LA6: 119 | LB6: 120 | LD6: TERM0 | LE6: TERM1 | LF6: FailPerDH | LG6: AnnMiles | LI6: E0 | LJ6: E1
BA7: =$BD$1&"_Current" -> testveh_Current | BB7: =BA8 -> testveh_Replaced | BC7: =+BE52 -> 495951.4416 | BD7: 0 | BE7: 0 | BF7: =BE55 -> 70 | BG7: 0 | BH7: 3 | BI7: 15 | BJ7: 0 | BK7: 0 | BL7: 0 | BM7: 0 | BN7: 0 | BO7: =+BC65 -> 68.14094473 | BP7: =+BE65 -> 0.07212092756 | BQ7: =+BC66 -> 0 | BR7: =+BE66 -> 0.02283829373 | BS7: =+BC67 -> 89.28445736 | BT7: =+BE67 -> 0.02283829373 | BU7: =+BC68 -> 0 | BV7: =+BE68 -> 0.02283829373 | BW7: =TRANSPOSE(BT123:BT242) -> -72809.03902 | BX7: -67340.5119 | BY7: -63241.38169 | BZ7: -59689.26774 | CA7: -56269.61477 | CB7: -52797.71283 | CC7: -49202.23461 | CD7: -45457.59754 | CE7: -41548.52687 | CF7: -37456.0928 | CG7: -33155.80419 | CH7: -28620.35231 | CI7: -23822.79111 | CJ7: -18738.80581 | CK7: -13348.25636 | CL7: -7636.52358 | CM7: -1595.962458 | CN7: 4772.541176 | CO7: 11458.14086 | CP7: 18439.11226 | CQ7: 25682.94789 | CR7: 33148.00117 | CS7: 40787.09626 | CT7: 48347.79231 | CU7: 56277.25618 | CV7: 64595.12524 | CW7: 73322.16242 | CX7: 82480.32494 | CY7: 92092.83755 | CZ7: 102184.2704 | DA7: 112780.6221 | DB7: 123909.4078 | DC7: 135599.7539 | DD7: 147882.4978 | DE7: 160790.2947 | DF7: 174357.732 | DG7: 188621.4502 | DH7: 203620.2725 | DI7: 219395.3424 | DJ7: 235990.2714 | DK7: 253451.2951 | DL7: 271827.4411 | DM7: 291170.7072 | DN7: 311536.2519 | DO7: 332982.5976 | DP7: 355571.8474 | DQ7: 379369.9167 | DR7: 404446.7803 | DS7: 430876.7359 | DT7: 458738.6864 | DU7: 488116.4404 | DV7: 519099.0333 | DW7: 551781.0712 | DX7: 586263.0972 | DY7: 622651.9832 | DZ7: 661061.3488 | EA7: 701612.0088 | EB7: 744432.4513 | EC7: 789659.3494 | ED7: 837438.1075 | EE7: 887923.4459 | EF7: 941280.0257 | EG7: 997683.1176 | EH7: 1057319.316 | EI7: 1120387.306 | EJ7: 1187098.677 | EK7: 1257678.804 | EL7: 1332367.778 | EM7: 1411421.413 | EN7: 1495112.317 | EO7: 1583731.039 | EP7: 1677587.298 | EQ7: 1777011.301 | ER7: 1882355.149 | ES7: 1993994.343 | ET7: 2112329.404 | EU7: 2237787.598 | EV7: 2370824.788 | EW7: 2511927.42 | EX7: 2661614.644 | EY7: 2820440.591 | EZ7: 2988996.813 | FA7: 3167914.891 | FB7: 3357869.238 | FC7: 3559580.094 | FD7: 3773816.741 | FE7: 4001400.947 | FF7: 4243210.659 | FG7: 4500183.954 | FH7: 4773323.282 | FI7: 5063700.016 | FJ7: 5372459.317 | FK7: 5700825.363 | FL7: 6050106.95 | FM7: 6421703.497 | FN7: 6817111.487 | FO7: 7237931.369 | FP7: 7685874.968 | FQ7: 8162773.424 | FR7: 8670585.712 | FS7: 9211407.778 | FT7: 9787482.335 | FU7: 10401209.38 | FV7: 11055157.46 | FW7: 11752075.78 | FX7: 12494907.19 | FY7: 13286802.06 | FZ7: 14131133.28 | GA7: 15031512.25 | GB7: 15991806.08 | GC7: 17016156.06 | GD7: 18108997.44 | GE7: 19275080.71 | GF7: 20519494.38 | GG7: 21847689.46 | GH7: 23265505.74 | GI7: 24779199.97 | GJ7: 26395476.13 | GK7: 28121517.9 | GL7: 29965023.53 | GM7: =TRANSPOSE(BV123:BV242) -> 76210.27862 | GN7: 83945.67863 | GO7: 89077.47698 | GP7: 92817.37409 | GQ7: 95986.12947 | GR7: 98996.55746 | GS7: 102031.4984 | GT7: 105160.2715 | GU7: 108406.3027 | GV7: 111782.5505 | GW7: 115305.4566 | GX7: 118996.8398 | GY7: 122881.1382 | GZ7: 126982.2144 | HA7: 131321.0707 | HB7: 135914.2887 | HC7: 140772.6653 | HD7: 145899.7386 | HE7: 151290.2112 | HF7: 156928.4968 | HG7: 162787.7789 | HH7: 168830.079 | HI7: 175007.8727 | HJ7: 181267.6685 | HK7: 187350.2401 | HL7: 193695.4636 | HM7: 200315.1428 | HN7: 207221.6235 | HO7: 214427.8186 | HP7: 221947.2348 | HQ7: 229793.9999 | HR7: 237982.8918 | HS7: 246529.3686 | HT7: 255449.6003 | HU7: 264760.5021 | HV7: 274479.7685 | HW7: 284625.9102 | HX7: 295218.2919 | HY7: 306277.1717 | HZ7: 317823.7431 | IA7: 329880.1784 | IB7: 342469.6743 | IC7: 355616.4997 | ID7: 369346.0455 | IE7: 383684.8769 | IF7: 398660.7883 | IG7: 414302.8606 | IH7: 430641.5208 | II7: 447708.6053 | IJ7: 465537.4253 | IK7: 484162.8356 | IL7: 503621.3069 | IM7: 523951.0007 | IN7: 545191.8489 | IO7: 567385.6356 | IP7: 590576.0842 | IQ7: 614808.9478 | IR7: 640132.1039 | IS7: 666595.6535 | IT7: 694252.0251 | IU7: 723156.0834 | IV7: 753365.2432 | IW7: 784939.5883 | IX7: 817941.9964 | IY7: 852438.2698 | IZ7: 888497.2717 | JA7: 926191.0696 | JB7: 965595.0851 | JC7: 1006788.25 | JD7: 1049853.173 | JE7: 1094876.307 | JF7: 1141948.132 | JG7: 1191163.346 | JH7: 1242621.057 | JI7: 1296424.99 | JJ7: 1352683.708 | JK7: 1411510.833 | JL7: 1473025.286 | JM7: 1537351.532 | JN7: 1604619.843 | JO7: 1674966.566 | JP7: 1748534.412 | JQ7: 1825472.748 | JR7: 1905937.915 | JS7: 1990093.55 | JT7: 2078110.927 | JU7: 2170169.32 | JV7: 2266456.372 | JW7: 2367168.491 | JX7: 2472511.255 | JY7: 2582699.849 | JZ7: 2697959.51 | KA7: 2818525.997 | KB7: 2944646.088 | KC7: 3076578.094 | KD7: 3214592.399 | KE7: 3358972.026 | KF7: 3510013.229 | KG7: 3668026.114 | KH7: 3833335.287 | KI7: 4006280.534 | KJ7: 4187217.532 | KK7: 4376518.595 | KL7: 4574573.453 | KM7: 4781790.067 | KN7: 4998595.485 | KO7: 5225436.739 | KP7: 5462781.775 | KQ7: 5711120.441 | KR7: 5970965.511 | KS7: 6242853.756 | KT7: 6527347.077 | KU7: 6825033.676 | KV7: 7136529.292 | KW7: 7462478.495 | KX7: 7803556.033 | KY7: 8160468.249 | KZ7: 8533954.566 | LA7: 8924789.033 | LB7: 9333781.953 | LC7: =IF(O77="",M77,O77) -> 0 | LD7: 0 | LE7: 0 | LF7: =IF(BE59=0,1,1/BE59) -> 0.0471317807 | LG7: =BE51 -> 36424.71089 | LH7: 1 | LI7: =+BC64 -> 24130.93442 | LJ7: =+BE64 -> 0.02283829373
C8: INVENTORY DESCRIPTION | BA8: =$BD$1&"_Replaced" -> testveh_Replaced | BB8: =+BA8 -> testveh_Replaced | BC8: =+BE52 -> 495951.4416 | BD8: 0 | BE8: 0 | BF8: =BE55 -> 70 | BG8: 0 | BH8: 3 | BI8: 15 | BJ8: 0 | BK8: 0 | BL8: 0 | BM8: 0 | BN8: 0 | BO8: =+BO7 -> 68.14094473 | BP8: =+BP7 -> 0.07212092756 | BQ8: =+BQ7 -> 0 | BR8: =+BR7 -> 0.02283829373 | BS8: =+BS7*(1-BE54) -> 89.28445736 | BT8: =+BT7 -> 0.02283829373 | BU8: =+BU7 -> 0 | BV8: =+BV7 -> 0.02283829373 | BW8: =TRANSPOSE(BU123:BU242) -> -72809.03902 | BX8: -67340.5119 | BY8: -63241.38169 | BZ8: -59689.26774 | CA8: -56269.61477 | CB8: -52797.71283 | CC8: -49202.23461 | CD8: -45457.59754 | CE8: -41548.52687 | CF8: -37456.0928 | CG8: -33155.80419 | CH8: -28620.35231 | CI8: -23822.79111 | CJ8: -18738.80581 | CK8: -13348.25636 | CL8: -7636.52358 | CM8: -1595.962458 | CN8: 4772.541176 | CO8: 11458.14086 | CP8: 18439.11226 | CQ8: 25682.94789 | CR8: 33148.00117 | CS8: 40787.09626 | CT8: 48347.79231 | CU8: 56277.25618 | CV8: 64595.12524 | CW8: 73322.16242 | CX8: 82480.32494 | CY8: 92092.83755 | CZ8: 102184.2704 | DA8: 112780.6221 | DB8: 123909.4078 | DC8: 135599.7539 | DD8: 147882.4978 | DE8: 160790.2947 | DF8: 174357.732 | DG8: 188621.4502 | DH8: 203620.2725 | DI8: 219395.3424 | DJ8: 235990.2714 | DK8: 253451.2951 | DL8: 271827.4411 | DM8: 291170.7072 | DN8: 311536.2519 | DO8: 332982.5976 | DP8: 355571.8474 | DQ8: 379369.9167 | DR8: 404446.7803 | DS8: 430876.7359 | DT8: 458738.6864 | DU8: 488116.4404 | DV8: 519099.0333 | DW8: 551781.0712 | DX8: 586263.0972 | DY8: 622651.9832 | DZ8: 661061.3488 | EA8: 701612.0088 | EB8: 744432.4513 | EC8: 789659.3494 | ED8: 837438.1075 | EE8: 887923.4459 | EF8: 941280.0257 | EG8: 997683.1176 | EH8: 1057319.316 | EI8: 1120387.306 | EJ8: 1187098.677 | EK8: 1257678.804 | EL8: 1332367.778 | EM8: 1411421.413 | EN8: 1495112.317 | EO8: 1583731.039 | EP8: 1677587.298 | EQ8: 1777011.301 | ER8: 1882355.149 | ES8: 1993994.343 | ET8: 2112329.404 | EU8: 2237787.598 | EV8: 2370824.788 | EW8: 2511927.42 | EX8: 2661614.644 | EY8: 2820440.591 | EZ8: 2988996.813 | FA8: 3167914.891 | FB8: 3357869.238 | FC8: 3559580.094 | FD8: 3773816.741 | FE8: 4001400.947 | FF8: 4243210.659 | FG8: 4500183.954 | FH8: 4773323.282 | FI8: 5063700.016 | FJ8: 5372459.317 | FK8: 5700825.363 | FL8: 6050106.95 | FM8: 6421703.497 | FN8: 6817111.487 | FO8: 7237931.369 | FP8: 7685874.968 | FQ8: 8162773.424 | FR8: 8670585.712 | FS8: 9211407.778 | FT8: 9787482.335 | FU8: 10401209.38 | FV8: 11055157.46 | FW8: 11752075.78 | FX8: 12494907.19 | FY8: 13286802.06 | FZ8: 14131133.28 | GA8: 15031512.25 | GB8: 15991806.08 | GC8: 17016156.06 | GD8: 18108997.44 | GE8: 19275080.71 | GF8: 20519494.38 | GG8: 21847689.46 | GH8: 23265505.74 | GI8: 24779199.97 | GJ8: 26395476.13 | GK8: 28121517.9 | GL8: 29965023.53 | GM8: =TRANSPOSE(BW123:BW242) -> 76210.27862 | GN8: 83945.67863 | GO8: 89077.47698 | GP8: 92817.37409 | GQ8: 95986.12947 | GR8: 98996.55746 | GS8: 102031.4984 | GT8: 105160.2715 | GU8: 108406.3027 | GV8: 111782.5505 | GW8: 115305.4566 | GX8: 118996.8398 | GY8: 122881.1382 | GZ8: 126982.2144 | HA8: 131321.0707 | HB8: 135914.2887 | HC8: 140772.6653 | HD8: 145899.7386 | HE8: 151290.2112 | HF8: 156928.4968 | HG8: 162787.7789 | HH8: 168830.079 | HI8: 175007.8727 | HJ8: 181267.6685 | HK8: 187350.2401 | HL8: 193695.4636 | HM8: 200315.1428 | HN8: 207221.6235 | HO8: 214427.8186 | HP8: 221947.2348 | HQ8: 229793.9999 | HR8: 237982.8918 | HS8: 246529.3686 | HT8: 255449.6003 | HU8: 264760.5021 | HV8: 274479.7685 | HW8: 284625.9102 | HX8: 295218.2919 | HY8: 306277.1717 | HZ8: 317823.7431 | IA8: 329880.1784 | IB8: 342469.6743 | IC8: 355616.4997 | ID8: 369346.0455 | IE8: 383684.8769 | IF8: 398660.7883 | IG8: 414302.8606 | IH8: 430641.5208 | II8: 447708.6053 | IJ8: 465537.4253 | IK8: 484162.8356 | IL8: 503621.3069 | IM8: 523951.0007 | IN8: 545191.8489 | IO8: 567385.6356 | IP8: 590576.0842 | IQ8: 614808.9478 | IR8: 640132.1039 | IS8: 666595.6535 | IT8: 694252.0251 | IU8: 723156.0834 | IV8: 753365.2432 | IW8: 784939.5883 | IX8: 817941.9964 | IY8: 852438.2698 | IZ8: 888497.2717 | JA8: 926191.0696 | JB8: 965595.0851 | JC8: 1006788.25 | JD8: 1049853.173 | JE8: 1094876.307 | JF8: 1141948.132 | JG8: 1191163.346 | JH8: 1242621.057 | JI8: 1296424.99 | JJ8: 1352683.708 | JK8: 1411510.833 | JL8: 1473025.286 | JM8: 1537351.532 | JN8: 1604619.843 | JO8: 1674966.566 | JP8: 1748534.412 | JQ8: 1825472.748 | JR8: 1905937.915 | JS8: 1990093.55 | JT8: 2078110.927 | JU8: 2170169.32 | JV8: 2266456.372 | JW8: 2367168.491 | JX8: 2472511.255 | JY8: 2582699.849 | JZ8: 2697959.51 | KA8: 2818525.997 | KB8: 2944646.088 | KC8: 3076578.094 | KD8: 3214592.399 | KE8: 3358972.026 | KF8: 3510013.229 | KG8: 3668026.114 | KH8: 3833335.287 | KI8: 4006280.534 | KJ8: 4187217.532 | KK8: 4376518.595 | KL8: 4574573.453 | KM8: 4781790.067 | KN8: 4998595.485 | KO8: 5225436.739 | KP8: 5462781.775 | KQ8: 5711120.441 | KR8: 5970965.511 | KS8: 6242853.756 | KT8: 6527347.077 | KU8: 6825033.676 | KV8: 7136529.292 | KW8: 7462478.495 | KX8: 7803556.033 | KY8: 8160468.249 | KZ8: 8533954.566 | LA8: 8924789.033 | LB8: 9333781.953 | LC8: =+LC7 -> 0 | LD8: 0 | LE8: 0 | LF8: =+LF7 -> 0.0471317807 | LG8: =BE51 -> 36424.71089 | LH8: 1 | LI8: =+LI7*(1-BE54) -> 24130.93442 | LJ8: =+LJ7 -> 0.02283829373
H10: i | I10: Accumulated | J10: i | K10: Number of | L10: i | M10: Project | O10: i | P10: Pipeline | U10: i | V10: Accumulated | W10: i | X10: Number of | Y10: i | Z10: Project | AA10: i | AB10: Pipeline
I11: Mileage | K11: Vehicles | M11: Code | P11: Year | V11: Mileage | X11: Vehicles | Z11: Code | AB11: Year
F12: Sub-Group | G12: 1 | S12: Sub-Group | T12: 16
G13: 2 | T13: 17
G14: 3 | T14: 18
G15: 4 | T15: 19
G16: 5 | T16: 20 | BA16: ID Code | BB16: Description | BC16: Age | BD16: No. of Assets | BE16: Asset Type | BF16: Project Code | BG16: Pipeline Year
G17: 6 | T17: 21 | BA17: =$BD$1&" "&ROW(BB17)-16 -> testveh 1 | BB17: =IF($J$6="",$J$5,$J$6) -> Bus | BC17: =H12/$BE$51 -> 0 | BD17: =+J12 -> 0 | BE17: =$BA$7 -> testveh_Current | BF17: =+IF(L12="","",L12) ->  | BG17: =+IF(O12="","",O12) -> 
G18: 7 | T18: 22 | BA18: =$BD$1&" "&ROW(BB18)-16 -> testveh 2 | BB18: Bus | BC18: 0 | BD18: 0 | BE18: testveh_Current | BG18: =+IF(O13="","",O13) -> 
G19: 8 | T19: 23 | BA19: testveh 3 | BB19: Bus | BC19: 0 | BD19: 0 | BE19: testveh_Current
G20: 9 | T20: 24 | BA20: testveh 4 | BB20: Bus | BC20: 0 | BD20: 0 | BE20: testveh_Current | BG20: =+IF(O15="","",O15) -> 
G21: 10 | T21: 25 | BA21: testveh 5 | BB21: Bus | BC21: 0 | BD21: 0 | BE21: testveh_Current
G22: 11 | T22: 26 | BA22: testveh 6 | BB22: Bus | BC22: 0 | BD22: 0 | BE22: testveh_Current
G23: 12 | T23: 27 | BA23: testveh 7 | BB23: Bus | BC23: 0 | BD23: 0 | BE23: testveh_Current
G24: 13 | T24: 28 | BA24: testveh 8 | BB24: Bus | BC24: 0 | BD24: 0 | BE24: testveh_Current
G25: 14 | T25: 29 | BA25: testveh 9 | BB25: Bus | BC25: 0 | BD25: 0 | BE25: testveh_Current
G26: 15 | T26: 30 | BA26: testveh 10 | BB26: Bus | BC26: 0 | BD26: 0 | BE26: testveh_Current
BA27: testveh 11 | BB27: Bus | BC27: 0 | BD27: 0 | BE27: testveh_Current
C28: MODEL PARAMETERS | BA28: testveh 12 | BB28: Bus | BC28: 0 | BD28: 0 | BE28: testveh_Current
BA29: testveh 13 | BB29: Bus | BC29: 0 | BD29: 0 | BE29: testveh_Current
O30: Value | S30: Notes | BA30: testveh 14 | BB30: Bus | BC30: 0 | BD30: 0 | BE30: testveh_Current
D31: i | E31: VEHICLE DATA FROM THE NATIONAL | BA31: testveh 15 | BB31: Bus | BC31: 0 | BD31: 0 | BE31: testveh_Current
E32: TRANSIT DATABASE | BA32: testveh 16 | BB32: Bus | BC32: =+U12/$BE$51 -> 0 | BD32: =+W12 -> 0 | BE32: testveh_Current | BF32: =IF(Y12="","",Y12) ->  | BG32: =IF(AA12="","",AA12) -> 
F33: Passenger Miles (000) | N33: i | BA33: testveh 17 | BB33: Bus | BC33: 0 | BD33: 0 | BE33: testveh_Current
F34: Unlinked Trips (000) | N34: i | BA34: testveh 18 | BB34: Bus | BC34: 0 | BD34: 0 | BE34: testveh_Current
F35: Vehicle Miles (000) | N35: i | BA35: testveh 19 | BB35: Bus | BC35: 0 | BD35: 0 | BE35: testveh_Current
F36: Revenue Vehicle Miles (000) | N36: i | BA36: testveh 20 | BB36: Bus | BC36: 0 | BD36: 0 | BE36: testveh_Current
F37: Revenue Vehicle Hours (000) | N37: i | BA37: testveh 21 | BB37: Bus | BC37: 0 | BD37: 0 | BE37: testveh_Current
F38: Number of Road Calls (buses) or Failures (rail) | N38: i | BA38: testveh 22 | BB38: Bus | BC38: 0 | BD38: 0 | BE38: testveh_Current
F39: Gallons of Fuel for Vehicle Operations (000) | N39: i | BA39: testveh 23 | BB39: Bus | BC39: 0 | BD39: 0 | BE39: testveh_Current
F40: Kilowatt Hours for Vehicle Operations (000) | N40: i | BA40: testveh 24 | BB40: Bus | BC40: 0 | BD40: 0 | BE40: testveh_Current
F41: Vehicle Maintenance Cost (000) | N41: i | BA41: testveh 25 | BB41: Bus | BC41: 0 | BD41: 0 | BE41: testveh_Current
BA42: testveh 26 | BB42: Bus | BC42: 0 | BD42: 0 | BE42: testveh_Current
M43: Default | O43: Override Value | S43: Notes | BA43: testveh 27 | BB43: Bus | BC43: 0 | BD43: 0 | BE43: testveh_Current
D44: i | E44: ADDITIONAL VEHICLE DATA | BA44: testveh 28 | BB44: Bus | BC44: 0 | BD44: 0 | BE44: testveh_Current
F45: New Vehicle Cost ($ per vehicle) | M45: =INDEX('Default Assets'!B152:H152,BE50) -> 495951.4416 | N45: i | BA45: testveh 29 | BB45: Bus | BC45: 0 | BD45: 0 | BE45: testveh_Current
F46: Total Fleet (number of vehicles) | M46: =SUM(J12:J26)+SUM(W12:W26) -> 0 | N46: i | S46: default calculated based on data above (if populated) | BA46: testveh 30 | BB46: Bus | BC46: 0 | BD46: 0 | BE46: testveh_Current
F47: Annual Miles per Vehicle | M47: =IF(AND(OR(M46>0,O46>0),O35>0),1000*O35/IF(O46<>"",O46,M46),INDEX('Default Assets'!B153:H153,BE50)) -> 36424.71089 | N47: i | S47: default calculated based on data above (if populated)
F48: Average Accumulated Lifetime Mileage per Vehicle | M48: =IF((SUM(J12:J26)+SUM(W12:W26))=0, INDEX('Default Assets'!B154:H154,BE50), (SUMPRODUCT(H12:H26,J12:J26)+SUMPRODUCT(U12:U26,W12:W26))/(SUM(J12:J26)+SUM(W12:W26))) -> 291397.6871 | N48: i | S48: default calculated based on data above (if populated) | BA48: Model Parameters
F49: Maintenance Cost per Vehicle Mile ($) | M49: =IF(AND(O35>0,O41>0),O41/O35,INDEX('Default Assets'!B155:H155,BE50)) -> 1.435611556 | N49: i | S49: default calculated based on data above (if populated) | BA49: Description | BE49: Value
F50: Gallons per Vehicle Mile | M50: =IF(AND(O35>0,O39>0),O39/O35,INDEX('Default Assets'!B156:H156,BE50)) -> 0.265097194 | N50: i | S50: default calculated based on data above (if populated) | BA50: Vehicle Type Index | BE50: =MATCH(J5,VehicleAssets,0) -> 1
F51: Kilowatt Hours per Vehicle Mile | M51: =IF(AND(O35>0,O40>0),O40/O35,INDEX('Default Assets'!B157:H157,BE50)) -> 0 | N51: i | S51: default calculated based on data above (if populated) | BA51: Annual miles per vehicle | BE51: =IF(O47="",M47,O47) -> 36424.71089
F52: Roadcalls/Failures per Vehicle Mile | M52: =IF(AND(O35>0,O38>0),O38/O35/1000,INDEX('Default Assets'!B158:H158,BE50)) -> 0.000157 | N52: i | S52: default calculated based on data above (if populated) | BA52: Replacement Vehicle Costs (dollars) | BE52: =IF(O45="",M45,O45) -> 495951.4416
F53: Other Passenger Cost per Vehicle Mile ($) | M53: =INDEX('Default Assets'!B159:H159,BE50) -> 0 | N53: i | BA53: Energy Savings Due To New Technology with Replacement
F54: Other External Cost per Vehicle Mile ($) | M54: =INDEX('Default Assets'!B160:H160,BE50) -> 0 | N54: i | BA54: Vehicles (%) (+10% means 10% less energy use) | BE54: =IF(O73="",M73,O73) -> 0
BA55: Vehicle Production CO2 Emissions (tons per vehicle) | BE55: =IF(O74="",M74,O74) -> 70
D56: i | E56: INPUTS FOR THE DELAY CALCULATION | BA56: Agency Cost per Gallon of Fuel ($) | BE56: =IF(O76="",M76,O76) -> 3
F57: Passenger Miles per Revenue Vehicle Mile | M57: =IF(AND(O33<>"",O36<>""),O33/O36,INDEX('Default Assets'!B180:H180,BE50)) -> 10.04973935 | N57: i | S57: default calculated based on data above (if populated) | BA57: Tons of CO2 per Gallon | BE57: =IF(O75="",M75,O75) -> 0.0111
F58: Passenger Boardings per Revenue Vehicle Hour | M58: =IF(AND(O34<>"",O37<>""),O34/O37,INDEX('Default Assets'!B181:H181,BE50)) -> 32.3844732 | N58: i | S58: default calculated based on data above (if populated) | BA58: Average Age (years) | BE58: =IF(O48="",M48,O48)/BE51 -> 8
F59: Typical Schedule Headway (minutes) | M59: =INDEX('Default Assets'!B182:H182,BE50) -> 30 | N59: i | BA59: Passenger Hours of Delay per Roadcall/Failure | BE59: =IF(O62="",M62,O62) -> 21.21710627
F60: Typical Roadcall/Failure Recovery Time (minutes) | M60: =INDEX('Default Assets'!B183:H183,BE50) -> 60 | N60: i
F61: Vehicles per Consist | M61: =INDEX('Default Assets'!B184:H184,BE50) -> 1 | N61: i | BA61: Curve Coefficients
F62: Passenger Hours of Delay per Roadcall/Failure | M62: =IF(O59="",M59,O59)/60*(IF(O57="",M57,O57)+IF(O60="",M60,O60)/60*IF(O58="",M58,O58)*IF(O61="",M61,O61)) -> 21.21710627 | N62: i | S62: default calculated based on data above (if populated) | BA62: Curve | BC62: Coef0 | BD62: Cost ($) | BE62: Coef1
BA63: Maintenance ($) | BC63: =+IF(O49="",M49,O49)*BE51/EXP(BE58*BE63) -> 36222.38358 | BE63: =LN(1+IF(O66="",M66,O66))*(BE51/100000) -> 0.04589513572
D64: i | E64: INCREASES WITH VEHICLE AGE | BA64: Fuel ($) | BC64: =(IF(O50="",M50,O50)*BE56+IF(O51="",M51,O51)*ACostPerKWH)*BE51/EXP(BE64*BE58) -> 24130.93442 | BE64: =LN(1+IF(O67="",M67,O67))*(BE51/100000) -> 0.02283829373
E65: (% PER 100,000 MILES) | BA65: Delay (hours) | BC65: =IF(O62="",M62,O62)*IF(O52="",M52,O52)*BE51/EXP(BE65*BE58) -> 68.14094473 | BD65: =+BC65*CostPerPaxHour -> 3298.021725 | BE65: =LN(1+IF(O68="",M68,O68))*(BE51/100000) -> 0.07212092756
F66: Maintenance Cost per Vehicle Mile | M66: =INDEX('Default Assets'!B204:H204,BE50) -> 0.1342821683 | N66: i | BA66: Other Pass. ($) | BC66: =IF(O53="",M53,O53)*BE51/EXP(BE66*BE58) -> 0 | BD66: =+OPCWeight*BC66 -> 0 | BE66: =LN(1+IF(O69="",M69,O69))*(BE51/100000) -> 0.02283829373
F67: Energy Use per Vehicle Mile | M67: =INDEX('Default Assets'!B205:H205,BE50) -> 0.0647073791 | N67: i | BA67: CO2 (tons) | BC67: =+(IF(O50="",M50,O50)*BE57+IF(O51="",M51,O51)*TonsPerKWH)*BE51/EXP(BE58*BE67) -> 89.28445736 | BD67: =+BC67*CostPerTon -> 2142.826977 | BE67: =+BE64 -> 0.02283829373
F68: Road calls/Failures per vehicle Mile | M68: =INDEX('Default Assets'!B206:H206,BE50) -> 0.2189623938 | N68: i | BA68: Other External ($) | BC68: =IF(O54="",M54,O54)*BE51/EXP(BE68*BE58) -> 0 | BD68: =OXCWeight*BC68 -> 0 | BE68: =LN(1+IF(O70="",M70,O70))*(BE51/100000) -> 0.02283829373
F69: Other Passenger Cost per Vehicle Mile | M69: =INDEX('Default Assets'!B207:H207,BE50) -> 0.0647073791 | N69: i
F70: Other External Cost per Vehicle Mile | M70: =INDEX('Default Assets'!B208:H208,BE50) -> 0.0647073791 | N70: i | BA70: Periodic Rehabilitation Costs
BA71: Description | BE71: Value
E72: OTHER PARAMETERS | BA72: Percent of Vehicle Replacment Cost | BE72: =IF(O85="",M85,O85) -> 0
F73: Energy Savings for a New Vehicle (%) | M73: =INDEX('Default Assets'!B209:H209,BE50) -> 0 | N73: i | BA73: Rehab Interval (miles) | BE73: =IF(O86="",M86,O86) -> 9999999
F74: CO2 Emissions for a New Vehicle (tons) | M74: =INDEX('Default Assets'!B221:H221,BE50) -> 70 | N74: i | BA74: Cost per Rehab | BE74: =+BE72*BE52 -> 0
F75: Tons of CO2 per Gallon | M75: =TonsPerGallon -> 0.0111 | N75: i | BA75: Rehab Interval (years) | BE75: =INT(0.5+BE73/BE51) -> 275
F76: Agency Cost per Gallon of Fuel ($) | M76: =ACostPerGallon -> 3 | N76: i | BA76: Convert Rehab to per mile cost? | BE76: =IF(O87="",M87,O87) -> FALSE
F77: Supplemental Replacement Benefit (% of repl. cost) | M77: =0 -> 0 | N77: i
F78: Include in Asset Prioritization Run | M78: TRUE | N78: i | BA78: Per Mile Rehabilitation Costs
BA79: Lifetime Mileage | BC79: Rehab Cost | BD79: From Default Assets | BE79: From Per. Rehab.
B80: i | C80: REHABILITATION COSTS | BA80: From | BB80: To | BC80: ($/Veh. Mile)
BA81: ='Default Assets'!A237 -> 0 | BB81: ='Default Assets'!B237 -> 35000 | BC81: =IF(O93="",L93,O93) -> 0.1589917228 | BD81: =INDEX('Default Assets'!C237:I237,$BE$50)*$BE$52/$M$45 -> 0.1589917228 | BE81: =IF($BE$73>BB81,0,$BE$74/$BE$73) -> 0
M82: Default Value | O82: Override Value | S82: Notes | BA82: ='Default Assets'!A238 -> 35000 | BB82: ='Default Assets'!B238 -> 70000 | BC82: 0.3733273154 | BD82: =INDEX('Default Assets'!C238:I238,$BE$50)*$BE$52/$M$45 -> 0.3733273154 | BE82: 0
D83: i | E83: PERIODIC REHABILITATION COSTS | BA83: ='Default Assets'!A239 -> 70000 | BB83: ='Default Assets'!B239 -> 105000 | BC83: 0.5211392339 | BD83: =INDEX('Default Assets'!C239:I239,$BE$50)*$BE$52/$M$45 -> 0.5211392339 | BE83: 0
BA84: ='Default Assets'!A240 -> 105000 | BB84: ='Default Assets'!B240 -> 140000 | BC84: 0.5948140118 | BD84: =INDEX('Default Assets'!C240:I240,$BE$50)*$BE$52/$M$45 -> 0.5948140118 | BE84: 0
F85: Percent of Vehicle Replacement Cost | M85: =INDEX('Default Assets'!B271:H271,BE50) -> 0 | N85: i | BA85: ='Default Assets'!A241 -> 140000 | BB85: ='Default Assets'!B241 -> 175000 | BC85: 0.6275013322 | BD85: =INDEX('Default Assets'!C241:I241,$BE$50)*$BE$52/$M$45 -> 0.6275013322 | BE85: 0
F86: Rehab Interval (miles) | M86: =INDEX('Default Assets'!B272:H272,BE50) -> 9999999 | N86: i | BA86: ='Default Assets'!A242 -> 175000 | BB86: ='Default Assets'!B242 -> 210000 | BC86: 0.6416127703 | BD86: =INDEX('Default Assets'!C242:I242,$BE$50)*$BE$52/$M$45 -> 0.6416127703 | BE86: 0
F87: Convert to Per Mile Rehabilitation Cost | M87: FALSE | N87: i | BA87: ='Default Assets'!A243 -> 210000 | BB87: ='Default Assets'!B243 -> 245000 | BC87: 0.64835472 | BD87: =INDEX('Default Assets'!C243:I243,$BE$50)*$BE$52/$M$45 -> 0.64835472 | BE87: 0
BA88: ='Default Assets'!A244 -> 245000 | BB88: ='Default Assets'!B244 -> 280000 | BC88: 0.6526141383 | BD88: =INDEX('Default Assets'!C244:I244,$BE$50)*$BE$52/$M$45 -> 0.6526141383 | BE88: 0
D89: i | E89: PER MILE REHABILITATION COSTS | BA89: ='Default Assets'!A245 -> 280000 | BB89: ='Default Assets'!B245 -> 315000 | BC89: 0.6561553698 | BD89: =INDEX('Default Assets'!C245:I245,$BE$50)*$BE$52/$M$45 -> 0.6561553698 | BE89: 0
BA90: ='Default Assets'!A246 -> 315000 | BB90: ='Default Assets'!B246 -> 350000 | BC90: 0.6594765104 | BD90: =INDEX('Default Assets'!C246:I246,$BE$50)*$BE$52/$M$45 -> 0.6594765104 | BE90: 0
H91: Lifetime Mileage | L91: Rehab Cost ($/vehicle mile) | U91: Lifetime Mileage | Y91: Rehab Cost ($/vehicle mile) | BA91: ='Default Assets'!A247 -> 350000 | BB91: ='Default Assets'!B247 -> 385000 | BC91: 0.6627816931 | BD91: =INDEX('Default Assets'!C247:I247,$BE$50)*$BE$52/$M$45 -> 0.6627816931 | BE91: 0
H92: From | J92: To | L92: Default | O92: Override | U92: From | W92: To | Y92: Default | AA92: Override | BA92: ='Default Assets'!A248 -> 385000 | BB92: ='Default Assets'!B248 -> 420000 | BC92: 0.6663637928 | BD92: =INDEX('Default Assets'!C248:I248,$BE$50)*$BE$52/$M$45 -> 0.6663637928 | BE92: 0
H93: =BA81 -> 0 | J93: =BB81 -> 35000 | L93: =IF($BE$76,BE81,BD81) -> 0.1589917228 | U93: =BA96 -> 525000 | W93: =BB96 -> 560000 | Y93: =IF($BE$76,BE96,BD96) -> 0.6925890962 | BA93: ='Default Assets'!A249 -> 420000 | BB93: ='Default Assets'!B249 -> 455000 | BC93: 0.6706560893 | BD93: =INDEX('Default Assets'!C249:I249,$BE$50)*$BE$52/$M$45 -> 0.6706560893 | BE93: 0
H94: =BA82 -> 35000 | J94: =BB82 -> 70000 | L94: =IF($BE$76,BE82,BD82) -> 0.3733273154 | U94: =BA97 -> 560000 | W94: =BB97 -> 595000 | Y94: =IF($BE$76,BE97,BD97) -> 0.7041661596 | BA94: ='Default Assets'!A250 -> 455000 | BB94: ='Default Assets'!B250 -> 490000 | BC94: 0.6761562331 | BD94: =INDEX('Default Assets'!C250:I250,$BE$50)*$BE$52/$M$45 -> 0.6761562331 | BE94: 0
H95: 70000 | J95: 105000 | L95: 0.5211392339 | U95: 595000 | W95: 630000 | Y95: 0.7181586737 | BA95: ='Default Assets'!A251 -> 490000 | BB95: ='Default Assets'!B251 -> 525000 | BC95: 0.6833381773 | BD95: =INDEX('Default Assets'!C251:I251,$BE$50)*$BE$52/$M$45 -> 0.6833381773 | BE95: 0
H96: 105000 | J96: 140000 | L96: 0.5948140118 | U96: 630000 | W96: 665000 | Y96: 0.7344472215 | BA96: ='Default Assets'!A252 -> 525000 | BB96: ='Default Assets'!B252 -> 560000 | BC96: =IF(AA93="",Y93,AA93) -> 0.6925890962 | BD96: =INDEX('Default Assets'!C252:I252,$BE$50)*$BE$52/$M$45 -> 0.6925890962 | BE96: 0
H97: 140000 | J97: 175000 | L97: 0.6275013322 | U97: 665000 | W97: 700000 | Y97: 0.7526599064 | BA97: ='Default Assets'!A253 -> 560000 | BB97: ='Default Assets'!B253 -> 595000 | BC97: 0.7041661596 | BD97: =INDEX('Default Assets'!C253:I253,$BE$50)*$BE$52/$M$45 -> 0.7041661596 | BE97: 0
H98: 175000 | J98: 210000 | L98: 0.6416127703 | U98: 700000 | W98: 735000 | Y98: 0.7721320148 | BA98: ='Default Assets'!A254 -> 595000 | BB98: ='Default Assets'!B254 -> 630000 | BC98: 0.7181586737 | BD98: =INDEX('Default Assets'!C254:I254,$BE$50)*$BE$52/$M$45 -> 0.7181586737 | BE98: 0
H99: 210000 | J99: 245000 | L99: 0.64835472 | U99: 735000 | W99: 770000 | Y99: 0.7918796833 | BA99: ='Default Assets'!A255 -> 630000 | BB99: ='Default Assets'!B255 -> 665000 | BC99: 0.7344472215 | BD99: =INDEX('Default Assets'!C255:I255,$BE$50)*$BE$52/$M$45 -> 0.7344472215 | BE99: 0
H100: 245000 | J100: 280000 | L100: 0.6526141383 | U100: 770000 | W100: 805000 | Y100: 0.8106012735 | BA100: ='Default Assets'!A256 -> 665000 | BB100: ='Default Assets'!B256 -> 700000 | BC100: 0.7526599064 | BD100: =INDEX('Default Assets'!C256:I256,$BE$50)*$BE$52/$M$45 -> 0.7526599064 | BE100: 0
H101: 280000 | J101: 315000 | L101: 0.6561553698 | U101: 805000 | W101: 840000 | Y101: 0.8267212063 | BA101: ='Default Assets'!A257 -> 700000 | BB101: ='Default Assets'!B257 -> 735000 | BC101: 0.7721320148 | BD101: =INDEX('Default Assets'!C257:I257,$BE$50)*$BE$52/$M$45 -> 0.7721320148 | BE101: 0
H102: 315000 | J102: 350000 | L102: 0.6594765104 | U102: 840000 | W102: 875000 | Y102: 0.8384876816 | BA102: ='Default Assets'!A258 -> 735000 | BB102: ='Default Assets'!B258 -> 770000 | BC102: 0.7918796833 | BD102: =INDEX('Default Assets'!C258:I258,$BE$50)*$BE$52/$M$45 -> 0.7918796833 | BE102: 0
H103: 350000 | J103: 385000 | L103: 0.6627816931 | U103: 875000 | W103: 910000 | Y103: 0.8384876816 | BA103: ='Default Assets'!A259 -> 770000 | BB103: ='Default Assets'!B259 -> 805000 | BC103: 0.8106012735 | BD103: =INDEX('Default Assets'!C259:I259,$BE$50)*$BE$52/$M$45 -> 0.8106012735 | BE103: 0
H104: 385000 | J104: 420000 | L104: 0.6663637928 | U104: 910000 | W104: 945000 | Y104: 0.8384876816 | BA104: ='Default Assets'!A260 -> 805000 | BB104: ='Default Assets'!B260 -> 840000 | BC104: 0.8267212063 | BD104: =INDEX('Default Assets'!C260:I260,$BE$50)*$BE$52/$M$45 -> 0.8267212063 | BE104: 0
H105: 420000 | J105: 455000 | L105: 0.6706560893 | U105: 945000 | W105: 980000 | Y105: 0.8384876816 | BA105: ='Default Assets'!A261 -> 840000 | BB105: ='Default Assets'!B261 -> 875000 | BC105: 0.8384876816 | BD105: =INDEX('Default Assets'!C261:I261,$BE$50)*$BE$52/$M$45 -> 0.8384876816 | BE105: 0
H106: 455000 | J106: 490000 | L106: 0.6761562331 | U106: 980000 | W106: 1015000 | Y106: 0.8384876816 | BA106: ='Default Assets'!A262 -> 875000 | BB106: ='Default Assets'!B262 -> 910000 | BC106: 0.8384876816 | BD106: =INDEX('Default Assets'!C262:I262,$BE$50)*$BE$52/$M$45 -> 0.8384876816 | BE106: 0
H107: 490000 | J107: 525000 | L107: 0.6833381773 | U107: =W106 -> 1015000 | Y107: 0.8384876816 | BA107: ='Default Assets'!A263 -> 910000 | BB107: ='Default Assets'!B263 -> 945000 | BC107: 0.8384876816 | BD107: =INDEX('Default Assets'!C263:I263,$BE$50)*$BE$52/$M$45 -> 0.8384876816 | BE107: 0
BA108: ='Default Assets'!A264 -> 945000 | BB108: ='Default Assets'!B264 -> 980000 | BC108: 0.8384876816 | BD108: =INDEX('Default Assets'!C264:I264,$BE$50)*$BE$52/$M$45 -> 0.8384876816 | BE108: 0
C109: SUMMARY RESULTS | BA109: ='Default Assets'!A265 -> 980000 | BB109: ='Default Assets'!B265 -> 1015000 | BC109: 0.8384876816 | BD109: =INDEX('Default Assets'!C265:I265,$BE$50)*$BE$52/$M$45 -> 0.8384876816 | BE109: 0
BA110: ='Default Assets'!A266 -> 1015000 | BB110: ='Default Assets'!B266 -> 1050000 | BC110: 0.8384876816 | BD110: =INDEX('Default Assets'!C266:I266,$BE$50)*$BE$52/$M$45 -> 0.8384876816 | BE110: 0
F111: Average Annual Cost (dollars) | M111: =BE115 -> 162807.4456 | N111: i | BA111: 99999999
F112: Cost-Minimizing Replacement Mileage (miles) | M112: =BE116 -> 655644.796 | N112: i
F113: Cost-Minimizing Replacement Age (years) | M113: =BE117 -> 18 | N113: i | BA113: Summary Results
BA114: Description | BE114: Value
BA115: Optimum Annual Life Cycle Cost ($) | BE115: =MIN(BS123:BS242) -> 162807.4456
BA116: Optimum Replacement Mileage | BE116: =BE117*BE51 -> 655644.796
A117: Vehicle Type Dropdown | BA117: Optimum Replacement Age | BE117: =MATCH(BE115,BS123:BS242,0) -> 18
A118: ='Default Assets'!A141 -> Bus
A119: Small Bus | BA119: Life-Cycle Cost Analysis
A120: Van | BA120: Age | BB120: Lifetime Mileage | BC120: Annual Costs | BN120: Discount Factor | BO120: Cumulative Discounted Costs | BP120: Equivalent Annual Cost Fact. | BQ120: Annual Life-Cycle Costs | BT120: Net Present Value of Asset Replacement | BV120: Rehab., Maint., and Fuel Agency Cost
A121: ='Default Assets'!A144 -> Heavy Rail | BC121: Rehab | BD121: Maintenance | BE121: Fuel | BG121: Delay | BH121: Other Passenger | BI121: CO2 | BK121: Other External | BL121: Total | BQ121: Replace-ment | BR121: All Other | BS121: Total
A122: ='Default Assets'!A145 -> Light Rail | BE122: Current Veh. | BF122: Repl. Veh | BI122: Current Veh. | BJ122: Repl. Veh. | BL122: Current Veh. | BM122: Repl. Veh. | BT122: Cur. Veh. | BU122: Repl. Veh. | BV122: Cur. Veh. | BW122: Repl. Veh.
A123: ='Default Assets'!A146 -> Commuter Rail Locomotive | BA123: 1 | BB123: =+BA123*$BE$51 -> 36424.71089 | BC123: =$BE$51*VLOOKUP(BB123,$BA$81:$BC$111,3)+IF($BE$76,0,$BE$74*IF(INT(BA123/$BE$75)=BA123/$BE$75,1,0)) -> 13598.33953 | BD123: =$BC$63*EXP(BA123*$BE$63) -> 37923.55392 | BE123: =+$BC$64*EXP(BA123*$BE$64) -> 24688.38517 | BF123: =+BE123*(1-$BE$54) -> 24688.38517 | BG123: =+$BD$65*EXP($BE$65*BA123) -> 3544.665294 | BH123: =+$BD$66*EXP($BE$66*BA123) -> 0 | BI123: =+$BD$67*EXP(BA123*$BE$67) -> 2192.328603 | BJ123: =+BI123*(1-$BE$54) -> 2192.328603 | BK123: =+$BD$68*EXP($BE$68*BA123) -> 0 | BL123: =+BC123+BD123+BE123+BG123+BH123+BI123+BK123 -> 81947.27252 | BM123: =+BC123+BD123+BF123+BG123+BH123+BJ123+BK123 -> 81947.27252 | BN123: =+(1+DiscountRate)^-BA123 -> 0.9345794393 | BO123: =+BM123*BN123 -> 76586.236 | BP123: =DiscountRate/(1-(1+DiscountRate)^-BA123) -> 1.07 | BQ123: =($BE$52+$BE$55*CostPerTon)*BP123 -> 532465.6425 | BR123: =+BP123*BO123 -> 81947.27252 | BS123: =+BQ123+BR123 -> 614412.915 | BT123: =+BL124-$BE$115 -> -72809.03902 | BU123: -72809.03902 | BV123: =+BC123+BD123+BE123 -> 76210.27862 | BW123: =+BC123+BD123+BF123 -> 76210.27862
A124: ='Default Assets'!A147 -> Commuter Rail Coach | BA124: =1+BA123 -> 2 | BB124: 72849.42178 | BC124: =$BE$51*VLOOKUP(BB124,$BA$81:$BC$111,3)+IF($BE$76,0,$BE$74*IF(INT(BA124/$BE$75)=BA124/$BE$75,1,0)) -> 18982.34593 | BD124: 39704.61906 | BE124: 25258.71364 | BF124: 25258.71364 | BG124: 3809.754177 | BH124: =+$BD$66*EXP($BE$66*BA124) -> 0 | BI124: 2242.973771 | BJ124: 2242.973771 | BK124: =+$BD$68*EXP($BE$68*BA124) -> 0 | BL124: =+BC124+BD124+BE124+BG124+BH124+BI124+BK124 -> 89998.40658 | BM124: =+BC124+BD124+BF124+BG124+BH124+BJ124+BK124 -> 89998.40658 | BN124: 0.8734387283 | BO124: =+BO123+BM124*BN124 -> 155194.3298 | BP124: 0.5530917874 | BQ124: 275235.8635 | BR124: 85836.70926 | BS124: =+BQ124+BR124 -> 361072.5728 | BT124: -67340.5119 | BU124: -67340.5119 | BV124: 83945.67863 | BW124: 83945.67863
BA125: =1+BA124 -> 3 | BB125: 109274.1327 | BC125: 21665.92841 | BD125: 41569.33125 | BE125: 25842.21731 | BF125: 25842.21731 | BG125: 4094.667814 | BH125: 0 | BI125: 2294.788897 | BJ125: 2294.788897 | BK125: 0 | BL125: 95466.93369 | BM125: 95466.93369 | BN125: 0.8162978769 | BO125: 233123.7851 | BP125: 0.3810516657 | BQ125: 189623.2897 | BR125: 88832.20661 | BS125: 278455.4963 | BT125: -63241.38169 | BU125: -63241.38169 | BV125: 89077.47698 | BW125: 89077.47698
BA126: 4 | BB126: 145698.8436 | BC126: 22856.55461 | BD126: 43521.61893 | BE126: 26439.20055 | BF126: 26439.20055 | BG126: 4400.888805 | BH126: 0 | BI126: 2347.801009 | BJ126: 2347.801009 | BK126: 0 | BL126: 99566.06391 | BM126: 99566.06391 | BN126: 0.762895212 | BO126: 309082.2585 | BP126: 0.2952281167 | BQ126: 146914.7933 | BR126: 91249.77308 | BS126: 238164.5664 | BT126: -59689.26774 | BU126: -59689.26774 | BV126: 92817.37409 | BW126: 92817.37409
BA127: 5 | BB127: 182123.5545 | BC127: 23370.55966 | BD127: 45565.59505 | BE127: 27049.97476 | BF127: 27049.97476 | BG127: 4730.010627 | BH127: 0 | BI127: 2402.037758 | BJ127: 2402.037758 | BK127: 0 | BL127: 103118.1779 | BM127: 103118.1779 | BN127: 0.7129861795 | BO127: 382604.0942 | BP127: 0.2438906944 | BQ127: 121367.6779 | BR127: 93313.57822 | BS127: 214681.2561 | BT127: -56269.61477 | BU127: -56269.61477 | BV127: 95986.12947 | BW127: 95986.12947
BA128: 6 | BB128: 218548.2653 | BC128: 23616.13323 | BD128: 47705.56573 | BE128: 27674.8585 | BF128: 27674.8585 | BG128: 5083.745926 | BH128: 0 | BI128: 2457.527435 | BJ128: 2457.527435 | BK128: 0 | BL128: 106537.8308 | BM128: 106537.8308 | BN128: 0.6663422238 | BO128: 453594.7493 | BP128: 0.2097957998 | BQ128: 104400.9863 | BR128: 95162.27319 | BS128: 199563.2595 | BT128: -52797.71283 | BU128: -52797.71283 | BV128: 98996.55746 | BW128: 98996.55746
BA129: 7 | BB129: 254972.9762 | BC129: 23771.28131 | BD129: 49946.0393 | BE129: 28314.17774 | BF129: 28314.17774 | BG129: 5463.935428 | BH129: 0 | BI129: 2514.298984 | BJ129: 2514.298984 | BK129: 0 | BL129: 110009.7328 | BM129: 110009.7328 | BN129: 0.6227497419 | BO129: 522103.282 | BP129: 0.1855532196 | BQ129: 92337.11617 | BR129: 96877.94495 | BS129: 189215.0611 | BT129: -49202.23461 | BU129: -49202.23461 | BV129: 102031.4984 | BW129: 102031.4984
BA130: 8 | BB130: 291397.6871 | BC130: 23900.26964 | BD130: 52291.73586 | BE130: 28968.26595 | BF130: 28968.26595 | BG130: 5872.557518 | BH130: 0 | BI130: 2572.382016 | BJ130: 2572.382016 | BK130: 0 | BL130: 113605.211 | BM130: 113605.211 | BN130: 0.5820091046 | BO130: 588222.5491 | BP130: 0.1674677625 | BQ130: 83337.22406 | BR130: 98508.31414 | BS130: 181845.5382 | BT130: -45457.59754 | BU130: -45457.59754 | BV130: 105160.2715 | BW130: 105160.2715
BA131: 9 | BB131: 327822.398 | BC131: 24021.24123 | BD131: 54747.59716 | BE131: 29637.4643 | BF131: 29637.4643 | BG131: 6311.738537 | BH131: 0 | BI131: 2631.80683 | BJ131: 2631.80683 | BK131: 0 | BL131: 117349.8481 | BM131: 117349.8481 | BN131: 0.5439337426 | BO131: 652053.0911 | BP131: 0.1534864701 | BQ131: 76379.6934 | BR131: 100081.3273 | BS131: 176461.0207 | BT131: -41548.52687 | BU131: -41548.52687 | BV131: 108406.3027 | BW131: 108406.3027
BA132: 10 | BB132: 364247.1089 | BC132: 24141.63156 | BD132: 57318.79704 | BE132: 30322.12187 | BF132: 30322.12187 | BG132: 6783.763844 | BH132: 0 | BI132: 2692.604422 | BJ132: 2692.604422 | BK132: 0 | BL132: 121258.9187 | BM132: 121258.9187 | BN132: 0.5083492921 | BO132: 713694.9766 | BP132: 0.1423775027 | BQ132: 70851.52193 | BR132: 101614.1085 | BS132: 172465.6304 | BT132: -37456.0928 | BU132: -37456.0928 | BV132: 111782.5505 | BW132: 111782.5505
BA133: 11 | BB133: 400671.8198 | BC133: 24272.1085 | BD133: 60010.75233 | BE133: 31022.59576 | BF133: 31022.59576 | BG133: 7291.089708 | BH133: 0 | BI133: 2754.806503 | BJ133: 2754.806503 | BK133: 0 | BL133: 125351.3528 | BM133: 125351.3528 | BN133: 0.4750927964 | BO133: 773248.5014 | BP133: 0.1333569048 | BQ133: 66362.5888 | BR133: 103118.0268 | BS133: 169480.6156 | BT133: -33155.80419 | BU133: -33155.80419 | BV133: 115305.4566 | BW133: 115305.4566
BA134: 12 | BB134: 437096.5307 | BC134: 24428.45416 | BD134: 62829.13427 | BE134: 31739.25136 | BF134: 31739.25136 | BG134: 7836.356093 | BH134: 0 | BI134: 2818.445521 | BJ134: 2818.445521 | BK134: 0 | BL134: 129651.6414 | BM134: 129651.6414 | BN134: 0.4440119592 | BO134: 830815.3807 | BP134: 0.1259019887 | BQ134: 62652.78811 | BR134: 104601.3086 | BS134: 167254.0967 | BT134: -28620.35231 | BU134: -28620.35231 | BV134: 118996.8398 | BW134: 118996.8398
BA135: 13 | BB135: 473521.2416 | BC135: 24628.79531 | BD135: 65779.88043 | BE135: 32472.46248 | BF135: 32472.46248 | BG135: 8422.400392 | BH135: 0 | BI135: 2883.554668 | BJ135: 2883.554668 | BK135: 0 | BL135: 134187.0933 | BM135: 134187.0933 | BN135: 0.4149644479 | BO135: 886498.2538 | BP135: 0.1196508481 | BQ135: 59542.02404 | BR135: 106070.2679 | BS135: 165612.292 | BT135: -23822.79111 | BU135: -23822.79111 | BV135: 122881.1382 | BW135: 122881.1382
BA136: 14 | BB136: 509945.9525 | BC136: 24890.39555 | BD136: 68869.20726 | BE136: 33222.61157 | BF136: 33222.61157 | BG136: 9052.272194 | BH136: 0 | BI136: 2950.167908 | BJ136: 2950.167908 | BK136: 0 | BL136: 138984.6545 | BM136: 138984.6545 | BN136: 0.387817241 | BO136: 940398.899 | BP136: 0.1143449386 | BQ136: 56901.63664 | BR136: 107529.8544 | BS136: 164431.491 | BT136: -18738.80581 | BU136: -18738.80581 | BV136: 126982.2144 | BW136: 126982.2144
BA137: 15 | BB137: 546370.6634 | BC137: 25227.35759 | BD137: 72103.62313 | BE137: 33990.08993 | BF137: 33990.08993 | BG137: 9729.249153 | BH137: 0 | BI137: 3018.319985 | BJ137: 3018.319985 | BK137: 0 | BL137: 144068.6398 | BM137: 144068.6398 | BN137: 0.3624460196 | BO137: 992616.0041 | BP137: 0.1097946247 | BQ137: 54637.25737 | BR137: 108983.9016 | BS137: 163621.159 | BT137: -13348.25636 | BU137: -13348.25636 | BV137: 131321.0707 | BW137: 131321.0707
BA138: 16 | BB138: 582795.3743 | BC138: 25649.04878 | BD138: 75489.94211 | BE138: 34775.29786 | BF138: 34775.29786 | BG138: 10456.85404 | BH138: 0 | BI138: 3088.04645 | BJ138: 3088.04645 | BK138: 0 | BL138: 149459.1892 | BM138: 149459.1892 | BN138: 0.3387345978 | BO138: 1043243.002 | BP138: 0.1058576477 | BQ138: 52678.09384 | BR138: 110435.2502 | BS138: 163113.3441 | BT138: -7636.52358 | BU138: -7636.52358 | BV138: 135914.2887 | BW138: 135914.2887
BA139: 17 | BB139: 619220.0851 | BC139: 26158.72206 | BD139: 79035.29825 | BE139: 35578.64495 | BF139: 35578.64495 | BG139: 11238.87308 | BH139: 0 | BI139: 3159.383671 | BJ139: 3159.383671 | BK139: 0 | BL139: 155170.922 | BM139: 155170.922 | BN139: 0.3165743905 | BO139: 1092366.142 | BP139: 0.1024251931 | BQ139: 50969.99648 | BR139: 111885.813 | BS139: 162855.8095 | BT139: -1595.962458 | BU139: -1595.962458 | BV139: 140772.6653 | BW139: 140772.6653
BA140: 18 | BB140: 655644.796 | BC140: 26752.02771 | BD140: 82747.16068 | BE140: 36400.55022 | BF140: 36400.55022 | BG140: 12079.37566 | BH140: 0 | BI140: 3232.36886 | BJ140: 3232.36886 | BK140: 0 | BL140: 161211.4831 | BM140: 161211.4831 | BN140: 0.2958639163 | BO140: 1140062.803 | BP140: 0.09941260166 | BQ140: 49470.83627 | BR140: 113336.6093 | BS140: 162807.4456 | BT140: 4772.541176 | BU140: 4772.541176 | BV140: 145899.7386 | BW140: 145899.7386
BA141: 19 | BB141: 692069.5069 | BC141: 27415.41949 | BD141: 86633.34931 | BE141: 37241.4424 | BF141: 37241.4424 | BG141: 12982.73548 | BH141: 0 | BI141: 3307.040085 | BJ141: 3307.040085 | BK141: 0 | BL141: 167579.9868 | BM141: 167579.9868 | BN141: 0.276508333 | BO141: 1186400.066 | BP141: 0.09675301485 | BQ141: 48147.34226 | BR141: 114787.7832 | BS141: 162935.1255 | BT141: 11458.14086 | BU141: 11458.14086 | BV141: 151290.2112 | BW141: 151290.2112
BA142: 20 | BB142: 728494.2178 | BC142: 28124.68541 | BD142: 90702.0513 | BE142: 38101.7601 | BF142: 38101.7601 | BG142: 13953.65335 | BH142: 0 | BI142: 3383.436297 | BJ142: 3383.436297 | BK142: 0 | BL142: 174265.5865 | BM142: 174265.5865 | BN142: 0.2584190028 | BO142: 1231433.605 | BP142: 0.09439292574 | BQ142: 46972.88771 | BR142: 116238.6208 | BS142: 163211.5086 | BT142: 18439.11226 | BU142: 18439.11226 | BV142: 156928.4968 | BW142: 156928.4968
BA143: 21 | BB143: 764918.9287 | BC143: 28843.98853 | BD143: 94961.83831 | BE143: 38981.95208 | BF143: 38981.95208 | BG143: 14997.1816 | BH143: 0 | BI143: 3461.597344 | BJ143: 3461.597344 | BK143: 0 | BL143: 181246.5579 | BM143: 181246.5579 | BN143: 0.2415130867 | BO143: 1275207.021 | BP143: 0.09228900166 | BQ143: 45925.90894 | BR143: 117687.5829 | BS143: 163613.4918 | BT143: 25682.94789 | BU143: 25682.94789 | BV143: 162787.7789 | BW143: 162787.7789
BA144: 22 | BB144: 801343.6396 | BC144: 29525.91703 | BD144: 99421.68458 | BE144: 39882.47744 | BF144: 39882.47744 | BG144: 16118.75044 | BH144: 0 | BI144: 3541.563996 | BJ144: 3541.563996 | BK144: 0 | BL144: 188490.3935 | BM144: 188490.3935 | BN144: 0.2257131652 | BO144: 1317751.784 | BP144: 0.09040577323 | BQ144: 44988.75526 | BR144: 119132.369 | BS144: 164121.1242 | BT144: 33148.00117 | BU144: 33148.00117 | BV144: 168830.079 | BW144: 168830.079
BA145: 23 | BB145: 837768.3505 | BC145: 30113.08093 | BD145: 104090.9858 | BE145: 40803.80591 | BF145: 40803.80591 | BG145: 17324.19615 | BH145: 0 | BI145: 3623.377965 | BJ145: 3623.377965 | BK145: 0 | BL145: 195955.4468 | BM145: 195955.4468 | BN145: 0.2109468833 | BO145: 1359087.975 | BP145: 0.08871392625 | BQ145: 44146.83901 | BR145: 120570.0304 | BS145: 164716.8694 | BT145: 40787.09626 | BU145: 40787.09626 | BV145: 175007.8727 | BW145: 175007.8727
BA146: 24 | BB146: 874193.0614 | BC146: 30541.67139 | BD146: 108979.579 | BE146: 41746.41807 | BF146: 41746.41807 | BG146: 18619.79148 | BH146: 0 | BI146: 3707.081925 | BJ146: 3707.081925 | BK146: 0 | BL146: 203594.5419 | BM146: 203594.5419 | BN146: 0.1971466199 | BO146: 1399225.951 | BP146: 0.08718902073 | BQ146: 43387.99808 | BR146: 121997.1404 | BS146: 165385.1385 | BT146: 48347.79231 | BU146: 48347.79231 | BV146: 181267.6685 | BW146: 181267.6685
BA147: 25 | BB147: 910617.7723 | BC147: 30541.67139 | BD147: 114097.7631 | BE147: 42710.80559 | BF147: 42710.80559 | BG147: 20012.27831 | BH147: 0 | BI147: 3792.719537 | BJ147: 3792.719537 | BK147: 0 | BL147: 211155.2379 | BM147: 211155.2379 | BN147: 0.1842491775 | BO147: 1438131.13 | BP147: 0.08581051722 | BQ147: 42702.01139 | BR147: 123406.7761 | BS147: 166108.7874 | BT147: 56277.25618 | BU147: 56277.25618 | BV147: 187350.2401 | BW147: 187350.2401
BA148: 26 | BB148: 947042.4832 | BC148: 30541.67139 | BD148: 119456.3207 | BE148: 43697.47152 | BF148: 43697.47152 | BG148: 21508.90269 | BH148: 0 | BI148: 3880.335471 | BJ148: 3880.335471 | BK148: 0 | BL148: 219084.7018 | BM148: 219084.7018 | BN148: 0.172195493 | BO148: 1475856.528 | BP148: 0.08456102789 | BQ148: 42080.22621 | BR148: 124799.945 | BS148: 166880.1712 | BT148: 64595.12524 | BU148: 64595.12524 | BV148: 193695.4636 | BW148: 193695.4636
BA149: 27 | BB149: 983467.1941 | BC149: 30541.67139 | BD149: 125066.5409 | BE149: 44706.93049 | BF149: 44706.93049 | BG149: 23117.45259 | BH149: 0 | BI149: 3969.975427 | BJ149: 3969.975427 | BK149: 0 | BL149: 227402.5708 | BM149: 227402.5708 | BN149: 0.1609303673 | BO149: 1512452.507 | BP149: 0.08342573402 | BQ149: 41515.26828 | BR149: 126177.4606 | BS149: 167692.7288 | BT149: 73322.16242 | BU149: 73322.16242 | BV149: 200315.1428 | BW149: 200315.1428
BA150: 28 | BB150: 1019891.905 | BC150: 30541.67139 | BD150: 130940.243 | BE150: 45739.70906 | BF150: 45739.70906 | BG150: 24846.29839 | BH150: 0 | BI150: 4061.686164 | BJ150: 4061.686164 | BK150: 0 | BL150: 236129.608 | BM150: 236129.608 | BN150: 0.1504022124 | BO150: 1547966.922 | BP150: 0.0823919283 | BQ150: 41000.81405 | BR150: 127539.9797 | BS150: 168540.7937 | BT150: 82480.32494 | BU150: 82480.32494 | BV150: 207221.6235 | BW150: 207221.6235
BA151: 29 | BB151: 1056316.616 | BC151: 30541.67139 | BD151: 137089.8012 | BE151: 46796.34593 | BF151: 46796.34593 | BG151: 26704.43645 | BH151: 0 | BI151: 4155.515519 | BJ151: 4155.515519 | BK151: 0 | BL151: 245287.7705 | BM151: 245287.7705 | BN151: 0.1405628154 | BO151: 1582445.262 | BP151: 0.0814486518 | BQ151: 40531.41001 | BR151: 128888.0331 | BS151: 169419.4432 | BT151: 92092.83755 | BU151: 92092.83755 | BV151: 214427.8186 | BW151: 214427.8186
BA152: 30 | BB152: 1092741.327 | BC152: 30541.67139 | BD152: 143528.1711 | BE152: 47877.39227 | BF152: 47877.39227 | BG152: 28701.53594 | BH152: 0 | BI152: 4251.512433 | BJ152: 4251.512433 | BK152: 0 | BL152: 254900.2832 | BM152: 254900.2832 | BN152: 0.1313671172 | BO152: 1615930.777 | BP152: 0.08058640351 | BQ152: 40102.32815 | BR152: 130222.0497 | BS152: 170324.3778 | BT152: 102184.2704 | BU152: 102184.2704 | BV152: 221947.2348 | BW152: 221947.2348
BA153: 31 | BB153: 1129166.038 | BC153: 30541.67139 | BD153: 150268.9166 | BE153: 48983.41194 | BF153: 48983.41194 | BG153: 30847.98913 | BH153: 0 | BI153: 4349.72698 | BJ153: 4349.72698 | BK153: 0 | BL153: 264991.716 | BM153: 264991.716 | BN153: 0.1227730067 | BO153: 1648464.607 | BP153: 0.07979690608 | BQ153: 39709.44941 | BR153: 131542.3754 | BS153: 171251.8248 | BT153: 112780.6221 | BU153: 112780.6221 | BV153: 229793.9999 | BW153: 229793.9999
BA154: 32 | BB154: 1165590.749 | BC154: 30541.67139 | BD154: 157326.2385 | BE154: 50114.98187 | BF154: 50114.98187 | BG154: 33154.96548 | BH154: 0 | BI154: 4450.21039 | BJ154: 4450.21039 | BK154: 0 | BL154: 275588.0677 | BM154: 275588.0677 | BN154: 0.1147411277 | BO154: 1680085.893 | BP154: 0.0790729155 | BQ154: 39349.16893 | BR154: 132849.2898 | BS154: 172198.4588 | BT154: 123909.4078 | BU154: 123909.4078 | BV154: 237982.8918 | BW154: 237982.8918
BA155: 33 | BB155: 1202015.459 | BC155: 30541.67139 | BD155: 164715.0049 | BE155: 51272.69229 | BF155: 51272.69229 | BG155: 35634.46976 | BH155: 0 | BI155: 4553.015076 | BJ155: 4553.015076 | BK155: 0 | BL155: 286716.8534 | BM155: 286716.8534 | BN155: 0.1072346988 | BO155: 1710831.888 | BP155: 0.07840806526 | BQ155: 39018.31855 | BR155: 134143.0183 | BS155: 173161.3369 | BT155: =+BL156-$BE$115 -> 135599.7539 | BU155: 135599.7539 | BV155: 246529.3686 | BW155: 246529.3686
BA156: 34 | BB156: 1238440.17 | BC156: 30541.67139 | BD156: 172450.7819 | BE156: 52457.14708 | BF156: 52457.14708 | BG156: 38299.40453 | BH156: 0 | BI156: 4658.194661 | BJ156: 4658.194661 | BK156: 0 | BL156: 298407.1995 | BM156: 298407.1995 | BN156: 0.1002193447 | BO156: 1740738.062 | BP156: 0.07779673811 | BQ156: 38714.10294 | BR156: 135423.7432 | BS156: 174137.8461 | BT156: 147882.4978 | BU156: 147882.4978 | BV156: 255449.6003 | BW156: 255449.6003
BA157: 35 | BB157: 1274864.881 | BC157: 30541.67139 | BD157: 180549.8666 | BE157: 53668.96406 | BF157: 53668.96406 | BG157: 41163.63728 | BH157: 0 | BI157: 4765.804008 | BJ157: 4765.804008 | BK157: 0 | BL157: 310689.9433 | BM157: 310689.9433 | BN157: 0.09366293897 | BO157: 1769838.195 | BP157: 0.07723395965 | BQ157: 38434.04668 | BR157: 136691.6118 | BS157: 175125.6584 | BT157: 160790.2947 | BU157: 160790.2947 | BV157: 264760.5021 | BW157: 264760.5021
BA158: 36 | BB158: 1311289.592 | BC158: 30541.67139 | BD158: 189029.3218 | BE158: 54908.77532 | BF158: 54908.77532 | BG158: 44242.07254 | BH158: 0 | BI158: 4875.899248 | BJ158: 4875.899248 | BK158: 0 | BL158: 323597.7403 | BM158: 323597.7403 | BN158: 0.08753545698 | BO158: 1798164.472 | BP158: 0.07671530969 | BQ158: 38175.95015 | BR158: 137946.7443 | BS158: 176122.6945 | BT158: 174357.732 | BU158: 174357.732 | BV158: 274479.7685 | BW158: 274479.7685
BA159: 37 | BB159: 1347714.303 | BC159: 30541.67139 | BD159: 197907.0113 | BE159: 56177.22757 | BF159: 56177.22757 | BG159: 47550.72954 | BH159: 0 | BI159: 4988.537808 | BJ159: 4988.537808 | BK159: 0 | BL159: 337165.1776 | BM159: 337165.1776 | BN159: 0.0818088383 | BO159: 1825747.563 | BP159: 0.07623684797 | BQ159: 37937.85255 | BR159: 139189.2394 | BS159: 177127.0919 | BT159: 188621.4502 | BU159: 188621.4502 | BV159: 284625.9102 | BW159: 284625.9102
BA160: 38 | BB160: 1384139.014 | BC160: 30541.67139 | BD160: 207201.6381 | BE160: 57474.98244 | BF160: 57474.98244 | BG160: 51106.82546 | BH160: 0 | BI160: 5103.778441 | BJ160: 5103.778441 | BK160: 0 | BL160: 351428.8958 | BM160: 351428.8958 | BN160: 0.07645685822 | BO160: 1852616.712 | BP160: 0.07579505151 | BQ160: 37718.00075 | BR160: 140419.1791 | BS160: 178137.1799 | BT160: 203620.2725 | BU160: 203620.2725 | BV160: 295218.2919 | BW160: 295218.2919
BA161: 39 | BB161: 1420563.725 | BC161: 30541.67139 | BD161: 216932.7834 | BE161: 58802.71685 | BF161: 58802.71685 | BG161: 54928.86511 | BH161: 0 | BI161: 5221.681257 | BJ161: 5221.681257 | BK161: 0 | BL161: 366427.7181 | BM161: 366427.7181 | BN161: 0.07145500769 | BO161: 1878799.808 | BP161: 0.07538676163 | BQ161: 37514.82287 | BR161: 141636.6333 | BS161: 179151.4561 | BT161: 219395.3424 | BU161: 219395.3424 | BV161: 306277.1717 | BW161: 306277.1717
BA162: 40 | BB162: 1456988.436 | BC162: 30541.67139 | BD162: 227120.9483 | BE162: 60161.12337 | BF162: 60161.12337 | BG162: 59036.73717 | BH162: 0 | BI162: 5342.307756 | BJ162: 5342.307756 | BK162: 0 | BL162: 382202.788 | BM162: 382202.788 | BN162: 0.06678038102 | BO162: 1904323.455 | BP162: 0.07500913887 | BQ162: 37326.90591 | BR162: 142841.6625 | BS162: 180168.5684 | BT162: 235990.2714 | BU162: 235990.2714 | BV162: 317823.7431 | BW162: 317823.7431
BA163: 41 | BB163: 1493413.147 | BC163: 30541.67139 | BD163: 237787.5965 | BE163: 61550.91056 | BF163: 61550.91056 | BG163: 63451.81771 | BH163: 0 | BI163: 5465.720857 | BJ163: 5465.720857 | BK163: 0 | BL163: 398797.717 | BM163: 398797.717 | BN163: 0.06241157104 | BO163: 1929213.048 | BP163: 0.07465962446 | BQ163: 37152.97654 | BR163: 144034.3216 | BS163: 181187.2982 | BT163: 253451.2951 | BU163: 253451.2951 | BV163: 329880.1784 | BW163: 329880.1784
BA164: 42 | BB164: 1529837.857 | BC164: 30541.67139 | BD164: 248955.1996 | BE164: 62972.80333 | BF164: 62972.80333 | BG164: 68197.0814 | BH164: 0 | BI164: 5591.984936 | BJ164: 5591.984936 | BK164: 0 | BL164: 416258.7407 | BM164: 416258.7407 | BN164: 0.05832857107 | BO164: 1953492.825 | BP164: 0.07433590725 | BQ164: 36991.88468 | BR164: 145214.6615 | BS164: 182206.5461 | BT164: 271827.4411 | BU164: 271827.4411 | BV164: 342469.6743 | BW164: 342469.6743
BA165: 43 | BB165: 1566262.568 | BC165: 30541.67139 | BD165: 260647.285 | BE165: 64427.54337 | BF165: 64427.54337 | BG165: 73297.22109 | BH165: 0 | BI165: 5721.165851 | BJ165: 5721.165851 | BK165: 0 | BL165: 434634.8867 | BM165: 434634.8867 | BN165: 0.05451268324 | BO165: 1977185.939 | BP165: 0.07403589531 | BQ165: 36842.58931 | BR165: 146382.7312 | BS165: 183225.3205 | BT165: 291170.7072 | BU165: 291170.7072 | BV165: 355616.4997 | BW165: 355616.4997
BA166: 44 | BB166: 1602687.279 | BC166: 30541.67139 | BD166: 272888.4846 | BE166: 65915.88948 | BF166: 65915.88948 | BG166: 78778.7763 | BH166: 0 | BI166: 5853.330986 | BJ166: 5853.330986 | BK166: 0 | BL166: 453978.1528 | BM166: 453978.1528 | BN166: 0.05094643294 | BO166: 2000314.506 | BP166: 0.07375769127 | BQ166: 36704.14623 | BR166: 147538.5798 | BS166: 184242.726 | BT166: 311536.2519 | BU166: 311536.2519 | BV166: 369346.0455 | BW166: 369346.0455
BA167: 45 | BB167: 1639111.99 | BC167: 30541.67139 | BD167: 285704.5875 | BE167: 67438.618 | BF167: 67438.618 | BG167: 84670.2713 | BH167: 0 | BI167: 5988.549278 | BJ167: 5988.549278 | BK167: 0 | BL167: 474343.6975 | BM167: 474343.6975 | BN167: 0.04761348872 | BO167: 2022899.665 | BP167: 0.07349957099 | BQ167: 36575.69747 | BR167: 148682.2575 | BS167: 185257.955 | BT167: 332982.5976 | BU167: 332982.5976 | BV167: 383684.8769 | BW167: 383684.8769
BA168: 46 | BB168: 1675536.701 | BC168: 30541.67139 | BD168: 299122.5938 | BE168: 68996.5232 | BF168: 68996.5232 | BG168: 91002.36357 | BH168: 0 | BI168: 6126.89126 | BJ168: 6126.89126 | BK168: 0 | BL168: 495790.0432 | BM168: 495790.0432 | BN168: 0.04449858759 | BO168: 2044961.621 | BP168: 0.07325996497 | BQ168: 36456.46198 | BR168: 149813.8167 | BS168: 186270.2787 | BT168: 355571.8474 | BU168: 355571.8474 | BV168: 398660.7883 | BW168: 398660.7883
BA169: 47 | BB169: 1711961.412 | BC169: 30541.67139 | BD169: 313170.7715 | BE169: 70590.4177 | BF169: 70590.4177 | BG169: 97808.0033 | BH169: 0 | BI169: 6268.429092 | BJ169: 6268.429092 | BK169: 0 | BL169: 518379.293 | BM169: 518379.293 | BN169: 0.04158746504 | BO169: 2066519.702 | BP169: 0.07303744207 | BQ169: 36345.72758 | BR169: 150933.313 | BS169: 187279.0406 | BT169: 379369.9167 | BU169: 379369.9167 | BV169: 414302.8606 | BW169: 414302.8606
BA170: 48 | BB170: 1748386.123 | BC170: 30541.67139 | BD170: 327878.7165 | BE170: 72221.13289 | BF170: 72221.13289 | BG170: 105122.6049 | BH170: 0 | BI170: 6413.236601 | BJ170: 6413.236601 | BK170: 0 | BL170: 542177.3623 | BM170: 542177.3623 | BN170: 0.03886678976 | BO170: 2087592.396 | BP170: 0.07283069532 | BQ170: 36242.8439 | BR170: 152040.8057 | BS170: 188283.6496 | BT170: 404446.7803 | BU170: 404446.7803 | BV170: 430641.5208 | BW170: 430641.5208
BA171: 49 | BB171: 1784810.834 | BC171: 30541.67139 | BD171: 343277.4146 | BE171: 73889.51937 | BF171: 73889.51937 | BG171: 112984.2312 | BH171: 0 | BI171: 6561.38932 | BJ171: 6561.38932 | BK171: 0 | BL171: 567254.2259 | BM171: 567254.2259 | BN171: 0.03632410258 | BO171: 2108197.396 | BP171: 0.07263852939 | BQ171: 36147.21609 | BR171: 153136.3585 | BS171: 189283.5746 | BT171: 430876.7359 | BU171: 430876.7359 | BV171: 447708.6053 | BW171: 447708.6053
BA172: 50 | BB172: 1821235.545 | BC172: 30541.67139 | BD172: 359399.3065 | BE172: 75596.44739 | BF172: 75596.44739 | BG172: 121433.7917 | BH172: 0 | BI172: 6712.964528 | BJ172: 6712.964528 | BK172: 0 | BL172: 593684.1815 | BM172: 593684.1815 | BN172: 0.03394775942 | BO172: 2128351.644 | BP172: 0.07245984954 | BQ172: 36058.29938 | BR172: 154220.0399 | BS172: 190278.3393 | BT172: 458738.6864 | BU172: 458738.6864 | BV172: 465537.4253 | BW172: 465537.4253
BA173: 51 | BB173: 1857660.255 | BC173: 30541.67139 | BD173: 376278.357 | BE173: 77342.80729 | BF173: 77342.80729 | BG173: 130515.2551 | BH173: 0 | BI173: 6868.041287 | BJ173: 6868.041287 | BK173: 0 | BL173: 621546.132 | BM173: 621546.132 | BN173: 0.03172687796 | BO173: 2148071.362 | BP173: 0.07229365187 | BQ173: 35975.5942 | BR173: 155291.9233 | BS173: 191267.5175 | BT173: 488116.4404 | BU173: 488116.4404 | BV173: 484162.8356 | BW173: 484162.8356
BA174: 52 | BB174: 1894084.966 | BC174: 30541.67139 | BD174: 393950.1255 | BE174: 79129.51 | BF174: 79129.51 | BG174: 140275.8786 | BH174: 0 | BI174: 7026.700488 | BJ174: 7026.700488 | BK174: 0 | BL174: 650923.886 | BM174: 650923.886 | BN174: 0.02965128781 | BO174: 2167372.094 | BP174: 0.07213901469 | BQ174: 35898.64187 | BR174: 156352.0873 | BS174: 192250.7292 | BT174: 519099.0333 | BU174: 519099.0333 | BV174: 503621.3069 | BW174: 503621.3069
BA175: 53 | BB175: 1930509.677 | BC175: 30541.67139 | BD175: 412451.8419 | BE175: 80957.48749 | BF175: 80957.48749 | BG175: 150766.4533 | BH175: 0 | BI175: 7189.024889 | BJ175: 7189.024889 | BK175: 0 | BL175: 681906.4789 | BM175: 681906.4789 | BN175: 0.02771148394 | BO175: 2186268.734 | BP175: 0.0719950908 | BQ175: 35827.02082 | BR175: 157400.616 | BS175: 193227.6369 | BT175: 551781.0712 | BU175: 551781.0712 | BV175: 523951.0007 | BW175: 523951.0007
BA176: 54 | BB176: 1966934.388 | BC176: 30541.67139 | BD176: 431822.4843 | BE176: 82827.69323 | BF176: 82827.69323 | BG176: 162041.5688 | BH176: 0 | BI176: 7355.099159 | BJ176: 7355.099159 | BK176: 0 | BL176: 714588.5168 | BM176: 714588.5168 | BN176: 0.02589858312 | BO176: 2204775.564 | BP176: 0.07186110069 | BQ176: 35760.34313 | BR176: 158437.5988 | BS176: 194197.942 | BT176: 586263.0972 | BU176: 586263.0972 | BV176: 545191.8489 | BW176: 545191.8489
BA177: 55 | BB177: 2003359.099 | BC177: 30541.67139 | BD177: 452102.8614 | BE177: 84741.10275 | BF177: 84741.10275 | BG177: 174159.8973 | BH177: 0 | BI177: 7525.009925 | BJ177: 7525.009925 | BK177: 0 | BL177: 749070.5428 | BM177: 749070.5428 | BN177: 0.02420428329 | BO177: 2222906.28 | BP177: 0.07173632637 | BQ177: 35698.2515 | BR177: 159463.1304 | BS177: 195161.3819 | BT177: 622651.9832 | BU177: 622651.9832 | BV177: 567385.6356 | BW177: 567385.6356
BA178: 56 | BB178: 2039783.81 | BC178: 30541.67139 | BD178: 473335.6987 | BE178: 86698.71411 | BF178: 86698.71411 | BG178: 187184.4988 | BH178: 0 | BI178: 7698.845813 | BJ178: 7698.845813 | BK178: 0 | BL178: 785459.4288 | BM178: 785459.4288 | BN178: 0.0226208255 | BO178: 2240674.021 | BP178: 0.07162010592 | BQ178: 35640.41655 | BR178: 160477.3107 | BS178: 196117.7272 | BT178: 661061.3488 | BU178: 661061.3488 | BV178: 590576.0842 | BW178: 590576.0842
BA179: 57 | BB179: 2076208.521 | BC179: 30541.67139 | BD179: 495565.728 | BE179: 88701.54842 | BF179: 88701.54842 | BG179: 201183.1491 | BH179: 0 | BI179: 7876.697499 | BJ179: 7876.697499 | BK179: 0 | BL179: 823868.7944 | BM179: 823868.7944 | BN179: 0.02114095841 | BO179: 2258091.397 | BP179: 0.07151182859 | BQ179: 35586.53435 | BR179: 161480.2449 | BS179: 197066.7793 | BT179: 701612.0088 | BU179: 701612.0088 | BV179: 614808.9478 | BW179: 614808.9478
BA180: 58 | BB180: 2112633.232 | BC180: 30541.67139 | BD180: 518839.7822 | BE180: 90750.65037 | BF180: 90750.65037 | BG180: 216228.6927 | BH180: 0 | BI180: 8058.657752 | BJ180: 8058.657752 | BK180: 0 | BL180: 864419.4544 | BM180: 864419.4544 | BN180: 0.01975790506 | BO180: 2275170.514 | BP180: 0.07141093038 | BQ180: 35536.32423 | BR180: 162472.0432 | BS180: 198008.3674 | BT180: 744432.4513 | BU180: 744432.4513 | BV180: 640132.1039 | BW180: 640132.1039
BA181: 59 | BB181: 2149057.943 | BC181: 30541.67139 | BD181: 543206.8933 | BE181: 92847.08879 | BF181: 92847.08879 | BG181: 232399.422 | BH181: 0 | BI181: 8244.821485 | BJ181: 8244.821485 | BK181: 0 | BL181: 907239.8969 | BM181: 907239.8969 | BN181: 0.01846533183 | BO181: 2291923 | BP181: 0.07131689004 | BQ181: 35489.5268 | BR181: 163452.8206 | BS181: 198942.3474 | BT181: 789659.3494 | BU181: 789659.3494 | BV181: 666595.6535 | BW181: 666595.6535
BA182: 60 | BB182: 2185482.653 | BC182: 30541.67139 | BD182: 568718.3965 | BE182: 94991.95722 | BF182: 94991.95722 | BG182: 249779.4842 | BH182: 0 | BI182: 8435.285801 | BJ182: 8435.285801 | BK182: 0 | BL182: 952466.795 | BM182: 952466.795 | BN182: 0.01725731947 | BO182: 2308360.024 | BP182: 0.0712292255 | BQ182: 35445.90217 | BR182: 164422.6967 | BS182: 199868.5988 | BT182: 837438.1075 | BU182: 837438.1075 | BV182: 694252.0251 | BW182: 694252.0251
BA183: 61 | BB183: 2221907.364 | BC183: 30541.67139 | BD183: 595428.0376 | BE183: 97186.37443 | BF183: 97186.37443 | BG183: 268459.3197 | BH183: 0 | BI183: 8630.150049 | BJ183: 8630.150049 | BK183: 0 | BL183: 1000245.553 | BM183: 1000245.553 | BN183: 0.01612833595 | BO183: 2324492.32 | BP183: 0.07114749063 | BQ183: 35405.22833 | BR183: 165381.7956 | BS183: 200787.0239 | BT183: 887923.4459 | BU183: 887923.4459 | BV183: 723156.0834 | BW183: 723156.0834
BA184: 62 | BB184: 2258332.075 | BC184: 30541.67139 | BD184: 623392.0867 | BE184: 99431.48506 | BF184: 99431.48506 | BG184: 288536.1324 | BH184: 0 | BI184: 8829.515873 | BJ184: 8829.515873 | BK184: 0 | BL184: 1050730.891 | BM184: 1050730.891 | BN184: 0.01507321117 | BO184: 2340330.209 | BP184: 0.0710712723 | BQ184: 35367.29969 | BR184: 166330.2455 | BS184: 201697.5452 | BT184: 941280.0257 | BU184: 941280.0257 | BV184: 753365.2432 | BW184: 753365.2432
BA185: 63 | BB185: 2294756.786 | BC185: 30541.67139 | BD185: 652669.4567 | BE185: 101728.4602 | BF185: 101728.4602 | BG185: 310114.3958 | BH185: 0 | BI185: 9033.487264 | BJ185: 9033.487264 | BK185: 0 | BL185: 1104087.471 | BM185: 1104087.471 | BN185: 0.01408711324 | BO185: 2355883.614 | BP185: 0.07100018768 | BQ185: 35331.92575 | BR185: 167268.1787 | BS185: 202600.1045 | BT185: 997683.1176 | BU185: 997683.1176 | BV185: 784939.5883 | BW185: 784939.5883
BA186: 64 | BB186: 2331181.497 | BC186: 30541.67139 | BD186: 683321.8271 | BE186: 104078.4979 | BF186: 104078.4979 | BG186: 333306.3962 | BH186: 0 | BI186: 9242.170615 | BJ186: 9242.170615 | BK186: 0 | BL186: 1160490.563 | BM186: 1160490.563 | BN186: 0.0131655264 | BO186: 2371162.083 | BP186: 0.07093388189 | BQ186: 35298.9299 | BR186: 168195.7311 | BS186: 203494.6611 | BT186: 1057319.316 | BU186: 1057319.316 | BV186: 817941.9964 | BW186: 817941.9964
BA187: 65 | BB187: =+BA187*$BE$51 -> 2367606.208 | BC187: 30541.67139 | BD187: =$BC$63*EXP(BA187*$BE$63) -> 715413.7743 | BE187: =+$BC$64*EXP(BA187*$BE$64) -> 106482.8241 | BF187: =+BE187*(1-$BE$54) -> 106482.8241 | BG187: =+$BD$65*EXP($BE$65*BA187) -> 358232.8175 | BH187: 0 | BI187: =+$BD$67*EXP(BA187*$BE$67) -> 9455.674777 | BJ187: =+BI187*(1-$BE$54) -> 9455.674777 | BK187: 0 | BL187: 1220126.762 | BM187: 1220126.762 | BN187: =+(1+DiscountRate)^-BA187 -> 0.01230423028 | BO187: 2386174.804 | BP187: =DiscountRate/(1-(1+DiscountRate)^-BA187) -> 0.07087202572 | BQ187: =($BE$52+$BE$55*CostPerTon)*BP187 -> 35268.14833 | BR187: =+BP187*BO187 -> 169113.0421 | BS187: 204381.1904 | BT187: =+BL188-$BE$115 -> 1120387.306 | BU187: 1120387.306 | BV187: =+BC187+BD187+BE187 -> 852438.2698 | BW187: =+BC187+BD187+BF187 -> 852438.2698
BA188: 66 | BB188: 2404030.919 | BC188: =$BE$51*VLOOKUP(BB188,$BA$81:$BC$111,3)+IF($BE$76,0,$BE$74*IF(INT(BA188/$BE$75)=BA188/$BE$75,1,0)) -> 30541.67139 | BD188: 749012.9075 | BE188: 108942.6928 | BF188: 108942.6928 | BG188: 385023.3688 | BH188: =+$BD$66*EXP($BE$66*BA188) -> 0 | BI188: 9674.111117 | BJ188: 9674.111117 | BK188: =+$BD$68*EXP($BE$68*BA188) -> 0 | BL188: =+BC188+BD188+BE188+BG188+BH188+BI188+BK188 -> 1283194.752 | BM188: =+BC188+BD188+BF188+BG188+BH188+BJ188+BK188 -> 1283194.752 | BN188: 0.01149928063 | BO188: =+BO187+BM188*BN188 -> 2400930.62 | BP188: 0.07081431367 | BQ188: 35239.42899 | BR188: 170020.254 | BS188: =+BQ188+BR188 -> 205259.683 | BT188: 1187098.677 | BU188: 1187098.677 | BV188: 888497.2717 | BW188: 888497.2717
BA189: =1+BA188 -> 67 | BB189: 2440455.63 | BC189: 30541.67139 | BD189: 784190.0111 | BE189: 111459.3871 | BF189: 111459.3871 | BG189: 413817.4598 | BH189: 0 | BI189: 9897.593574 | BJ189: 9897.593574 | BK189: 0 | BL189: 1349906.123 | BM189: 1349906.123 | BN189: 0.01074699125 | BO189: 2415438.05 | BP189: 0.07076046207 | BQ189: 35212.63074 | BR189: 170917.5125 | BS189: 206130.1432 | BT189: 1257678.804 | BU189: 1257678.804 | BV189: 926191.0696 | BW189: 926191.0696
BA190: 68 | BB190: 2476880.341 | BC190: 30541.67139 | BD190: 821019.1939 | BE190: 114034.2198 | BF190: 114034.2198 | BG190: 444764.9258 | BH190: 0 | BI190: 10126.23872 | BJ190: 10126.23872 | BK190: 0 | BL190: 1420486.25 | BM190: 1420486.25 | BN190: 0.01004391705 | BO190: 2429705.296 | BP190: 0.07071020746 | BQ190: 35187.62247 | BR190: 171804.9655 | BS190: 206992.588 | BT190: 1332367.778 | BU190: 1332367.778 | BV190: 965595.0851 | BW190: 965595.0851
BA191: 69 | BB191: 2513305.051 | BC191: 30541.67139 | BD191: 859578.0451 | BE191: 116668.5339 | BF191: 116668.5339 | BG191: 478026.8074 | BH191: 0 | BI191: 10360.16581 | BJ191: 10360.16581 | BK191: 0 | BL191: 1495175.224 | BM191: 1495175.224 | BN191: 0.009386838366 | BO191: 2443740.264 | BP191: 0.07066330502 | BQ191: 35164.28234 | BR191: 172682.7637 | BS191: 207847.046 | BT191: 1411421.413 | BU191: 1411421.413 | BV191: 1006788.25 | BW191: 1006788.25
BA192: 70 | BB192: 2549729.762 | BC192: 30541.67139 | BD192: 899947.7979 | BE192: 119363.7036 | BF192: 119363.7036 | BG192: 513776.1892 | BH192: 0 | BI192: 10599.49688 | BJ192: 10599.49688 | BK192: 0 | BL192: 1574228.859 | BM192: 1574228.859 | BN192: 0.008772746136 | BO192: 2457550.574 | BP192: 0.07061952718 | BQ192: 35142.49712 | BR192: 173551.0596 | BS192: 208693.5567 | BT192: 1495112.317 | BU192: 1495112.317 | BV192: 1049853.173 | BW192: 1049853.173
BA193: 71 | BB193: 2586154.473 | BC193: 30541.67139 | BD193: 942213.5006 | BE193: 122121.1345 | BF193: 122121.1345 | BG193: 552199.0994 | BH193: 0 | BI193: 10844.35675 | BJ193: 10844.35675 | BK193: 0 | BL193: 1657919.763 | BM193: 1657919.763 | BN193: 0.008198828165 | BO193: 2471143.573 | BP193: 0.07057866232 | BQ193: 35122.16148 | BR193: 174410.0078 | BS193: 209532.1693 | BT193: 1583731.039 | BU193: 1583731.039 | BV193: 1094876.307 | BW193: 1094876.307
BA194: 72 | BB194: 2622579.184 | BC194: 30541.67139 | BD194: 986464.1959 | BE194: 124942.2652 | BF194: 124942.2652 | BG194: 593495.4788 | BH194: 0 | BI194: 11094.87315 | BJ194: 11094.87315 | BK194: 0 | BL194: 1746538.484 | BM194: 1746538.484 | BN194: 0.007662456229 | BO194: 2484526.348 | BP194: 0.0705405136 | BQ194: 35103.17747 | BR194: 175259.7646 | BS194: 210362.9421 | BT194: 1677587.298 | BU194: 1677587.298 | BV194: 1141948.132 | BW194: 1141948.132
BA195: 73 | BB195: 2659003.895 | BC195: 30541.67139 | BD195: 1032793.108 | BE195: 127828.567 | BF195: 127828.567 | BG195: 637880.2206 | BH195: 0 | BI195: 11351.17675 | BJ195: 11351.17675 | BK195: 0 | BL195: 1840394.744 | BM195: 1840394.744 | BN195: 0.007161174046 | BO195: 2497705.735 | BP195: 0.07050489784 | BQ195: 35085.45395 | BR195: 176100.4877 | BS195: 211185.9416 | BT195: 1777011.301 | BU195: 1777011.301 | BV195: 1191163.346 | BW195: 1191163.346
BA196: 74 | BB196: 2695428.606 | BC196: 30541.67139 | BD196: 1081297.84 | BE196: 130781.5455 | BF196: 130781.5455 | BG196: 685584.2889 | BH196: 0 | BI196: 11613.40124 | BJ196: 11613.40124 | BK196: 0 | BL196: 1939818.747 | BM196: 1939818.747 | BN196: 0.006692686024 | BO196: 2510688.333 | BP196: 0.07047164459 | BQ196: 35068.90609 | BR196: 176932.3359 | BS196: 212001.2419 | BT196: 1882355.149 | BU196: 1882355.149 | BV196: 1242621.057 | BW196: 1242621.057
BA197: 75 | BB197: 2731853.317 | BC197: 30541.67139 | BD197: 1132080.578 | BE197: 133802.741 | BF197: 133802.741 | BG197: 736855.9207 | BH197: 0 | BI197: 11881.6834 | BJ197: 11881.6834 | BK197: 0 | BL197: 2045162.594 | BM197: 2045162.594 | BN197: 0.006254846751 | BO197: 2523480.511 | BP197: 0.07044059513 | BQ197: 35053.4549 | BR197: 177755.469 | BS197: 212808.9239 | BT197: 1993994.343 | BU197: 1993994.343 | BV197: 1296424.99 | BW197: 1296424.99
BA198: 76 | BB198: 2768278.028 | BC198: 30541.67139 | BD198: 1185248.307 | BE198: 136893.7294 | BF198: 136893.7294 | BG198: 791961.9172 | BH198: 0 | BI198: 12156.16317 | BJ198: 12156.16317 | BK198: 0 | BL198: 2156801.788 | BM198: 2156801.788 | BN198: 0.00584565117 | BO198: 2536088.422 | BP198: 0.07041160166 | BQ198: 35039.02684 | BR198: 178570.0478 | BS198: 213609.0746 | BT198: 2112329.404 | BU198: 2112329.404 | BV198: 1352683.708 | BW198: 1352683.708
BA199: 77 | BB199: 2804702.739 | BC199: 30541.67139 | BD199: 1240913.039 | BE199: 140056.123 | BF199: 140056.123 | BG199: 851189.0326 | BH199: 0 | BI199: 12436.98372 | BJ199: 12436.98372 | BK199: 0 | BL199: 2275136.85 | BM199: 2275136.85 | BN199: 0.005463225392 | BO199: 2548518.008 | BP199: 0.07038452653 | BQ199: 35025.5534 | BR199: 179376.2333 | BS199: 214401.7867 | BT199: 2237787.598 | BU199: 2237787.598 | BV199: 1411510.833 | BW199: 1411510.833
BA200: 78 | BB200: 2841127.45 | BC200: 30541.67139 | BD200: 1299192.043 | BE200: 143291.5713 | BF200: 143291.5713 | BG200: 914845.4661 | BH200: 0 | BI200: 12724.29153 | BJ200: 12724.29153 | BK200: 0 | BL200: 2400595.044 | BM200: 2400595.044 | BN200: 0.005105818123 | BO200: 2560775.009 | BP200: 0.07035924149 | BQ200: 35012.97077 | BR200: 180174.1873 | BS200: 215187.1581 | BT200: 2370824.788 | BU200: 2370824.788 | BV200: 1473025.286 | BW200: 1473025.286
BA201: 79 | BB201: 2877552.16 | BC201: 30541.67139 | BD201: 1360208.099 | BE201: 146601.7619 | BF201: 146601.7619 | BG201: 983262.4655 | BH201: 0 | BI201: 13018.23646 | BJ201: 13018.23646 | BK201: 0 | BL201: 2533632.234 | BM201: 2533632.234 | BN201: 0.004771792639 | BO201: 2572864.977 | BP201: 0.07033562703 | BQ201: 35001.21947 | BR201: 180964.0714 | BS201: 215965.2909 | BT201: 2511927.42 | BU201: 2511927.42 | BV201: 1537351.532 | BW201: 1537351.532
... 42 more rows

Sheet Age-Based Model Template
AG1: Asset Type Dropdown | BA1: =IF(P72="",N72,P72) -> TRUE | BB1: << Include | BD1: replace | BF1: =BD1 -> replace
B2: Transit Cooperative Research Program - Transit Asset Prioritization Tool | AG2: ='Default Assets'!A3 -> Facilities-Access and Parking | BA2: 1 | BB2: << Parameter Rows
B3: Age-Based Model | AG3: ='Default Assets'!A4 -> Facilities-Administrative Building
AG4: ='Default Assets'!A5 -> Facilities-Brake Lathe | BA4: Asset Type Code | BB4: Replacement Asset Type Code | BC4: Replacement Impacts (delay in hours, CO2 in tons, others in dollars) | BH4: Weibull Parameters and Impacts (delay in hours, CO2 in tons, others in dollars) | BO4: Exponential Coefficients | BW4: Net Present Value of Asset Replacement by Age | GM4: Maintenance and Other Non-Capital Agency Costs by Age | LC4: PI Increment | LD4: TERM Condition Coefficients | LF4: MDBF Coefficients | LH4: Model Type | LI4: Energy Cost Coefficients
G5: i | H5: Asset Type | K5: Facilities-Access and Parking | AG5: ='Default Assets'!A6 -> Facilities-Building Utilities | BO5: Delay (hours) | BQ5: Other Pass. Cost | BS5: CO2 (tons) | BU5: Other External Cost
G6: i | H6: Asset Description | AG6: ='Default Assets'!A7 -> Facilities-Building Utilities-Elevators and Conveying Systems | BC6: Agency | BD6: Delay | BE6: OthPax | BF6: CO2 | BG6: OthExt | BH6: Shape | BI6: Scale | BJ6: Agency | BK6: Delay | BL6: OthPax | BM6: CO2 | BN6: OthExt | BO6: D0 | BP6: D1 | BQ6: P0 | BR6: P1 | BS6: C0 | BT6: C1 | BU6: X0 | BV6: X1 | BW6: 1 | BX6: =1+BW6 -> 2 | BY6: =1+BX6 -> 3 | BZ6: 4 | CA6: 5 | CB6: 6 | CC6: 7 | CD6: 8 | CE6: 9 | CF6: 10 | CG6: 11 | CH6: 12 | CI6: 13 | CJ6: 14 | CK6: 15 | CL6: 16 | CM6: 17 | CN6: 18 | CO6: 19 | CP6: 20 | CQ6: 21 | CR6: 22 | CS6: 23 | CT6: 24 | CU6: 25 | CV6: 26 | CW6: 27 | CX6: 28 | CY6: 29 | CZ6: 30 | DA6: 31 | DB6: 32 | DC6: 33 | DD6: 34 | DE6: 35 | DF6: 36 | DG6: 37 | DH6: 38 | DI6: 39 | DJ6: 40 | DK6: 41 | DL6: 42 | DM6: 43 | DN6: 44 | DO6: 45 | DP6: 46 | DQ6: 47 | DR6: 48 | DS6: 49 | DT6: 50 | DU6: 51 | DV6: 52 | DW6: 53 | DX6: 54 | DY6: 55 | DZ6: 56 | EA6: 57 | EB6: 58 | EC6: 59 | ED6: 60 | EE6: 61 | EF6: 62 | EG6: 63 | EH6: 64 | EI6: 65 | EJ6: 66 | EK6: =1+EJ6 -> 67 | EL6: 68 | EM6: 69 | EN6: 70 | EO6: 71 | EP6: 72 | EQ6: 73 | ER6: 74 | ES6: 75 | ET6: 76 | EU6: 77 | EV6: 78 | EW6: 79 | EX6: 80 | EY6: 81 | EZ6: 82 | FA6: 83 | FB6: 84 | FC6: 85 | FD6: 86 | FE6: 87 | FF6: 88 | FG6: 89 | FH6: 90 | FI6: 91 | FJ6: 92 | FK6: 93 | FL6: 94 | FM6: 95 | FN6: 96 | FO6: 97 | FP6: 98 | FQ6: 99 | FR6: 100 | FS6: 101 | FT6: 102 | FU6: 103 | FV6: 104 | FW6: 105 | FX6: 106 | FY6: 107 | FZ6: 108 | GA6: 109 | GB6: 110 | GC6: 111 | GD6: 112 | GE6: 113 | GF6: 114 | GG6: 115 | GH6: 116 | GI6: 117 | GJ6: 118 | GK6: 119 | GL6: 120 | GM6: 1 | GN6: 2 | GO6: 3 | GP6: 4 | GQ6: 5 | GR6: 6 | GS6: 7 | GT6: 8 | GU6: 9 | GV6: 10 | GW6: =1+GV6 -> 11 | GX6: 12 | GY6: 13 | GZ6: 14 | HA6: 15 | HB6: 16 | HC6: 17 | HD6: 18 | HE6: 19 | HF6: 20 | HG6: 21 | HH6: 22 | HI6: 23 | HJ6: 24 | HK6: 25 | HL6: 26 | HM6: 27 | HN6: 28 | HO6: 29 | HP6: 30 | HQ6: 31 | HR6: 32 | HS6: 33 | HT6: 34 | HU6: 35 | HV6: 36 | HW6: 37 | HX6: 38 | HY6: 39 | HZ6: 40 | IA6: 41 | IB6: 42 | IC6: 43 | ID6: 44 | IE6: 45 | IF6: 46 | IG6: 47 | IH6: 48 | II6: 49 | IJ6: 50 | IK6: 51 | IL6: 52 | IM6: 53 | IN6: 54 | IO6: 55 | IP6: 56 | IQ6: 57 | IR6: 58 | IS6: 59 | IT6: 60 | IU6: 61 | IV6: 62 | IW6: 63 | IX6: 64 | IY6: 65 | IZ6: 66 | JA6: 67 | JB6: 68 | JC6: 69 | JD6: 70 | JE6: 71 | JF6: 72 | JG6: 73 | JH6: 74 | JI6: =1+JH6 -> 75 | JJ6: 76 | JK6: 77 | JL6: 78 | JM6: 79 | JN6: 80 | JO6: 81 | JP6: 82 | JQ6: 83 | JR6: 84 | JS6: 85 | JT6: 86 | JU6: 87 | JV6: 88 | JW6: 89 | JX6: 90 | JY6: 91 | JZ6: 92 | KA6: 93 | KB6: 94 | KC6: 95 | KD6: 96 | KE6: 97 | KF6: 98 | KG6: 99 | KH6: 100 | KI6: 101 | KJ6: 102 | KK6: 103 | KL6: 104 | KM6: 105 | KN6: 106 | KO6: 107 | KP6: 108 | KQ6: 109 | KR6: 110 | KS6: 111 | KT6: 112 | KU6: 113 | KV6: 114 | KW6: 115 | KX6: 116 | KY6: 117 | KZ6: 118 | LA6: 119 | LB6: 120 | LD6: TERM0 | LE6: TERM1 | LF6: FailPerDH | LG6: AnnMiles | LI6: E0 | LJ6: E1
G7: i | H7: Asset Units of Measure | AG7: ='Default Assets'!A8 -> Facilities-Building Utilities-Generator | BA7: =$BD$1 -> replace | BB7: =+BA7 -> replace | BC7: =BC60 -> 28577 | BD7: =BC61 -> 0 | BE7: =BC62 -> 0 | BF7: =BC63 -> 0 | BG7: =BC64 -> 0 | BH7: =BE54 -> 3.479810387 | BI7: =BE55 -> 81.55578017 | BJ7: =BE60-BC60 -> 57154 | BK7: =BE61-BC61 -> 0 | BL7: =BE62-BC62 -> 0 | BM7: =BE63-BC63 -> 0 | BN7: =BE64-BC64 -> 0 | BO7: =BC71 -> 0 | BP7: =BE71 -> 0.0198026273 | BQ7: =BC72 -> 0 | BR7: =BE72 -> 0.0198026273 | BS7: =BC73 -> 0 | BT7: =BE73 -> 0.0198026273 | BU7: =BC74 -> 0 | BV7: =BE74 -> 0.0198026273 | BW7: =TRANSPOSE(BR84:BR203) -> -2499.118258 | BX7: -2474.416601 | BY7: -2448.975719 | BZ7: -2422.741049 | CA7: -2395.664341 | CB7: -2367.701465 | CC7: -2338.811224 | CD7: -2308.954635 | CE7: -2278.094445 | CF7: -2246.194788 | CG7: -2213.220933 | CH7: -2179.139094 | CI7: -2143.916272 | CJ7: -2107.520136 | CK7: -2069.918923 | CL7: -2031.081351 | CM7: -1990.97655 | CN7: -1949.574003 | CO7: -1906.843491 | CP7: -1862.755045 | CQ7: -1817.278909 | CR7: -1770.385503 | CS7: -1722.045386 | CT7: -1672.229233 | CU7: -1620.907803 | CV7: -1568.051916 | CW7: -1513.632429 | CX7: -1457.620217 | CY7: -1399.986151 | CZ7: -1340.701081 | DA7: -1279.735815 | DB7: -1217.061108 | DC7: -1152.64764 | DD7: -1086.466007 | DE7: -1018.4867 | DF7: -948.6800949 | DG7: -877.0164388 | DH7: -803.4658353 | DI7: -727.9982322 | DJ7: -650.583409 | DK7: -571.1909646 | DL7: -489.7903047 | DM7: -406.3506305 | DN7: -320.8409261 | DO7: -233.2299475 | DP7: -143.4862102 | DQ7: -51.57797849 | DR7: 42.52674688 | DS7: 138.8602398 | DT7: 237.4550603 | DU7: 338.3440663 | DV7: 441.5604251 | DW7: 547.137625 | DX7: 655.1094867 | DY7: 765.5101756 | DZ7: 878.3742133 | EA7: 993.7364897 | EB7: 1111.632275 | EC7: 1232.097231 | ED7: 1355.167426 | EE7: 1480.879345 | EF7: 1609.269903 | EG7: 1740.376456 | EH7: 1874.236818 | EI7: 2010.889273 | EJ7: 2150.372584 | EK7: 2292.726011 | EL7: 2437.989326 | EM7: 2586.202823 | EN7: 2737.407333 | EO7: 2891.644242 | EP7: 3048.955501 | EQ7: 3209.383645 | ER7: 3372.971805 | ES7: 3539.763726 | ET7: 3709.803783 | EU7: 3883.136994 | EV7: 4059.809039 | EW7: 4239.866278 | EX7: 4423.355763 | EY7: 4610.325263 | EZ7: 4800.823274 | FA7: 4994.899041 | FB7: 5192.602577 | FC7: 5393.984679 | FD7: 5599.09695 | FE7: 5807.991818 | FF7: 6020.722552 | FG7: 6237.343289 | FH7: 6457.909048 | FI7: 6682.475758 | FJ7: 6911.100272 | FK7: 7143.840394 | FL7: 7380.754902 | FM7: 7621.903566 | FN7: 7867.347176 | FO7: 8117.147564 | FP7: 8371.367628 | FQ7: 8630.071357 | FR7: 8893.323858 | FS7: 9161.191377 | FT7: 9433.741332 | FU7: 9711.042334 | FV7: 9993.164217 | FW7: 10280.17807 | FX7: 10572.15625 | FY7: 10869.17243 | FZ7: 11171.30162 | GA7: 11478.62021 | GB7: 11791.20596 | GC7: 12109.13809 | GD7: 12432.49726 | GE7: 12761.36565 | GF7: 13095.82694 | GG7: 13435.9664 | GH7: 13781.87089 | GI7: 14133.62888 | GJ7: 14491.33055 | GK7: 14855.06776 | GL7: 15224.93411 | GM7: =TRANSPOSE(BT84:BT203) -> 1195.616888 | GN7: 1219.703976 | GO7: 1244.561364 | GP7: 1270.283688 | GQ7: 1296.947915 | GR7: 1324.621442 | GS7: 1353.365391 | GT7: 1383.236379 | GU7: 1414.287602 | GV7: 1446.569554 | GW7: 1480.13054 | GX7: 1515.017051 | GY7: 1551.274055 | GZ7: 1588.945217 | HA7: 1628.073089 | HB7: 1668.699251 | HC7: 1710.864438 | HD7: 1754.608643 | HE7: 1799.971208 | HF7: 1846.990897 | HG7: 1895.705964 | HH7: 1946.154213 | HI7: 1998.37305 | HJ7: 2052.399527 | HK7: 2108.270384 | HL7: 2166.022089 | HM7: 2225.690871 | HN7: 2287.312752 | HO7: 2350.923574 | HP7: 2416.559026 | HQ7: 2484.254673 | HR7: 2554.045973 | HS7: 2625.968303 | HT7: 2700.056979 | HU7: 2776.347273 | HV7: 2854.874435 | HW7: 2935.673708 | HX7: 3018.780345 | HY7: 3104.229626 | HZ7: 3192.056873 | IA7: 3282.297468 | IB7: 3374.986862 | IC7: 3470.160594 | ID7: 3567.854301 | IE7: 3668.103739 | IF7: 3770.944785 | IG7: 3876.41346 | IH7: 3984.545939 | II7: 4095.378561 | IJ7: 4208.947844 | IK7: 4325.2905 | IL7: 4444.443443 | IM7: 4566.443804 | IN7: 4691.328943 | IO7: 4819.136461 | IP7: 4949.904214 | IQ7: 5083.670326 | IR7: 5220.473196 | IS7: 5360.351518 | IT7: 5503.34429 | IU7: 5649.490828 | IV7: 5798.830775 | IW7: 5951.404122 | IX7: 6107.251213 | IY7: 6266.412763 | IZ7: 6428.929871 | JA7: 6594.844032 | JB7: 6764.197152 | JC7: 6937.031563 | JD7: 7113.390035 | JE7: 7293.315792 | JF7: 7476.852527 | JG7: 7664.044414 | JH7: 7854.936128 | JI7: 8049.572857 | JJ7: 8248.000318 | JK7: 8450.264773 | JL7: 8656.413046 | JM7: 8866.492541 | JN7: 9080.551254 | JO7: 9298.637795 | JP7: 9520.801404 | JQ7: 9747.091966 | JR7: 9977.560033 | JS7: 10212.25684 | JT7: 10451.23433 | JU7: 10694.54516 | JV7: 10942.24273 | JW7: 11194.38121 | JX7: 11451.01554 | JY7: 11712.20146 | JZ7: 11977.99556 | KA7: 12248.45525 | KB7: 12523.6388 | KC7: 12803.6054 | KD7: 13088.41513 | KE7: 13378.12902 | KF7: 13672.80904 | KG7: 13972.51817 | KH7: 14277.32037 | KI7: 14587.28067 | KJ7: 14902.46512 | KK7: 15222.94089 | KL7: 15548.77624 | KM7: 15880.0406 | KN7: 16216.80453 | KO7: 16559.13983 | KP7: 16907.11948 | KQ7: 17260.81777 | KR7: 17620.31023 | KS7: 17985.67373 | KT7: 18356.98649 | KU7: 18734.32812 | KV7: 19117.77962 | KW7: 19507.42346 | KX7: 19903.34359 | KY7: 20305.62547 | KZ7: 20714.35612 | LA7: 21129.62415 | LB7: 21551.5198 | LC7: =IF(P71="",N71,P71) -> 0 | LD7: =+BE50 -> 6 | LE7: =+BE51 -> -0.0887 | LF7: 0 | LG7: 0 | LH7: 2 | LI7: =+BC70 -> 0 | LJ7: =+BE70 -> 0.0198026273
AG8: ='Default Assets'!A9 -> Facilities-Bus Turnaround Facility
C9: INVENTORY DESCRIPTION | AG9: ='Default Assets'!A10 -> Facilities-Bus Washer
AG10: ='Default Assets'!A11 -> Facilities-Dynamoneter
I11: i | J11: Age of | K11: i | L11: Units of | M11: i | N11: Project | P11: i | Q11: Pipeline | V11: i | W11: Age of | X11: i | Y11: Units of | Z11: i | AA11: Project | AB11: i | AC11: Pipeline | AG11: ='Default Assets'!A12 -> Facilities-Fixed Lift
J12: Assets | L12: Assets | N12: Code | Q12: Year | W12: Assets | Y12: Assets | AA12: Code | AC12: Year | AG12: ='Default Assets'!A13 -> Facilities-Fuel Island
G13: Sub-Group | H13: 1 | T13: Sub-Group | U13: 16 | AG13: ='Default Assets'!A14 -> Facilities-Maintenance Building
H14: 2 | U14: 17 | AG14: ='Default Assets'!A15 -> Facilities-Maintenance Equipment
H15: 3 | U15: 18 | AG15: ='Default Assets'!A16 -> Facilities-Major Bus Shop
H16: 4 | U16: 19 | AG16: ='Default Assets'!A17 -> Facilities-Major Rail Shop | BA16: ID Code | BB16: Description | BC16: Age | BD16: No. of Assets | BE16: Asset Type | BF16: Project Code | BG16: Pipeline Year
H17: 5 | U17: 20 | AG17: ='Default Assets'!A18 -> Facilities-Passenger Building | BA17: =$BD$1&" "&ROW(BB17)-16 -> replace 1 | BB17: =IF($K$6="",$K$5,$K$6) -> Facilities-Access and Parking | BC17: =+I13 -> 0 | BD17: =+K13 -> 0 | BE17: =$BA$7 -> replace | BF17: =+IF(M13="","",M13) ->  | BG17: =+IF(P13="","",P13) -> 
H18: 6 | U18: 21 | AG18: ='Default Assets'!A19 -> Facilities-Pollution Treatment | BA18: replace 2 | BB18: Facilities-Access and Parking | BC18: 0 | BD18: 0 | BE18: replace
H19: 7 | U19: 22 | AG19: ='Default Assets'!A20 -> Facilities-Portable Lift | BA19: replace 3 | BB19: Facilities-Access and Parking | BC19: 0 | BD19: 0 | BE19: replace
H20: 8 | U20: 23 | AG20: ='Default Assets'!A21 -> Facilities-Storage Yard | BA20: replace 4 | BB20: Facilities-Access and Parking | BC20: 0 | BD20: 0 | BE20: replace
H21: 9 | U21: 24 | AG21: ='Default Assets'!A22 -> Facilities-Storage Yard-Bus | BA21: replace 5 | BB21: Facilities-Access and Parking | BC21: 0 | BD21: 0 | BE21: replace
H22: 10 | U22: 25 | AG22: ='Default Assets'!A23 -> Facilities-Train Control Center | BA22: replace 6 | BB22: Facilities-Access and Parking | BC22: 0 | BD22: 0 | BE22: replace
H23: 11 | U23: 26 | AG23: ='Default Assets'!A24 -> Facilities-Train Washer | BA23: replace 7 | BB23: Facilities-Access and Parking | BC23: 0 | BD23: 0 | BE23: replace
H24: 12 | U24: 27 | AG24: ='Default Assets'!A25 -> Facilities-Vehicle Paintbooth | BA24: replace 8 | BB24: Facilities-Access and Parking | BC24: 0 | BD24: 0 | BE24: replace
H25: 13 | U25: 28 | AG25: ='Default Assets'!A26 -> Facilities-Wheel Truing Machine | BA25: replace 9 | BB25: Facilities-Access and Parking | BC25: 0 | BD25: 0 | BE25: replace
H26: 14 | U26: 29 | AG26: ='Default Assets'!A27 -> Guideway-At Grade Ballasted or Expressway | BA26: replace 10 | BB26: Facilities-Access and Parking | BC26: 0 | BD26: 0 | BE26: replace
H27: 15 | U27: 30 | AG27: ='Default Assets'!A28 -> Guideway-At Grade Bus | BA27: replace 11 | BB27: Facilities-Access and Parking | BC27: 0 | BD27: 0 | BE27: replace
AG28: ='Default Assets'!A29 -> Guideway-At-Grade Crossing | BA28: replace 12 | BB28: Facilities-Access and Parking | BC28: 0 | BD28: 0 | BE28: replace
C29: MODEL PARAMETERS | AG29: ='Default Assets'!A30 -> Guideway-Ballasted Curved Platform Track | BA29: replace 13 | BB29: Facilities-Access and Parking | BC29: 0 | BD29: 0 | BE29: replace
AG30: ='Default Assets'!A31 -> Guideway-Ballasted Tangent Platform Track | BA30: replace 14 | BB30: Facilities-Access and Parking | BC30: 0 | BD30: 0 | BE30: replace
N31: Default Value | P31: Override Value | T31: Notes | AG31: ='Default Assets'!A32 -> Guideway-Bridge | BA31: replace 15 | BB31: Facilities-Access and Parking | BC31: 0 | BD31: 0 | BE31: replace
E32: ASSET REPLACEMENT COSTS | AG32: ='Default Assets'!A33 -> Guideway-Bus Turnaround | BA32: replace 16 | BB32: Facilities-Access and Parking | BC32: =+V13 -> 0 | BD32: =+X13 -> 0 | BE32: replace | BF32: =IF(Z13="","",Z13) ->  | BG32: =IF(AB13="","",AB13) -> 
G33: Agency Replacement Cost ($) | N33: =INDEX(DefaultRepCost,MATCH(K5,DefaultAssets,0)) -> 28577 | O33: i | AG33: ='Default Assets'!A34 -> Guideway-Concrete Tie | BA33: replace 17 | BB33: Facilities-Access and Parking | BC33: =+V15 -> 0 | BD33: =+X15 -> 0 | BE33: replace | BF33: =IF(Z15="","",Z15) ->  | BG33: =IF(AB15="","",AB15) -> 
G34: Passenger Delay (hours of delay) | N34: 0 | O34: i | AG34: ='Default Assets'!A35 -> Guideway-Curved Ballasted Track | BA34: replace 18 | BB34: Facilities-Access and Parking | BC34: 0 | BD34: 0 | BE34: replace
G35: Other Passenger Costs ($) | N35: 0 | O35: i | AG35: ='Default Assets'!A36 -> Guideway-Curved Direct Fixation Track | BA35: replace 19 | BB35: Facilities-Access and Parking | BC35: 0 | BD35: 0 | BE35: replace
G36: CO2 Emissions (tons) | N36: 0 | O36: i | AG36: ='Default Assets'!A37 -> Guideway-Curved Embedded Track | BA36: replace 20 | BB36: Facilities-Access and Parking | BC36: 0 | BD36: 0 | BE36: replace
G37: Other External Costs ($) | N37: 0 | O37: i | AG37: ='Default Assets'!A38 -> Guideway-Direct Fixation Curved Platform Track | BA37: replace 21 | BB37: Facilities-Access and Parking | BC37: 0 | BD37: 0 | BE37: replace
AG38: ='Default Assets'!A39 -> Guideway-Direct Fixation Diamond Crossover | BA38: replace 22 | BB38: Facilities-Access and Parking | BC38: 0 | BD38: 0 | BE38: replace
D39: i | E39: FAILURE COSTS (INCLUDING REPLACEMENT) | AG39: ='Default Assets'!A40 -> Guideway-Direct Fixation or Ballasted Turnout | BA39: replace 23 | BB39: Facilities-Access and Parking | BC39: 0 | BD39: 0 | BE39: replace
G40: Agency Costs ($) | N40: =IF(P33="",N33,P33)*3 -> 85731 | O40: i | AG40: ='Default Assets'!A41 -> Guideway-Direct Fixation Tangent Platform Track | BA40: replace 24 | BB40: Facilities-Access and Parking | BC40: =+V23 -> 0 | BD40: =+X23 -> 0 | BE40: replace | BF40: =IF(Z23="","",Z23) ->  | BG40: =IF(AB23="","",AB23) -> 
G41: Passenger Delay (hours of delay) | N41: =IF(P34="",N34,P34)*3 -> 0 | O41: i | AG41: ='Default Assets'!A42 -> Guideway-Elevated Fill | BA41: replace 25 | BB41: Facilities-Access and Parking | BC41: =+V24 -> 0 | BD41: =+X24 -> 0 | BE41: replace | BF41: =IF(Z24="","",Z24) ->  | BG41: =IF(AB24="","",AB24) -> 
G42: Other Passenger Costs ($) | N42: =IF(P35="",N35,P35)*3 -> 0 | O42: i | AG42: ='Default Assets'!A43 -> Guideway-Elevated Structure | BA42: replace 26 | BB42: Facilities-Access and Parking | BC42: =+V25 -> 0 | BD42: =+X25 -> 0 | BE42: replace | BF42: =IF(Z25="","",Z25) ->  | BG42: =IF(AB25="","",AB25) -> 
G43: CO2 Emissions (tons) | N43: =IF(P36="",N36,P36)*3 -> 0 | O43: i | AG43: ='Default Assets'!A44 -> Guideway-Elevated-Bus | BA43: replace 27 | BB43: Facilities-Access and Parking | BC43: =+V26 -> 0 | BD43: =+X26 -> 0 | BE43: replace | BF43: =IF(Z26="","",Z26) ->  | BG43: =IF(AB26="","",AB26) -> 
G44: Other External Costs ($) | N44: =IF(P37="",N37,P37)*3 -> 0 | O44: i | AG44: ='Default Assets'!A45 -> Guideway-Foot Walk | BA44: replace 28 | BB44: Facilities-Access and Parking | BC44: =+V27 -> 0 | BD44: =+X27 -> 0 | BE44: replace | BF44: =IF(Z27="","",Z27) ->  | BG44: =IF(AB27="","",AB27) -> 
AG45: ='Default Assets'!A46 -> Guideway-Grade Crossing
E46: ANNUAL COSTS | AG46: ='Default Assets'!A47 -> Guideway-Guarded Ballasted Track
G47: Maintenance ($/year) | N47: =0.05*IF(P33<>"",P33,N33) -> 1428.85 | O47: i | AG47: ='Default Assets'!A48 -> Guideway-Guarded Curved Direct Fixation Track
G48: Energy Costs ($) | N48: 0 | O48: i | AG48: ='Default Assets'!A49 -> Guideway-Guarded Direct Fixation Track | BA48: Model Parameters
G49: Passenger Delay (hours of delay per year) | N49: 0 | O49: i | AG49: ='Default Assets'!A50 -> Guideway-Guarded Platform Ballasted Track | BA49: Description | BE49: Value
G50: Other Passenger Costs ($/year) | N50: 0 | O50: i | AG50: ='Default Assets'!A51 -> Guideway-Retained Cut | BA50: TERM Decay Curve: Constant (TERM0) | BE50: =IF(P64="",N64,P64) -> 6
G51: CO2 Emissions (tons per year) | N51: 0 | O51: i | AG51: ='Default Assets'!A52 -> Guideway-Retaining Wall | BA51: TERM Decay Curve: Age Coefficient (TERM1) | BE51: =IF(P65="",N65,P65) -> -0.0887
G52: Other External Costs ($/year) | N52: 0 | O52: i | AG52: ='Default Assets'!A53 -> Guideway-Special Trackwork | BA52: Expected Survival Age: 50% Confidence | BE52: =IF(P66="",N66,P66) -> 73.40276915
AG53: ='Default Assets'!A54 -> Guideway-Steel Viaduct | BA53: Expected Survival Age: 25% Confidence | BE53: =IF(P67="",N67,P67) -> 89.58185061
D54: i | E54: INCREASES IN ANNUAL COSTS | AG54: ='Default Assets'!A55 -> Guideway-Subway Bus | BA54: Weibull curve: shape | BE54: =LN(LN('Default Assets'!I2)/LN('Default Assets'!J2))/LN(BE52/BE53) -> 3.479810387
E55: WITH ASSET AGE (% PER YEAR) | AG55: ='Default Assets'!A56 -> Guideway-Tangent Ballasted Track | BA55: Weibull curve: scale | BE55: =BE52/(-LN('Default Assets'!I2))^(1/BE54) -> 81.55578017
G56: Maintenance Cost | N56: 0.02 | O56: i | AG56: ='Default Assets'!A57 -> Guideway-Tangent Direct Fixation Track | BA56: Average Age | BE56: =IF(P70="",N70,P70) -> 10
G57: Energy Cost | N57: 0.02 | O57: i | AG57: ='Default Assets'!A58 -> Guideway-Tangent Embedded Track
G58: Passenger Delay | N58: 0.02 | O58: i | AG58: ='Default Assets'!A59 -> Guideway-Tunnel | BA58: Cost Calculations
G59: Other Passenger Costs | N59: 0.02 | O59: i | AG59: ='Default Assets'!A60 -> Guideway-Turntable | BA59: Description | BC59: Replacement Cost | BE59: Failure Cost
G60: CO2 Emissions | N60: 0.02 | O60: i | AG60: ='Default Assets'!A61 -> Guideway-Wood Tie | BA60: Agency Cost | BC60: =IF(P33="",N33,P33) -> 28577 | BD60: =+BC60 -> 28577 | BE60: =IF(P40="",N40,P40) -> 85731 | BF60: =+BE60 -> 85731
G61: Other External Costs | N61: 0.02 | O61: i | AG61: ='Default Assets'!A62 -> Guideway-Yard Track | BA61: Delay (hours) | BC61: =IF(P34="",N34,P34) -> 0 | BD61: =+BC61*CostPerPaxHour -> 0 | BE61: =IF(P41="",N41,P41) -> 0 | BF61: =+BE61*CostPerPaxHour -> 0
AG62: ='Default Assets'!A63 -> Station-Building-Rail | BA62: Other Passenger | BC62: =IF(P35="",N35,P35) -> 0 | BD62: =+BC62*OPCWeight -> 0 | BE62: =IF(P42="",N42,P42) -> 0 | BF62: =+BE62*OPCWeight -> 0
E63: ASSET DETERIORATION | AG63: ='Default Assets'!A64 -> Stations-At-Grade Rail Platform | BA63: CO2 (tons) | BC63: =IF(P36="",N36,P36) -> 0 | BD63: =+BC63*CostPerTon -> 0 | BE63: =IF(P43="",N43,P43) -> 0 | BF63: =+BE63*CostPerTon -> 0
G64: TERM Decay Curve: Constant | N64: =INDEX(DefaultTERM0,MATCH(K5,DefaultAssets,0)) -> 6 | O64: i | AG64: ='Default Assets'!A65 -> Stations-Building/Ground Access-Bus | BA64: Other External | BC64: =IF(P37="",N37,P37) -> 0 | BD64: =+BC64*OXCWeight -> 0 | BE64: =IF(P44="",N44,P44) -> 0 | BF64: =+BE64*OXCWeight -> 0
G65: TERM Decay Curve: Age Coefficient | N65: =INDEX(DefaultTERM1,MATCH(K5,DefaultAssets,0)) -> -0.0887 | O65: i | AG65: ='Default Assets'!A66 -> Stations-Building-Subway | BA65: Total | BC65: =SUM(BD60:BD64) -> 28577 | BE65: =SUM(BF60:BF64) -> 85731
G66: ="Expected survival age with "&'Default Assets'!I2*100&"% confidence" -> Expected survival age with 50% confidence | N66: =(LN(((2.5-1)/4)/(1-((2.5-1)/4)))-BE50)/BE51 -> 73.40276915 | O66: i | T66: default calculated based on the TERM decay curve | AG66: ='Default Assets'!A67 -> Stations-Bus Shelter
G67: ="Expected survival age with "&'Default Assets'!J2*100&"% confidence" -> Expected survival age with 25% confidence | N67: =(LN(((1.5-1)/4)/(1-((1.5-1)/4)))-BE50)/BE51 -> 89.58185061 | O67: i | T67: default calculated based on the TERM decay curve | AG67: ='Default Assets'!A68 -> Stations-Bus Station Platform | BA67: Curve Coefficients
AG68: ='Default Assets'!A69 -> Stations-Elevated Rail Platform | BA68: Curve | BC68: Coef0 | BD68: Cost | BE68: Coef1
E69: OTHER PARAMETERS | AG69: ='Default Assets'!A70 -> Stations-Elevator/Escalator | BA69: Maintenance | BC69: =IF(P47="",N47,P47)/EXP($BE$56*BE69) -> 1172.154668 | BD69: =+BC69 -> 1172.154668 | BE69: =LN(1+IF(P56="",N56,P56)) -> 0.0198026273
G70: Average Asset Age | N70: =IF(SUM(K13:K27)+SUM(X13:X27)=0,10,(SUMPRODUCT(I13:I27,K13:K27)+SUMPRODUCT(V13:V27,X13:X27))/(SUM(K13:K27)+SUM(X13:X27))) -> 10 | O70: i | T70: default calculated based on data above (if populated) | AG70: ='Default Assets'!A71 -> Stations-Ferry Terminal Building/Dock | BA70: Energy | BC70: 0 | BD70: =+BC70 -> 0 | BE70: 0.0198026273
G71: Supplemental Replacement Benefit (% of repl. cost) | N71: =0 -> 0 | O71: i | AG71: ='Default Assets'!A72 -> Stations-Parking Equipment | BA71: Delay (hours) | BC71: 0 | BD71: =+BC71*CostPerPaxHour -> 0 | BE71: 0.0198026273
G72: Include in Asset Prioritization Run | N72: TRUE | O72: i | AG72: ='Default Assets'!A73 -> Stations-Parking Garage/Lot | BA72: Other Passenger | BC72: 0 | BD72: =+BC72*OPCWeight -> 0 | BE72: 0.0198026273
AG73: ='Default Assets'!A74 -> Stations-Pedestrian Walkway/Elevated | BA73: CO2 (tons) | BC73: 0 | BD73: =+BC73*CostPerTon -> 0 | BE73: 0.0198026273
C74: SUMMARY RESULTS | AG74: ='Default Assets'!A75 -> Stations-Pedestrian Walkway/Subway | BA74: Other External | BC74: 0 | BD74: =+BC74*OXCWeight -> 0 | BE74: 0.0198026273
AG75: ='Default Assets'!A76 -> Stations-Shelter-Rail
G76: Average Annual Cost (dollars) | N76: =BE78 -> 3718.757481 | O76: i | AG76: ='Default Assets'!A77 -> Stations-Signage & Graphics | BA76: Summary Results
G77: Cost-Minimizing Replacement Age (years) | N77: =BE79 -> 48 | O77: i | AG77: ='Default Assets'!A78 -> Stations-Station Canopy | BA77: Description | BE77: Value
AG78: ='Default Assets'!A79 -> Stations-Subway Rail Platform | BA78: Optimum Annual Life Cycle Cost | BE78: =MIN(BQ84:BQ204) -> 3718.757481
AG79: ='Default Assets'!A80 -> Stations-Token Booth | BA79: Optimum Replacement Age | BE79: =MATCH(BE78,BQ84:BQ204,0) -> 48
AG80: ='Default Assets'!A81 -> Systems-Air Conditioning/HVAC-Subway
AG81: ='Default Assets'!A82 -> Systems-Bus On-Board Video System | BA81: Life Cycle Cost Analysis
AG82: ='Default Assets'!A83 -> Systems-Central Revenue Collection | BA82: Age | BB82: Discount Factor | BC82: Probability of Failure | BF82: Annual Costs | BL82: Discount & Cum. Costs | BM82: Probability of Survival | BO82: D&C Annual Costs | BQ82: Life Cycle Cost | BR82: NPV Replace | BS82: Prob (F|S) | BT82: Maint. & Fail Cost
AG83: ='Default Assets'!A84 -> Systems-Centralized Train Control | BC83: Nominal | BD83: Discounted | BE83: Cumulative | BF83: Maint. & Ener. | BG83: Delay | BH83: Oth. Pass. | BI83: CO2 | BJ83: Oth. External | BK83: Total | BM83: Nominal | BN83: Discounted | BO83: x Fail | BP83: x Survive
AG84: ='Default Assets'!A85 -> Systems-Change Machine | BA84: 1 | BB84: =1/(1+DiscountRate)^BA84 -> 0.9345794393 | BC84: =WEIBULL(BA84,$BE$54,$BE$55,TRUE)-WEIBULL(BA84-1,$BE$54,$BE$55,TRUE) -> 2.231001542e-07 | BD84: =+BB84*BC84 -> 2.08504817e-07 | BE84: =+BD84 -> 2.08504817e-07 | BF84: =+$BD$69*EXP($BA84*$BE$69)+$BD$70*EXP($BA84*$BE$70) -> 1195.597762 | BG84: =+$BD$71*EXP($BA84*$BE$71) -> 0 | BH84: =+$BD$72*EXP($BA84*$BE$72) -> 0 | BI84: =+$BD$73*EXP($BA84*$BE$73) -> 0 | BJ84: =+$BD$74*EXP($BA84*$BE$74) -> 0 | BK84: =SUM(BF84:BJ84) -> 1195.597762 | BL84: =+BB84*BK84 -> 1117.381086 | BM84: =1-BC84 -> 0.9999997769 | BN84: =+BM84*BB84 -> 0.9345792307 | BO84: =+BC84*BL84 -> 0.0002492878925 | BP84: =+BM84*BL84 -> 1117.380836 | BQ84: =DiscountRate*($BC$65+BE84*($BE$65-$BC$65)+BO84+BP84)/(1-BE84-BN84) -> 31773.00051 | BR84: =BK85+BS85*($BE$65-$BC$65)-$BE$78 -> -2499.118258 | BS84: =(1-EXP(-((BA84/$BE$55)^$BE$54))/EXP(-(((BA84-1)/$BE$55)^$BE$54))) -> 2.231001541e-07 | BT84: =+BF84+$BF$60*BS84 -> 1195.616888
AG85: ='Default Assets'!A86 -> Systems-Coin/Bill Counter | BA85: =1+BA84 -> 2 | BB85: 0.8734387283 | BC85: 2.26591009e-06 | BD85: =+BB85*BC85 -> 1.979133627e-06 | BE85: =+BE84+BD85 -> 2.187638444e-06 | BF85: 1219.509717 | BG85: 0 | BH85: 0 | BI85: 0 | BJ85: 0 | BK85: =SUM(BF85:BJ85) -> 1219.509717 | BL85: =+BL84+BB85*BK85 -> 2182.548102 | BM85: =+BM84-BC85 -> 0.999997511 | BN85: 0.8734365543 | BO85: =+BC85*BL85+BO84 -> 0.005194745658 | BP85: =+BM85*BL85 -> 2182.542669 | BQ85: 17012.9243 | BR85: -2474.416601 | BS85: 2.265910595e-06 | BT85: 1219.703976
AG86: ='Default Assets'!A87 -> Systems-Communciations | BA86: =1+BA85 -> 3 | BB86: 0.8162978769 | BC86: 7.715430331e-06 | BD86: 6.298089398e-06 | BE86: =+BE85+BD86 -> 8.485727843e-06 | BF86: 1243.899911 | BG86: 0 | BH86: 0 | BI86: 0 | BJ86: 0 | BK86: 1243.899911 | BL86: 3197.940958 | BM86: 0.9999897956 | BN86: 0.816289547 | BO86: =+BC86*BL86+BO85 -> 0.02986823633 | BP86: 3197.908325 | BQ86: 12108.08821 | BR86: -2448.975719 | BS86: 7.715449535e-06 | BT86: 1244.561364
AG87: ='Default Assets'!A88 -> Systems-Communications Cable | BA87: 4 | BB87: 0.762895212 | BC87: 1.756380876e-05 | BD87: 1.339934561e-05 | BE87: 2.188507345e-05 | BF87: 1268.777909 | BG87: 0 | BH87: 0 | BI87: 0 | BJ87: 0 | BK87: 1268.777909 | BL87: 4165.885551 | BM87: 0.9999722318 | BN87: 0.7628740278 | BO87: 0.1030370535 | BP87: 4165.769871 | BQ87: 9667.014553 | BR87: -2422.741049 | BS87: 1.756398799e-05 | BT87: 1270.283688
AG88: ='Default Assets'!A89 -> Systems-Communications Hut or Room | BA88: 5 | BB88: 0.7129861795 | BC88: 3.259462228e-05 | BD88: 2.323951521e-05 | BE88: 4.512458866e-05 | BF88: 1294.153468 | BG88: 0 | BH88: 0 | BI88: 0 | BJ88: 0 | BK88: 1294.153468 | BL88: 5088.599087 | BM88: 0.9999396371 | BN88: 0.7129431416 | BO88: 0.2688980186 | BP88: 5088.291925 | BQ88: 8211.405714 | BR88: -2395.664341 | BS88: 3.25955274e-05 | BT88: 1296.947915
AG89: ='Default Assets'!A90 -> Systems-Compressed Air Pipes | BA89: 6 | BB89: 0.6663422238 | BC89: 5.347689621e-05 | BD89: 3.563391394e-05 | BE89: 8.07585026e-05 | BF89: 1320.036537 | BG89: 0 | BH89: 0 | BI89: 0 | BJ89: 0 | BK89: 1320.036537 | BL89: 5968.195169 | BM89: 0.9998861602 | BN89: 0.6662663676 | BO89: 0.5880585722 | BP89: 5967.515751 | BQ89: 7248.492528 | BR89: -2367.701465 | BS89: 5.348012442e-05 | BT89: 1324.621442
AG90: ='Default Assets'!A91 -> Systems-Deep Utility Well | BA90: 7 | BB90: 0.6227497419 | BC90: 8.080314126e-05 | BD90: 5.032013536e-05 | BE90: 0.000131078638 | BF90: 1346.437268 | BG90: 0 | BH90: 0 | BI90: 0 | BJ90: 0 | BK90: 1346.437268 | BL90: 6806.68863 | BM90: 0.9998053571 | BN90: 0.6226285281 | BO90: 1.138060395 | BP90: 6805.363756 | BQ90: 6567.084512 | BR90: -2338.811224 | BS90: 8.081234091e-05 | BT90: 1353.365391
AG91: ='Default Assets'!A92 -> Systems-Electrical Systems | BA91: 8 | BB91: 0.5820091046 | BC91: 0.0001151094091 | BD91: 6.699472412e-05 | BE91: 0.0001980733621 | BF91: 1373.366013 | BG91: 0 | BH91: 0 | BI91: 0 | BJ91: 0 | BK91: 1373.366013 | BL91: 7606.000153 | BM91: 0.9996902477 | BN91: 0.5818288259 | BO91: 2.013582578 | BP91: 7603.644177 | BQ91: 6061.582639 | BR91: -2308.954635 | BS91: 0.0001151318187 | BT91: 1383.236379
AG92: ='Default Assets'!A93 -> Systems-Electrification | BA92: 9 | BB92: 0.5439337426 | BC92: 0.0001568872544 | BD92: 8.533627142e-05 | BE92: 0.0002834096335 | BF92: 1400.833333 | BG92: 0 | BH92: 0 | BI92: 0 | BJ92: 0 | BK92: 1400.833333 | BL92: 8367.960671 | BM92: 0.9995333604 | BN92: 0.5436799216 | BO92: 3.326408953 | BP92: 8364.055849 | BQ92: 5673.31707 | BR92: -2278.094445 | BS92: 0.0001569358656 | BT92: 1414.287602
AG93: ='Default Assets'!A94 -> Systems-Electrification Breaker House | BA93: 10 | BB93: 0.5083492921 | BC93: 0.0002065913793 | BD93: 0.0001050205814 | BE93: 0.0003884302149 | BF93: 1428.85 | BG93: 0 | BH93: 0 | BI93: 0 | BJ93: 0 | BK93: 1428.85 | BL93: 9094.315557 | BM93: 0.999326769 | BN93: 0.5080070557 | BO93: 5.205216147 | BP93: 9088.192982 | BQ93: 5367.082323 | BR93: -2246.194788 | BS93: 0.000206687828 | BT93: 1446.569554
AG94: ='Default Assets'!A95 -> Systems-Electrification Catenary/Pole | BA94: 11 | BB94: 0.4750927964 | BC94: 0.0002646447075 | BD94: 0.0001257307941 | BE94: 0.000514161009 | BF94: 1457.427 | BG94: 0 | BH94: 0 | BI94: 0 | BJ94: 0 | BK94: 1457.427 | BL94: 9786.728626 | BM94: 0.9990621243 | BN94: 0.4746472184 | BO94: 7.795222081 | BP94: 9777.549891 | BQ94: 5120.471508 | BR94: -2213.220933 | BS94: 0.0002648229945 | BT94: 1480.13054
AG95: ='Default Assets'!A96 -> Systems-Electrification Contact Rail/Protection Boards | BA95: 12 | BB95: 0.4440119592 | BC95: 0.0003314417993 | BD95: 0.0001471641227 | BE95: 0.0006613251317 | BF95: 1486.57554 | BG95: 0 | BH95: 0 | BI95: 0 | BJ95: 0 | BK95: 1486.57554 | BL95: 10446.78594 | BM95: 0.9987306825 | BN95: 0.4434483671 | BO95: 11.25772361 | BP95: 10433.52566 | BQ95: 4918.543487 | BR95: -2179.139094 | BS95: 0.0003317529423 | BT95: 1515.017051
AG96: ='Default Assets'!A97 -> Systems-Electrification Substation | BA96: 13 | BB96: 0.4149644479 | BC96: 0.0004073511296 | BD96: 0.0001690362366 | BE96: 0.0008303613683 | BF96: 1516.307051 | BG96: 0 | BH96: 0 | BI96: 0 | BJ96: 0 | BK96: 1516.307051 | BL96: 11075.99946 | BM96: 0.9983233314 | BN96: 0.41426869 | BO96: 15.7695445 | BP96: 11057.42868 | BQ96: 4750.95138 | BR96: -2143.916272 | BS96: 0.0004078688446 | BT96: 1551.274055
AG97: ='Default Assets'!A98 -> Systems-Electrification Substation Building Components | BA97: 14 | BB97: 0.387817241 | BC97: 0.0004927165457 | BD97: 0.0001910839714 | BE97: 0.00102144534 | BF97: 1546.633192 | BG97: 0 | BH97: 0 | BI97: 0 | BJ97: 0 | BK97: 1546.633192 | BL97: 11675.81048 | BM97: 0.9978306149 | BN97: 0.3869759161 | BO97: 21.52240951 | BP97: 11650.48115 | BQ97: 4610.301736 | BR97: -2107.520136 | BS97: 0.0004935440555 | BT97: 1588.945217
AG98: ='Default Assets'!A99 -> Systems-Emergency Exit | BA98: 15 | BB98: 0.3624460196 | BC98: 0.0005878581103 | BD98: 0.0002130668322 | BE98: 0.001234512172 | BF98: 1577.565856 | BG98: 0 | BH98: 0 | BI98: 0 | BJ98: 0 | BK98: 1577.565856 | BL98: 12247.59294 | BM98: 0.9972427568 | BN98: 0.3614466678 | BO98: 28.72225636 | BP98: 12213.82335 | BQ98: 4491.170062 | BR98: -2069.918923 | BS98: 0.0005891361736 | BT98: 1628.073089
AG99: ='Default Assets'!A100 -> Systems-Emergency Location System | BA99: 16 | BB99: 0.3387345978 | BC99: 0.0006930724663 | BD99: 0.0002347676231 | BE99: 0.001469279795 | BF99: 1609.117173 | BG99: 0 | BH99: 0 | BI99: 0 | BJ99: 0 | BK99: 1609.117173 | BL99: 12792.6566 | BM99: 0.9965496843 | BN99: 0.3375658565 | BO99: 37.58849442 | BP99: 12748.5179 | BQ99: 4389.485542 | BR99: -2031.081351 | BS99: 0.0006949887193 | BT99: 1668.699251
AG100: ='Default Assets'!A101 -> Systems-Fan Plant | BA100: 17 | BB100: 0.3165743905 | BC100: 0.0008086328207 | BD100: 0.0002559924423 | BE100: 0.001725272237 | BF100: 1641.299516 | BG100: 0 | BH100: 0 | BI100: 0 | BJ100: 0 | BK100: 1641.299516 | BL100: 13312.25 | BM100: 0.9957410515 | BN100: 0.3152261164 | BO100: 48.35321668 | BP100: 13255.55381 | BQ100: 4302.132934 | BR100: -1990.97655 | BS100: 0.0008114325191 | BT100: 1710.864438
AG101: ='Default Assets'!A102 -> Systems-Gates, Flashers, Crossings | BA101: 18 | BB101: 0.2958639163 | BC101: 0.0009347886175 | BD101: 0.0002765702213 | BE101: 0.002001842459 | BF101: 1674.125507 | BG101: 0 | BH101: 0 | BI101: 0 | BJ101: 0 | BK101: 1674.125507 | BL101: 13807.56333 | BM101: 0.9948062629 | BN101: 0.2943272769 | BO101: 61.26036972 | BP101: 13735.85047 | BQ101: 4226.68718 | BR101: -1949.574003 | BS101: 0.0009387868624 | BT101: 1754.608643
AG102: ='Default Assets'!A103 -> Systems-Guideway Drainage | BA102: 19 | BB102: 0.276508333 | BC102: 0.001071764952 | BD102: 0.0002963519403 | BE102: 0.002298194399 | BF102: 1707.608017 | BG102: 0 | BH102: 0 | BI102: 0 | BJ102: 0 | BK102: 1707.608017 | BL102: 14279.73117 | BM102: 0.9937344979 | BN102: 0.2747758695 | BO102: 76.56488511 | BP102: 14190.26149 | BQ102: 4161.23183 | BR102: -1906.843491 | BS102: 0.001077360479 | BT102: 1799.971208
AG103: ='Default Assets'!A104 -> Systems-Heaters | BA103: 20 | BB103: 0.2584190028 | BC103: 0.00121976177 | BD103: 0.0003152096202 | BE103: 0.002613404019 | BF103: 1741.760177 | BG103: 0 | BH103: 0 | BI103: 0 | BJ103: 0 | BK103: 1741.760177 | BL103: 14729.8351 | BM103: 0.9925147361 | BN103: 0.2564846684 | BO103: 94.53177484 | BP103: 14619.5784 | BQ103: 4104.231955 | BR103: -1862.755045 | BS103: 0.001227452375 | BT103: 1846.990897
AG104: ='Default Assets'!A105 -> Systems-High Tension Towers | BA104: 21 | BB104: 0.2415130867 | BC104: 0.001378952877 | BD104: 0.0003330351659 | BE104: 0.002946439185 | BF104: 1776.595381 | BG104: 0 | BH104: 0 | BI104: 0 | BJ104: 0 | BK104: 1776.595381 | BL104: 15158.90613 | BM104: 0.9911357833 | BN104: 0.2393722624 | BO104: 115.4351921 | BP104: 15024.5343 | BQ104: 4054.443374 | BR104: -1817.278909 | BS104: 0.001389352548 | BT104: 1895.705964
AG105: ='Default Assets'!A106 -> Systems-In Station Revenue Collection Equipment | BA105: 22 | BB105: 0.2257131652 | BC105: 0.001549484803 | BD105: 0.0003497391192 | BE105: 0.003296178304 | BF105: 1812.127288 | BG105: 0 | BH105: 0 | BI105: 0 | BJ105: 0 | BK105: 1812.127288 | BL105: 15567.92712 | BM105: 0.9895862984 | BN105: 0.2233626556 | BO105: 139.5574586 | BP105: 15405.80737 | BQ105: 4010.846646 | BR105: -1770.385503 | BS105: 0.00156334261 | BT105: 1946.154213
AG106: ='Default Assets'!A107 -> Systems-Interlocking | BA106: 23 | BB106: 0.2109468833 | BC106: 0.00173147552 | BD106: 0.0003652493644 | BE106: 0.003661427669 | BF106: 1848.369834 | BG106: 0 | BH106: 0 | BI106: 0 | BJ106: 0 | BK106: 1848.369834 | BL106: 15957.83498 | BM106: 0.9878548229 | BN106: 0.2083848961 | BO106: 167.1880592 | BP106: 15764.02424 | BQ106: 3972.598291 | BR106: -1722.045386 | BS106: 0.001749696335 | BT106: 1998.37305
AG107: ='Default Assets'!A108 -> Systems-ITS, APC, AVL, CAD, GPL | BA107: 24 | BB107: 0.1971466199 | BC107: 0.001925013064 | BD107: 0.000379509819 | BE107: 0.004040937488 | BF107: 1885.337231 | BG107: 0 | BH107: 0 | BI107: 0 | BJ107: 0 | BK107: 1885.337231 | BL107: 16329.52284 | BM107: 0.9859298099 | BN107: 0.1943727295 | BO107: 198.622604 | BP107: 16099.76335 | BQ107: 3938.994203 | BR107: -1672.229233 | BS107: 0.001948680129 | BT107: 2052.399527
AG108: ='Default Assets'!A109 -> Systems-Lighting | BA108: 25 | BB108: 0.1842491775 | BC108: 0.00213015406 | BD108: 0.0003924791335 | BE108: 0.004433416621 | BF108: 1923.043975 | BG108: 0 | BH108: 0 | BI108: 0 | BJ108: 0 | BK108: 1923.043975 | BL108: 16683.84211 | BM108: 0.9837996558 | BN108: 0.1812642774 | BO108: 234.161758 | BP108: 16413.55812 | BQ108: 3909.441854 | BR108: -1620.907803 | BS108: 0.002160553458 | BT108: 2108.270384
AG109: ='Default Assets'!A110 -> Systems-MIS/IT/Network System | BA109: 26 | BB109: 0.172195493 | BC109: 0.002346922172 | BD109: 0.0004041294204 | BE109: 0.004837546042 | BF109: 1961.504855 | BG109: 0 | BH109: 0 | BI109: 0 | BJ109: 0 | BK109: 1961.504855 | BL109: 17021.6044 | BM109: 0.9814527336 | BN109: 0.1690017373 | BO109: 274.1101387 | BP109: 16705.90017 | BQ109: 3883.438918 | BR109: -1568.051916 | BS109: 0.002385569214 | BT109: 2166.022089
AG110: ='Default Assets'!A111 -> Systems-Parking Meter | BA110: 27 | BB110: 0.1609303673 | BC110: 0.002575306509 | BD110: 0.0004144450224 | BE110: 0.005251991064 | BF110: 2000.734952 | BG110: 0 | BH110: 0 | BI110: 0 | BJ110: 0 | BK110: 2000.734952 | BL110: 17343.58342 | BM110: 0.9788774271 | BN110: 0.1575311039 | BO110: 318.775182 | BP110: 16977.24231 | BQ110: 3860.556644 | BR110: -1513.632429 | BS110: 0.002623974055 | BT110: 2225.690871
AG111: ='Default Assets'!A112 -> Systems-Passenger Counter-Rail | BA111: 28 | BB111: 0.1504022124 | BC111: 0.002815259991 | BD111: 0.0004234213313 | BE111: 0.005675412395 | BF111: 2040.749651 | BG111: 0 | BH111: 0 | BI111: 0 | BJ111: 0 | BK111: 2040.749651 | BL111: 17650.51668 | BM111: 0.9760621671 | BN111: 0.1468019094 | BO111: 368.4659754 | BP111: 17228.00156 | BQ111: 3840.426796 | BR111: -1457.620217 | BS111: 0.002876008695 | BT111: 2287.312752
AG112: ='Default Assets'!A113 -> Systems-Power Cable | BA112: 29 | BB112: 0.1405628154 | BC112: 0.003066697703 | BD112: 0.000431063663 | BE112: 0.006106476058 | BF112: 2081.564644 | BG112: 0 | BH112: 0 | BI112: 0 | BJ112: 0 | BK112: 2081.564644 | BL112: 17943.10726 | BM112: 0.9729954694 | BN112: 0.1367669825 | BO112: 423.4920613 | BP112: 17458.56208 | BQ112: 3822.731299 | BR112: -1399.986151 | BS112: 0.003141908176 | BT112: 2350.923574
AG113: ='Default Assets'!A114 -> Systems-Pump Room | BA113: 30 | BB113: 0.1313671172 | BC113: 0.003329495245 | BD113: 0.0004373861919 | BE113: 0.00654386225 | BF113: 2123.195937 | BG113: 0 | BH113: 0 | BI113: 0 | BJ113: 0 | BK113: 2123.195937 | BL113: 18222.02539 | BM113: 0.9696659742 | BN113: 0.1273822236 | BO113: 484.1622082 | BP113: 17669.27801 | BQ113: 3807.193952 | BR113: -1340.701081 | BS113: 0.003421902105 | BT113: 2416.559026
AG114: ='Default Assets'!A115 -> Systems-Revenue Collection System-Rail | BA114: 31 | BB114: 0.1227730067 | BC114: 0.003603487115 | BD114: 0.0004424109477 | BE114: 0.006986273198 | BF114: 2165.659855 | BG114: 0 | BH114: 0 | BI114: 0 | BJ114: 0 | BK114: 2165.659855 | BL114: 18487.90997 | BM114: 0.9660624871 | BN114: 0.1186063962 | BO114: 550.7831535 | BP114: 17860.47628 | BQ114: 3793.573757 | BR114: -1279.735815 | BS114: 0.003716214873 | BT114: 2484.254673
AG115: ='Default Assets'!A116 -> Systems-Roadway Traffic Signals | BA115: 32 | BB115: 0.1147411277 | BC115: 0.003888465123 | BD115: 0.0004461668734 | BE115: 0.007432440071 | BF115: 2208.973053 | BG115: 0 | BH115: 0 | BI115: 0 | BJ115: 0 | BK115: 2208.973053 | BL115: 18741.37002 | BM115: 0.9621740219 | BN115: 0.1104009324 | BO115: 623.6583172 | BP115: 18032.45937 | BQ115: 3781.659487 | BR115: -1217.061108 | BS115: 0.004025065847 | BT115: 2554.045973
AG116: ='Default Assets'!A117 -> Systems-SCADA RTU | BA116: 33 | BB116: =1/(1+DiscountRate)^BA116 -> 0.1072346988 | BC116: =WEIBULL(BA116,$BE$54,$BE$55,TRUE)-WEIBULL(BA116-1,$BE$54,$BE$55,TRUE) -> 0.004184176873 | BD116: 0.0004486889468 | BE116: 0.007881129018 | BF116: =+$BD$69*EXP($BA116*$BE$69)+$BD$70*EXP($BA116*$BE$70) -> 2253.152514 | BG116: =+$BD$71*EXP($BA116*$BE$71) -> 0 | BH116: =+$BD$72*EXP($BA116*$BE$72) -> 0 | BI116: =+$BD$73*EXP($BA116*$BE$73) -> 0 | BJ116: =+$BD$74*EXP($BA116*$BE$74) -> 0 | BK116: 2253.152514 | BL116: 18982.98616 | BM116: 0.9579898451 | BN116: =+BM116*BB116 -> 0.1027297525 | BO116: 703.0864889 | BP116: 18185.50797 | BQ116: =DiscountRate*($BC$65+BE116*($BE$65-$BC$65)+BO116+BP116)/(1-BE116-BN116) -> 3771.265249 | BR116: =BK117+BS117*($BE$65-$BC$65)-$BE$78 -> -1152.64764 | BS116: =(1-EXP(-((BA116/$BE$55)^$BE$54))/EXP(-(((BA116-1)/$BE$55)^$BE$54))) -> 0.004348669552 | BT116: =+BF116+$BF$60*BS116 -> 2625.968303
AG117: ='Default Assets'!A118 -> Systems-Signal Bridge | BA117: 34 | BB117: 0.1002193447 | BC117: 0.004490324327 | BD117: 0.0004500173615 | BE117: 0.008331146379 | BF117: 2298.215564 | BG117: 0 | BH117: 0 | BI117: 0 | BJ117: 0 | BK117: 2298.215564 | BL117: =+BL116+BB117*BK117 -> 19213.31181 | BM117: =+BM116-BC117 -> 0.9534995207 | BN117: 0.09555909714 | BO117: 789.3604903 | BP117: 18319.88361 | BQ117: 3762.226832 | BR117: -1086.466007 | BS117: 0.00468723583 | BT117: 2700.056979
AG118: ='Default Assets'!A119 -> Systems-Signals & Train Stops | BA118: 35 | BB118: 0.09366293897 | BC118: 0.004806562468 | BD118: 0.0004501967671 | BE118: 0.008781343147 | BF118: 2344.179875 | BG118: 0 | BH118: 0 | BI118: 0 | BJ118: 0 | BK118: 2344.179875 | BL118: 19432.87459 | BM118: 0.9486929583 | BN118: 0.08885737065 | BO118: 882.7658159 | BP118: 18435.83128 | BQ118: 3754.398677 | BR118: -1018.4867 | BS118: 0.005040969988 | BT118: 2776.347273
AG119: ='Default Assets'!A120 -> Systems-Subway Ventilation | BA119: 36 | BB119: 0.08753545698 | BC119: 0.005132498096 | BD119: 0.0004492755663 | BE119: 0.009230618713 | BF119: 2391.063473 | BG119: 0 | BH119: 0 | BI119: 0 | BJ119: 0 | BK119: 2391.063473 | BL119: 19642.17742 | BM119: 0.9435604602 | BN119: 0.08259499607 | BO119: 983.5792542 | BP119: 18533.58197 | BQ119: 3747.65135 | BR119: -948.6800949 | BS119: 0.005410072933 | BT119: 2854.874435
AG120: ='Default Assets'!A121 -> Systems-Sump Pump/Discharge Pipes | BA120: 37 | BB120: 0.0818088383 | BC120: 0.005467688762 | BD120: 0.0004473052658 | BE120: 0.009677923979 | BF120: 2438.884742 | BG120: 0 | BH120: 0 | BI120: 0 | BJ120: 0 | BK120: 2438.884742 | BL120: 19841.69975 | BM120: 0.9380927714 | BN120: 0.07674427985 | BO120: 1092.067493 | BP120: 18613.35511 | BQ120: 3741.869429 | BR120: -877.0164388 | BS120: 0.005794741294 | BT120: 2935.673708
AG121: ='Default Assets'!A122 -> Systems-System Utilities | BA121: 38 | BB121: 0.07645685822 | BC121: 0.005811641879 | BD121: 0.0004443398792 | BE121: 0.01012226386 | BF121: 2487.662437 | BG121: 0 | BH121: 0 | BI121: 0 | BJ121: 0 | BK121: 2487.662437 | BL121: 20031.89861 | BM121: 0.9322811295 | BN121: 0.07127928615 | BO121: 1208.485714 | BP121: 18675.36106 | BQ121: 3736.949725 | BR121: -803.4658353 | BS121: 0.006195167532 | BT121: 3018.780345
AG122: ='Default Assets'!A123 -> Systems-Train Control | BA122: 39 | BB122: 0.07145500769 | BC122: 0.006163814024 | BD122: 0.0004404353785 | BE122: 0.01056269924 | BF122: 2537.415686 | BG122: 0 | BH122: 0 | BI122: 0 | BJ122: 0 | BK122: 2537.415686 | BL122: 20213.20966 | BM122: 0.9261173155 | BN122: 0.0661757199 | BO122: 1333.076179 | BP122: 18719.80347 | BQ122: 3732.799764 | BR122: -727.9982322 | BS122: 0.006611540048 | BT122: 3104.229626
AG123: ='Default Assets'!A124 -> Systems-Train Control | BA123: 40 | BB123: 0.06678038102 | BC123: 0.006523610448 | BD123: 0.0004356491913 | BE123: 0.01099834843 | BF123: 2588.163999 | BG123: 0 | BH123: 0 | BI123: 0 | BJ123: 0 | BK123: 2588.163999 | BL123: 20386.04824 | BM123: 0.9195937051 | BN123: 0.061410818 | BO123: 1466.066816 | BP123: 18746.88163 | BQ123: 3729.336512 | BR123: -650.583409 | BS123: 0.007044043274 | BT123: 3192.056873
AG124: ='Default Assets'!A125 -> Systems-Train Control Cable | BA124: 41 | BB124: 0.06241157104 | BC124: 0.00689038483 | BD124: 0.0004300397423 | BE124: 0.01142838817 | BF124: 2639.927279 | BG124: 0 | BH124: 0 | BI124: 0 | BJ124: 0 | BK124: 2639.927279 | BL124: 20550.81025 | BM124: 0.9127033202 | BN124: 0.05696324811 | BO124: 1607.669807 | BP124: 18756.79275 | BQ124: 3726.485271 | BR124: -571.1909646 | BS124: 0.007492857761 | BT124: 3282.297468
AG125: ='Default Assets'!A126 -> Systems-Train Control, Elec., Comm., Revenue Collect. & Util. | BA125: 42 | BB125: 0.05832857107 | BC125: 0.00726343929 | BD125: 0.0004236660348 | BE125: 0.0118520542 | BF125: 2692.725825 | BG125: 0 | BH125: 0 | BI125: 0 | BJ125: 0 | BK125: 2692.725825 | BL125: 20707.8731 | BM125: 0.905439881 | BN125: 0.05281301444 | BO125: 1758.080187 | BP125: 18749.73415 | BQ125: 3724.178739 | BR125: -489.7903047 | BS125: 0.007958160257 | BT125: 3374.986862
AG126: ='Default Assets'!A127 -> Systems-Trolley Wire | BA126: 43 | BB126: 0.05451268324 | BC126: 0.007642024673 | BD126: 0.0004165872703 | BE126: 0.01226864148 | BF126: 2746.580342 | BG126: 0 | BH126: 0 | BI126: 0 | BJ126: 0 | BK126: 2746.580342 | BL126: 20857.59656 | BM126: 0.8977978563 | BN126: 0.04894137015 | BO126: 1917.474454 | BP126: 18725.90548 | BQ126: 3722.356197 | BR126: -406.3506305 | BS126: 0.008440123783 | BT126: 3470.160594
AG127: ='Default Assets'!A128 -> Systems-Tunnel Handrail | BA127: 44 | BB127: 0.05094643294 | BC127: 0.008025341146 | BD127: 0.0004088625045 | BE127: 0.01267750398 | BF127: 2801.511948 | BG127: 0 | BH127: 0 | BI127: 0 | BJ127: 0 | BK127: 2801.511948 | BL127: 21000.3236 | BM127: 0.8897725151 | BN127: 0.04533073577 | BO127: 2086.009215 | BP127: 18685.51075 | BQ127: 3720.962805 | BR127: -320.8409261 | BS127: 0.008938917698 | BT127: 3567.854301
AG128: ='Default Assets'!A129 -> Systems-Turnstile | BA128: 45 | BB128: 0.04761348872 | BC128: 0.008412539106 | BD128: 0.0004005503359 | BE128: 0.01307805432 | BF128: 2857.542187 | BG128: 0 | BH128: 0 | BI128: 0 | BJ128: 0 | BK128: 2857.542187 | BL128: 21136.38116 | BM128: 0.881359976 | BN128: 0.04196462328 | BO128: 2263.819848 | BP128: 18628.76039 | BQ128: 3719.948988 | BR128: -233.2299475 | BS128: 0.009454707763 | BT128: 3668.103739
AG129: ='Default Assets'!A130 -> User Specified | BA129: 46 | BB129: 0.04449858759 | BC129: 0.008802720428 | BD129: 0.000391708626 | BE129: 0.01346976294 | BF129: 2914.693031 | BG129: 0 | BH129: 0 | BI129: 0 | BJ129: 0 | BK129: 2914.693031 | BL129: 21266.08088 | BM129: 0.8725572556 | BN129: 0.03882756547 | BO129: 2451.019213 | BP129: 18555.87317 | BQ129: 3719.269905 | BR129: -143.4862102 | BS129: 0.009987656199 | BT129: 3770.944785
BA130: 47 | BB130: 0.04158746504 | BC130: 0.009194940072 | BD130: 0.0003823942488 | BE130: 0.01385215719 | BF130: 2972.986892 | BG130: 0 | BH130: 0 | BI130: 0 | BJ130: 0 | BK130: 2972.986892 | BL130: 21389.71987 | BM130: 0.8633623155 | BN130: 0.03590505011 | BO130: 2647.696405 | BP130: 18467.07807 | BQ130: 3718.884978 | BR130: -51.57797849 | BS130: 0.01053792174 | BT130: 3876.41346
BA131: 48 | BB131: 0.03886678976 | BC131: 0.00958820805 | BD131: 0.0003726628664 | BE131: 0.01422482006 | BF131: 3032.44663 | BG131: 0 | BH131: 0 | BI131: 0 | BJ131: 0 | BK131: 3032.44663 | BL131: 21507.58133 | BM131: 0.8537741075 | BN131: 0.03318345874 | BO131: 2853.91557 | BP131: 18362.61606 | BQ131: 3718.757481 | BR131: 42.52674688 | BS131: 0.01110565967 | BT131: 3984.545939
BA132: 49 | BB132: 0.03632410258 | BC132: 0.009981491789 | BD132: 0.0003625687316 | BE132: 0.01458738879 | BF132: 3093.095562 | BG132: 0 | BH132: 0 | BI132: 0 | BJ132: 0 | BK132: 3093.095562 | BL132: 21619.93526 | BM132: 0.8437926157 | BN132: 0.03065000953 | BO132: 3069.714776 | BP132: 18242.74172 | BQ132: 3718.854176 | BR132: 138.8602398 | BS132: 0.0116910219 | BT132: 4095.378561
BA133: 50 | BB133: 0.03394775942 | BC133: 0.01037371887 | BD133: 0.0003521645123 | BE133: 0.0149395533 | BF133: 3154.957473 | BG133: 0 | BH133: 0 | BI133: 0 | BJ133: 0 | BK133: 3154.957473 | BL133: 21727.03899 | BM133: 0.8334188968 | BN133: 0.0282927042 | BO133: 3295.10497 | BP133: 18107.72487 | BQ133: 3719.144989 | BR133: 237.4550603 | BS133: 0.01229415697 | BT133: 4208.947844
BA134: 51 | BB134: 0.03172687796 | BC134: 0.01076378016 | BD134: 0.0003415011395 | BE134: 0.01528105444 | BF134: 3218.056623 | BG134: 0 | BH134: 0 | BI134: 0 | BJ134: 0 | BK134: 3218.056623 | BL134: 21829.13788 | BM134: 0.8226551167 | BN134: 0.02610027849 | BO134: 3530.069011 | BP134: 17957.85197 | BQ134: 3719.602724 | BR134: 338.3440663 | BS134: 0.01291521011 | BT134: 4325.2905
BA135: 52 | BB135: 0.02965128781 | BC135: 0.01115053339 | BD135: 0.0003306276748 | BE135: 0.01561168211 | BF135: 3282.417755 | BG135: 0 | BH135: 0 | BI135: 0 | BJ135: 0 | BK135: 3282.417755 | BL135: 21926.4658 | BM135: 0.8115045833 | BN135: 0.02406215596 | BO135: 3774.5608 | BP135: 17793.42749 | BQ135: 3720.20281 | BR135: 441.5604251 | BS135: 0.01355432327 | BT135: 4444.443443
BA136: 53 | BB136: 0.02771148394 | BC136: 0.01153280706 | BD136: 0.0003195911977 | BE136: 0.01593127331 | BF136: 3348.06611 | BG136: 0 | BH136: 0 | BI136: 0 | BJ136: 0 | BK136: 3348.06611 | BL136: 22019.24568 | BM136: 0.7999717762 | BN136: 0.02216840503 | BO136: 4028.504512 | BP136: 17614.77507 | BQ136: 3720.923063 | BR136: 547.137625 | BS136: 0.01421163516 | BT136: 4566.443804
BA137: 54 | BB137: 0.02589858312 | BC137: 0.01190940483 | BD137: 0.000308436711 | BE137: 0.01623971002 | BF137: 3415.027433 | BG137: 0 | BH137: 0 | BI137: 0 | BJ137: 0 | BK137: 3415.027433 | BL137: 22107.69005 | BM137: 0.7880623714 | BN137: 0.02040969883 | BO137: 4291.793943 | BP137: 17422.23864 | BQ137: 3721.743487 | BR137: 655.1094867 | BS137: 0.01488728126 | BT137: 4691.328943
BA138: 55 | BB138: 0.02420428329 | BC138: 0.01227911022 | BD138: 0.0002972070623 | BE138: 0.01653691709 | BF138: 3483.327981 | BG138: 0 | BH138: 0 | BI138: 0 | BJ138: 0 | BK138: 3483.327981 | BL138: 22192.0015 | BM138: 0.7757832612 | BN138: 0.01877727782 | BO138: 4564.291976 | BP138: 17216.1833 | BQ138: 3722.646086 | BR138: 765.5101756 | BS138: 0.01558139389 | BT138: 4819.136461
BA139: 56 | BB139: 0.0226208255 | BC139: 0.01264069172 | BD139: 0.0002859428817 | BE139: 0.01682285997 | BF139: 3552.994541 | BG139: 0 | BH139: 0 | BI139: 0 | BJ139: 0 | BK139: 3552.994541 | BL139: 22272.37317 | BM139: 0.7631425694 | BN139: 0.0172629149 | BO139: 4845.830179 | BP139: 16996.99609 | BQ139: 3723.614693 | BR139: 878.3742133 | BS139: 0.01629410217 | BT139: 4949.904214
BA140: 57 | BB140: 0.02114095841 | BC140: 0.01299290833 | BD140: 0.0002746825346 | BE140: 0.0170975425 | BF140: 3624.054432 | BG140: 0 | BH140: 0 | BI140: 0 | BJ140: 0 | BK140: 3624.054432 | BL140: 22348.98916 | BM140: 0.7501496611 | BN140: 0.01585888279 | BO140: 5136.208546 | BP140: 16765.08664 | BQ140: 3724.634819 | BR140: 993.7364897 | BS140: 0.01702553212 | BT140: 5083.670326
BA141: 58 | BB141: 0.01975790506 | BC141: 0.0133345153 | BD141: 0.0002634620872 | BE141: 0.01736100459 | BF141: 3696.53552 | BG141: 0 | BH141: 0 | BI141: 0 | BJ141: 0 | BK141: 3696.53552 | BL141: 22422.02496 | BM141: 0.7368151458 | BN141: 0.0145579237 | BO141: 5435.195381 | BP141: 16520.88759 | BQ141: 3725.693512 | BR141: 1111.632275 | BS141: 0.0177758066 | BT141: 5220.473196
BA142: 59 | BB142: 0.01846533183 | BC142: 0.01366427033 | BD142: 0.0002523152859 | BE142: 0.01761331988 | BF142: 3770.466231 | BG142: 0 | BH142: 0 | BI142: 0 | BJ142: 0 | BK142: 3770.466231 | BL142: 22491.64787 | BM142: 0.7231508755 | BN142: 0.01335322088 | BO142: 5742.527338 | BP142: 16264.85485 | BQ142: 3726.779232 | BR142: 1232.097231 | BS142: 0.0185450454 | BT142: 5360.351518
BA143: 60 | BB143: 0.01725731947 | BC143: 0.01398094 | BD143: 0.000241273548 | BE143: 0.01785459342 | BF143: 3845.875555 | BG143: 0 | BH143: 0 | BI143: 0 | BJ143: 0 | BK143: 3845.875555 | BL143: 22558.01737 | BM143: 0.7091699355 | BN143: 0.01223837213 | BO143: 6057.909625 | BP143: 15997.46772 | BQ143: 3727.881731 | BR143: 1355.167426 | BS143: 0.01933336524 | BT143: 5503.34429
BA144: 61 | BB144: 0.01612833595 | BC144: 0.01428330639 | BD144: 0.000230365964 | BE144: 0.01808495939 | BF144: 3922.793066 | BG144: 0 | BH144: 0 | BI144: 0 | BJ144: 0 | BK144: 3922.793066 | BL144: 22621.28549 | BM144: 0.6948866291 | BN144: 0.011207365 | BO144: 6381.016376 | BP144: 15719.22882 | BQ144: 3728.99195 | BR144: 1480.879345 | BS144: 0.02014087974 | BT144: 5649.490828
BA145: 62 | BB145: 0.01507321117 | BC145: 0.01457017404 | BD145: 0.0002196193101 | BE145: 0.0183045787 | BF145: 4001.248928 | BG145: 0 | BH145: 0 | BI145: 0 | BJ145: 0 | BK145: 4001.248928 | BL145: 22681.59716 | BM145: 0.6803164551 | BN145: 0.01025455359 | BO145: 6711.491195 | BP145: 15430.66378 | BQ145: 3730.101914 | BR145: 1609.269903 | BS145: 0.02096769952 | BT145: 5798.830775
BA146: 63 | BB146: 0.01408711324 | BC146: 0.01484037698 | BD146: 0.0002090580711 | BE146: 0.01851363677 | BF146: 4081.273906 | BG146: 0 | BH146: 0 | BI146: 0 | BJ146: 0 | BK146: 4081.273906 | BL146: 22739.09053 | BM146: 0.6654760781 | BN146: 0.009374636873 | BO146: 7048.94787 | BP146: 15132.32079 | BQ146: 3731.20465 | BR146: 1740.376456 | BS146: 0.02181393213 | BT146: 5951.404122
BA147: 64 | BB147: 0.0131655264 | BC147: 0.01509278591 | BD147: 0.0001987044713 | BE147: 0.01871234124 | BF147: 4162.899384 | BG147: 0 | BH147: 0 | BI147: 0 | BJ147: 0 | BK147: 4162.899384 | BL147: 22793.89729 | BM147: 0.6503832922 | BN147: 0.008562638401 | BO147: 7392.971282 | BP147: 14824.76996 | BQ147: 3732.294093 | BR147: 1874.236818 | BS147: 0.02267968213 | BT147: 6107.251213
BA148: 65 | BB148: =1/(1+DiscountRate)^BA148 -> 0.01230423028 | BC148: =WEIBULL(BA148,$BE$54,$BE$55,TRUE)-WEIBULL(BA148-1,$BE$54,$BE$55,TRUE) -> 0.01532631548 | BD148: 0.0001885785149 | BE148: 0.01890091975 | BF148: =+$BD$69*EXP($BA148*$BE$69)+$BD$70*EXP($BA148*$BE$70) -> 4246.157372 | BG148: =+$BD$71*EXP($BA148*$BE$71) -> 0 | BH148: =+$BD$72*EXP($BA148*$BE$72) -> 0 | BI148: =+$BD$73*EXP($BA148*$BE$73) -> 0 | BJ148: =+$BD$74*EXP($BA148*$BE$74) -> 0 | BK148: 4246.157372 | BL148: 22846.14299 | BM148: 0.6350569767 | BN148: =+BM148*BB148 -> 0.00781388728 | BO148: 7743.118477 | BP148: 14508.6025 | BQ148: =DiscountRate*($BC$65+BE148*($BE$65-$BC$65)+BO148+BP148)/(1-BE148-BN148) -> 3733.365016 | BR148: =BK149+BS149*($BE$65-$BC$65)-$BE$78 -> 2010.889273 | BS148: =(1-EXP(-((BA148/$BE$55)^$BE$54))/EXP(-(((BA148-1)/$BE$55)^$BE$54))) -> 0.02356505104 | BT148: =+BF148+$BF$60*BS148 -> 6266.412763
BA149: 66 | BB149: 0.01149928063 | BC149: 0.01553993149 | BD149: =+BB149*BC149 -> 0.0001786980332 | BE149: 0.01907961779 | BF149: 4331.08052 | BG149: 0 | BH149: 0 | BI149: 0 | BJ149: 0 | BK149: =SUM(BF149:BJ149) -> 4331.08052 | BL149: =+BL148+BB149*BK149 -> 22895.9473 | BM149: =+BM148-BC149 -> 0.6195170452 | BN149: 0.007124000359 | BO149: 8098.91993 | BP149: =+BM149*BL149 -> 14184.42962 | BQ149: 3734.412953 | BR149: 2150.372584 | BS149: 0.02447013742 | BT149: 6428.929871
BA150: =1+BA149 -> 67 | BB150: 0.01074699125 | BC150: 0.01573265817 | BD150: 0.0001690787397 | BE150: =+BE149+BD150 -> 0.01924869653 | BF150: 4417.70213 | BG150: 0 | BH150: 0 | BI150: 0 | BJ150: 0 | BK150: 4417.70213 | BL150: 22943.42431 | BM150: 0.603784387 | BN150: 0.006488865521 | BO150: =+BC150*BL150+BO149 -> 8459.880982 | BP150: 13852.88138 | BQ150: 3735.434133 | BR150: 2292.726011 | BS150: 0.02539503682 | BT150: 6594.844032
BA151: 68 | BB151: 0.01004391705 | BC151: 0.01590358525 | BD151: 0.0001597342911 | BE151: 0.01940843082 | BF151: 4506.056173 | BG151: 0 | BH151: 0 | BI151: 0 | BJ151: 0 | BK151: 4506.056173 | BL151: 22988.68276 | BM151: 0.5878808018 | BN151: 0.005904626009 | BO151: 8825.483458 | BP151: 13514.60525 | BQ151: 3736.425421 | BR151: 2437.989326 | BS151: 0.02633984182 | BT151: 6764.197152
BA152: 69 | BB152: 0.009386838366 | BC152: 0.01605187486 | BD152: 0.0001506763547 | BE152: 0.01955910717 | BF152: 4596.177296 | BG152: 0 | BH152: 0 | BI152: 0 | BJ152: 0 | BK152: 4596.177296 | BL152: 23031.82634 | BM152: 0.5718289269 | BN152: 0.00536766571 | BO152: 9195.187452 | BP152: 13170.26454 | BQ152: 3737.384253 | BR152: 2586.202823 | BS152: 0.02730464204 | BT152: 6937.031563
BA153: 70 | BB153: 0.008772746136 | BC153: 0.01617676823 | BD153: 0.0001419146809 | BE153: 0.01970102185 | BF153: 4688.100842 | BG153: 0 | BH153: 0 | BI153: 0 | BJ153: 0 | BK153: 4688.100842 | BL153: 23072.95385 | BM153: 0.5556521587 | BN153: 0.004874595328 | BO153: 9568.433279 | BP153: 12820.53662 | BQ153: 3738.308588 | BR153: 2737.407333 | BS153: 0.02828952413 | BT153: 7113.390035
BA154: 71 | BB154: 0.008198828165 | BC154: 0.01627759205 | BD154: 0.0001334571801 | BE154: 0.01983447903 | BF154: 4781.862859 | BG154: 0 | BH154: 0 | BI154: 0 | BJ154: 0 | BK154: 4781.862859 | BL154: 23112.15953 | BM154: 0.5393745666 | BN154: 0.004422239388 | BO154: 9944.643583 | BP154: 12466.11103 | BQ154: 3739.196855 | BR154: 2891.644242 | BS154: 0.02929457178 | BT154: 7293.315792
BA155: 72 | BB155: 0.007662456229 | BC155: 0.01635376445 | BD155: 0.0001253100043 | BE155: 0.01995978904 | BF155: 4877.500116 | BG155: 0 | BH155: 0 | BI155: 0 | BJ155: 0 | BK155: 4877.500116 | BL155: 23149.53316 | BM155: 0.5230208022 | BN155: 0.004007624004 | BO155: 10323.2256 | BP155: 12107.6874 | BQ155: 3740.047908 | BR155: 3048.955501 | BS155: 0.03031986575 | BT155: 7476.852527
BA156: 73 | BB156: 0.007161174046 | BC156: 0.01640480052 | BD156: 0.0001174776317 | BE156: 0.02007726667 | BF156: 4975.050118 | BG156: 0 | BH156: 0 | BI156: 0 | BJ156: 0 | BK156: 4975.050118 | BL156: 23185.16036 | BM156: 0.5066160017 | BN156: 0.003627965362 | BO156: 10703.57353 | BP156: 11745.97324 | BQ156: 3740.860978 | BR156: 3209.383645 | BS156: 0.03136548385 | BT156: 7664.044414
BA157: 74 | BB157: 0.006692686024 | BC157: 0.01643031734 | BD157: 0.0001099629552 | BE157: 0.02018722963 | BF157: 5074.551121 | BG157: 0 | BH157: 0 | BI157: 0 | BJ157: 0 | BK157: 5074.551121 | BL157: 23219.12273 | BM157: 0.4901856843 | BN157: 0.003280658879 | BO157: 11085.07108 | BP157: 11381.68157 | BQ157: 3741.635638 | BR157: 3372.971805 | BS157: 0.03243150095 | BT157: 7854.936128
BA158: 75 | BB158: 0.006254846751 | BC158: 0.01643003837 | BD158: 0.0001027673721 | BE158: 0.020289997 | BF158: 5176.042143 | BG158: 0 | BH158: 0 | BI158: 0 | BJ158: 0 | BK158: 5176.042143 | BL158: 23251.49809 | BM158: 0.473755646 | BN158: 0.002963268963 | BO158: 11467.09409 | BP158: 11015.52849 | BQ158: 3742.371761 | BR158: 3539.763726 | BS158: 0.03351798899 | BT158: 8049.572857
BA159: 76 | BB159: 0.00584565117 | BC159: 0.01640379729 | BD159: 9.589087683e-05 | BE159: 0.02038588787 | BF159: 5279.562986 | BG159: 0 | BH159: 0 | BI159: 0 | BJ159: 0 | BK159: 5279.562986 | BL159: 23282.36057 | BM159: 0.4573518487 | BN159: 0.002673519369 | BO159: 11849.01321 | BP159: 10648.23065 | BQ159: 3743.069486 | BR159: 3709.803783 | BS159: 0.03462501699 | BT159: 8248.000318
BA160: 77 | BB160: 0.005463225392 | BC160: 0.01635154105 | BD160: 8.933215428e-05 | BE160: 0.02047522003 | BF160: 5385.154246 | BG160: 0 | BH160: 0 | BI160: 0 | BJ160: 0 | BK160: 5385.154246 | BL160: 23311.78088 | BM160: 0.4410003076 | BN160: 0.002409284079 | BO160: 12230.19675 | BP160: 10280.50254 | BQ160: 3743.729187 | BR160: 3883.136994 | BS160: 0.03575265105 | BT160: 8450.264773
BA161: 78 | BB161: 0.005105818123 | BC161: 0.01627333221 | BD161: 8.308867454e-05 | BE161: 0.0205583087 | BF161: 5492.857331 | BG161: 0 | BH161: 0 | BI161: 0 | BJ161: 0 | BK161: 5492.857331 | BL161: 23339.82641 | BM161: 0.4247269754 | BN161: 0.002168578689 | BO161: 12610.0135 | BP161: 9913.053878 | BQ161: 3744.35144 | BR161: 4059.809039 | BS161: 0.03690095433 | BT161: 8656.413046
BA162: 79 | BB162: 0.004771792639 | BC162: 0.01616935047 | BD162: 7.715678757e-05 | BE162: 0.02063546549 | BF162: 5602.714477 | BG162: 0 | BH162: 0 | BI162: 0 | BJ162: 0 | BK162: 5602.714477 | BL162: 23366.5614 | BM162: 0.4085576249 | BN162: 0.001949552267 | BO162: 12987.83562 | BP162: 9546.586829 | BQ162: 3744.936998 | BR162: 4239.866278 | BS162: 0.0380699871 | BT162: 8866.492541
BA163: 80 | BB163: 0.004459619289 | BC163: 0.01603989338 | BD163: 7.153181789e-05 | BE163: 0.02070699731 | BF163: 5714.768767 | BG163: 0 | BH163: 0 | BI163: 0 | BJ163: 0 | BK163: 5714.768767 | BL163: 23392.0471 | BM163: 0.3925177316 | BN163: 0.001750479647 | BO163: 13363.04156 | BP163: 9181.793262 | BQ163: 3745.486761 | BR163: 4423.355763 | BS163: 0.03925980669 | BT163: 9080.551254
BA164: 81 | BB164: 0.004167868494 | BC164: 0.01588537612 | BD164: 6.620815863e-05 | BE164: 0.02077320547 | BF164: 5829.064142 | BG164: 0 | BH164: 0 | BI164: 0 | BJ164: 0 | BK164: 5829.064142 | BL164: 23416.34187 | BM164: 0.3766323554 | BN164: 0.001569754128 | BO164: 13735.01896 | BP164: 8819.351993 | BQ164: 3746.001758 | BR164: 4610.325263 | BS164: 0.04047046755 | BT164: 9298.637795
BA165: 82 | BB165: 0.0038952042 | BC165: 0.01570633047 | BD165: 6.117936441e-05 | BE165: 0.02083438483 | BF165: 5945.645425 | BG165: 0 | BH165: 0 | BI165: 0 | BJ165: 0 | BK165: 5945.645425 | BL165: 23439.50137 | BM165: 0.360926025 | BN165: 0.001405880568 | BO165: 14103.16752 | BP165: 8459.926057 | BQ165: 3746.483119 | BR165: 4800.823274 | BS165: 0.04170202119 | BT165: 9520.801404
BA166: 83 | BB166: 0.003640377757 | BC166: 0.0155034028 | BD166: 5.643824272e-05 | BE166: 0.02089082307 | BF166: 6064.558333 | BG166: 0 | BH166: 0 | BI166: 0 | BJ166: 0 | BK166: 6064.558333 | BL166: 23461.57865 | BM166: 0.3454226222 | BN166: 0.00125746883 | BO166: 14466.90182 | BP166: 8104.160019 | BQ166: 3746.932061 | BR166: 4994.899041 | BS166: 0.04295451624 | BT166: 9747.091966
BA167: 84 | BB167: 0.003402222203 | BC167: 0.01527735119 | BD167: 5.197694341e-05 | BE167: 0.02094280002 | BF167: 6185.8495 | BG167: 0 | BH167: 0 | BI167: 0 | BJ167: 0 | BK167: 6185.8495 | BL167: 23482.62429 | BM167: 0.330145271 | BN167: 0.001123227571 | BO167: 14825.65412 | BP167: 7752.677359 | BQ167: 3747.349864 | BR167: 5192.602577 | BS167: 0.04422799842 | BT167: 9977.560033
BA168: 85 | BB168: 0.003179646918 | BC168: 0.01502904158 | BD168: 4.778704574e-05 | BE168: 0.02099058706 | BF168: 6309.56649 | BG168: 0 | BH168: 0 | BI168: 0 | BJ168: 0 | BK168: 6309.56649 | BL168: 23502.68648 | BM168: 0.3151162294 | BN168: 0.001001958348 | BO168: 15178.87697 | BP168: 7406.077945 | BQ168: 3747.73786 | BR168: 5393.984679 | BS168: 0.04552251054 | BT168: 10212.25684
BA169: 86 | BB169: 0.002971632634 | BC169: 0.01475944311 | BD169: 4.38596428e-05 | BE169: 0.02103444671 | BF169: 6435.75782 | BG169: 0 | BH169: 0 | BI169: 0 | BJ169: 0 | BK169: 6435.75782 | BL169: 23521.81119 | BM169: 0.3003567863 | BN169: 0.000892550028 | BO169: 15526.0458 | BP169: 7064.935617 | BQ169: 3748.097413 | BR169: 5599.09695 | BS169: 0.04683809252 | BT169: 10451.23433
BA170: 87 | BB170: 0.002777226761 | BC170: 0.01446962251 | BD170: 4.018542287e-05 | BE170: 0.02107463213 | BF170: 6564.472976 | BG170: 0 | BH170: 0 | BI170: 0 | BJ170: 0 | BK170: 6564.472976 | BL170: 23540.04222 | BM170: 0.2858871638 | BN170: 0.0007939734818 | BO170: 15866.66133 | BP170: 6729.795906 | BQ170: 3748.429908 | BR170: 5807.991818 | BS170: 0.04817478138 | BT170: 10694.54516
BA171: 88 | BB171: 0.002595539029 | BC171: 0.01416073774 | BD171: 3.675474748e-05 | BE171: 0.02111138688 | BF171: 6695.762436 | BG171: 0 | BH171: 0 | BI171: 0 | BJ171: 0 | BK171: 6695.762436 | BL171: 23557.42133 | BM171: 0.271726426 | BN171: 0.0007052765439 | BO171: 16200.25179 | BP171: 6401.173906 | BQ171: 3748.736741 | BR171: 6020.722552 | BS171: 0.04953261124 | BT171: 10942.24273
BA172: 89 | BB172: 0.00242573741 | BC172: 0.01383403073 | BD172: 3.355772588e-05 | BE172: 0.0211449446 | BF172: 6829.677684 | BG172: 0 | BH172: 0 | BI172: 0 | BJ172: 0 | BK172: 6829.677684 | BL172: 23573.98834 | BM172: 0.2578923953 | BN172: 0.0006255792311 | BO172: 16526.37507 | BP172: 6079.552319 | BQ172: 3749.019303 | BR172: 6237.343289 | BS172: 0.05091161333 | BT172: 11194.38121
BA173: 90 | BB173: 0.002267044309 | BC173: 0.01349081953 | BD173: 3.058428563e-05 | BE173: 0.02117552889 | BF173: 6966.271238 | BG173: 0 | BH173: 0 | BI173: 0 | BJ173: 0 | BK173: 6966.271238 | BL173: 23589.78118 | BM173: 0.2444015758 | BN173: 0.0005540692014 | BO173: 16844.62055 | BP173: 5765.379693 | BQ173: 3749.278975 | BR173: 6457.909048 | BS173: 0.052311816 | BT173: 11451.01554
BA174: 91 | BB174: 0.002118732999 | BC174: 0.01313248967 | BD174: 2.782423922e-05 | BE174: 0.02120335313 | BF174: 7105.596663 | BG174: 0 | BH174: 0 | BI174: 0 | BJ174: 0 | BK174: 7105.596663 | BL174: 23604.83605 | BM174: 0.2312690861 | BN174: 0.0004899974443 | BO174: 17154.61082 | BP174: 5459.06886 | BQ174: 3749.517118 | BR174: 6682.475758 | BS174: 0.05373324468 | BT174: 11712.20146
BA175: 92 | BB175: 0.001980124298 | BC175: 0.01276048504 | BD175: 2.526734648e-05 | BE175: 0.02122862047 | BF175: 7247.708596 | BG175: 0 | BH175: 0 | BI175: 0 | BJ175: 0 | BK175: 7247.708596 | BL175: 23619.18741 | BM175: 0.2185086011 | BN175: 0.0004326741902 | BO175: 17456.00311 | BP175: 5160.995599 | BQ175: 3749.735066 | BR175: 6911.100272 | BS175: 0.05517592194 | BT175: 11977.99556
BA176: 93 | BB176: 0.001850583456 | BC176: 0.0123762982 | BD176: 2.29033727e-05 | BE176: 0.02125152385 | BF176: 7392.662768 | BG176: 0 | BH176: 0 | BI176: 0 | BJ176: 0 | BK176: 7392.662768 | BL176: 23632.86815 | BM176: 0.2061323029 | BN176: 0.0003814650294 | BO176: 17748.49053 | BP176: 4871.497535 | BQ176: 3749.934119 | BR176: 7143.840394 | BS176: 0.05663986746 | BT176: 12248.45525
BA177: 94 | BB177: 0.001729517248 | BC177: 0.01198146031 | BD177: 2.072214226e-05 | BE177: 0.02127224599 | BF177: 7540.516023 | BG177: 0 | BH177: 0 | BI177: 0 | BJ177: 0 | BK177: 7540.516023 | BL177: 23645.9096 | BM177: 0.1941508426 | BN177: 0.000335787231 | BO177: 18031.80306 | BP177: 4590.873272 | BQ177: 3750.115541 | BR177: 7380.754902 | BS177: 0.05812509801 | BT177: 12523.6388
BA178: 95 | BB178: 0.00161637126 | BC178: 0.01157753072 | BD178: 1.871358793e-05 | BE178: 0.02129095958 | BF178: 7691.326344 | BG178: 0 | BH178: 0 | BI178: 0 | BJ178: 0 | BK178: 7691.326344 | BL178: 23658.34164 | BM178: 0.1825733118 | BN178: 0.0002951062541 | BO178: 18305.70824 | BP178: 4319.381786 | BQ178: 3750.28055 | BR178: 7621.903566 | BS178: 0.05963162751 | BT178: 12803.6054
BA179: 96 | BB179: 0.001510627346 | BC179: 0.01116608644 | BD179: 1.686779552e-05 | BE179: 0.02130782737 | BF179: 7845.152871 | BG179: 0 | BH179: 0 | BI179: 0 | BJ179: 0 | BK179: 7845.152871 | BL179: 23670.19274 | BM179: 0.1714072254 | BN179: 0.000258932442 | BO179: 18570.01165 | BP179: 4057.242063 | BQ179: 3750.43032 | BR179: 7867.347176 | BS179: 0.06115946698 | BT179: 13088.41513
BA180: 97 | BB180: =1/(1+DiscountRate)^BA180 -> 0.001411801258 | BC180: =WEIBULL(BA180,$BE$54,$BE$55,TRUE)-WEIBULL(BA180-1,$BE$54,$BE$55,TRUE) -> 0.01074871134 | BD180: 1.51750442e-05 | BE180: 0.02132300242 | BF180: =+$BD$69*EXP($BA180*$BE$69)+$BD$70*EXP($BA180*$BE$70) -> 8002.055928 | BG180: =+$BD$71*EXP($BA180*$BE$71) -> 0 | BH180: =+$BD$72*EXP($BA180*$BE$72) -> 0 | BI180: =+$BD$73*EXP($BA180*$BE$73) -> 0 | BJ180: =+$BD$74*EXP($BA180*$BE$74) -> 0 | BK180: 8002.055928 | BL180: 23681.49006 | BM180: 0.160658514 | BN180: =+BM180*BB180 -> 0.0002268178922 | BO180: 18824.55715 | BP180: 3804.633003 | BQ180: =DiscountRate*($BC$65+BE180*($BE$65-$BC$65)+BO180+BP180)/(1-BE180-BN180) -> 3750.565975 | BR180: =BK181+BS181*($BE$65-$BC$65)-$BE$78 -> 8117.147564 | BS180: =(1-EXP(-((BA180/$BE$55)^$BE$54))/EXP(-(((BA180-1)/$BE$55)^$BE$54))) -> 0.06270862456 | BT180: =+BF180+$BF$60*BS180 -> 13378.12902
BA181: 98 | BB181: =1/(1+DiscountRate)^BA181 -> 0.001319440428 | BC181: 0.01032698558 | BD181: 1.362584227e-05 | BE181: 0.02133662826 | BF181: 8162.097047 | BG181: 0 | BH181: 0 | BI181: 0 | BJ181: 0 | BK181: 8162.097047 | BL181: =+BL180+BB181*BK181 -> 23692.25946 | BM181: 0.1503315285 | BN181: =+BM181*BB181 -> 0.0001983534963 | BO181: 19069.22678 | BP181: 3561.693577 | BQ181: 3750.688591 | BR181: 8371.367628 | BS181: 0.06427910553 | BT181: 13672.80904
BA182: 99 | BB182: =1/(1+DiscountRate)^BA182 -> 0.001233121895 | BC182: 0.009902474926 | BD182: 1.221095865e-05 | BE182: 0.02134883922 | BF182: 8325.338988 | BG182: 0 | BH182: 0 | BI182: 0 | BJ182: 0 | BK182: 8325.338988 | BL182: =+BL181+BB182*BK182 -> 23702.52561 | BM182: 0.1404290535 | BN182: =+BM182*BB182 -> 0.0001731661407 | BO182: 19303.94044 | BP182: 3328.523239 | BQ182: 3750.799187 | BR182: 8630.071357 | BS182: 0.06587091229 | BT182: 13972.51817
BA183: 100 | BB183: =1/(1+DiscountRate)^BA183 -> 0.001152450369 | BC183: 0.009476720477 | BD183: 1.092145001e-05 | BE183: 0.02135976067 | BF183: 8491.845768 | BG183: 0 | BH183: 0 | BI183: 0 | BJ183: 0 | BK183: 8491.845768 | BL183: =+BL182+BB183*BK183 -> 23712.31204 | BM183: 0.1309523331 | BN183: =+BM183*BB183 -> 0.0001509160646 | BO183: 19528.65539 | BP183: 3105.182585 | BQ183: 3750.898732 | BR183: 8893.323858 | BS183: 0.06748404435 | BT183: 14277.32037
BA184: 101 | BB184: =1/(1+DiscountRate)^BA184 -> 0.00107705642 | BC184: 0.00905122862 | BD184: =+BB184*BC184 -> 9.748683894e-06 | BE184: =+BE183+BD184 -> 0.02136950935 | BF184: 8661.682683 | BG184: 0 | BH184: 0 | BI184: 0 | BJ184: 0 | BK184: =SUM(BF184:BJ184) -> 8661.682683 | BL184: =+BL183+BB184*BK184 -> 23721.64117 | BM184: =+BM183-BC184 -> 0.1219011044 | BN184: =+BM184*BB184 -> 0.0001312943672 | BO184: =+BC184*BL184+BO183 -> 19743.36539 | BP184: =+BM184*BL184 -> 2891.694257 | BQ184: 3750.988141 | BR184: 9161.191377 | BS184: 0.06911849837 | BT184: 14587.28067
BA185: 102 | BB185: 0.001006594785 | BC185: 0.008627461454 | BD185: 8.684357708e-06 | BE185: 0.02137819371 | BF185: 8834.916337 | BG185: 0 | BH185: 0 | BI185: 0 | BJ185: 0 | BK185: 8834.916337 | BL185: 23730.53435 | BM185: 0.113273643 | BN185: 0.0001140206583 | BO185: 19948.09966 | BP185: 2688.044076 | BQ185: 3751.068275 | BR185: 9433.741332 | BS185: 0.07077426815 | BT185: 14902.46512
BA186: 103 | BB186: 0.0009407427898 | BC186: 0.008206827744 | BD186: 7.720514027e-06 | BE186: 0.02138591422 | BF186: 9011.614663 | BG186: 0 | BH186: 0 | BI186: 0 | BJ186: 0 | BK186: 9011.614663 | BL186: 23739.01196 | BM186: 0.1050668152 | BN186: 9.884084889e-05 | BO186: 20142.92164 | BP186: 2494.182384 | BQ186: 3751.139943 | BR186: 9711.042334 | BS186: 0.07245134461 | BT186: 15222.94089
BA187: 104 | BB187: 0.000879198869 | BC187: 0.007790674494 | BD187: 6.849552204e-06 | BE187: 0.02139276378 | BF187: 9191.846957 | BG187: 0 | BH187: 0 | BI187: 0 | BJ187: 0 | BK187: 9191.846957 | BL187: 23747.09342 | BM187: 0.09727614075 | BN187: 8.552507293e-05 | BO187: 20327.92752 | BP187: 2310.025602 | BQ187: 3751.203901 | BR187: 9993.164217 | BS187: 0.07414971583 | BT187: 15548.77624
BA188: 105 | BB188: 0.000821681186 | BC188: 0.007380279225 | BD188: 6.064236586e-06 | BE188: 0.02139882801 | BF188: 9375.683896 | BG188: 0 | BH188: 0 | BI188: 0 | BJ188: 0 | BK188: 9375.683896 | BL188: 23754.79724 | BM188: 0.08989586153 | BN188: 7.386573812e-05 | BO188: 20503.24456 | BP188: 2135.457964 | BQ188: 3751.260855 | BR188: 10280.17807 | BS188: 0.07586936702 | BT188: 15880.0406
BA189: 106 | BB189: 0.000767926342 | BC189: 0.006976843032 | BD189: 5.357701549e-06 | BE189: 0.02140418571 | BF189: 9563.197574 | BG189: 0 | BH189: 0 | BI189: 0 | BJ189: 0 | BK189: 9563.197574 | BL189: 23762.14107 | BM189: 0.0829190185 | BN189: 6.367569856e-05 | BO189: 20669.02928 | BP189: 1970.333415 | BQ189: 3751.311462 | BR189: 10572.15625 | BS189: 0.07761028053 | BT189: 16216.80453
BA190: 107 | BB190: 0.0007176881701 | BC190: 0.006581484481 | BD190: 4.723453554e-06 | BE190: 0.02140890917 | BF190: 9754.461525 | BG190: 0 | BH190: 0 | BI190: 0 | BJ190: 0 | BK190: 9754.461525 | BL190: 23769.14174 | BM190: 0.07633753402 | BN190: 5.47865451e-05 | BO190: 20825.46552 | BP190: 1814.477666 | BQ190: 3751.35633 | BR190: 10869.17243 | BS190: 0.0793724359 | BT190: 16559.13983
BA191: 108 | BB191: 0.0006707366076 | BC191: 0.00619523439 | BD191: 4.155370498e-06 | BE191: 0.02141306454 | BF191: 9949.550756 | BG191: 0 | BH191: 0 | BI191: 0 | BJ191: 0 | BK191: 9949.550756 | BL191: 23775.81526 | BM191: 0.07014229963 | BN191: 4.70470081e-05 | BO191: 20972.76227 | BP191: 1667.690358 | BQ191: 3751.396021 | BR191: 11171.30162 | BS191: 0.08115580979 | BT191: 16907.11948
BA192: 109 | BB192: 0.0006268566426 | BC192: 0.005819031552 | BD192: 3.647698582e-06 | BE192: 0.02141671224 | BF192: 10148.54177 | BG192: 0 | BH192: 0 | BI192: 0 | BJ192: 0 | BK192: 10148.54177 | BL192: 23782.17694 | BM192: 0.06432326807 | BN192: 4.032146787e-05 | BO192: 21111.15151 | BP192: 1529.747343 | BQ192: 3751.431056 | BR192: 11478.62021 | BS192: 0.08296037603 | BT192: 17260.81777
BA193: 110 | BB193: 0.0005858473295 | BC193: 0.005453719401 | BD193: 3.195046947e-06 | BE193: 0.02141990728 | BF193: 10351.51261 | BG193: 0 | BH193: 0 | BI193: 0 | BJ193: 0 | BK193: 10351.51261 | BL193: 23788.24135 | BM193: 0.05886954867 | BN193: 3.448856788e-05 | BO193: 21240.8859 | BP193: 1400.403032 | BQ193: 3751.461911 | BR193: 11791.20596 | BS193: 0.08478610562 | BT193: 17620.31023
BA194: 111 | BB194: 0.0005475208687 | BC194: 0.005100043652 | BD194: 2.792380331e-06 | BE194: 0.02142269966 | BF194: 10558.54286 | BG194: 0 | BH194: 0 | BI194: 0 | BJ194: 0 | BK194: 10558.54286 | BL194: 23794.02237 | BM194: 0.05376950502 | BN194: 2.94399261e-05 | BO194: 21362.23645 | BP194: 1279.392805 | BQ194: 3751.489023 | BR194: 12109.13809 | BS194: 0.08663296674 | BT194: 17985.67373
BA195: 112 | BB195: 0.0005117017465 | BC195: 0.004758650917 | BD195: 2.435009985e-06 | BE195: 0.02142513467 | BF195: 10769.71372 | BG195: 0 | BH195: 0 | BI195: 0 | BJ195: 0 | BK195: 10769.71372 | BL195: 23799.53325 | BM195: 0.0490108541 | BN195: 2.507893964e-05 | BO195: 21475.49012 | BP195: 1166.435452 | BQ195: 3751.512791 | BR195: 12432.49726 | BS195: 0.08850092474 | BT195: 18356.98649
BA196: 113 | BB196: 0.0004782259313 | BC196: 0.004430088267 | BD196: 2.118583087e-06 | BE196: 0.02142725326 | BF196: 10985.10799 | BG196: 0 | BH196: 0 | BI196: 0 | BJ196: 0 | BK196: 10985.10799 | BL196: 23804.78662 | BM196: 0.04458076584 | BN196: 2.131967826e-05 | BO196: 21580.94743 | BP196: 1061.235618 | BQ196: 3751.533581 | BR196: 12761.36565 | BS196: 0.09038994214 | BT196: 18734.32812
BA197: 114 | BB197: 0.0004469401227 | BC197: 0.004114803735 | BD197: 1.839070886e-06 | BE197: 0.02142909233 | BF197: 11204.81015 | BG197: 0 | BH197: 0 | BI197: 0 | BJ197: 0 | BK197: 11204.81015 | BL197: 23809.7945 | BM197: 0.0404659621 | BN197: 1.808586207e-05 | BO197: 21678.92006 | BP197: 963.4862417 | BQ197: 3751.551724 | BR197: 13095.82694 | BS197: 0.09229997866 | BT197: 19117.77962
BA198: 115 | BB198: 0.0004177010493 | BC198: 0.00381314772 | BD198: 1.592755803e-06 | BE198: 0.02143068508 | BF198: 11428.90635 | BG198: 0 | BH198: 0 | BI198: 0 | BJ198: 0 | BK198: 11428.90635 | BL198: 23814.56836 | BM198: 0.03665281438 | BN198: 1.530991903e-05 | BO198: 21769.72853 | BP198: 872.8709538 | BQ198: 3751.567518 | BR198: 13435.9664 | BS198: 0.09423099122 | BT198: 19507.42346
BA199: 116 | BB199: 0.0003903748124 | BC199: 0.003525375224 | BD199: 1.376217692e-06 | BE199: 0.0214320613 | BF199: 11657.48448 | BG199: 0 | BH199: 0 | BI199: 0 | BJ199: 0 | BK199: 11657.48448 | BL199: 23819.11915 | BM199: 0.03312743916 | BN199: 1.293211785e-05 | BO199: 21853.69986 | BP199: 789.0664205 | BQ199: 3751.581237 | BR199: 13781.87089 | BS199: 0.09618293393 | BT199: 19903.34359
BA200: 117 | BB200: 0.0003648362733 | BC200: 0.003251648905 | BD200: 1.186319468e-06 | BE200: 0.02143324762 | BF200: 11890.63417 | BG200: 0 | BH200: 0 | BI200: 0 | BJ200: 0 | BK200: 11890.63417 | BL200: 23823.45729 | BM200: 0.02987579025 | BN200: 1.089977198e-05 | BO200: 21931.16538 | BP200: 711.744613 | BQ200: 3751.593124 | BR200: 14133.62888 | BS200: 0.09815575811 | BT200: 20305.62547
... 4 more rows

Sheet Condition-Based Model Template
BA1: =IF(T89="",R89,T89) -> TRUE | BB1: << Include | BD1: zzz | BF1: =BD1 -> zzz
B2: Transit Cooperative Research Program - Transit Asset Prioritization Tool | AU2: Asset Type Dropdown | BA2: 5 | BB2: << Parameter Rows
B3: Condition-Based Model | AU3: ='Default Assets'!A3 -> Facilities-Access and Parking
AU4: ='Default Assets'!A4 -> Facilities-Administrative Building | BA4: Asset Type Code | BB4: Replacement Asset Type Code | BC4: Rehabilitation/Replacement Impacts (delay in hours, CO2 in tons, others in dollars) | BH4: Weibull Parameters and Impacts (delay in hours, CO2 in tons, others in dollars) | BO4: Exponential Coefficients | BW4: Net Present Value of Asset Replacement by Age | GM4: Maintenance and Other Non-Capital Agency Costs by Age | LC4: PI Increment | LD4: TERM Condition Coefficients | LF4: MDBF Coefficents | LH4: Model Type | LI4: Energy Cost Coefficients
E5: i | F5: Asset Type | K5: Facilities-Access and Parking | AU5: ='Default Assets'!A5 -> Facilities-Brake Lathe | BO5: Delay (hours) | BQ5: Other Pass. Cost | BS5: CO2 (tons) | BU5: Other External Cost
E6: i | F6: Asset Description | AU6: ='Default Assets'!A6 -> Facilities-Building Utilities | BC6: Agency | BD6: Delay | BE6: OthPax | BF6: CO2 | BG6: OthExt | BH6: Shape | BI6: Scale | BJ6: Agency | BK6: Delay | BL6: OthPax | BM6: CO2 | BN6: OthExt | BO6: D0 | BP6: D1 | BQ6: P0 | BR6: P1 | BS6: C0 | BT6: C1 | BU6: X0 | BV6: X1 | BW6: 1 | BX6: =1+BW6 -> 2 | BY6: =1+BX6 -> 3 | BZ6: 4 | CA6: 5 | CB6: 6 | CC6: 7 | CD6: 8 | CE6: 9 | CF6: 10 | CG6: 11 | CH6: 12 | CI6: 13 | CJ6: 14 | CK6: 15 | CL6: 16 | CM6: 17 | CN6: 18 | CO6: 19 | CP6: 20 | CQ6: 21 | CR6: 22 | CS6: 23 | CT6: 24 | CU6: 25 | CV6: 26 | CW6: 27 | CX6: 28 | CY6: 29 | CZ6: 30 | DA6: 31 | DB6: 32 | DC6: 33 | DD6: 34 | DE6: 35 | DF6: 36 | DG6: 37 | DH6: 38 | DI6: 39 | DJ6: 40 | DK6: 41 | DL6: 42 | DM6: 43 | DN6: 44 | DO6: 45 | DP6: 46 | DQ6: 47 | DR6: 48 | DS6: 49 | DT6: 50 | DU6: 51 | DV6: 52 | DW6: 53 | DX6: 54 | DY6: 55 | DZ6: 56 | EA6: 57 | EB6: 58 | EC6: 59 | ED6: 60 | EE6: 61 | EF6: 62 | EG6: 63 | EH6: 64 | EI6: 65 | EJ6: 66 | EK6: =1+EJ6 -> 67 | EL6: 68 | EM6: 69 | EN6: 70 | EO6: 71 | EP6: 72 | EQ6: 73 | ER6: 74 | ES6: 75 | ET6: 76 | EU6: 77 | EV6: 78 | EW6: 79 | EX6: 80 | EY6: 81 | EZ6: 82 | FA6: 83 | FB6: 84 | FC6: 85 | FD6: 86 | FE6: 87 | FF6: 88 | FG6: 89 | FH6: 90 | FI6: 91 | FJ6: 92 | FK6: 93 | FL6: 94 | FM6: 95 | FN6: 96 | FO6: 97 | FP6: 98 | FQ6: 99 | FR6: 100 | FS6: 101 | FT6: 102 | FU6: 103 | FV6: 104 | FW6: 105 | FX6: 106 | FY6: 107 | FZ6: 108 | GA6: 109 | GB6: 110 | GC6: 111 | GD6: 112 | GE6: 113 | GF6: 114 | GG6: 115 | GH6: 116 | GI6: 117 | GJ6: 118 | GK6: 119 | GL6: 120 | GM6: 1 | GN6: 2 | GO6: 3 | GP6: 4 | GQ6: 5 | GR6: 6 | GS6: 7 | GT6: 8 | GU6: 9 | GV6: 10 | GW6: =1+GV6 -> 11 | GX6: 12 | GY6: 13 | GZ6: 14 | HA6: 15 | HB6: 16 | HC6: 17 | HD6: 18 | HE6: 19 | HF6: 20 | HG6: 21 | HH6: 22 | HI6: 23 | HJ6: 24 | HK6: 25 | HL6: 26 | HM6: 27 | HN6: 28 | HO6: 29 | HP6: 30 | HQ6: 31 | HR6: 32 | HS6: 33 | HT6: 34 | HU6: 35 | HV6: 36 | HW6: 37 | HX6: 38 | HY6: 39 | HZ6: 40 | IA6: 41 | IB6: 42 | IC6: 43 | ID6: 44 | IE6: 45 | IF6: 46 | IG6: 47 | IH6: 48 | II6: 49 | IJ6: 50 | IK6: 51 | IL6: 52 | IM6: 53 | IN6: 54 | IO6: 55 | IP6: 56 | IQ6: 57 | IR6: 58 | IS6: 59 | IT6: 60 | IU6: 61 | IV6: 62 | IW6: 63 | IX6: 64 | IY6: 65 | IZ6: 66 | JA6: 67 | JB6: 68 | JC6: 69 | JD6: 70 | JE6: 71 | JF6: 72 | JG6: 73 | JH6: 74 | JI6: =1+JH6 -> 75 | JJ6: 76 | JK6: 77 | JL6: 78 | JM6: 79 | JN6: 80 | JO6: 81 | JP6: 82 | JQ6: 83 | JR6: 84 | JS6: 85 | JT6: 86 | JU6: 87 | JV6: 88 | JW6: 89 | JX6: 90 | JY6: 91 | JZ6: 92 | KA6: 93 | KB6: 94 | KC6: 95 | KD6: 96 | KE6: 97 | KF6: 98 | KG6: 99 | KH6: 100 | KI6: 101 | KJ6: 102 | KK6: 103 | KL6: 104 | KM6: 105 | KN6: 106 | KO6: 107 | KP6: 108 | KQ6: 109 | KR6: 110 | KS6: 111 | KT6: 112 | KU6: 113 | KV6: 114 | KW6: 115 | KX6: 116 | KY6: 117 | KZ6: 118 | LA6: 119 | LB6: 120 | LD6: TERM0 | LE6: TERM1 | LF6: FailPerDH | LG6: AnnMiles | LI6: E0 | LJ6: E1
E7: i | F7: Asset Units of Measure | AU7: ='Default Assets'!A7 -> Facilities-Building Utilities-Elevators and Conveying Systems | BA7: =$BD$1&"_5" -> zzz_5 | BB7: =IF(BF353<BF354,$BA$8,$BA$7) -> zzz_5 | BC7: =IF($BF$353<$BF$354,BC72+BD72,BC73+BD73) -> 28577 | BD7: =IF($BF$353<$BF$354,BE72,BE73) -> 0 | BE7: =IF($BF$353<$BF$354,BF72,BF73) -> 0 | BF7: =IF($BF$353<$BF$354,BG72,BG73) -> 0 | BG7: =IF($BF$353<$BF$354,BH72,BH73) -> 0 | BH7: 3 | BI7: 15 | BJ7: 0 | BK7: 0 | BL7: 0 | BM7: 0 | BN7: 0 | BO7: =BB545 -> 0 | BP7: 0 | BQ7: 0 | BR7: 0 | BS7: 0 | BT7: 0 | BU7: 0 | BV7: 0 | BW7: =TRANSPOSE(BH422:BH441) -> -28415.2723 | BX7: -28325.82204 | BY7: -28229.96582 | BZ7: -28127.22779 | CA7: -28017.2066 | CB7: -27899.57132 | CC7: -27774.05723 | CD7: -27640.46157 | CE7: -27498.63921 | CF7: -27348.49834 | CG7: -27189.9963 | CH7: -27023.13545 | CI7: -26847.9592 | CJ7: -26664.54817 | CK7: -26473.01656 | CL7: -26273.50864 | CM7: -26066.19543 | CN7: -25851.27166 | CO7: -25628.95273 | CP7: -25399.47206 | CQ7: =+CP7 -> -25399.47206 | CR7: =+CQ7 -> -25399.47206 | CS7: -25399.47206 | CT7: -25399.47206 | CU7: -25399.47206 | CV7: -25399.47206 | CW7: -25399.47206 | CX7: -25399.47206 | CY7: -25399.47206 | CZ7: -25399.47206 | DA7: -25399.47206 | DB7: -25399.47206 | DC7: -25399.47206 | DD7: -25399.47206 | DE7: -25399.47206 | DF7: -25399.47206 | DG7: -25399.47206 | DH7: -25399.47206 | DI7: -25399.47206 | DJ7: -25399.47206 | DK7: -25399.47206 | DL7: -25399.47206 | DM7: -25399.47206 | DN7: -25399.47206 | DO7: -25399.47206 | DP7: -25399.47206 | DQ7: -25399.47206 | DR7: -25399.47206 | DS7: -25399.47206 | DT7: -25399.47206 | DU7: -25399.47206 | DV7: -25399.47206 | DW7: -25399.47206 | DX7: -25399.47206 | DY7: -25399.47206 | DZ7: -25399.47206 | EA7: -25399.47206 | EB7: -25399.47206 | EC7: -25399.47206 | ED7: -25399.47206 | EE7: -25399.47206 | EF7: -25399.47206 | EG7: -25399.47206 | EH7: -25399.47206 | EI7: -25399.47206 | EJ7: -25399.47206 | EK7: -25399.47206 | EL7: -25399.47206 | EM7: -25399.47206 | EN7: -25399.47206 | EO7: -25399.47206 | EP7: -25399.47206 | EQ7: -25399.47206 | ER7: -25399.47206 | ES7: -25399.47206 | ET7: -25399.47206 | EU7: -25399.47206 | EV7: -25399.47206 | EW7: -25399.47206 | EX7: -25399.47206 | EY7: -25399.47206 | EZ7: -25399.47206 | FA7: -25399.47206 | FB7: -25399.47206 | FC7: -25399.47206 | FD7: =+FC7 -> -25399.47206 | FE7: -25399.47206 | FF7: -25399.47206 | FG7: -25399.47206 | FH7: -25399.47206 | FI7: -25399.47206 | FJ7: -25399.47206 | FK7: -25399.47206 | FL7: -25399.47206 | FM7: -25399.47206 | FN7: -25399.47206 | FO7: -25399.47206 | FP7: -25399.47206 | FQ7: -25399.47206 | FR7: -25399.47206 | FS7: -25399.47206 | FT7: -25399.47206 | FU7: -25399.47206 | FV7: -25399.47206 | FW7: -25399.47206 | FX7: -25399.47206 | FY7: -25399.47206 | FZ7: -25399.47206 | GA7: -25399.47206 | GB7: -25399.47206 | GC7: -25399.47206 | GD7: -25399.47206 | GE7: -25399.47206 | GF7: -25399.47206 | GG7: -25399.47206 | GH7: -25399.47206 | GI7: -25399.47206 | GJ7: -25399.47206 | GK7: -25399.47206 | GL7: -25399.47206 | GM7: =TRANSPOSE(BI422:BI441) -> 0 | GN7: 0 | GO7: 0.08053552845 | GP7: 0.320814488 | GQ7: 0.7974128322 | GR7: 1.583267317 | GS7: 2.74691875 | GT7: 4.351965496 | GU7: 6.456692503 | GV7: 9.113845957 | GW7: 12.37052787 | GX7: 16.26818854 | GY7: 20.84269812 | GZ7: 26.12448107 | HA7: 32.13870001 | HB7: 38.90547728 | HC7: 46.44014441 | HD7: 54.75351144 | HE7: 63.8521491 | HF7: 73.73867818 | HG7: =HF7 -> 73.73867818 | HH7: =HG7 -> 73.73867818 | HI7: 73.73867818 | HJ7: 73.73867818 | HK7: 73.73867818 | HL7: 73.73867818 | HM7: 73.73867818 | HN7: 73.73867818 | HO7: 73.73867818 | HP7: 73.73867818 | HQ7: 73.73867818 | HR7: 73.73867818 | HS7: 73.73867818 | HT7: 73.73867818 | HU7: 73.73867818 | HV7: 73.73867818 | HW7: 73.73867818 | HX7: 73.73867818 | HY7: 73.73867818 | HZ7: 73.73867818 | IA7: 73.73867818 | IB7: 73.73867818 | IC7: 73.73867818 | ID7: 73.73867818 | IE7: 73.73867818 | IF7: 73.73867818 | IG7: 73.73867818 | IH7: 73.73867818 | II7: 73.73867818 | IJ7: 73.73867818 | IK7: 73.73867818 | IL7: 73.73867818 | IM7: 73.73867818 | IN7: 73.73867818 | IO7: 73.73867818 | IP7: 73.73867818 | IQ7: 73.73867818 | IR7: 73.73867818 | IS7: 73.73867818 | IT7: 73.73867818 | IU7: 73.73867818 | IV7: 73.73867818 | IW7: 73.73867818 | IX7: 73.73867818 | IY7: 73.73867818 | IZ7: 73.73867818 | JA7: 73.73867818 | JB7: 73.73867818 | JC7: 73.73867818 | JD7: 73.73867818 | JE7: 73.73867818 | JF7: 73.73867818 | JG7: 73.73867818 | JH7: 73.73867818 | JI7: 73.73867818 | JJ7: 73.73867818 | JK7: 73.73867818 | JL7: 73.73867818 | JM7: 73.73867818 | JN7: 73.73867818 | JO7: 73.73867818 | JP7: 73.73867818 | JQ7: 73.73867818 | JR7: 73.73867818 | JS7: 73.73867818 | JT7: =JS7 -> 73.73867818 | JU7: 73.73867818 | JV7: 73.73867818 | JW7: 73.73867818 | JX7: 73.73867818 | JY7: 73.73867818 | JZ7: 73.73867818 | KA7: 73.73867818 | KB7: 73.73867818 | KC7: 73.73867818 | KD7: 73.73867818 | KE7: 73.73867818 | KF7: 73.73867818 | KG7: 73.73867818 | KH7: 73.73867818 | KI7: 73.73867818 | KJ7: 73.73867818 | KK7: 73.73867818 | KL7: 73.73867818 | KM7: 73.73867818 | KN7: 73.73867818 | KO7: 73.73867818 | KP7: 73.73867818 | KQ7: 73.73867818 | KR7: 73.73867818 | KS7: 73.73867818 | KT7: 73.73867818 | KU7: 73.73867818 | KV7: 73.73867818 | KW7: 73.73867818 | KX7: 73.73867818 | KY7: 73.73867818 | KZ7: 73.73867818 | LA7: 73.73867818 | LB7: 73.73867818 | LC7: =IF(T88="",R88,T88) -> 0 | LD7: =+BJ545 -> 5 | LE7: =+BL545 -> 0.02437823433 | LF7: 0 | LG7: 0 | LH7: 3 | LI7: =+BM545 -> 0 | LJ7: 0
AU8: ='Default Assets'!A8 -> Facilities-Building Utilities-Generator | BA8: =$BD$1&"_4" -> zzz_4 | BB8: =IF(BF356<BF357,$BA$8,$BA$7) -> zzz_5 | BC8: =IF($BF$356<$BF$357,BC75+BD75,BC76+BD76) -> 28577 | BD8: =IF($BF$356<$BF$357,BE75,BE76) -> 0 | BE8: =IF($BF$356<$BF$357,BF75,BF76) -> 0 | BF8: =IF($BF$356<$BF$357,BG75,BG76) -> 0 | BG8: =IF($BF$356<$BF$357,BH75,BH76) -> 0 | BH8: 3 | BI8: 15 | BJ8: 0 | BK8: 0 | BL8: 0 | BM8: 0 | BN8: 0 | BO8: 0 | BP8: 0 | BQ8: 0 | BR8: 0 | BS8: 0 | BT8: 0 | BU8: 0 | BV8: 0 | BW8: =TRANSPOSE(BH447:BH466) -> -23748.09402 | BX8: -23324.4045 | BY8: -22869.48188 | BZ8: -22386.73579 | CA8: -21879.43967 | CB8: -21350.71812 | CC8: -20803.53818 | CD8: -20240.70381 | CE8: -19664.85315 | CF8: -19078.45788 | CG8: -18483.82454 | CH8: -17883.09721 | CI8: -17278.26139 | CJ8: -16671.14883 | CK8: -16063.44302 | CL8: -15456.68519 | CM8: -14852.28076 | CN8: -14251.50591 | CO8: -13655.51436 | CP8: -13065.34415 | CQ8: =+CP8 -> -13065.34415 | CR8: -13065.34415 | CS8: -13065.34415 | CT8: -13065.34415 | CU8: -13065.34415 | CV8: -13065.34415 | CW8: -13065.34415 | CX8: -13065.34415 | CY8: -13065.34415 | CZ8: -13065.34415 | DA8: -13065.34415 | DB8: -13065.34415 | DC8: -13065.34415 | DD8: -13065.34415 | DE8: -13065.34415 | DF8: -13065.34415 | DG8: -13065.34415 | DH8: -13065.34415 | DI8: -13065.34415 | DJ8: -13065.34415 | DK8: -13065.34415 | DL8: -13065.34415 | DM8: -13065.34415 | DN8: -13065.34415 | DO8: -13065.34415 | DP8: -13065.34415 | DQ8: -13065.34415 | DR8: -13065.34415 | DS8: -13065.34415 | DT8: -13065.34415 | DU8: -13065.34415 | DV8: -13065.34415 | DW8: -13065.34415 | DX8: -13065.34415 | DY8: -13065.34415 | DZ8: -13065.34415 | EA8: -13065.34415 | EB8: -13065.34415 | EC8: -13065.34415 | ED8: -13065.34415 | EE8: -13065.34415 | EF8: -13065.34415 | EG8: -13065.34415 | EH8: -13065.34415 | EI8: -13065.34415 | EJ8: -13065.34415 | EK8: -13065.34415 | EL8: -13065.34415 | EM8: -13065.34415 | EN8: -13065.34415 | EO8: -13065.34415 | EP8: -13065.34415 | EQ8: -13065.34415 | ER8: -13065.34415 | ES8: -13065.34415 | ET8: -13065.34415 | EU8: -13065.34415 | EV8: -13065.34415 | EW8: -13065.34415 | EX8: -13065.34415 | EY8: -13065.34415 | EZ8: -13065.34415 | FA8: -13065.34415 | FB8: -13065.34415 | FC8: =+FB8 -> -13065.34415 | FD8: -13065.34415 | FE8: -13065.34415 | FF8: -13065.34415 | FG8: -13065.34415 | FH8: -13065.34415 | FI8: -13065.34415 | FJ8: -13065.34415 | FK8: -13065.34415 | FL8: -13065.34415 | FM8: -13065.34415 | FN8: -13065.34415 | FO8: -13065.34415 | FP8: -13065.34415 | FQ8: -13065.34415 | FR8: -13065.34415 | FS8: -13065.34415 | FT8: -13065.34415 | FU8: -13065.34415 | FV8: -13065.34415 | FW8: -13065.34415 | FX8: -13065.34415 | FY8: -13065.34415 | FZ8: -13065.34415 | GA8: -13065.34415 | GB8: -13065.34415 | GC8: -13065.34415 | GD8: -13065.34415 | GE8: -13065.34415 | GF8: -13065.34415 | GG8: -13065.34415 | GH8: -13065.34415 | GI8: -13065.34415 | GJ8: -13065.34415 | GK8: -13065.34415 | GL8: -13065.34415 | GM8: =TRANSPOSE(BI447:BI466) -> 0 | GN8: 4.202041087 | GO8: 12.61738827 | GP8: 25.18792424 | GQ8: 41.80034528 | GR8: 62.29822417 | GS8: 86.49222351 | GT8: 114.1687076 | GU8: 145.0969697 | GV8: 179.0352639 | GW8: 215.7358079 | GX8: 254.9488996 | GY8: 296.4262747 | GZ8: 339.9238141 | HA8: 385.2036969 | HB8: 432.0360802 | HC8: 480.2003807 | HD8: 529.4862166 | HE8: 579.6940665 | HF8: 630.6356906 | HG8: =HF8 -> 630.6356906 | HH8: =HG8 -> 630.6356906 | HI8: 630.6356906 | HJ8: 630.6356906 | HK8: 630.6356906 | HL8: 630.6356906 | HM8: 630.6356906 | HN8: 630.6356906 | HO8: 630.6356906 | HP8: 630.6356906 | HQ8: 630.6356906 | HR8: 630.6356906 | HS8: 630.6356906 | HT8: 630.6356906 | HU8: 630.6356906 | HV8: 630.6356906 | HW8: 630.6356906 | HX8: 630.6356906 | HY8: 630.6356906 | HZ8: 630.6356906 | IA8: 630.6356906 | IB8: 630.6356906 | IC8: 630.6356906 | ID8: 630.6356906 | IE8: 630.6356906 | IF8: 630.6356906 | IG8: 630.6356906 | IH8: 630.6356906 | II8: 630.6356906 | IJ8: 630.6356906 | IK8: 630.6356906 | IL8: 630.6356906 | IM8: 630.6356906 | IN8: 630.6356906 | IO8: 630.6356906 | IP8: 630.6356906 | IQ8: 630.6356906 | IR8: 630.6356906 | IS8: 630.6356906 | IT8: 630.6356906 | IU8: 630.6356906 | IV8: 630.6356906 | IW8: 630.6356906 | IX8: 630.6356906 | IY8: 630.6356906 | IZ8: 630.6356906 | JA8: 630.6356906 | JB8: 630.6356906 | JC8: 630.6356906 | JD8: 630.6356906 | JE8: 630.6356906 | JF8: 630.6356906 | JG8: 630.6356906 | JH8: 630.6356906 | JI8: 630.6356906 | JJ8: 630.6356906 | JK8: 630.6356906 | JL8: 630.6356906 | JM8: 630.6356906 | JN8: 630.6356906 | JO8: 630.6356906 | JP8: 630.6356906 | JQ8: 630.6356906 | JR8: 630.6356906 | JS8: 630.6356906 | JT8: 630.6356906 | JU8: 630.6356906 | JV8: 630.6356906 | JW8: 630.6356906 | JX8: 630.6356906 | JY8: 630.6356906 | JZ8: 630.6356906 | KA8: 630.6356906 | KB8: 630.6356906 | KC8: 630.6356906 | KD8: 630.6356906 | KE8: 630.6356906 | KF8: 630.6356906 | KG8: 630.6356906 | KH8: 630.6356906 | KI8: 630.6356906 | KJ8: 630.6356906 | KK8: 630.6356906 | KL8: 630.6356906 | KM8: 630.6356906 | KN8: 630.6356906 | KO8: 630.6356906 | KP8: 630.6356906 | KQ8: 630.6356906 | KR8: 630.6356906 | KS8: 630.6356906 | KT8: 630.6356906 | KU8: 630.6356906 | KV8: 630.6356906 | KW8: 630.6356906 | KX8: 630.6356906 | KY8: 630.6356906 | KZ8: 630.6356906 | LA8: 630.6356906 | LB8: 630.6356906 | LC8: =+LC7 -> 0 | LD8: =+BJ546 -> 4 | LE8: =+BL546 -> 0.05590498708 | LF8: =+LF7 -> 0 | LG8: =+LG7 -> 0 | LH8: 3 | LI8: 0 | LJ8: 0
C9: DEFAULT REPLACEMENT AND REHABILITATION COSTS | AU9: ='Default Assets'!A9 -> Facilities-Bus Turnaround Facility | BA9: =$BD$1&"_3" -> zzz_3 | BB9: =IF(BF359<BF360,$BA$8,$BA$7) -> zzz_5 | BC9: =IF($BF$359<$BF$360,BC78+BD78,BC79+BD79) -> 28577 | BD9: =IF($BF$359<$BF$360,BE78,BE79) -> 0 | BE9: =IF($BF$359<$BF$360,BF78,BF79) -> 0 | BF9: =IF($BF$359<$BF$360,BG78,BG79) -> 0 | BG9: =IF($BF$359<$BF$360,BH78,BH79) -> 0 | BH9: 3 | BI9: 15 | BJ9: 0 | BK9: 0 | BL9: 0 | BM9: 0 | BN9: 0 | BO9: 0 | BP9: 0 | BQ9: 0 | BR9: 0 | BS9: 0 | BT9: 0 | BU9: 0 | BV9: 0 | BW9: =TRANSPOSE(BH472:BH491) -> -13488.04655 | BX9: -12308.0174 | BY9: -11179.32298 | BZ9: -10102.07444 | CA9: -9075.941057 | CB9: -8100.231751 | CC9: -7173.964933 | CD9: -6295.928339 | CE9: -5464.730083 | CF9: -4678.84208 | CG9: -3936.636859 | CH9: -3236.418619 | CI9: -2576.44932 | CJ9: -1954.970469 | CK9: -1370.221187 | CL9: -820.4530828 | CM9: -303.9423681 | CN9: 181.0003842 | CO9: 636.0225049 | CP9: 1062.723216 | CQ9: =+CP9 -> 1062.723216 | CR9: 1062.723216 | CS9: 1062.723216 | CT9: 1062.723216 | CU9: 1062.723216 | CV9: 1062.723216 | CW9: 1062.723216 | CX9: 1062.723216 | CY9: 1062.723216 | CZ9: 1062.723216 | DA9: 1062.723216 | DB9: 1062.723216 | DC9: 1062.723216 | DD9: 1062.723216 | DE9: 1062.723216 | DF9: 1062.723216 | DG9: 1062.723216 | DH9: 1062.723216 | DI9: 1062.723216 | DJ9: 1062.723216 | DK9: 1062.723216 | DL9: 1062.723216 | DM9: 1062.723216 | DN9: 1062.723216 | DO9: 1062.723216 | DP9: 1062.723216 | DQ9: 1062.723216 | DR9: 1062.723216 | DS9: 1062.723216 | DT9: 1062.723216 | DU9: 1062.723216 | DV9: 1062.723216 | DW9: 1062.723216 | DX9: 1062.723216 | DY9: 1062.723216 | DZ9: 1062.723216 | EA9: 1062.723216 | EB9: 1062.723216 | EC9: 1062.723216 | ED9: 1062.723216 | EE9: 1062.723216 | EF9: 1062.723216 | EG9: 1062.723216 | EH9: 1062.723216 | EI9: 1062.723216 | EJ9: 1062.723216 | EK9: 1062.723216 | EL9: 1062.723216 | EM9: 1062.723216 | EN9: 1062.723216 | EO9: 1062.723216 | EP9: 1062.723216 | EQ9: 1062.723216 | ER9: 1062.723216 | ES9: 1062.723216 | ET9: 1062.723216 | EU9: 1062.723216 | EV9: 1062.723216 | EW9: 1062.723216 | EX9: 1062.723216 | EY9: 1062.723216 | EZ9: 1062.723216 | FA9: 1062.723216 | FB9: 1062.723216 | FC9: =+FB9 -> 1062.723216 | FD9: 1062.723216 | FE9: 1062.723216 | FF9: 1062.723216 | FG9: 1062.723216 | FH9: 1062.723216 | FI9: 1062.723216 | FJ9: 1062.723216 | FK9: 1062.723216 | FL9: 1062.723216 | FM9: 1062.723216 | FN9: 1062.723216 | FO9: 1062.723216 | FP9: 1062.723216 | FQ9: 1062.723216 | FR9: 1062.723216 | FS9: 1062.723216 | FT9: 1062.723216 | FU9: 1062.723216 | FV9: 1062.723216 | FW9: 1062.723216 | FX9: 1062.723216 | FY9: 1062.723216 | FZ9: 1062.723216 | GA9: 1062.723216 | GB9: 1062.723216 | GC9: 1062.723216 | GD9: 1062.723216 | GE9: 1062.723216 | GF9: 1062.723216 | GG9: 1062.723216 | GH9: 1062.723216 | GI9: 1062.723216 | GJ9: 1062.723216 | GK9: 1062.723216 | GL9: 1062.723216 | GM9: =TRANSPOSE(BI472:BI491) -> 101.7564495 | GN9: 207.9877329 | GO9: 317.0249563 | GP9: 427.4736105 | GQ9: 538.1761145 | GR9: 648.1790902 | GS9: 756.7047933 | GT9: 863.1261955 | GU9: 966.9452696 | GV9: 1067.774087 | GW9: 1165.318379 | GX9: 1259.363262 | GY9: 1349.760853 | GZ9: 1436.419541 | HA9: 1519.294714 | HB9: 1598.380747 | HC9: 1673.704101 | HD9: 1745.317389 | HE9: 1813.294284 | HF9: 1877.72516 | HG9: =HF9 -> 1877.72516 | HH9: =HG9 -> 1877.72516 | HI9: 1877.72516 | HJ9: 1877.72516 | HK9: 1877.72516 | HL9: 1877.72516 | HM9: 1877.72516 | HN9: 1877.72516 | HO9: 1877.72516 | HP9: 1877.72516 | HQ9: 1877.72516 | HR9: 1877.72516 | HS9: 1877.72516 | HT9: 1877.72516 | HU9: 1877.72516 | HV9: 1877.72516 | HW9: 1877.72516 | HX9: 1877.72516 | HY9: 1877.72516 | HZ9: 1877.72516 | IA9: 1877.72516 | IB9: 1877.72516 | IC9: 1877.72516 | ID9: 1877.72516 | IE9: 1877.72516 | IF9: 1877.72516 | IG9: 1877.72516 | IH9: 1877.72516 | II9: 1877.72516 | IJ9: 1877.72516 | IK9: 1877.72516 | IL9: 1877.72516 | IM9: 1877.72516 | IN9: 1877.72516 | IO9: 1877.72516 | IP9: 1877.72516 | IQ9: 1877.72516 | IR9: 1877.72516 | IS9: 1877.72516 | IT9: 1877.72516 | IU9: 1877.72516 | IV9: 1877.72516 | IW9: 1877.72516 | IX9: 1877.72516 | IY9: 1877.72516 | IZ9: 1877.72516 | JA9: 1877.72516 | JB9: 1877.72516 | JC9: 1877.72516 | JD9: 1877.72516 | JE9: 1877.72516 | JF9: 1877.72516 | JG9: 1877.72516 | JH9: 1877.72516 | JI9: 1877.72516 | JJ9: 1877.72516 | JK9: 1877.72516 | JL9: 1877.72516 | JM9: 1877.72516 | JN9: 1877.72516 | JO9: 1877.72516 | JP9: 1877.72516 | JQ9: 1877.72516 | JR9: 1877.72516 | JS9: 1877.72516 | JT9: 1877.72516 | JU9: 1877.72516 | JV9: 1877.72516 | JW9: 1877.72516 | JX9: 1877.72516 | JY9: 1877.72516 | JZ9: 1877.72516 | KA9: 1877.72516 | KB9: 1877.72516 | KC9: 1877.72516 | KD9: 1877.72516 | KE9: 1877.72516 | KF9: 1877.72516 | KG9: 1877.72516 | KH9: 1877.72516 | KI9: 1877.72516 | KJ9: 1877.72516 | KK9: 1877.72516 | KL9: 1877.72516 | KM9: 1877.72516 | KN9: 1877.72516 | KO9: 1877.72516 | KP9: 1877.72516 | KQ9: 1877.72516 | KR9: 1877.72516 | KS9: 1877.72516 | KT9: 1877.72516 | KU9: 1877.72516 | KV9: 1877.72516 | KW9: 1877.72516 | KX9: 1877.72516 | KY9: 1877.72516 | KZ9: 1877.72516 | LA9: 1877.72516 | LB9: 1877.72516 | LC9: =+LC8 -> 0 | LD9: =+BJ547 -> 3 | LE9: =+BL547 -> 0.0869156135 | LF9: =+LF8 -> 0 | LG9: 0 | LH9: 3 | LI9: 0 | LJ9: 0
AU10: ='Default Assets'!A10 -> Facilities-Bus Washer | BA10: =$BD$1&"_2" -> zzz_2 | BB10: =IF(BF362<BF363,$BA$8,$BA$7) -> zzz_5 | BC10: =IF($BF$362<$BF$363,BC81+BD81,BC82+BD82) -> 28577 | BD10: =IF($BF$362<$BF$363,BE81,BE82) -> 0 | BE10: =IF($BF$362<$BF$363,BF81,BF82) -> 0 | BF10: =IF($BF$362<$BF$363,BG81,BG82) -> 0 | BG10: =IF($BF$362<$BF$363,BH81,BH82) -> 0 | BH10: 3 | BI10: 15 | BJ10: 0 | BK10: 0 | BL10: 0 | BM10: 0 | BN10: 0 | BO10: 0 | BP10: 0 | BQ10: 0 | BR10: 0 | BS10: 0 | BT10: 0 | BU10: 0 | BV10: 0 | BW10: =TRANSPOSE(BH497:BH516) -> 3081.75973 | BX10: 3540.953601 | BY10: 3947.252218 | BZ10: 4306.748666 | CA10: 4624.83416 | CB10: 4906.278893 | CC10: 5155.303569 | CD10: 5375.642707 | CE10: 5570.600637 | CF10: 5743.101061 | CG10: 5895.730893 | CH10: 6030.779058 | CI10: 6150.270815 | CJ10: 6255.998131 | CK10: 6349.546554 | CL10: 6432.318988 | CM10: 6505.556737 | CN10: 6570.358117 | CO10: 6627.694924 | CP10: 6678.427016 | CQ10: =+CP10 -> 6678.427016 | CR10: 6678.427016 | CS10: 6678.427016 | CT10: 6678.427016 | CU10: 6678.427016 | CV10: 6678.427016 | CW10: 6678.427016 | CX10: 6678.427016 | CY10: 6678.427016 | CZ10: 6678.427016 | DA10: 6678.427016 | DB10: 6678.427016 | DC10: 6678.427016 | DD10: 6678.427016 | DE10: 6678.427016 | DF10: 6678.427016 | DG10: 6678.427016 | DH10: 6678.427016 | DI10: 6678.427016 | DJ10: 6678.427016 | DK10: 6678.427016 | DL10: 6678.427016 | DM10: 6678.427016 | DN10: 6678.427016 | DO10: 6678.427016 | DP10: 6678.427016 | DQ10: 6678.427016 | DR10: 6678.427016 | DS10: 6678.427016 | DT10: 6678.427016 | DU10: 6678.427016 | DV10: 6678.427016 | DW10: 6678.427016 | DX10: 6678.427016 | DY10: 6678.427016 | DZ10: 6678.427016 | EA10: 6678.427016 | EB10: 6678.427016 | EC10: 6678.427016 | ED10: 6678.427016 | EE10: 6678.427016 | EF10: 6678.427016 | EG10: 6678.427016 | EH10: 6678.427016 | EI10: 6678.427016 | EJ10: 6678.427016 | EK10: 6678.427016 | EL10: 6678.427016 | EM10: 6678.427016 | EN10: 6678.427016 | EO10: 6678.427016 | EP10: 6678.427016 | EQ10: 6678.427016 | ER10: 6678.427016 | ES10: 6678.427016 | ET10: 6678.427016 | EU10: 6678.427016 | EV10: 6678.427016 | EW10: 6678.427016 | EX10: 6678.427016 | EY10: 6678.427016 | EZ10: 6678.427016 | FA10: 6678.427016 | FB10: 6678.427016 | FC10: =+FB10 -> 6678.427016 | FD10: 6678.427016 | FE10: 6678.427016 | FF10: 6678.427016 | FG10: 6678.427016 | FH10: 6678.427016 | FI10: 6678.427016 | FJ10: 6678.427016 | FK10: 6678.427016 | FL10: 6678.427016 | FM10: 6678.427016 | FN10: 6678.427016 | FO10: 6678.427016 | FP10: 6678.427016 | FQ10: 6678.427016 | FR10: 6678.427016 | FS10: 6678.427016 | FT10: 6678.427016 | FU10: 6678.427016 | FV10: 6678.427016 | FW10: 6678.427016 | FX10: 6678.427016 | FY10: 6678.427016 | FZ10: 6678.427016 | GA10: 6678.427016 | GB10: 6678.427016 | GC10: 6678.427016 | GD10: 6678.427016 | GE10: 6678.427016 | GF10: 6678.427016 | GG10: 6678.427016 | GH10: 6678.427016 | GI10: 6678.427016 | GJ10: 6678.427016 | GK10: 6678.427016 | GL10: 6678.427016 | GM10: =TRANSPOSE(BI497:BI516) -> 1593.44145 | GN10: 1739.073354 | GO10: 1867.929694 | GP10: 1981.942872 | GQ10: 2082.822695 | GR10: 2172.082015 | GS10: 2251.059415 | GT10: 2320.939286 | GU10: 2382.769585 | GV10: 2437.477557 | GW10: 2485.883633 | GX10: 2528.713737 | GY10: 2566.610175 | GZ10: 2600.141264 | HA10: 2629.809855 | HB10: 2656.060874 | HC10: 2679.287998 | HD10: 2699.839554 | HE10: 2718.023744 | HF10: 2734.113268 | HG10: =HF10 -> 2734.113268 | HH10: 2734.113268 | HI10: 2734.113268 | HJ10: 2734.113268 | HK10: 2734.113268 | HL10: 2734.113268 | HM10: 2734.113268 | HN10: 2734.113268 | HO10: 2734.113268 | HP10: 2734.113268 | HQ10: 2734.113268 | HR10: 2734.113268 | HS10: 2734.113268 | HT10: 2734.113268 | HU10: 2734.113268 | HV10: 2734.113268 | HW10: 2734.113268 | HX10: 2734.113268 | HY10: 2734.113268 | HZ10: 2734.113268 | IA10: 2734.113268 | IB10: 2734.113268 | IC10: 2734.113268 | ID10: 2734.113268 | IE10: 2734.113268 | IF10: 2734.113268 | IG10: 2734.113268 | IH10: 2734.113268 | II10: 2734.113268 | IJ10: 2734.113268 | IK10: 2734.113268 | IL10: 2734.113268 | IM10: 2734.113268 | IN10: 2734.113268 | IO10: 2734.113268 | IP10: 2734.113268 | IQ10: 2734.113268 | IR10: 2734.113268 | IS10: 2734.113268 | IT10: 2734.113268 | IU10: 2734.113268 | IV10: 2734.113268 | IW10: 2734.113268 | IX10: 2734.113268 | IY10: 2734.113268 | IZ10: 2734.113268 | JA10: 2734.113268 | JB10: 2734.113268 | JC10: 2734.113268 | JD10: 2734.113268 | JE10: 2734.113268 | JF10: 2734.113268 | JG10: 2734.113268 | JH10: 2734.113268 | JI10: 2734.113268 | JJ10: 2734.113268 | JK10: 2734.113268 | JL10: 2734.113268 | JM10: 2734.113268 | JN10: 2734.113268 | JO10: 2734.113268 | JP10: 2734.113268 | JQ10: 2734.113268 | JR10: 2734.113268 | JS10: 2734.113268 | JT10: 2734.113268 | JU10: 2734.113268 | JV10: 2734.113268 | JW10: 2734.113268 | JX10: 2734.113268 | JY10: 2734.113268 | JZ10: 2734.113268 | KA10: 2734.113268 | KB10: 2734.113268 | KC10: 2734.113268 | KD10: 2734.113268 | KE10: 2734.113268 | KF10: 2734.113268 | KG10: 2734.113268 | KH10: 2734.113268 | KI10: 2734.113268 | KJ10: 2734.113268 | KK10: 2734.113268 | KL10: 2734.113268 | KM10: 2734.113268 | KN10: 2734.113268 | KO10: 2734.113268 | KP10: 2734.113268 | KQ10: 2734.113268 | KR10: 2734.113268 | KS10: 2734.113268 | KT10: 2734.113268 | KU10: 2734.113268 | KV10: 2734.113268 | KW10: 2734.113268 | KX10: 2734.113268 | KY10: 2734.113268 | KZ10: 2734.113268 | LA10: 2734.113268 | LB10: 2734.113268 | LC10: =+LC9 -> 0 | LD10: =+BJ548 -> 2 | LE10: =+BL548 -> 0.08572037963 | LF10: 0 | LG10: 0 | LH10: 3 | LI10: 0 | LJ10: 0
F11: Unit Agency Replacement Cost ($) | O11: i | AU11: ='Default Assets'!A11 -> Facilities-Dynamoneter | BA11: =$BD$1&"_1" -> zzz_1 | BB11: =IF(BF365<BF366,$BA$8,$BA$7) -> zzz_5 | BC11: =IF($BF$365<$BF$366,BC84+BD84,BC85+BD85) -> 28577 | BD11: =IF($BF$365<$BF$366,BE84,BE85) -> 0 | BE11: =IF($BF$365<$BF$366,BF84,BF85) -> 0 | BF11: =IF($BF$365<$BF$366,BG84,BG85) -> 0 | BG11: =IF($BF$365<$BF$366,BH84,BH85) -> 0 | BH11: 3 | BI11: 15 | BJ11: 0 | BK11: 0 | BL11: 0 | BM11: 0 | BN11: 0 | BO11: 0 | BP11: 0 | BQ11: 0 | BR11: 0 | BS11: 0 | BT11: 0 | BU11: 0 | BV11: 0 | BW11: =TRANSPOSE(BH522:BH541) -> 7068.109962 | BX11: 7068.109962 | BY11: 7068.109962 | BZ11: 7068.109962 | CA11: 7068.109962 | CB11: 7068.109962 | CC11: 7068.109962 | CD11: 7068.109962 | CE11: 7068.109962 | CF11: 7068.109962 | CG11: 7068.109962 | CH11: 7068.109962 | CI11: 7068.109962 | CJ11: 7068.109962 | CK11: 7068.109962 | CL11: 7068.109962 | CM11: 7068.109962 | CN11: 7068.109962 | CO11: 7068.109962 | CP11: 7068.109962 | CQ11: =+CP11 -> 7068.109962 | CR11: 7068.109962 | CS11: 7068.109962 | CT11: 7068.109962 | CU11: 7068.109962 | CV11: 7068.109962 | CW11: 7068.109962 | CX11: 7068.109962 | CY11: 7068.109962 | CZ11: 7068.109962 | DA11: 7068.109962 | DB11: 7068.109962 | DC11: 7068.109962 | DD11: 7068.109962 | DE11: 7068.109962 | DF11: 7068.109962 | DG11: 7068.109962 | DH11: 7068.109962 | DI11: 7068.109962 | DJ11: 7068.109962 | DK11: 7068.109962 | DL11: 7068.109962 | DM11: 7068.109962 | DN11: 7068.109962 | DO11: 7068.109962 | DP11: 7068.109962 | DQ11: 7068.109962 | DR11: 7068.109962 | DS11: 7068.109962 | DT11: 7068.109962 | DU11: 7068.109962 | DV11: 7068.109962 | DW11: 7068.109962 | DX11: 7068.109962 | DY11: 7068.109962 | DZ11: 7068.109962 | EA11: 7068.109962 | EB11: 7068.109962 | EC11: 7068.109962 | ED11: 7068.109962 | EE11: 7068.109962 | EF11: 7068.109962 | EG11: 7068.109962 | EH11: 7068.109962 | EI11: 7068.109962 | EJ11: 7068.109962 | EK11: 7068.109962 | EL11: 7068.109962 | EM11: 7068.109962 | EN11: 7068.109962 | EO11: 7068.109962 | EP11: 7068.109962 | EQ11: 7068.109962 | ER11: 7068.109962 | ES11: 7068.109962 | ET11: 7068.109962 | EU11: 7068.109962 | EV11: 7068.109962 | EW11: 7068.109962 | EX11: 7068.109962 | EY11: 7068.109962 | EZ11: 7068.109962 | FA11: 7068.109962 | FB11: 7068.109962 | FC11: =+FB11 -> 7068.109962 | FD11: 7068.109962 | FE11: 7068.109962 | FF11: 7068.109962 | FG11: 7068.109962 | FH11: 7068.109962 | FI11: 7068.109962 | FJ11: 7068.109962 | FK11: 7068.109962 | FL11: 7068.109962 | FM11: 7068.109962 | FN11: 7068.109962 | FO11: 7068.109962 | FP11: 7068.109962 | FQ11: 7068.109962 | FR11: 7068.109962 | FS11: 7068.109962 | FT11: 7068.109962 | FU11: 7068.109962 | FV11: 7068.109962 | FW11: 7068.109962 | FX11: 7068.109962 | FY11: 7068.109962 | FZ11: 7068.109962 | GA11: 7068.109962 | GB11: 7068.109962 | GC11: 7068.109962 | GD11: 7068.109962 | GE11: 7068.109962 | GF11: 7068.109962 | GG11: 7068.109962 | GH11: 7068.109962 | GI11: 7068.109962 | GJ11: 7068.109962 | GK11: 7068.109962 | GL11: 7068.109962 | GM11: =TRANSPOSE(BI522:BI541) -> 2857.7 | GN11: 2857.7 | GO11: 2857.7 | GP11: 2857.7 | GQ11: 2857.7 | GR11: 2857.7 | GS11: 2857.7 | GT11: 2857.7 | GU11: 2857.7 | GV11: 2857.7 | GW11: 2857.7 | GX11: 2857.7 | GY11: 2857.7 | GZ11: 2857.7 | HA11: 2857.7 | HB11: 2857.7 | HC11: 2857.7 | HD11: 2857.7 | HE11: 2857.7 | HF11: 2857.7 | HG11: =HF11 -> 2857.7 | HH11: 2857.7 | HI11: 2857.7 | HJ11: 2857.7 | HK11: 2857.7 | HL11: 2857.7 | HM11: 2857.7 | HN11: 2857.7 | HO11: 2857.7 | HP11: 2857.7 | HQ11: 2857.7 | HR11: 2857.7 | HS11: 2857.7 | HT11: 2857.7 | HU11: 2857.7 | HV11: 2857.7 | HW11: 2857.7 | HX11: 2857.7 | HY11: 2857.7 | HZ11: 2857.7 | IA11: 2857.7 | IB11: 2857.7 | IC11: 2857.7 | ID11: 2857.7 | IE11: 2857.7 | IF11: 2857.7 | IG11: 2857.7 | IH11: 2857.7 | II11: 2857.7 | IJ11: 2857.7 | IK11: 2857.7 | IL11: 2857.7 | IM11: 2857.7 | IN11: 2857.7 | IO11: 2857.7 | IP11: 2857.7 | IQ11: 2857.7 | IR11: 2857.7 | IS11: 2857.7 | IT11: 2857.7 | IU11: 2857.7 | IV11: 2857.7 | IW11: 2857.7 | IX11: 2857.7 | IY11: 2857.7 | IZ11: 2857.7 | JA11: 2857.7 | JB11: 2857.7 | JC11: 2857.7 | JD11: 2857.7 | JE11: 2857.7 | JF11: 2857.7 | JG11: 2857.7 | JH11: 2857.7 | JI11: 2857.7 | JJ11: 2857.7 | JK11: 2857.7 | JL11: 2857.7 | JM11: 2857.7 | JN11: 2857.7 | JO11: 2857.7 | JP11: 2857.7 | JQ11: 2857.7 | JR11: 2857.7 | JS11: 2857.7 | JT11: 2857.7 | JU11: 2857.7 | JV11: 2857.7 | JW11: 2857.7 | JX11: 2857.7 | JY11: 2857.7 | JZ11: 2857.7 | KA11: 2857.7 | KB11: 2857.7 | KC11: 2857.7 | KD11: 2857.7 | KE11: 2857.7 | KF11: 2857.7 | KG11: 2857.7 | KH11: 2857.7 | KI11: 2857.7 | KJ11: 2857.7 | KK11: 2857.7 | KL11: 2857.7 | KM11: 2857.7 | KN11: 2857.7 | KO11: 2857.7 | KP11: 2857.7 | KQ11: 2857.7 | KR11: 2857.7 | KS11: 2857.7 | KT11: 2857.7 | KU11: 2857.7 | KV11: 2857.7 | KW11: 2857.7 | KX11: 2857.7 | KY11: 2857.7 | KZ11: 2857.7 | LA11: 2857.7 | LB11: 2857.7 | LC11: =+LC10 -> 0 | LD11: =+BJ549 -> 1 | LE11: =+BL549 -> 0.04567530771 | LF11: 0 | LG11: 0 | LH11: 3 | LI11: 0 | LJ11: 0
F12: Unit Agency Rehabilitation Cost ($) | O12: i | AU12: ='Default Assets'!A12 -> Facilities-Fixed Lift
AU13: ='Default Assets'!A13 -> Facilities-Fuel Island
C14: INVENTORY DESCRIPTION | AU14: ='Default Assets'!A14 -> Facilities-Maintenance Building
AU15: ='Default Assets'!A15 -> Facilities-Maintenance Equipment
G16: i | H16: Asset | K16: i | L16: Units of | O16: i | P16: Project | S16: i | T16: Pipeline | Z16: i | AA16: Asset | AF16: i | AG16: Units of | AL16: i | AM16: Project | AQ16: i | AR16: Pipeline | AU16: ='Default Assets'!A16 -> Facilities-Major Bus Shop | BA16: ID Code | BB16: Description | BC16: Age | BD16: No. of Assets | BE16: Asset Type | BF16: Project Code | BG16: Pipeline Year
H17: Condition | L17: Assets | P17: Code | T17: Year | AA17: Condition | AG17: Assets | AM17: Code | AR17: Year | AU17: ='Default Assets'!A17 -> Facilities-Major Rail Shop | BA17: =$BD$1&" "&ROW(BB17)-16 -> zzz 1 | BB17: =IF($K$6="",$K$5,$K$6) -> Facilities-Access and Parking | BC17: 0 | BD17: =+K18 -> 0 | BE17: =IF(G18="","",$BD$1&VLOOKUP(G18,'Default Assets'!$A$133:$B$138,2)) ->  | BF17: =IF(O18="","",O18) ->  | BG17: =IF(S18="","",S18) -> 
E18: Sub-Group | F18: 1 | X18: Sub-Group | Y18: 16 | AU18: ='Default Assets'!A18 -> Facilities-Passenger Building | BA18: zzz 2 | BB18: Facilities-Access and Parking | BC18: 0 | BD18: 0 | BE18: =IF(G19="","",$BD$1&VLOOKUP(G19,'Default Assets'!$A$133:$B$138,2)) -> 
F19: 2 | Y19: 17 | AU19: ='Default Assets'!A19 -> Facilities-Pollution Treatment | BA19: zzz 3 | BB19: Facilities-Access and Parking | BC19: 0 | BD19: 0 | BE19: =IF(G20="","",$BD$1&VLOOKUP(G20,'Default Assets'!$A$133:$B$138,2)) -> 
F20: 3 | Y20: 18 | AU20: ='Default Assets'!A20 -> Facilities-Portable Lift | BA20: zzz 4 | BB20: Facilities-Access and Parking | BC20: 0 | BD20: 0 | BE20: =IF(G21="","",$BD$1&VLOOKUP(G21,'Default Assets'!$A$133:$B$138,2)) -> 
F21: 4 | Y21: 19 | AU21: ='Default Assets'!A21 -> Facilities-Storage Yard | BA21: zzz 5 | BB21: Facilities-Access and Parking | BC21: 0 | BD21: 0 | BE21: =IF(G22="","",$BD$1&VLOOKUP(G22,'Default Assets'!$A$133:$B$138,2)) -> 
F22: 5 | Y22: 20 | AU22: ='Default Assets'!A22 -> Facilities-Storage Yard-Bus | BA22: zzz 6 | BB22: Facilities-Access and Parking | BC22: 0 | BD22: 0 | BE22: =IF(G23="","",$BD$1&VLOOKUP(G23,'Default Assets'!$A$133:$B$138,2)) -> 
F23: 6 | Y23: 21 | AU23: ='Default Assets'!A23 -> Facilities-Train Control Center | BA23: zzz 7 | BB23: Facilities-Access and Parking | BC23: 0 | BD23: 0 | BE23: =IF(G24="","",$BD$1&VLOOKUP(G24,'Default Assets'!$A$133:$B$138,2)) -> 
F24: 7 | Y24: 22 | AU24: ='Default Assets'!A24 -> Facilities-Train Washer | BA24: zzz 8 | BB24: Facilities-Access and Parking | BC24: 0 | BD24: 0 | BE24: =IF(G25="","",$BD$1&VLOOKUP(G25,'Default Assets'!$A$133:$B$138,2)) -> 
F25: 8 | Y25: 23 | AU25: ='Default Assets'!A25 -> Facilities-Vehicle Paintbooth | BA25: zzz 9 | BB25: Facilities-Access and Parking | BC25: 0 | BD25: 0 | BE25: =IF(G26="","",$BD$1&VLOOKUP(G26,'Default Assets'!$A$133:$B$138,2)) -> 
F26: 9 | Y26: 24 | AU26: ='Default Assets'!A26 -> Facilities-Wheel Truing Machine | BA26: zzz 10 | BB26: Facilities-Access and Parking | BC26: 0 | BD26: 0 | BE26: =IF(G27="","",$BD$1&VLOOKUP(G27,'Default Assets'!$A$133:$B$138,2)) -> 
F27: 10 | Y27: 25 | AU27: ='Default Assets'!A27 -> Guideway-At Grade Ballasted or Expressway | BA27: zzz 11 | BB27: Facilities-Access and Parking | BC27: 0 | BD27: 0 | BE27: =IF(G28="","",$BD$1&VLOOKUP(G28,'Default Assets'!$A$133:$B$138,2)) -> 
F28: 11 | Y28: 26 | AU28: ='Default Assets'!A28 -> Guideway-At Grade Bus | BA28: zzz 12 | BB28: Facilities-Access and Parking | BC28: 0 | BD28: 0 | BE28: =IF(G29="","",$BD$1&VLOOKUP(G29,'Default Assets'!$A$133:$B$138,2)) -> 
F29: 12 | Y29: 27 | AU29: ='Default Assets'!A29 -> Guideway-At-Grade Crossing | BA29: zzz 13 | BB29: Facilities-Access and Parking | BC29: 0 | BD29: 0 | BE29: =IF(G30="","",$BD$1&VLOOKUP(G30,'Default Assets'!$A$133:$B$138,2)) -> 
F30: 13 | Y30: 28 | AU30: ='Default Assets'!A30 -> Guideway-Ballasted Curved Platform Track | BA30: zzz 14 | BB30: Facilities-Access and Parking | BC30: 0 | BD30: 0 | BE30: =IF(G31="","",$BD$1&VLOOKUP(G31,'Default Assets'!$A$133:$B$138,2)) -> 
F31: 14 | Y31: 29 | AU31: ='Default Assets'!A31 -> Guideway-Ballasted Tangent Platform Track | BA31: zzz 15 | BB31: Facilities-Access and Parking | BC31: 0 | BD31: 0 | BE31: =IF(G32="","",$BD$1&VLOOKUP(G32,'Default Assets'!$A$133:$B$138,2)) -> 
F32: 15 | Y32: 30 | AU32: ='Default Assets'!A32 -> Guideway-Bridge | BA32: zzz 16 | BB32: Facilities-Access and Parking | BC32: 0 | BD32: =+AF18 -> 0 | BE32: =IF(Z18="","",$BD$1&VLOOKUP(Z18,'Default Assets'!$A$133:$B$138,2)) ->  | BF32: =IF(AL18="","",AL18) ->  | BG32: =IF(AQ18="","",AQ18) -> 
AU33: ='Default Assets'!A33 -> Guideway-Bus Turnaround | BA33: zzz 17 | BB33: Facilities-Access and Parking | BC33: 0 | BD33: 0 | BE33: =IF(Z19="","",$BD$1&VLOOKUP(Z19,'Default Assets'!$A$133:$B$138,2)) -> 
B34: i | C34: TRANSITION PROBABILITIES | AU34: ='Default Assets'!A34 -> Guideway-Concrete Tie | BA34: zzz 18 | BB34: Facilities-Access and Parking | BC34: 0 | BD34: 0 | BE34: =IF(Z20="","",$BD$1&VLOOKUP(Z20,'Default Assets'!$A$133:$B$138,2)) -> 
AU35: ='Default Assets'!A35 -> Guideway-Curved Ballasted Track | BA35: zzz 19 | BB35: Facilities-Access and Parking | BC35: 0 | BD35: 0 | BE35: =IF(Z21="","",$BD$1&VLOOKUP(Z21,'Default Assets'!$A$133:$B$138,2)) -> 
G36: State | J36: Action | M36: 5-Excellent | Q36: 4-Good | U36: 3-Adequate | Z36: 2-Marginal | AF36: 1-Poor | AL36: 0-Failed | AU36: ='Default Assets'!A36 -> Guideway-Curved Direct Fixation Track | BA36: zzz 20 | BB36: Facilities-Access and Parking | BC36: 0 | BD36: 0 | BE36: =IF(Z22="","",$BD$1&VLOOKUP(Z22,'Default Assets'!$A$133:$B$138,2)) -> 
M37: Default | O37: Override | Q37: Default | S37: Override | U37: Default | W37: Override | Z37: Default | AC37: Override | AF37: Default | AI37: Override | AL37: Default | AU37: ='Default Assets'!A37 -> Guideway-Curved Embedded Track | BA37: zzz 21 | BB37: Facilities-Access and Parking | BC37: 0 | BD37: 0 | BE37: =IF(Z23="","",$BD$1&VLOOKUP(Z23,'Default Assets'!$A$133:$B$138,2)) -> 
G38: 5-Excellent | J38: Do Minimum | M38: =INDEX(DefaultProb5,MATCH(K5,DefaultAssets,0)) -> 0.9808341882 | Q38: =1-M38 -> 0.01916581175 | U38: 0 | Z38: 0 | AF38: 0 | AL38: =+BH50 -> 0 | AU38: ='Default Assets'!A38 -> Guideway-Direct Fixation Curved Platform Track | BA38: zzz 22 | BB38: Facilities-Access and Parking | BC38: 0 | BD38: 0 | BE38: =IF(Z24="","",$BD$1&VLOOKUP(Z24,'Default Assets'!$A$133:$B$138,2)) -> 
J39: Rehab | M39: 0 | Q39: 1 | U39: 0 | Z39: 0 | AF39: 0 | AL39: 0 | AU39: ='Default Assets'!A39 -> Guideway-Direct Fixation Diamond Crossover | BA39: zzz 23 | BB39: Facilities-Access and Parking | BC39: 0 | BD39: 0 | BE39: =IF(Z25="","",$BD$1&VLOOKUP(Z25,'Default Assets'!$A$133:$B$138,2)) -> 
J40: Replace | M40: 1 | Q40: 0 | U40: 0 | Z40: 0 | AF40: 0 | AL40: 0 | AU40: ='Default Assets'!A40 -> Guideway-Direct Fixation or Ballasted Turnout | BA40: zzz 24 | BB40: Facilities-Access and Parking | BC40: 0 | BD40: 0 | BE40: =IF(Z26="","",$BD$1&VLOOKUP(Z26,'Default Assets'!$A$133:$B$138,2)) -> 
G41: 4-Good | J41: Do Minimum | M41: 0 | Q41: =INDEX(DefaultProb4,MATCH(K5,DefaultAssets,0)) -> 0.9587049164 | U41: =1-Q41 -> 0.0412950836 | Z41: 0 | AF41: 0 | AL41: 0 | AU41: ='Default Assets'!A41 -> Guideway-Direct Fixation Tangent Platform Track | BA41: zzz 25 | BB41: Facilities-Access and Parking | BC41: 0 | BD41: 0 | BE41: =IF(Z27="","",$BD$1&VLOOKUP(Z27,'Default Assets'!$A$133:$B$138,2)) -> 
J42: Rehab | M42: 0 | Q42: 1 | U42: 0 | Z42: 0 | AF42: 0 | AL42: 0 | AU42: ='Default Assets'!A42 -> Guideway-Elevated Fill | BA42: zzz 26 | BB42: Facilities-Access and Parking | BC42: 0 | BD42: 0 | BE42: =IF(Z28="","",$BD$1&VLOOKUP(Z28,'Default Assets'!$A$133:$B$138,2)) -> 
J43: Replace | M43: 1 | Q43: 0 | U43: 0 | Z43: 0 | AF43: 0 | AL43: 0 | AU43: ='Default Assets'!A43 -> Guideway-Elevated Structure | BA43: zzz 27 | BB43: Facilities-Access and Parking | BC43: 0 | BD43: 0 | BE43: =IF(Z29="","",$BD$1&VLOOKUP(Z29,'Default Assets'!$A$133:$B$138,2)) -> 
G44: 3-Adequate | J44: Do Minimum | M44: 0 | Q44: 0 | U44: =INDEX(DefaultProb3,MATCH(K5,DefaultAssets,0)) -> 0.9287843724 | Z44: =1-U44 -> 0.07121562757 | AF44: 0 | AL44: 0 | AU44: ='Default Assets'!A44 -> Guideway-Elevated-Bus | BA44: zzz 28 | BB44: Facilities-Access and Parking | BC44: 0 | BD44: 0 | BE44: =IF(Z30="","",$BD$1&VLOOKUP(Z30,'Default Assets'!$A$133:$B$138,2)) -> 
J45: Rehab | M45: 0 | Q45: 1 | U45: 0 | Z45: 0 | AF45: 0 | AL45: 0 | AU45: ='Default Assets'!A45 -> Guideway-Foot Walk | BA45: zzz 29 | BB45: Facilities-Access and Parking | BC45: 0 | BD45: 0 | BE45: =IF(Z31="","",$BD$1&VLOOKUP(Z31,'Default Assets'!$A$133:$B$138,2)) -> 
J46: Replace | M46: 1 | Q46: 0 | U46: 0 | Z46: 0 | AF46: 0 | AL46: 0 | AU46: ='Default Assets'!A46 -> Guideway-Grade Crossing | BA46: zzz 30 | BB46: Facilities-Access and Parking | BC46: 0 | BD46: 0 | BE46: =IF(Z32="","",$BD$1&VLOOKUP(Z32,'Default Assets'!$A$133:$B$138,2)) -> 
G47: 2-Marginal | J47: Do Minimum | M47: 0 | Q47: 0 | U47: 0 | Z47: =INDEX(DefaultProb2,MATCH(K5,DefaultAssets,0)) -> 0.8848084477 | AF47: =(1-Z47)/2 -> 0.05759577616 | AL47: 0.05759577616 | AU47: ='Default Assets'!A47 -> Guideway-Guarded Ballasted Track
J48: Rehab | M48: 0 | Q48: 1 | U48: 0 | Z48: 0 | AF48: 0 | AL48: 0 | AU48: ='Default Assets'!A48 -> Guideway-Guarded Curved Direct Fixation Track | BA48: Transition Probabilities
J49: Replace | M49: 1 | Q49: 0 | U49: 0 | Z49: 0 | AF49: 0 | AL49: 0 | AU49: ='Default Assets'!A49 -> Guideway-Guarded Direct Fixation Track | BA49: State | BB49: Action | BC49: 5-Excellent | BD49: 4-Good | BE49: 3-Adequate | BF49: 2-Marginal | BG49: 1-Poor | BH49: 0-Failed
G50: 1-Poor | J50: Do Minimum | M50: 0 | Q50: 0 | U50: 0 | Z50: 0 | AF50: =Z47 -> 0.8848084477 | AL50: 0.1151915523 | AU50: ='Default Assets'!A50 -> Guideway-Guarded Platform Ballasted Track | BA50: 5-Excellent | BB50: Do Minimum | BC50: =IF(O38="",M38,O38) -> 0.9808341882 | BD50: =IF(S38="",Q38,S38) -> 0.01916581175 | BE50: =IF(W38="",U38,W38) -> 0 | BF50: =IF(AC38="",Z38,AC38) -> 0 | BG50: =IF(AI38="",AF38,AI38) -> 0 | BH50: =1-SUM(BC50:BG50) -> 0
J51: Rehab | M51: 0 | Q51: 1 | U51: 0 | Z51: 0 | AF51: 0 | AL51: 0 | AU51: ='Default Assets'!A51 -> Guideway-Retained Cut | BB51: Rehab | BC51: 0 | BD51: 1 | BE51: 0 | BF51: 0 | BG51: 0 | BH51: 0
J52: Replace | M52: 1 | Q52: 0 | U52: 0 | Z52: 0 | AF52: 0 | AL52: 0 | AU52: ='Default Assets'!A52 -> Guideway-Retaining Wall | BB52: Replace | BC52: 1 | BD52: 0 | BE52: 0 | BF52: 0 | BG52: 0 | BH52: 0
G53: 0-Failed | J53: Replace | M53: 1 | Q53: 0 | U53: 0 | Z53: 0 | AF53: 0 | AL53: 0 | AU53: ='Default Assets'!A53 -> Guideway-Special Trackwork | BA53: 4-Good | BB53: Do Minimum | BC53: 0 | BD53: 0.9587049164 | BE53: 0.0412950836 | BF53: 0 | BG53: 0 | BH53: 0
AU54: ='Default Assets'!A54 -> Guideway-Steel Viaduct | BB54: Rehab | BC54: 0 | BD54: 1 | BE54: 0 | BF54: 0 | BG54: 0 | BH54: 0
G55: Notes | AU55: ='Default Assets'!A55 -> Guideway-Subway Bus | BB55: Replace | BC55: 1 | BD55: 0 | BE55: 0 | BF55: 0 | BG55: 0 | BH55: 0
AU56: ='Default Assets'!A56 -> Guideway-Tangent Ballasted Track | BA56: 3-Adequate | BB56: Do Minimum | BC56: 0 | BD56: 0 | BE56: 0.9287843724 | BF56: 0.07121562757 | BG56: 0 | BH56: 0
AU57: ='Default Assets'!A57 -> Guideway-Tangent Direct Fixation Track | BB57: Rehab | BC57: 0 | BD57: 1 | BE57: 0 | BF57: 0 | BG57: 0 | BH57: 0
AU58: ='Default Assets'!A58 -> Guideway-Tangent Embedded Track | BB58: Replace | BC58: 1 | BD58: 0 | BE58: 0 | BF58: 0 | BG58: 0 | BH58: 0
B59: i | C59: UNIT COSTS, DELAY, and CO2 EMISSIONS | AU59: ='Default Assets'!A59 -> Guideway-Tunnel | BA59: 2-Marginal | BB59: Do Minimum | BC59: 0 | BD59: 0 | BE59: 0 | BF59: 0.8848084477 | BG59: 0.05759577616 | BH59: 0.05759577616
AU60: ='Default Assets'!A60 -> Guideway-Turntable | BB60: Rehab | BC60: 0 | BD60: 1 | BE60: 0 | BF60: 0 | BG60: 0 | BH60: 0
G61: State | J61: Action | M61: i | N61: Agency Cost | Q61: i | R61: Energy Cost | U61: i | V61: Delay (hours) | Z61: i | AA61: Other Pass. Cost | AF61: i | AG61: CO2 (tons) | AL61: i | AM61: Other Ext. Cost | AU61: ='Default Assets'!A61 -> Guideway-Wood Tie | BB61: Replace | BC61: 1 | BD61: 0 | BE61: 0 | BF61: 0 | BG61: 0 | BH61: 0
M62: Default | O62: Override | Q62: Default | S62: Override | U62: Default | W62: Override | Z62: Default | AC62: Override | AF62: Default | AI62: Override | AL62: Default | AO62: Override | AU62: ='Default Assets'!A62 -> Guideway-Yard Track | BA62: 1-Poor | BB62: Do Minimum | BC62: 0 | BD62: 0 | BE62: 0 | BF62: 0 | BG62: 0.8848084477 | BH62: 0.1151915523
G63: 5-Excellent | J63: Do Minimum | M63: 0 | Q63: 0 | U63: 0 | Z63: 0 | AF63: 0 | AL63: 0 | AU63: ='Default Assets'!A63 -> Station-Building-Rail | BB63: Rehab | BC63: 0 | BD63: 1 | BE63: 0 | BF63: 0 | BG63: 0 | BH63: 0
J64: Rehab | M64: =IF(P12>0,P12,M65) -> 28577 | Q64: 0 | U64: 0 | Z64: 0 | AF64: 0 | AL64: 0 | AU64: ='Default Assets'!A64 -> Stations-At-Grade Rail Platform | BB64: Replace | BC64: 1 | BD64: 0 | BE64: 0 | BF64: 0 | BG64: 0 | BH64: 0
J65: Replace | M65: =IF(P11>0,P11,INDEX(DefaultRepCost,MATCH(K5,DefaultAssets,0))) -> 28577 | Q65: 0 | U65: 0 | Z65: 0 | AF65: 0 | AL65: 0 | AU65: ='Default Assets'!A65 -> Stations-Building/Ground Access-Bus | BA65: 0-Failed | BB65: Replace | BC65: 1 | BD65: 0 | BE65: 0 | BF65: 0 | BG65: 0 | BH65: 0
G66: 4-Good | J66: Do Minimum | M66: 0 | Q66: 0 | U66: 0 | Z66: 0 | AF66: 0 | AL66: 0 | AU66: ='Default Assets'!A66 -> Stations-Building-Subway
J67: Rehab | M67: =+M64 -> 28577 | Q67: 0 | U67: 0 | Z67: 0 | AF67: 0 | AL67: 0 | AU67: ='Default Assets'!A67 -> Stations-Bus Shelter | BA67: Unit Costs, Delay, and CO2 Emissions
J68: Replace | M68: =+M65 -> 28577 | Q68: 0 | U68: 0 | Z68: 0 | AF68: 0 | AL68: 0 | AU68: ='Default Assets'!A68 -> Stations-Bus Station Platform | BA68: State | BB68: Action | BC68: Agency Cost ($) | BD68: Energy | BE68: Passenger Delay (hours) | BF68: Other Pass. Cost ($) | BG68: CO2 (tons) | BH68: Other Ext. Cost ($) | BI68: Agency+ Energy Cost ($) | BJ68: Total Cost ($)
G69: 3-Adequate | J69: Do Minimum | M69: 0 | Q69: 0 | U69: 0 | Z69: 0 | AF69: 0 | AL69: 0 | AU69: ='Default Assets'!A69 -> Stations-Elevated Rail Platform
J70: Rehab | M70: =+M64 -> 28577 | Q70: 0 | U70: 0 | Z70: 0 | AF70: 0 | AL70: 0 | AU70: ='Default Assets'!A70 -> Stations-Elevator/Escalator
J71: Replace | M71: =+M65 -> 28577 | Q71: 0 | U71: 0 | Z71: 0 | AF71: 0 | AL71: 0 | AU71: ='Default Assets'!A71 -> Stations-Ferry Terminal Building/Dock | BA71: 5-Excellent | BB71: Do Minimum | BC71: =IF(O63="",M63,O63) -> 0 | BD71: =IF(S63="",Q63,S63) -> 0 | BE71: =IF(W63="",U63,W63) -> 0 | BF71: =IF(AC63="",Z63,AC63) -> 0 | BG71: =IF(AI63="",AF63,AI63) -> 0 | BH71: =IF(AN63="",AL63,AN63) -> 0 | BI71: =BC71+BD71 -> 0 | BJ71: =+BC71+BD71+BE71*CostPerPaxHour+BF71*OPCWeight+BG71*CostPerTon+BH71*OXCWeight -> 0
G72: 2-Marginal | J72: Do Minimum | M72: =0.05*M74 -> 1428.85 | Q72: 0 | U72: 0 | Z72: 0 | AF72: 0 | AL72: 0 | AU72: ='Default Assets'!A72 -> Stations-Parking Equipment | BB72: Rehab | BC72: 28577 | BD72: 0 | BE72: 0 | BF72: 0 | BG72: 0 | BH72: 0 | BI72: =BC72+BD72 -> 28577 | BJ72: 28577
J73: Rehab | M73: =+M64 -> 28577 | Q73: 0 | U73: 0 | Z73: 0 | AF73: 0 | AL73: 0 | AU73: ='Default Assets'!A73 -> Stations-Parking Garage/Lot | BB73: Replace | BC73: 28577 | BD73: 0 | BE73: 0 | BF73: 0 | BG73: 0 | BH73: 0 | BI73: 28577 | BJ73: 28577
J74: Replace | M74: =+M65 -> 28577 | Q74: 0 | U74: 0 | Z74: 0 | AF74: 0 | AL74: 0 | AU74: ='Default Assets'!A74 -> Stations-Pedestrian Walkway/Elevated | BA74: 4-Good | BB74: Do Minimum | BC74: 0 | BD74: 0 | BE74: 0 | BF74: 0 | BG74: 0 | BH74: 0 | BI74: 0 | BJ74: 0
G75: 1-Poor | J75: Do Minimum | M75: =0.1*M77 -> 2857.7 | Q75: 0 | U75: 0 | Z75: 0 | AF75: 0 | AL75: 0 | AU75: ='Default Assets'!A75 -> Stations-Pedestrian Walkway/Subway | BB75: Rehab | BC75: 28577 | BD75: 0 | BE75: 0 | BF75: 0 | BG75: 0 | BH75: 0 | BI75: 28577 | BJ75: 28577
J76: Rehab | M76: =+M64 -> 28577 | Q76: 0 | U76: 0 | Z76: 0 | AF76: 0 | AL76: 0 | AU76: ='Default Assets'!A76 -> Stations-Shelter-Rail | BB76: Replace | BC76: 28577 | BD76: 0 | BE76: 0 | BF76: 0 | BG76: 0 | BH76: 0 | BI76: 28577 | BJ76: 28577
J77: Replace | M77: =+M65 -> 28577 | Q77: 0 | U77: 0 | Z77: 0 | AF77: 0 | AL77: 0 | AU77: ='Default Assets'!A77 -> Stations-Signage & Graphics | BA77: 3-Adequate | BB77: Do Minimum | BC77: 0 | BD77: 0 | BE77: 0 | BF77: 0 | BG77: 0 | BH77: 0 | BI77: 0 | BJ77: 0
G78: 0-Failed | J78: Replace | M78: =3*M65 -> 85731 | Q78: 0 | U78: 0 | Z78: 0 | AF78: 0 | AL78: 0 | AU78: ='Default Assets'!A78 -> Stations-Station Canopy | BB78: Rehab | BC78: 28577 | BD78: 0 | BE78: 0 | BF78: 0 | BG78: 0 | BH78: 0 | BI78: 28577 | BJ78: 28577
AU79: ='Default Assets'!A79 -> Stations-Subway Rail Platform | BB79: Replace | BC79: 28577 | BD79: 0 | BE79: 0 | BF79: 0 | BG79: 0 | BH79: 0 | BI79: 28577 | BJ79: 28577
G80: Notes | AU80: ='Default Assets'!A80 -> Stations-Token Booth | BA80: 2-Marginal | BB80: Do Minimum | BC80: 1428.85 | BD80: 0 | BE80: 0 | BF80: 0 | BG80: 0 | BH80: 0 | BI80: 1428.85 | BJ80: 1428.85
AU81: ='Default Assets'!A81 -> Systems-Air Conditioning/HVAC-Subway | BB81: Rehab | BC81: 28577 | BD81: 0 | BE81: 0 | BF81: 0 | BG81: 0 | BH81: 0 | BI81: 28577 | BJ81: 28577
AU82: ='Default Assets'!A82 -> Systems-Bus On-Board Video System | BB82: Replace | BC82: 28577 | BD82: 0 | BE82: 0 | BF82: 0 | BG82: 0 | BH82: 0 | BI82: 28577 | BJ82: 28577
AU83: ='Default Assets'!A83 -> Systems-Central Revenue Collection | BA83: 1-Poor | BB83: Do Minimum | BC83: 2857.7 | BD83: 0 | BE83: 0 | BF83: 0 | BG83: 0 | BH83: 0 | BI83: 2857.7 | BJ83: 2857.7
C84: OTHER MODEL PARAMETERS | AU84: ='Default Assets'!A84 -> Systems-Centralized Train Control | BB84: Rehab | BC84: 28577 | BD84: 0 | BE84: 0 | BF84: 0 | BG84: 0 | BH84: 0 | BI84: 28577 | BJ84: 28577
AU85: ='Default Assets'!A85 -> Systems-Change Machine | BB85: Replace | BC85: 28577 | BD85: 0 | BE85: 0 | BF85: 0 | BG85: 0 | BH85: 0 | BI85: 28577 | BJ85: 28577
Q86: Default | T86: Override Value | Y86: Notes | AU86: ='Default Assets'!A86 -> Systems-Coin/Bill Counter | BA86: 0-Failed | BB86: Replace | BC86: 85731 | BD86: 0 | BE86: 0 | BF86: 0 | BG86: 0 | BH86: 0 | BI86: 85731 | BJ86: 85731
AU87: ='Default Assets'!A87 -> Systems-Communciations
F88: Supplemental Replacement Benefit (% of repl. cost) | R88: =0 -> 0 | S88: i | AU88: ='Default Assets'!A88 -> Systems-Communications Cable | BA88: Economic Analysis Parameters
F89: Include in Asset Prioritization Run | R89: TRUE | S89: i | AU89: ='Default Assets'!A89 -> Systems-Communications Hut or Room | BA89: Description | BB89: Value
AU90: ='Default Assets'!A90 -> Systems-Compressed Air Pipes | BA90: Disc. Rate | BB90: 0.07
C91: SUMMARY RESULTS | AU91: ='Default Assets'!A91 -> Systems-Deep Utility Well | BA91: Disc. Factor | BB91: =1/(1+BB90) -> 0.9345794393
AU92: ='Default Assets'!A92 -> Systems-Electrical Systems
F93: Average Annual Cost ($) | N93: =BD384 -> 312.5421756 | P93: i | AU93: ='Default Assets'!A93 -> Systems-Electrification | BA93: Results by Policy Alternative
AU94: ='Default Assets'!A94 -> Systems-Electrification Breaker House | BA94: Policy | BF94: ="TP from State 5" -> TP from State 5 | BL94: ="TP from State 4" -> TP from State 4 | BR94: ="TP from State 3" -> TP from State 3 | BX94: ="TP from State 2" -> TP from State 2 | CD94: ="TP from State 1" -> TP from State 1 | CJ94: Unit Cost - Agency+Energy Only | CP94: Unit Cost - Total | CV94: Solution - Agency+Energy Costs Only | DT94: Solution - Total Cost
F95: State | J95: Recommended Action | Q95: i | R95: Prioritization Index | AU95: ='Default Assets'!A95 -> Systems-Electrification Catenary/Pole | BA95: 5 | BB95: 4 | BC95: 3 | BD95: 2 | BE95: 1 | BF95: 5 | BG95: 4 | BH95: 3 | BI95: 2 | BJ95: 1 | BK95: 0 | BL95: 5 | BM95: 4 | BN95: 3 | BO95: 2 | BP95: 1 | BQ95: 0 | BR95: 5 | BS95: 4 | BT95: 3 | BU95: 2 | BV95: 1 | BW95: 0 | BX95: 5 | BY95: 4 | BZ95: 3 | CA95: 2 | CB95: 1 | CC95: 0 | CD95: 5 | CE95: 4 | CF95: 3 | CG95: 2 | CH95: 1 | CI95: 0 | CJ95: 5 | CK95: 4 | CL95: 3 | CM95: 2 | CN95: 1 | CO95: 0 | CP95: 5 | CQ95: 4 | CR95: 3 | CS95: 2 | CT95: 1 | CU95: 0 | CV95: c1 | CW95: c2 | CX95: c3 | CY95: c4 | CZ95: c5 | DA95: c6 | DB95: c7 | DC95: c8 | DD95: c9 | DE95: c10 | DF95: c11 | DG95: c12 | DH95: c13 | DI95: c14 | DJ95: c15 | DK95: c16 | DL95: l5 | DM95: l4 | DN95: l3 | DO95: l2 | DP95: l1 | DQ95: l0 | DR95: sum | DS95: optimal | DT95: c1 | DU95: c2 | DV95: c3 | DW95: c4 | DX95: c5 | DY95: c6 | DZ95: c7 | EA95: c8 | EB95: c9 | EC95: c10 | ED95: c11 | EE95: c12 | EF95: c13 | EG95: c14 | EH95: c15 | EI95: c16 | EJ95: l5 | EK95: l4 | EL95: l3 | EM95: l2 | EN95: l1 | EO95: l0 | EP95: sum | EQ95: optimal
F96: =BA372 -> 5 | J96: =BB372 -> Do Minimum | Q96: =BJ372 -> N/A | AU96: ='Default Assets'!A96 -> Systems-Electrification Contact Rail/Protection Boards | BA96: 0 | BB96: 0 | BC96: 0 | BD96: 0 | BE96: 0 | BF96: =IF($BA96=0,$BC$50,IF($BA96=1,$BC$51,$BC$52)) -> 0.9808341882 | BG96: =IF($BA96=0,$BD$50,IF($BA96=1,$BD$51,$BD$52)) -> 0.01916581175 | BH96: =IF($BA96=0,$BE$50,IF($BA96=1,$BE$51,$BE$52)) -> 0 | BI96: =IF($BA96=0,$BF$50,IF($BA96=1,$BF$51,$BF$52)) -> 0 | BJ96: =IF($BA96=0,$BG$50,IF($BA96=1,$BG$51,$BG$52)) -> 0 | BK96: =1-SUM(BF96:BJ96) -> 0 | BL96: =IF($BB96=0,$BC$53,IF($BB96=1,$BC$54,$BC$55)) -> 0 | BM96: =IF($BB96=0,$BD$53,IF($BB96=1,$BD$54,$BD$55)) -> 0.9587049164 | BN96: =IF($BB96=0,$BE$53,IF($BB96=1,$BE$54,$BE$55)) -> 0.0412950836 | BO96: =IF($BB96=0,$BF$53,IF($BB96=1,$BF$54,$BF$55)) -> 0 | BP96: =IF($BB96=0,$BG$53,IF($BB96=1,$BG$54,$BG$55)) -> 0 | BQ96: =1-SUM(BL96:BP96) -> 0 | BR96: =IF($BC96=0,$BC$56,IF($BC96=1,$BC$57,$BC$58)) -> 0 | BS96: =IF($BC96=0,$BD$56,IF($BC96=1,$BD$57,$BD$58)) -> 0 | BT96: =IF($BC96=0,$BE$56,IF($BC96=1,$BE$57,$BE$58)) -> 0.9287843724 | BU96: =IF($BC96=0,$BF$56,IF($BC96=1,$BF$57,$BF$58)) -> 0.07121562757 | BV96: =IF($BC96=0,$BG$56,IF($BC96=1,$BG$57,$BG$58)) -> 0 | BW96: =1-SUM(BR102:BV102) -> 0 | BX96: =IF($BD96=0,$BC$59,IF($BD96=1,$BC$60,$BC$61)) -> 0 | BY96: =IF($BD96=0,$BD$59,IF($BD96=1,$BD$60,$BD$61)) -> 0 | BZ96: =IF($BD96=0,$BE$59,IF($BD96=1,$BE$60,$BE$61)) -> 0 | CA96: =IF($BD96=0,$BF$59,IF($BD96=1,$BF$60,$BF$61)) -> 0.8848084477 | CB96: =IF($BD96=0,$BG$59,IF($BD96=1,$BG$60,$BG$61)) -> 0.05759577616 | CC96: =1-SUM(BX96:CB96) -> 0.05759577616 | CD96: =IF($BE96=0,$BC$62,IF($BE96=1,$BC$63,$BC$64)) -> 0 | CE96: =IF($BE96=0,$BD$62,IF($BE96=1,$BD$63,$BD$64)) -> 0 | CF96: =IF($BE96=0,$BE$62,IF($BE96=1,$BE$63,$BE$64)) -> 0 | CG96: =IF($BE96=0,$BF$62,IF($BE96=1,$BF$63,$BF$64)) -> 0 | CH96: =IF($BE96=0,$BG$62,IF($BE96=1,$BG$63,$BG$64)) -> 0.8848084477 | CI96: =1-SUM(CD96:CH96) -> 0.1151915523 | CJ96: =IF($BA96=0,$BI$71,IF($BA96=1,$BI$72,$BI$73)) -> 0 | CK96: =IF($BB96=0,$BI$74,IF($BB96=1,$BI$75,$BI$76)) -> 0 | CL96: =IF($BC96=0,$BI$77,IF($BC96=1,$BI$78,$BI$79)) -> 0 | CM96: =IF($BD96=0,$BI$80,IF($BD96=1,$BI$81,$BI$82)) -> 1428.85 | CN96: =IF($BE96=0,$BI$83,IF($BE96=1,$BI$84,$BI$85)) -> 2857.7 | CO96: =$BI$86 -> 85731 | CP96: =IF($BA96=0,$BJ$71,IF($BA96=1,$BJ$72,$BJ$73)) -> 0 | CQ96: =IF($BB96=0,$BJ$74,IF($BB96=1,$BJ$75,$BJ$76)) -> 0 | CR96: =IF($BC96=0,$BJ$77,IF($BC96=1,$BJ$78,$BJ$79)) -> 0 | CS96: =IF($BD96=0,$BJ$80,IF($BD96=1,$BJ$81,$BJ$82)) -> 1428.85 | CT96: =IF($BE96=0,$BJ$83,IF($BE96=1,$BJ$84,$BJ$85)) -> 2857.7 | CU96: =$BJ$86 -> 85731 | CV96: =(CN96+$BB$91*CI96*CO96)/(1-$BB$91*CH96) -> 69837.01907 | CW96: =$BB$91*CG96/(1-$BB$91*CH96) -> 0 | CX96: =$BB$91*CF96/(1-$BB$91*CH96) -> 0 | CY96: =$BB$91*CE96/(1-$BB$91*CH96) -> 0 | CZ96: =($BB$91*($BB$91*CI96+CD96))/(1-$BB$91*CH96) -> 0.5813205571 | DA96: =(CM96+$BB$91*(CC96*CO96+CB96*CV96))/(1-$BB$91*(CB96*CW96+CA96)) -> 56638.27628 | DB96: =($BB$91*(CB96*CX96+BZ96))/(1-$BB$91*(CB96*CW96+CA96)) -> 0 | DC96: =($BB$91*(CB96*CY96+BY96))/(1-$BB$91*(CB96*CW96+CA96)) -> 0 | DD96: =($BB$91*($BB$91*CC96+CB96*CZ96+BX96))/(1-$BB$91*(CB96*CW96+CA96)) -> 0.4714547493 | DE96: =(CL96+$BB$91*(BW96*CO96+BV96*(CV96+CW96*DA96)+BU96*DA96))/(1-$BB$91*(BV96*(CW96*DB96+CX96)+BU96*DB96+BT96)) -> 28562.91799 | DF96: =$BB$91*(BV96*(CW96*DC96+CY96)+BU96*DC96+BS96)/(1-$BB$91*(BV96*(CW96*DB96+CX96)+BU96*DB96+BT96)) -> 0 | DG96: =$BB$91*($BB$91*BW96+BV96*(CW96*DD96+CZ96)+BU96*DD96+BR96)/(1-$BB$91*(BV96*(CW96*DB96+CX96)+BU96*DB96+BT96)) -> 0.2377565884 | DH96: =(CK96+$BB$91*(BQ96*CO96+BP96*(CV96+CW96*(DA96+DB96*DE96)+CX96*DE96)+BO96*(DA96+DB96*DE96)+BN96*DE96))/(1-$BB$91*(BP96*(CW96*(DB96*DF96+DC96)+CX96*DF96+CY96)+BO96*(DB96*DF96+DC96)+BN96*DF96+BM96)) -> 10598.02507 | DI96: =$BB$91*($BB$91*BQ96+BP96*(CW96*(DB96*DG96+DD96)+CX96*DG96+CZ96)+BO96*(DB96*DG96+DD96)+BN96*DG96+BL96)/(1-$BB$91*(BP96*(CW96*(DB96*DF96+DC96)+CX96*DF96+CY96)+BO96*(DB96*DF96+DC96)+BN96*DF96+BM96)) -> 0.08821753736 | DJ96: =CJ96+$BB$91*(BK96*CO96+BJ96*(CV96+CW96*(DA96+DB96*(DE96+DF96*DH96)+DC96*DH96)+CX96*(DE96+DF96*DH96)+CY96*DH96)+BI96*(DA96+DB96*(DE96+DF96*DH96)+DC96*DH96)+BH96*(DE96+DF96*DH96)+BG96*DH96) -> 189.8315453 | DK96: =1-$BB$91*($BB$91*BK96+BJ96*(CW96*(DB96*(DF96*DI96+DG96)+DC96*DI96+DD96)+CX96*(DF96*DI96+DG96)+CY96*DI96+CZ96)+BI96*(DB96*(DF96*DI96+DG96)+DC96*DI96+DD96)+BH96*(DF96*DI96+DG96)+BG96*DI96+BF96) -> 0.08175238415 | DL96: =DJ96/DK96 -> 2322.030694 | DM96: =DH96+DI96*DL96 -> 10802.8689 | DN96: =DE96+DF96*DM96+DG96*DL96 -> 29114.99609 | DO96: =DA96+DB96*DN96+DC96*DM96+DD96*DL96 -> 57733.00867 | DP96: =CV96+CW96*DO96+CX96*DN96+CY96*DM96+CZ96*DL96 -> 71186.86325 | DQ96: =CO96+$BB$91*DL96 -> 87901.12214 | DR96: =SUM(DL96:DQ96) -> 259060.8898 | DS96: =IF(AND(DR96=MIN(DR$96:DR$338),SUM(DS$95:DS95)=0),1,0) -> 0 | DT96: =(CT96+$BB$91*CI96*CU96)/(1-$BB$91*CH96) -> 69837.01907 | DU96: =$BB$91*CG96/(1-$BB$91*CH96) -> 0 | DV96: =$BB$91*CF96/(1-$BB$91*CH96) -> 0 | DW96: =$BB$91*CE96/(1-$BB$91*CH96) -> 0 | DX96: =($BB$91*($BB$91*CI96+CD96))/(1-$BB$91*CH96) -> 0.5813205571 | DY96: =(CS96+$BB$91*(CC96*CU96+CB96*DT96))/(1-$BB$91*(CB96*DU96+CA96)) -> 56638.27628 | DZ96: =($BB$91*(CB96*DV96+BZ96))/(1-$BB$91*(CB96*DU96+CA96)) -> 0 | EA96: =($BB$91*(CB96*DW96+BY96))/(1-$BB$91*(CB96*DU96+CA96)) -> 0 | EB96: =($BB$91*($BB$91*CC96+CB96*DX96+BX96))/(1-$BB$91*(CB96*DU96+CA96)) -> 0.4714547493 | EC96: =(CR96+$BB$91*(BW96*CU96+BV96*(DT96+DU96*DY96)+BU96*DY96))/(1-$BB$91*(BV96*(DU96*DZ96+DV96)+BU96*DZ96+BT96)) -> 28562.91799 | ED96: =$BB$91*(BV96*(DU96*EA96+DW96)+BU96*EA96+BS96)/(1-$BB$91*(BV96*(DU96*DZ96+DV96)+BU96*DZ96+BT96)) -> 0 | EE96: =$BB$91*($BB$91*BW96+BV96*(DU96*EB96+DX96)+BU96*EB96+BR96)/(1-$BB$91*(BV96*(DU96*DZ96+DV96)+BU96*DZ96+BT96)) -> 0.2377565884 | EF96: =(CQ96+$BB$91*(BQ96*CU96+BP96*(DT96+DU96*(DY96+DZ96*EC96)+DV96*EC96)+BO96*(DY96+DZ96*EC96)+BN96*EC96))/(1-$BB$91*(BP96*(DU96*(DZ96*ED96+EA96)+DV96*ED96+DW96)+BO96*(DZ96*ED96+EA96)+BN96*ED96+BM96)) -> 10598.02507 | EG96: =$BB$91*($BB$91*BQ96+BP96*(DU96*(DZ96*EE96+EB96)+DV96*EE96+DX96)+BO96*(DZ96*EE96+EB96)+BN96*EE96+BL96)/(1-$BB$91*(BP96*(DU96*(DZ96*ED96+EA96)+DV96*ED96+DW96)+BO96*(DZ96*ED96+EA96)+BN96*ED96+BM96)) -> 0.08821753736 | EH96: =CP96+$BB$91*(BK96*CU96+BJ96*(DT96+DU96*(DY96+DZ96*(EC96+ED96*EF96)+EA96*EF96)+DV96*(EC96+ED96*EF96)+DW96*EF96)+BI96*(DY96+DZ96*(EC96+ED96*EF96)+EA96*EF96)+BH96*(EC96+ED96*EF96)+BG96*EF96) -> 189.8315453 | EI96: =1-$BB$91*($BB$91*BK96+BJ96*(DU96*(DZ96*(ED96*EG96+EE96)+EA96*EG96+EB96)+DV96*(ED96*EG96+EE96)+DW96*EG96+DX96)+BI96*(DZ96*(ED96*EG96+EE96)+EA96*EG96+EB96)+BH96*(ED96*EG96+EE96)+BG96*EG96+BF96) -> 0.08175238415 | EJ96: =EH96/EI96 -> 2322.030694 | EK96: =EF96+EG96*EJ96 -> 10802.8689 | EL96: =EC96+ED96*EK96+EE96*EJ96 -> 29114.99609 | EM96: =DY96+DZ96*EL96+EA96*EK96+EB96*EJ96 -> 57733.00867 | EN96: =DT96+DU96*EM96+DV96*EL96+DW96*EK96+DX96*EJ96 -> 71186.86325 | EO96: =CU96+$BB$91*EJ96 -> 87901.12214 | EP96: =SUM(EJ96:EO96) -> 259060.8898 | EQ96: =IF(AND(EP96=MIN(EP$96:EP$338),SUM(EQ$95:EQ95)=0),1,0) -> 0
F97: =BA373 -> 4 | J97: =BB373 -> Do Minimum | Q97: =BJ373 -> N/A | AU97: ='Default Assets'!A97 -> Systems-Electrification Substation | BA97: 0 | BB97: 0 | BC97: 0 | BD97: 0 | BE97: 1 | BF97: 0.9808341882 | BG97: 0.01916581175 | BH97: 0 | BI97: 0 | BJ97: 0 | BK97: =1-SUM(BF97:BJ97) -> 0 | BL97: 0 | BM97: 0.9587049164 | BN97: 0.0412950836 | BO97: 0 | BP97: 0 | BQ97: =1-SUM(BL97:BP97) -> 0 | BR97: 0 | BS97: 0 | BT97: 0.9287843724 | BU97: 0.07121562757 | BV97: 0 | BW97: 0 | BX97: 0 | BY97: 0 | BZ97: 0 | CA97: 0.8848084477 | CB97: 0.05759577616 | CC97: =1-SUM(BX97:CB97) -> 0.05759577616 | CD97: 0 | CE97: 1 | CF97: 0 | CG97: 0 | CH97: 0 | CI97: =1-SUM(CD97:CH97) -> 0 | CJ97: =IF($BA97=0,$BI$71,IF($BA97=1,$BI$72,$BI$73)) -> 0 | CK97: =IF($BB97=0,$BI$74,IF($BB97=1,$BI$75,$BI$76)) -> 0 | CL97: =IF($BC97=0,$BI$77,IF($BC97=1,$BI$78,$BI$79)) -> 0 | CM97: =IF($BD97=0,$BI$80,IF($BD97=1,$BI$81,$BI$82)) -> 1428.85 | CN97: =IF($BE97=0,$BI$83,IF($BE97=1,$BI$84,$BI$85)) -> 28577 | CO97: =$BI$86 -> 85731 | CP97: 0 | CQ97: 0 | CR97: 0 | CS97: 1428.85 | CT97: 28577 | CU97: 85731 | CV97: 28577 | CW97: 0 | CX97: 0 | CY97: 0.9345794393 | CZ97: 0 | DA97: 43806.14223 | DB97: 0 | DC97: 0.2906602786 | DD97: 0.2906602786 | DE97: 22091.61949 | DF97: 0.1465811858 | DG97: 0.1465811858 | DH97: 8668.357336 | DI97: 0.05751584206 | DJ97: 155.2673877 | DK97: 0.0823023121 | DL97: =DJ97/DK97 -> 1886.549524 | DM97: =DH97+DI97*DL97 -> 8776.86382 | DN97: =DE97+DF97*DM97+DG97*DL97 -> 23654.67527 | DO97: =DA97+DB97*DN97+DC97*DM97+DD97*DL97 -> 46905.57293 | DP97: =CV97+CW97*DO97+CX97*DN97+CY97*DM97+CZ97*DL97 -> 36779.67647 | DQ97: 87494.1304 | DR97: 205497.4684 | DS97: =IF(AND(DR97=MIN(DR$96:DR$338),SUM(DS$95:DS96)=0),1,0) -> 0 | DT97: 28577 | DU97: 0 | DV97: 0 | DW97: 0.9345794393 | DX97: 0 | DY97: 43806.14223 | DZ97: 0 | EA97: 0.2906602786 | EB97: 0.2906602786 | EC97: 22091.61949 | ED97: 0.1465811858 | EE97: 0.1465811858 | EF97: 8668.357336 | EG97: 0.05751584206 | EH97: 155.2673877 | EI97: 0.0823023121 | EJ97: =EH97/EI97 -> 1886.549524 | EK97: =EF97+EG97*EJ97 -> 8776.86382 | EL97: =EC97+ED97*EK97+EE97*EJ97 -> 23654.67527 | EM97: =DY97+DZ97*EL97+EA97*EK97+EB97*EJ97 -> 46905.57293 | EN97: =DT97+DU97*EM97+DV97*EL97+DW97*EK97+DX97*EJ97 -> 36779.67647 | EO97: 87494.1304 | EP97: 205497.4684 | EQ97: =IF(AND(EP97=MIN(EP$96:EP$338),SUM(EQ$95:EQ96)=0),1,0) -> 0
F98: =BA374 -> 3 | J98: =BB374 -> Do Minimum | Q98: =BJ374 -> N/A | AU98: ='Default Assets'!A98 -> Systems-Electrification Substation Building Components | BA98: 0 | BB98: 0 | BC98: 0 | BD98: 0 | BE98: 2 | BF98: 0.9808341882 | BG98: 0.01916581175 | BH98: 0 | BI98: 0 | BJ98: 0 | BK98: =1-SUM(BF98:BJ98) -> 0 | BL98: 0 | BM98: 0.9587049164 | BN98: 0.0412950836 | BO98: 0 | BP98: 0 | BQ98: =1-SUM(BL98:BP98) -> 0 | BR98: 0 | BS98: 0 | BT98: 0.9287843724 | BU98: 0.07121562757 | BV98: 0 | BW98: 0 | BX98: 0 | BY98: 0 | BZ98: 0 | CA98: 0.8848084477 | CB98: 0.05759577616 | CC98: =1-SUM(BX98:CB98) -> 0.05759577616 | CD98: 1 | CE98: 0 | CF98: 0 | CG98: 0 | CH98: 0 | CI98: =1-SUM(CD98:CH98) -> 0 | CJ98: 0 | CK98: 0 | CL98: 0 | CM98: 1428.85 | CN98: 28577 | CO98: 85731 | CP98: 0 | CQ98: 0 | CR98: 0 | CS98: 1428.85 | CT98: 28577 | CU98: 85731 | CV98: 28577 | CW98: 0 | CX98: 0 | CY98: 0 | CZ98: 0.9345794393 | DA98: 43806.14223 | DB98: 0 | DC98: 0 | DD98: 0.5813205571 | DE98: 22091.61949 | DF98: 0 | DG98: 0.2931623717 | DH98: 8196.905418 | DI98: 0.1087753767 | DJ98: 146.8227534 | DK98: 0.08138415267 | DL98: 1804.070555 | DM98: 8393.143873 | DN98: 22620.50509 | DO98: 44854.88553 | DP98: 30263.04725 | DQ98: 87417.04725 | DR98: 195352.6995 | DS98: =IF(AND(DR98=MIN(DR$96:DR$338),SUM(DS$95:DS97)=0),1,0) -> 0 | DT98: 28577 | DU98: 0 | DV98: 0 | DW98: 0 | DX98: 0.9345794393 | DY98: 43806.14223 | DZ98: 0 | EA98: 0 | EB98: 0.5813205571 | EC98: 22091.61949 | ED98: 0 | EE98: 0.2931623717 | EF98: 8196.905418 | EG98: 0.1087753767 | EH98: 146.8227534 | EI98: 0.08138415267 | EJ98: =EH98/EI98 -> 1804.070555 | EK98: =EF98+EG98*EJ98 -> 8393.143873 | EL98: =EC98+ED98*EK98+EE98*EJ98 -> 22620.50509 | EM98: =DY98+DZ98*EL98+EA98*EK98+EB98*EJ98 -> 44854.88553 | EN98: =DT98+DU98*EM98+DV98*EL98+DW98*EK98+DX98*EJ98 -> 30263.04725 | EO98: 87417.04725 | EP98: 195352.6995 | EQ98: =IF(AND(EP98=MIN(EP$96:EP$338),SUM(EQ$95:EQ97)=0),1,0) -> 0
F99: =BA375 -> 2 | J99: =BB375 -> Replace | Q99: =BJ375 -> 0.08967996186 | AU99: ='Default Assets'!A99 -> Systems-Emergency Exit | BA99: 0 | BB99: 0 | BC99: 0 | BD99: 1 | BE99: 0 | BF99: 0.9808341882 | BG99: 0.01916581175 | BH99: 0 | BI99: 0 | BJ99: 0 | BK99: 0 | BL99: 0 | BM99: 0.9587049164 | BN99: 0.0412950836 | BO99: 0 | BP99: 0 | BQ99: 0 | BR99: 0 | BS99: 0 | BT99: 0.9287843724 | BU99: 0.07121562757 | BV99: 0 | BW99: 0 | BX99: 0 | BY99: 1 | BZ99: 0 | CA99: 0 | CB99: 0 | CC99: 0 | CD99: 0 | CE99: 0 | CF99: 0 | CG99: 0 | CH99: 0.8848084477 | CI99: 0.1151915523 | CJ99: 0 | CK99: 0 | CL99: 0 | CM99: 28577 | CN99: 2857.7 | CO99: 85731 | CP99: 0 | CQ99: 0 | CR99: 0 | CS99: 28577 | CT99: 2857.7 | CU99: 85731 | CV99: 69837.01907 | CW99: 0 | CX99: 0 | CY99: 0 | CZ99: 0.5813205571 | DA99: 28577 | DB99: 0 | DC99: 0.9345794393 | DD99: 0 | DE99: 14411.4998 | DF99: 0.4713122933 | DG99: 0 | DH99: 6480.559864 | DI99: 0 | DJ99: 116.0796172 | DK99: 0.08333253435 | DL99: 1392.968762 | DM99: 6480.559864 | DN99: 17465.86734 | DO99: 34633.598 | DP99: 70646.78045 | DQ99: 87032.83996 | DR99: 217652.6144 | DS99: =IF(AND(DR99=MIN(DR$96:DR$338),SUM(DS$95:DS98)=0),1,0) -> 0 | DT99: 69837.01907 | DU99: 0 | DV99: 0 | DW99: 0 | DX99: 0.5813205571 | DY99: 28577 | DZ99: 0 | EA99: 0.9345794393 | EB99: 0 | EC99: 14411.4998 | ED99: 0.4713122933 | EE99: 0 | EF99: 6480.559864 | EG99: 0 | EH99: 116.0796172 | EI99: 0.08333253435 | EJ99: 1392.968762 | EK99: 6480.559864 | EL99: 17465.86734 | EM99: 34633.598 | EN99: 70646.78045 | EO99: 87032.83996 | EP99: 217652.6144 | EQ99: =IF(AND(EP99=MIN(EP$96:EP$338),SUM(EQ$95:EQ98)=0),1,0) -> 0
F100: =BA376 -> 1 | J100: =BB376 -> Replace | Q100: =BJ376 -> 0.2473356182 | AU100: ='Default Assets'!A100 -> Systems-Emergency Location System | BA100: 0 | BB100: 0 | BC100: 0 | BD100: 1 | BE100: 1 | BF100: 0.9808341882 | BG100: 0.01916581175 | BH100: 0 | BI100: 0 | BJ100: 0 | BK100: 0 | BL100: 0 | BM100: 0.9587049164 | BN100: 0.0412950836 | BO100: 0 | BP100: 0 | BQ100: 0 | BR100: 0 | BS100: 0 | BT100: 0.9287843724 | BU100: 0.07121562757 | BV100: 0 | BW100: 0 | BX100: 0 | BY100: 1 | BZ100: 0 | CA100: 0 | CB100: 0 | CC100: 0 | CD100: 0 | CE100: 1 | CF100: 0 | CG100: 0 | CH100: 0 | CI100: 0 | CJ100: 0 | CK100: 0 | CL100: 0 | CM100: 28577 | CN100: 28577 | CO100: 85731 | CP100: 0 | CQ100: 0 | CR100: 0 | CS100: 28577 | CT100: 28577 | CU100: 85731 | CV100: 28577 | CW100: 0 | CX100: 0 | CY100: 0.9345794393 | CZ100: 0 | DA100: 28577 | DB100: 0 | DC100: 0.9345794393 | DD100: 0 | DE100: 14411.4998 | DF100: 0.4713122933 | DG100: 0 | DH100: 6480.559864 | DI100: 0 | DJ100: 116.0796172 | DK100: 0.08333253435 | DL100: 1392.968762 | DM100: 6480.559864 | DN100: 17465.86734 | DO100: 34633.598 | DP100: 34633.598 | DQ100: 87032.83996 | DR100: 181639.4319 | DS100: =IF(AND(DR100=MIN(DR$96:DR$338),SUM(DS$95:DS99)=0),1,0) -> 0 | DT100: 28577 | DU100: 0 | DV100: 0 | DW100: 0.9345794393 | DX100: 0 | DY100: 28577 | DZ100: 0 | EA100: 0.9345794393 | EB100: 0 | EC100: 14411.4998 | ED100: 0.4713122933 | EE100: 0 | EF100: 6480.559864 | EG100: 0 | EH100: 116.0796172 | EI100: 0.08333253435 | EJ100: 1392.968762 | EK100: 6480.559864 | EL100: 17465.86734 | EM100: 34633.598 | EN100: 34633.598 | EO100: 87032.83996 | EP100: 181639.4319 | EQ100: =IF(AND(EP100=MIN(EP$96:EP$338),SUM(EQ$95:EQ99)=0),1,0) -> 0
AU101: ='Default Assets'!A101 -> Systems-Fan Plant | BA101: 0 | BB101: 0 | BC101: 0 | BD101: 1 | BE101: 2 | BF101: 0.9808341882 | BG101: 0.01916581175 | BH101: 0 | BI101: 0 | BJ101: 0 | BK101: 0 | BL101: 0 | BM101: 0.9587049164 | BN101: 0.0412950836 | BO101: 0 | BP101: 0 | BQ101: 0 | BR101: 0 | BS101: 0 | BT101: 0.9287843724 | BU101: 0.07121562757 | BV101: 0 | BW101: 0 | BX101: 0 | BY101: 1 | BZ101: 0 | CA101: 0 | CB101: 0 | CC101: 0 | CD101: 1 | CE101: 0 | CF101: 0 | CG101: 0 | CH101: 0 | CI101: 0 | CJ101: 0 | CK101: 0 | CL101: 0 | CM101: 28577 | CN101: 28577 | CO101: 85731 | CP101: 0 | CQ101: 0 | CR101: 0 | CS101: 28577 | CT101: 28577 | CU101: 85731 | CV101: 28577 | CW101: 0 | CX101: 0 | CY101: 0 | CZ101: 0.9345794393 | DA101: 28577 | DB101: 0 | DC101: 0.9345794393 | DD101: 0 | DE101: 14411.4998 | DF101: 0.4713122933 | DG101: 0 | DH101: 6480.559864 | DI101: 0 | DJ101: 116.0796172 | DK101: 0.08333253435 | DL101: 1392.968762 | DM101: 6480.559864 | DN101: 17465.86734 | DO101: 34633.598 | DP101: 29878.83996 | DQ101: 87032.83996 | DR101: 176884.6739 | DS101: =IF(AND(DR101=MIN(DR$96:DR$338),SUM(DS$95:DS100)=0),1,0) -> 0 | DT101: 28577 | DU101: 0 | DV101: 0 | DW101: 0 | DX101: 0.9345794393 | DY101: 28577 | DZ101: 0 | EA101: 0.9345794393 | EB101: 0 | EC101: 14411.4998 | ED101: 0.4713122933 | EE101: 0 | EF101: 6480.559864 | EG101: 0 | EH101: 116.0796172 | EI101: 0.08333253435 | EJ101: 1392.968762 | EK101: 6480.559864 | EL101: 17465.86734 | EM101: 34633.598 | EN101: 29878.83996 | EO101: 87032.83996 | EP101: 176884.6739 | EQ101: =IF(AND(EP101=MIN(EP$96:EP$338),SUM(EQ$95:EQ100)=0),1,0) -> 0
AU102: ='Default Assets'!A102 -> Systems-Gates, Flashers, Crossings | BA102: 0 | BB102: 0 | BC102: 0 | BD102: 2 | BE102: 0 | BF102: 0.9808341882 | BG102: 0.01916581175 | BH102: 0 | BI102: 0 | BJ102: 0 | BK102: 0 | BL102: 0 | BM102: 0.9587049164 | BN102: 0.0412950836 | BO102: 0 | BP102: 0 | BQ102: 0 | BR102: 0 | BS102: 0 | BT102: 0.9287843724 | BU102: 0.07121562757 | BV102: 0 | BW102: 0 | BX102: 1 | BY102: 0 | BZ102: 0 | CA102: 0 | CB102: 0 | CC102: 0 | CD102: 0 | CE102: 0 | CF102: 0 | CG102: 0 | CH102: 0.8848084477 | CI102: 0.1151915523 | CJ102: 0 | CK102: 0 | CL102: 0 | CM102: 28577 | CN102: 2857.7 | CO102: 85731 | CP102: 0 | CQ102: 0 | CR102: 0 | CS102: 28577 | CT102: 2857.7 | CU102: 85731 | CV102: 69837.01907 | CW102: 0 | CX102: 0 | CY102: 0 | CZ102: 0.5813205571 | DA102: 28577 | DB102: 0 | DC102: 0 | DD102: 0.9345794393 | DE102: 14411.4998 | DF102: 0 | DG102: 0.4713122933 | DH102: 5347.26306 | DI102: 0.174876373 | DJ102: 95.78003475 | DK102: 0.08020015337 | DL102: 1194.262489 | DM102: 5556.111352 | DN102: 14974.3704 | DO102: 29693.13317 | DP102: 70531.26841 | DQ102: 86847.13317 | DR102: 208796.279 | DS102: =IF(AND(DR102=MIN(DR$96:DR$338),SUM(DS$95:DS101)=0),1,0) -> 0 | DT102: 69837.01907 | DU102: 0 | DV102: 0 | DW102: 0 | DX102: 0.5813205571 | DY102: 28577 | DZ102: 0 | EA102: 0 | EB102: 0.9345794393 | EC102: 14411.4998 | ED102: 0 | EE102: 0.4713122933 | EF102: 5347.26306 | EG102: 0.174876373 | EH102: 95.78003475 | EI102: 0.08020015337 | EJ102: 1194.262489 | EK102: 5556.111352 | EL102: 14974.3704 | EM102: 29693.13317 | EN102: 70531.26841 | EO102: 86847.13317 | EP102: 208796.279 | EQ102: =IF(AND(EP102=MIN(EP$96:EP$338),SUM(EQ$95:EQ101)=0),1,0) -> 0
AU103: ='Default Assets'!A103 -> Systems-Guideway Drainage | BA103: 0 | BB103: 0 | BC103: 0 | BD103: 2 | BE103: 1 | BF103: 0.9808341882 | BG103: 0.01916581175 | BH103: 0 | BI103: 0 | BJ103: 0 | BK103: 0 | BL103: 0 | BM103: 0.9587049164 | BN103: 0.0412950836 | BO103: 0 | BP103: 0 | BQ103: 0 | BR103: 0 | BS103: 0 | BT103: 0.9287843724 | BU103: 0.07121562757 | BV103: 0 | BW103: 0 | BX103: 1 | BY103: 0 | BZ103: 0 | CA103: 0 | CB103: 0 | CC103: 0 | CD103: 0 | CE103: 1 | CF103: 0 | CG103: 0 | CH103: 0 | CI103: 0 | CJ103: 0 | CK103: 0 | CL103: 0 | CM103: 28577 | CN103: 28577 | CO103: 85731 | CP103: 0 | CQ103: 0 | CR103: 0 | CS103: 28577 | CT103: 28577 | CU103: 85731 | CV103: 28577 | CW103: 0 | CX103: 0 | CY103: 0.9345794393 | CZ103: 0 | DA103: 28577 | DB103: 0 | DC103: 0 | DD103: 0.9345794393 | DE103: 14411.4998 | DF103: 0 | DG103: 0.4713122933 | DH103: 5347.26306 | DI103: 0.174876373 | DJ103: 95.78003475 | DK103: 0.08020015337 | DL103: 1194.262489 | DM103: 5556.111352 | DN103: 14974.3704 | DO103: 29693.13317 | DP103: 33769.62743 | DQ103: 86847.13317 | DR103: 172034.638 | DS103: =IF(AND(DR103=MIN(DR$96:DR$338),SUM(DS$95:DS102)=0),1,0) -> 0 | DT103: 28577 | DU103: 0 | DV103: 0 | DW103: 0.9345794393 | DX103: 0 | DY103: 28577 | DZ103: 0 | EA103: 0 | EB103: 0.9345794393 | EC103: 14411.4998 | ED103: 0 | EE103: 0.4713122933 | EF103: 5347.26306 | EG103: 0.174876373 | EH103: 95.78003475 | EI103: 0.08020015337 | EJ103: 1194.262489 | EK103: 5556.111352 | EL103: 14974.3704 | EM103: 29693.13317 | EN103: 33769.62743 | EO103: 86847.13317 | EP103: 172034.638 | EQ103: =IF(AND(EP103=MIN(EP$96:EP$338),SUM(EQ$95:EQ102)=0),1,0) -> 0
AU104: ='Default Assets'!A104 -> Systems-Heaters | BA104: 0 | BB104: 0 | BC104: 0 | BD104: 2 | BE104: 2 | BF104: 0.9808341882 | BG104: 0.01916581175 | BH104: 0 | BI104: 0 | BJ104: 0 | BK104: 0 | BL104: 0 | BM104: 0.9587049164 | BN104: 0.0412950836 | BO104: 0 | BP104: 0 | BQ104: 0 | BR104: 0 | BS104: 0 | BT104: 0.9287843724 | BU104: 0.07121562757 | BV104: 0 | BW104: 0 | BX104: 1 | BY104: 0 | BZ104: 0 | CA104: 0 | CB104: 0 | CC104: 0 | CD104: 1 | CE104: 0 | CF104: 0 | CG104: 0 | CH104: 0 | CI104: 0 | CJ104: 0 | CK104: 0 | CL104: 0 | CM104: 28577 | CN104: 28577 | CO104: 85731 | CP104: 0 | CQ104: 0 | CR104: 0 | CS104: 28577 | CT104: 28577 | CU104: 85731 | CV104: 28577 | CW104: 0 | CX104: 0 | CY104: 0 | CZ104: 0.9345794393 | DA104: 28577 | DB104: 0 | DC104: 0 | DD104: 0.9345794393 | DE104: 14411.4998 | DF104: 0 | DG104: 0.4713122933 | DH104: 5347.26306 | DI104: 0.174876373 | DJ104: 95.78003475 | DK104: 0.08020015337 | DL104: 1194.262489 | DM104: 5556.111352 | DN104: 14974.3704 | DO104: 29693.13317 | DP104: 29693.13317 | DQ104: 86847.13317 | DR104: 167958.1437 | DS104: =IF(AND(DR104=MIN(DR$96:DR$338),SUM(DS$95:DS103)=0),1,0) -> 1 | DT104: 28577 | DU104: 0 | DV104: 0 | DW104: 0 | DX104: 0.9345794393 | DY104: 28577 | DZ104: 0 | EA104: 0 | EB104: 0.9345794393 | EC104: 14411.4998 | ED104: 0 | EE104: 0.4713122933 | EF104: 5347.26306 | EG104: 0.174876373 | EH104: 95.78003475 | EI104: 0.08020015337 | EJ104: 1194.262489 | EK104: 5556.111352 | EL104: 14974.3704 | EM104: 29693.13317 | EN104: 29693.13317 | EO104: 86847.13317 | EP104: 167958.1437 | EQ104: =IF(AND(EP104=MIN(EP$96:EP$338),SUM(EQ$95:EQ103)=0),1,0) -> 1
AU105: ='Default Assets'!A105 -> Systems-High Tension Towers | BA105: 0 | BB105: 0 | BC105: 1 | BD105: 0 | BE105: 0 | BF105: 0.9808341882 | BG105: 0.01916581175 | BH105: 0 | BI105: 0 | BJ105: 0 | BK105: 0 | BL105: 0 | BM105: 0.9587049164 | BN105: 0.0412950836 | BO105: 0 | BP105: 0 | BQ105: 0 | BR105: 0 | BS105: 1 | BT105: 0 | BU105: 0 | BV105: 0 | BW105: 0 | BX105: 0 | BY105: 0 | BZ105: 0 | CA105: 0.8848084477 | CB105: 0.05759577616 | CC105: 0.05759577616 | CD105: 0 | CE105: 0 | CF105: 0 | CG105: 0 | CH105: 0.8848084477 | CI105: 0.1151915523 | CJ105: 0 | CK105: 0 | CL105: 28577 | CM105: 1428.85 | CN105: 2857.7 | CO105: 85731 | CP105: 0 | CQ105: 0 | CR105: 28577 | CS105: 1428.85 | CT105: 2857.7 | CU105: 85731 | CV105: 69837.01907 | CW105: 0 | CX105: 0 | CY105: 0 | CZ105: 0.5813205571 | DA105: 56638.27628 | DB105: 0 | DC105: 0 | DD105: 0.4714547493 | DE105: 28577 | DF105: 0.9345794393 | DG105: 0 | DH105: 16231.97365 | DI105: 0 | DJ105: 290.7466836 | DK105: 0.08333253435 | DL105: 3488.993655 | DM105: 16231.97365 | DN105: 43747.06884 | DO105: 58283.1789 | DP105: 71865.24281 | DQ105: 88991.74173 | DR105: 282608.1996 | DS105: =IF(AND(DR105=MIN(DR$96:DR$338),SUM(DS$95:DS104)=0),1,0) -> 0 | DT105: 69837.01907 | DU105: 0 | DV105: 0 | DW105: 0 | DX105: 0.5813205571 | DY105: 56638.27628 | DZ105: 0 | EA105: 0 | EB105: 0.4714547493 | EC105: 28577 | ED105: 0.9345794393 | EE105: 0 | EF105: 16231.97365 | EG105: 0 | EH105: 290.7466836 | EI105: 0.08333253435 | EJ105: 3488.993655 | EK105: 16231.97365 | EL105: 43747.06884 | EM105: 58283.1789 | EN105: 71865.24281 | EO105: 88991.74173 | EP105: 282608.1996 | EQ105: =IF(AND(EP105=MIN(EP$96:EP$338),SUM(EQ$95:EQ104)=0),1,0) -> 0
AU106: ='Default Assets'!A106 -> Systems-In Station Revenue Collection Equipment | BA106: 0 | BB106: 0 | BC106: 1 | BD106: 0 | BE106: 1 | BF106: 0.9808341882 | BG106: 0.01916581175 | BH106: 0 | BI106: 0 | BJ106: 0 | BK106: 0 | BL106: 0 | BM106: 0.9587049164 | BN106: 0.0412950836 | BO106: 0 | BP106: 0 | BQ106: 0 | BR106: 0 | BS106: 1 | BT106: 0 | BU106: 0 | BV106: 0 | BW106: 0 | BX106: 0 | BY106: 0 | BZ106: 0 | CA106: 0.8848084477 | CB106: 0.05759577616 | CC106: 0.05759577616 | CD106: 0 | CE106: 1 | CF106: 0 | CG106: 0 | CH106: 0 | CI106: 0 | CJ106: 0 | CK106: 0 | CL106: 28577 | CM106: 1428.85 | CN106: 28577 | CO106: 85731 | CP106: 0 | CQ106: 0 | CR106: 28577 | CS106: 1428.85 | CT106: 28577 | CU106: 85731 | CV106: 28577 | CW106: 0 | CX106: 0 | CY106: 0.9345794393 | CZ106: 0 | DA106: 43806.14223 | DB106: 0 | DC106: 0.2906602786 | DD106: 0.2906602786 | DE106: 28577 | DF106: 0.9345794393 | DG106: 0 | DH106: 16231.97365 | DI106: 0 | DJ106: 290.7466836 | DK106: 0.08333253435 | DL106: 3488.993655 | DM106: 16231.97365 | DN106: 43747.06884 | DO106: 49538.24408 | DP106: 43747.06884 | DQ106: 88991.74173 | DR106: 245745.0908 | DS106: =IF(AND(DR106=MIN(DR$96:DR$338),SUM(DS$95:DS105)=0),1,0) -> 0 | DT106: 28577 | DU106: 0 | DV106: 0 | DW106: 0.9345794393 | DX106: 0 | DY106: 43806.14223 | DZ106: 0 | EA106: 0.2906602786 | EB106: 0.2906602786 | EC106: 28577 | ED106: 0.9345794393 | EE106: 0 | EF106: 16231.97365 | EG106: 0 | EH106: 290.7466836 | EI106: 0.08333253435 | EJ106: 3488.993655 | EK106: 16231.97365 | EL106: 43747.06884 | EM106: 49538.24408 | EN106: 43747.06884 | EO106: 88991.74173 | EP106: 245745.0908 | EQ106: =IF(AND(EP106=MIN(EP$96:EP$338),SUM(EQ$95:EQ105)=0),1,0) -> 0
AU107: ='Default Assets'!A107 -> Systems-Interlocking | BA107: 0 | BB107: 0 | BC107: 1 | BD107: 0 | BE107: 2 | BF107: 0.9808341882 | BG107: 0.01916581175 | BH107: 0 | BI107: 0 | BJ107: 0 | BK107: 0 | BL107: 0 | BM107: 0.9587049164 | BN107: 0.0412950836 | BO107: 0 | BP107: 0 | BQ107: 0 | BR107: 0 | BS107: 1 | BT107: 0 | BU107: 0 | BV107: 0 | BW107: 0 | BX107: 0 | BY107: 0 | BZ107: 0 | CA107: 0.8848084477 | CB107: 0.05759577616 | CC107: 0.05759577616 | CD107: 1 | CE107: 0 | CF107: 0 | CG107: 0 | CH107: 0 | CI107: 0 | CJ107: 0 | CK107: 0 | CL107: 28577 | CM107: 1428.85 | CN107: 28577 | CO107: 85731 | CP107: 0 | CQ107: 0 | CR107: 28577 | CS107: 1428.85 | CT107: 28577 | CU107: 85731 | CV107: 28577 | CW107: 0 | CX107: 0 | CY107: 0 | CZ107: 0.9345794393 | DA107: 43806.14223 | DB107: 0 | DC107: 0 | DD107: 0.5813205571 | DE107: 28577 | DF107: 0.9345794393 | DG107: 0 | DH107: 16231.97365 | DI107: 0 | DJ107: 290.7466836 | DK107: 0.08333253435 | DL107: 3488.993655 | DM107: 16231.97365 | DN107: 43747.06884 | DO107: 45834.36597 | DP107: 31837.74173 | DQ107: 88991.74173 | DR107: 230131.8856 | DS107: =IF(AND(DR107=MIN(DR$96:DR$338),SUM(DS$95:DS106)=0),1,0) -> 0 | DT107: 28577 | DU107: 0 | DV107: 0 | DW107: 0 | DX107: 0.9345794393 | DY107: 43806.14223 | DZ107: 0 | EA107: 0 | EB107: 0.5813205571 | EC107: 28577 | ED107: 0.9345794393 | EE107: 0 | EF107: 16231.97365 | EG107: 0 | EH107: 290.7466836 | EI107: 0.08333253435 | EJ107: 3488.993655 | EK107: 16231.97365 | EL107: 43747.06884 | EM107: 45834.36597 | EN107: 31837.74173 | EO107: 88991.74173 | EP107: 230131.8856 | EQ107: =IF(AND(EP107=MIN(EP$96:EP$338),SUM(EQ$95:EQ106)=0),1,0) -> 0
AU108: ='Default Assets'!A108 -> Systems-ITS, APC, AVL, CAD, GPL | BA108: 0 | BB108: 0 | BC108: 1 | BD108: 1 | BE108: 0 | BF108: 0.9808341882 | BG108: 0.01916581175 | BH108: 0 | BI108: 0 | BJ108: 0 | BK108: 0 | BL108: 0 | BM108: 0.9587049164 | BN108: 0.0412950836 | BO108: 0 | BP108: 0 | BQ108: 0 | BR108: 0 | BS108: 1 | BT108: 0 | BU108: 0 | BV108: 0 | BW108: 0 | BX108: 0 | BY108: 1 | BZ108: 0 | CA108: 0 | CB108: 0 | CC108: 0 | CD108: 0 | CE108: 0 | CF108: 0 | CG108: 0 | CH108: 0.8848084477 | CI108: 0.1151915523 | CJ108: 0 | CK108: 0 | CL108: 28577 | CM108: 28577 | CN108: 2857.7 | CO108: 85731 | CP108: 0 | CQ108: 0 | CR108: 28577 | CS108: 28577 | CT108: 2857.7 | CU108: 85731 | CV108: 69837.01907 | CW108: 0 | CX108: 0 | CY108: 0 | CZ108: 0.5813205571 | DA108: 28577 | DB108: 0 | DC108: 0.9345794393 | DD108: 0 | DE108: 28577 | DF108: 0.9345794393 | DG108: 0 | DH108: 16231.97365 | DI108: 0 | DJ108: 290.7466836 | DK108: 0.08333253435 | DL108: 3488.993655 | DM108: 16231.97365 | DN108: 43747.06884 | DO108: 43747.06884 | DP108: 71865.24281 | DQ108: 88991.74173 | DR108: 268072.0895 | DS108: =IF(AND(DR108=MIN(DR$96:DR$338),SUM(DS$95:DS107)=0),1,0) -> 0 | DT108: 69837.01907 | DU108: 0 | DV108: 0 | DW108: 0 | DX108: 0.5813205571 | DY108: 28577 | DZ108: 0 | EA108: 0.9345794393 | EB108: 0 | EC108: 28577 | ED108: 0.9345794393 | EE108: 0 | EF108: 16231.97365 | EG108: 0 | EH108: 290.7466836 | EI108: 0.08333253435 | EJ108: 3488.993655 | EK108: 16231.97365 | EL108: 43747.06884 | EM108: 43747.06884 | EN108: 71865.24281 | EO108: 88991.74173 | EP108: 268072.0895 | EQ108: =IF(AND(EP108=MIN(EP$96:EP$338),SUM(EQ$95:EQ107)=0),1,0) -> 0
AU109: ='Default Assets'!A109 -> Systems-Lighting | BA109: 0 | BB109: 0 | BC109: 1 | BD109: 1 | BE109: 1 | BF109: 0.9808341882 | BG109: 0.01916581175 | BH109: 0 | BI109: 0 | BJ109: 0 | BK109: 0 | BL109: 0 | BM109: 0.9587049164 | BN109: 0.0412950836 | BO109: 0 | BP109: 0 | BQ109: 0 | BR109: 0 | BS109: 1 | BT109: 0 | BU109: 0 | BV109: 0 | BW109: 0 | BX109: 0 | BY109: 1 | BZ109: 0 | CA109: 0 | CB109: 0 | CC109: 0 | CD109: 0 | CE109: 1 | CF109: 0 | CG109: 0 | CH109: 0 | CI109: 0 | CJ109: 0 | CK109: 0 | CL109: 28577 | CM109: 28577 | CN109: 28577 | CO109: 85731 | CP109: 0 | CQ109: 0 | CR109: 28577 | CS109: 28577 | CT109: 28577 | CU109: 85731 | CV109: 28577 | CW109: 0 | CX109: 0 | CY109: 0.9345794393 | CZ109: 0 | DA109: 28577 | DB109: 0 | DC109: 0.9345794393 | DD109: 0 | DE109: 28577 | DF109: 0.9345794393 | DG109: 0 | DH109: 16231.97365 | DI109: 0 | DJ109: 290.7466836 | DK109: 0.08333253435 | DL109: 3488.993655 | DM109: 16231.97365 | DN109: 43747.06884 | DO109: 43747.06884 | DP109: 43747.06884 | DQ109: 88991.74173 | DR109: 239953.9156 | DS109: =IF(AND(DR109=MIN(DR$96:DR$338),SUM(DS$95:DS108)=0),1,0) -> 0 | DT109: 28577 | DU109: 0 | DV109: 0 | DW109: 0.9345794393 | DX109: 0 | DY109: 28577 | DZ109: 0 | EA109: 0.9345794393 | EB109: 0 | EC109: 28577 | ED109: 0.9345794393 | EE109: 0 | EF109: 16231.97365 | EG109: 0 | EH109: 290.7466836 | EI109: 0.08333253435 | EJ109: 3488.993655 | EK109: 16231.97365 | EL109: 43747.06884 | EM109: 43747.06884 | EN109: 43747.06884 | EO109: 88991.74173 | EP109: 239953.9156 | EQ109: =IF(AND(EP109=MIN(EP$96:EP$338),SUM(EQ$95:EQ108)=0),1,0) -> 0
AU110: ='Default Assets'!A110 -> Systems-MIS/IT/Network System | BA110: 0 | BB110: 0 | BC110: 1 | BD110: 1 | BE110: 2 | BF110: 0.9808341882 | BG110: 0.01916581175 | BH110: 0 | BI110: 0 | BJ110: 0 | BK110: 0 | BL110: 0 | BM110: 0.9587049164 | BN110: 0.0412950836 | BO110: 0 | BP110: 0 | BQ110: 0 | BR110: 0 | BS110: 1 | BT110: 0 | BU110: 0 | BV110: 0 | BW110: 0 | BX110: 0 | BY110: 1 | BZ110: 0 | CA110: 0 | CB110: 0 | CC110: 0 | CD110: 1 | CE110: 0 | CF110: 0 | CG110: 0 | CH110: 0 | CI110: 0 | CJ110: 0 | CK110: 0 | CL110: 28577 | CM110: 28577 | CN110: 28577 | CO110: 85731 | CP110: 0 | CQ110: 0 | CR110: 28577 | CS110: 28577 | CT110: 28577 | CU110: 85731 | CV110: 28577 | CW110: 0 | CX110: 0 | CY110: 0 | CZ110: 0.9345794393 | DA110: 28577 | DB110: 0 | DC110: 0.9345794393 | DD110: 0 | DE110: 28577 | DF110: 0.9345794393 | DG110: 0 | DH110: 16231.97365 | DI110: 0 | DJ110: 290.7466836 | DK110: 0.08333253435 | DL110: 3488.993655 | DM110: 16231.97365 | DN110: 43747.06884 | DO110: 43747.06884 | DP110: 31837.74173 | DQ110: 88991.74173 | DR110: 228044.5884 | DS110: =IF(AND(DR110=MIN(DR$96:DR$338),SUM(DS$95:DS109)=0),1,0) -> 0 | DT110: 28577 | DU110: 0 | DV110: 0 | DW110: 0 | DX110: 0.9345794393 | DY110: 28577 | DZ110: 0 | EA110: 0.9345794393 | EB110: 0 | EC110: 28577 | ED110: 0.9345794393 | EE110: 0 | EF110: 16231.97365 | EG110: 0 | EH110: 290.7466836 | EI110: 0.08333253435 | EJ110: 3488.993655 | EK110: 16231.97365 | EL110: 43747.06884 | EM110: 43747.06884 | EN110: 31837.74173 | EO110: 88991.74173 | EP110: 228044.5884 | EQ110: =IF(AND(EP110=MIN(EP$96:EP$338),SUM(EQ$95:EQ109)=0),1,0) -> 0
AU111: ='Default Assets'!A111 -> Systems-Parking Meter | BA111: 0 | BB111: 0 | BC111: 1 | BD111: 2 | BE111: 0 | BF111: 0.9808341882 | BG111: 0.01916581175 | BH111: 0 | BI111: 0 | BJ111: 0 | BK111: 0 | BL111: 0 | BM111: 0.9587049164 | BN111: 0.0412950836 | BO111: 0 | BP111: 0 | BQ111: 0 | BR111: 0 | BS111: 1 | BT111: 0 | BU111: 0 | BV111: 0 | BW111: 0 | BX111: 1 | BY111: 0 | BZ111: 0 | CA111: 0 | CB111: 0 | CC111: 0 | CD111: 0 | CE111: 0 | CF111: 0 | CG111: 0 | CH111: 0.8848084477 | CI111: 0.1151915523 | CJ111: 0 | CK111: 0 | CL111: 28577 | CM111: 28577 | CN111: 2857.7 | CO111: 85731 | CP111: 0 | CQ111: 0 | CR111: 28577 | CS111: 28577 | CT111: 2857.7 | CU111: 85731 | CV111: 69837.01907 | CW111: 0 | CX111: 0 | CY111: 0 | CZ111: 0.5813205571 | DA111: 28577 | DB111: 0 | DC111: 0 | DD111: 0.9345794393 | DE111: 28577 | DF111: 0.9345794393 | DG111: 0 | DH111: 16231.97365 | DI111: 0 | DJ111: 290.7466836 | DK111: 0.08333253435 | DL111: 3488.993655 | DM111: 16231.97365 | DN111: 43747.06884 | DO111: 31837.74173 | DP111: 71865.24281 | DQ111: 88991.74173 | DR111: 256162.7624 | DS111: =IF(AND(DR111=MIN(DR$96:DR$338),SUM(DS$95:DS110)=0),1,0) -> 0 | DT111: 69837.01907 | DU111: 0 | DV111: 0 | DW111: 0 | DX111: 0.5813205571 | DY111: 28577 | DZ111: 0 | EA111: 0 | EB111: 0.9345794393 | EC111: 28577 | ED111: 0.9345794393 | EE111: 0 | EF111: 16231.97365 | EG111: 0 | EH111: 290.7466836 | EI111: 0.08333253435 | EJ111: 3488.993655 | EK111: 16231.97365 | EL111: 43747.06884 | EM111: 31837.74173 | EN111: 71865.24281 | EO111: 88991.74173 | EP111: 256162.7624 | EQ111: =IF(AND(EP111=MIN(EP$96:EP$338),SUM(EQ$95:EQ110)=0),1,0) -> 0
AU112: ='Default Assets'!A112 -> Systems-Passenger Counter-Rail | BA112: 0 | BB112: 0 | BC112: 1 | BD112: 2 | BE112: 1 | BF112: 0.9808341882 | BG112: 0.01916581175 | BH112: 0 | BI112: 0 | BJ112: 0 | BK112: 0 | BL112: 0 | BM112: 0.9587049164 | BN112: 0.0412950836 | BO112: 0 | BP112: 0 | BQ112: 0 | BR112: 0 | BS112: 1 | BT112: 0 | BU112: 0 | BV112: 0 | BW112: 0 | BX112: 1 | BY112: 0 | BZ112: 0 | CA112: 0 | CB112: 0 | CC112: 0 | CD112: 0 | CE112: 1 | CF112: 0 | CG112: 0 | CH112: 0 | CI112: 0 | CJ112: 0 | CK112: 0 | CL112: 28577 | CM112: 28577 | CN112: 28577 | CO112: 85731 | CP112: 0 | CQ112: 0 | CR112: 28577 | CS112: 28577 | CT112: 28577 | CU112: 85731 | CV112: 28577 | CW112: 0 | CX112: 0 | CY112: 0.9345794393 | CZ112: 0 | DA112: 28577 | DB112: 0 | DC112: 0 | DD112: 0.9345794393 | DE112: 28577 | DF112: 0.9345794393 | DG112: 0 | DH112: 16231.97365 | DI112: 0 | DJ112: 290.7466836 | DK112: 0.08333253435 | DL112: 3488.993655 | DM112: 16231.97365 | DN112: 43747.06884 | DO112: 31837.74173 | DP112: 43747.06884 | DQ112: 88991.74173 | DR112: 228044.5884 | DS112: =IF(AND(DR112=MIN(DR$96:DR$338),SUM(DS$95:DS111)=0),1,0) -> 0 | DT112: 28577 | DU112: 0 | DV112: 0 | DW112: 0.9345794393 | DX112: 0 | DY112: 28577 | DZ112: 0 | EA112: 0 | EB112: 0.9345794393 | EC112: 28577 | ED112: 0.9345794393 | EE112: 0 | EF112: 16231.97365 | EG112: 0 | EH112: 290.7466836 | EI112: 0.08333253435 | EJ112: 3488.993655 | EK112: 16231.97365 | EL112: 43747.06884 | EM112: 31837.74173 | EN112: 43747.06884 | EO112: 88991.74173 | EP112: 228044.5884 | EQ112: =IF(AND(EP112=MIN(EP$96:EP$338),SUM(EQ$95:EQ111)=0),1,0) -> 0
AU113: ='Default Assets'!A113 -> Systems-Power Cable | BA113: 0 | BB113: 0 | BC113: 1 | BD113: 2 | BE113: 2 | BF113: 0.9808341882 | BG113: 0.01916581175 | BH113: 0 | BI113: 0 | BJ113: 0 | BK113: 0 | BL113: 0 | BM113: 0.9587049164 | BN113: 0.0412950836 | BO113: 0 | BP113: 0 | BQ113: 0 | BR113: 0 | BS113: 1 | BT113: 0 | BU113: 0 | BV113: 0 | BW113: 0 | BX113: 1 | BY113: 0 | BZ113: 0 | CA113: 0 | CB113: 0 | CC113: 0 | CD113: 1 | CE113: 0 | CF113: 0 | CG113: 0 | CH113: 0 | CI113: 0 | CJ113: 0 | CK113: 0 | CL113: 28577 | CM113: 28577 | CN113: 28577 | CO113: 85731 | CP113: 0 | CQ113: 0 | CR113: 28577 | CS113: 28577 | CT113: 28577 | CU113: 85731 | CV113: 28577 | CW113: 0 | CX113: 0 | CY113: 0 | CZ113: 0.9345794393 | DA113: 28577 | DB113: 0 | DC113: 0 | DD113: 0.9345794393 | DE113: 28577 | DF113: 0.9345794393 | DG113: 0 | DH113: 16231.97365 | DI113: 0 | DJ113: 290.7466836 | DK113: 0.08333253435 | DL113: 3488.993655 | DM113: 16231.97365 | DN113: 43747.06884 | DO113: 31837.74173 | DP113: 31837.74173 | DQ113: 88991.74173 | DR113: 216135.2613 | DS113: =IF(AND(DR113=MIN(DR$96:DR$338),SUM(DS$95:DS112)=0),1,0) -> 0 | DT113: 28577 | DU113: 0 | DV113: 0 | DW113: 0 | DX113: 0.9345794393 | DY113: 28577 | DZ113: 0 | EA113: 0 | EB113: 0.9345794393 | EC113: 28577 | ED113: 0.9345794393 | EE113: 0 | EF113: 16231.97365 | EG113: 0 | EH113: 290.7466836 | EI113: 0.08333253435 | EJ113: 3488.993655 | EK113: 16231.97365 | EL113: 43747.06884 | EM113: 31837.74173 | EN113: 31837.74173 | EO113: 88991.74173 | EP113: 216135.2613 | EQ113: =IF(AND(EP113=MIN(EP$96:EP$338),SUM(EQ$95:EQ112)=0),1,0) -> 0
AU114: ='Default Assets'!A114 -> Systems-Pump Room | BA114: 0 | BB114: 0 | BC114: 2 | BD114: 0 | BE114: 0 | BF114: 0.9808341882 | BG114: 0.01916581175 | BH114: 0 | BI114: 0 | BJ114: 0 | BK114: 0 | BL114: 0 | BM114: 0.9587049164 | BN114: 0.0412950836 | BO114: 0 | BP114: 0 | BQ114: 0 | BR114: 1 | BS114: 0 | BT114: 0 | BU114: 0 | BV114: 0 | BW114: 0 | BX114: 0 | BY114: 0 | BZ114: 0 | CA114: 0.8848084477 | CB114: 0.05759577616 | CC114: 0.05759577616 | CD114: 0 | CE114: 0 | CF114: 0 | CG114: 0 | CH114: 0.8848084477 | CI114: 0.1151915523 | CJ114: 0 | CK114: 0 | CL114: 28577 | CM114: 1428.85 | CN114: 2857.7 | CO114: 85731 | CP114: 0 | CQ114: 0 | CR114: 28577 | CS114: 1428.85 | CT114: 2857.7 | CU114: 85731 | CV114: 69837.01907 | CW114: 0 | CX114: 0 | CY114: 0 | CZ114: 0.5813205571 | DA114: 56638.27628 | DB114: 0 | DC114: 0 | DD114: 0.4714547493 | DE114: 28577 | DF114: 0 | DG114: 0.9345794393 | DH114: 10603.25008 | DI114: 0.3467676633 | DJ114: 189.9251355 | DK114: 0.07712124112 | DL114: 2462.68256 | DM114: 11457.22876 | DN114: 30878.57249 | DO114: 57799.31966 | DP114: 71268.62707 | DQ114: 88032.57249 | DR114: 261899.003 | DS114: =IF(AND(DR114=MIN(DR$96:DR$338),SUM(DS$95:DS113)=0),1,0) -> 0 | DT114: 69837.01907 | DU114: 0 | DV114: 0 | DW114: 0 | DX114: 0.5813205571 | DY114: 56638.27628 | DZ114: 0 | EA114: 0 | EB114: 0.4714547493 | EC114: 28577 | ED114: 0 | EE114: 0.9345794393 | EF114: 10603.25008 | EG114: 0.3467676633 | EH114: 189.9251355 | EI114: 0.07712124112 | EJ114: 2462.68256 | EK114: 11457.22876 | EL114: 30878.57249 | EM114: 57799.31966 | EN114: 71268.62707 | EO114: 88032.57249 | EP114: 261899.003 | EQ114: =IF(AND(EP114=MIN(EP$96:EP$338),SUM(EQ$95:EQ113)=0),1,0) -> 0
AU115: ='Default Assets'!A115 -> Systems-Revenue Collection System-Rail | BA115: 0 | BB115: 0 | BC115: 2 | BD115: 0 | BE115: 1 | BF115: 0.9808341882 | BG115: 0.01916581175 | BH115: 0 | BI115: 0 | BJ115: 0 | BK115: 0 | BL115: 0 | BM115: 0.9587049164 | BN115: 0.0412950836 | BO115: 0 | BP115: 0 | BQ115: 0 | BR115: 1 | BS115: 0 | BT115: 0 | BU115: 0 | BV115: 0 | BW115: 0 | BX115: 0 | BY115: 0 | BZ115: 0 | CA115: 0.8848084477 | CB115: 0.05759577616 | CC115: 0.05759577616 | CD115: 0 | CE115: 1 | CF115: 0 | CG115: 0 | CH115: 0 | CI115: 0 | CJ115: 0 | CK115: 0 | CL115: 28577 | CM115: 1428.85 | CN115: 28577 | CO115: 85731 | CP115: 0 | CQ115: 0 | CR115: 28577 | CS115: 1428.85 | CT115: 28577 | CU115: 85731 | CV115: 28577 | CW115: 0 | CX115: 0 | CY115: 0.9345794393 | CZ115: 0 | DA115: 43806.14223 | DB115: 0 | DC115: 0.2906602786 | DD115: 0.2906602786 | DE115: 28577 | DF115: 0 | DG115: 0.9345794393 | DH115: 10603.25008 | DI115: 0.3467676633 | DJ115: 189.9251355 | DK115: 0.07712124112 | DL115: 2462.68256 | DM115: 11457.22876 | DN115: 30878.57249 | DO115: 47852.10753 | DP115: 39284.69043 | DQ115: 88032.57249 | DR115: 219967.8542 | DS115: =IF(AND(DR115=MIN(DR$96:DR$338),SUM(DS$95:DS114)=0),1,0) -> 0 | DT115: 28577 | DU115: 0 | DV115: 0 | DW115: 0.9345794393 | DX115: 0 | DY115: 43806.14223 | DZ115: 0 | EA115: 0.2906602786 | EB115: 0.2906602786 | EC115: 28577 | ED115: 0 | EE115: 0.9345794393 | EF115: 10603.25008 | EG115: 0.3467676633 | EH115: 189.9251355 | EI115: 0.07712124112 | EJ115: 2462.68256 | EK115: 11457.22876 | EL115: 30878.57249 | EM115: 47852.10753 | EN115: 39284.69043 | EO115: 88032.57249 | EP115: 219967.8542 | EQ115: =IF(AND(EP115=MIN(EP$96:EP$338),SUM(EQ$95:EQ114)=0),1,0) -> 0
AU116: ='Default Assets'!A116 -> Systems-Roadway Traffic Signals | BA116: 0 | BB116: 0 | BC116: 2 | BD116: 0 | BE116: 2 | BF116: 0.9808341882 | BG116: 0.01916581175 | BH116: 0 | BI116: 0 | BJ116: 0 | BK116: 0 | BL116: 0 | BM116: 0.9587049164 | BN116: 0.0412950836 | BO116: 0 | BP116: 0 | BQ116: 0 | BR116: 1 | BS116: 0 | BT116: 0 | BU116: 0 | BV116: 0 | BW116: 0 | BX116: 0 | BY116: 0 | BZ116: 0 | CA116: 0.8848084477 | CB116: 0.05759577616 | CC116: 0.05759577616 | CD116: 1 | CE116: 0 | CF116: 0 | CG116: 0 | CH116: 0 | CI116: 0 | CJ116: 0 | CK116: 0 | CL116: 28577 | CM116: 1428.85 | CN116: 28577 | CO116: 85731 | CP116: 0 | CQ116: 0 | CR116: 28577 | CS116: 1428.85 | CT116: 28577 | CU116: 85731 | CV116: 28577 | CW116: 0 | CX116: 0 | CY116: 0 | CZ116: 0.9345794393 | DA116: 43806.14223 | DB116: 0 | DC116: 0 | DD116: 0.5813205571 | DE116: 28577 | DF116: 0 | DG116: 0.9345794393 | DH116: 10603.25008 | DI116: 0.3467676633 | DJ116: 189.9251355 | DK116: 0.07712124112 | DL116: 2462.68256 | DM116: 11457.22876 | DN116: 30878.57249 | DO116: 45237.75023 | DP116: 30878.57249 | DQ116: 88032.57249 | DR116: 208947.379 | DS116: =IF(AND(DR116=MIN(DR$96:DR$338),SUM(DS$95:DS115)=0),1,0) -> 0 | DT116: 28577 | DU116: 0 | DV116: 0 | DW116: 0 | DX116: 0.9345794393 | DY116: 43806.14223 | DZ116: 0 | EA116: 0 | EB116: 0.5813205571 | EC116: 28577 | ED116: 0 | EE116: 0.9345794393 | EF116: 10603.25008 | EG116: 0.3467676633 | EH116: 189.9251355 | EI116: 0.07712124112 | EJ116: 2462.68256 | EK116: 11457.22876 | EL116: 30878.57249 | EM116: 45237.75023 | EN116: 30878.57249 | EO116: 88032.57249 | EP116: 208947.379 | EQ116: =IF(AND(EP116=MIN(EP$96:EP$338),SUM(EQ$95:EQ115)=0),1,0) -> 0
AU117: ='Default Assets'!A117 -> Systems-SCADA RTU | BA117: 0 | BB117: 0 | BC117: 2 | BD117: 1 | BE117: 0 | BF117: 0.9808341882 | BG117: 0.01916581175 | BH117: 0 | BI117: 0 | BJ117: 0 | BK117: 0 | BL117: 0 | BM117: 0.9587049164 | BN117: 0.0412950836 | BO117: 0 | BP117: 0 | BQ117: 0 | BR117: 1 | BS117: 0 | BT117: 0 | BU117: 0 | BV117: 0 | BW117: 0 | BX117: 0 | BY117: 1 | BZ117: 0 | CA117: 0 | CB117: 0 | CC117: 0 | CD117: 0 | CE117: 0 | CF117: 0 | CG117: 0 | CH117: 0.8848084477 | CI117: 0.1151915523 | CJ117: 0 | CK117: 0 | CL117: 28577 | CM117: 28577 | CN117: 2857.7 | CO117: 85731 | CP117: 0 | CQ117: 0 | CR117: 28577 | CS117: 28577 | CT117: 2857.7 | CU117: 85731 | CV117: 69837.01907 | CW117: 0 | CX117: 0 | CY117: 0 | CZ117: 0.5813205571 | DA117: 28577 | DB117: 0 | DC117: 0.9345794393 | DD117: 0 | DE117: 28577 | DF117: 0 | DG117: 0.9345794393 | DH117: 10603.25008 | DI117: 0.3467676633 | DJ117: 189.9251355 | DK117: 0.07712124112 | DL117: 2462.68256 | DM117: 11457.22876 | DN117: 30878.57249 | DO117: 39284.69043 | DP117: 71268.62707 | DQ117: 88032.57249 | DR117: 243384.3738 | DS117: =IF(AND(DR117=MIN(DR$96:DR$338),SUM(DS$95:DS116)=0),1,0) -> 0 | DT117: 69837.01907 | DU117: 0 | DV117: 0 | DW117: 0 | DX117: 0.5813205571 | DY117: 28577 | DZ117: 0 | EA117: 0.9345794393 | EB117: 0 | EC117: 28577 | ED117: 0 | EE117: 0.9345794393 | EF117: 10603.25008 | EG117: 0.3467676633 | EH117: 189.9251355 | EI117: 0.07712124112 | EJ117: 2462.68256 | EK117: 11457.22876 | EL117: 30878.57249 | EM117: 39284.69043 | EN117: 71268.62707 | EO117: 88032.57249 | EP117: 243384.3738 | EQ117: =IF(AND(EP117=MIN(EP$96:EP$338),SUM(EQ$95:EQ116)=0),1,0) -> 0
AU118: ='Default Assets'!A118 -> Systems-Signal Bridge | BA118: 0 | BB118: 0 | BC118: 2 | BD118: 1 | BE118: 1 | BF118: 0.9808341882 | BG118: 0.01916581175 | BH118: 0 | BI118: 0 | BJ118: 0 | BK118: 0 | BL118: 0 | BM118: 0.9587049164 | BN118: 0.0412950836 | BO118: 0 | BP118: 0 | BQ118: 0 | BR118: 1 | BS118: 0 | BT118: 0 | BU118: 0 | BV118: 0 | BW118: 0 | BX118: 0 | BY118: 1 | BZ118: 0 | CA118: 0 | CB118: 0 | CC118: 0 | CD118: 0 | CE118: 1 | CF118: 0 | CG118: 0 | CH118: 0 | CI118: 0 | CJ118: 0 | CK118: 0 | CL118: 28577 | CM118: 28577 | CN118: 28577 | CO118: 85731 | CP118: 0 | CQ118: 0 | CR118: 28577 | CS118: 28577 | CT118: 28577 | CU118: 85731 | CV118: 28577 | CW118: 0 | CX118: 0 | CY118: 0.9345794393 | CZ118: 0 | DA118: 28577 | DB118: 0 | DC118: 0.9345794393 | DD118: 0 | DE118: 28577 | DF118: 0 | DG118: 0.9345794393 | DH118: 10603.25008 | DI118: 0.3467676633 | DJ118: 189.9251355 | DK118: 0.07712124112 | DL118: 2462.68256 | DM118: 11457.22876 | DN118: 30878.57249 | DO118: 39284.69043 | DP118: 39284.69043 | DQ118: 88032.57249 | DR118: 211400.4371 | DS118: =IF(AND(DR118=MIN(DR$96:DR$338),SUM(DS$95:DS117)=0),1,0) -> 0 | DT118: 28577 | DU118: 0 | DV118: 0 | DW118: 0.9345794393 | DX118: 0 | DY118: 28577 | DZ118: 0 | EA118: 0.9345794393 | EB118: 0 | EC118: 28577 | ED118: 0 | EE118: 0.9345794393 | EF118: 10603.25008 | EG118: 0.3467676633 | EH118: 189.9251355 | EI118: 0.07712124112 | EJ118: 2462.68256 | EK118: 11457.22876 | EL118: 30878.57249 | EM118: 39284.69043 | EN118: 39284.69043 | EO118: 88032.57249 | EP118: 211400.4371 | EQ118: =IF(AND(EP118=MIN(EP$96:EP$338),SUM(EQ$95:EQ117)=0),1,0) -> 0
AU119: ='Default Assets'!A119 -> Systems-Signals & Train Stops | BA119: 0 | BB119: 0 | BC119: 2 | BD119: 1 | BE119: 2 | BF119: 0.9808341882 | BG119: 0.01916581175 | BH119: 0 | BI119: 0 | BJ119: 0 | BK119: 0 | BL119: 0 | BM119: 0.9587049164 | BN119: 0.0412950836 | BO119: 0 | BP119: 0 | BQ119: 0 | BR119: 1 | BS119: 0 | BT119: 0 | BU119: 0 | BV119: 0 | BW119: 0 | BX119: 0 | BY119: 1 | BZ119: 0 | CA119: 0 | CB119: 0 | CC119: 0 | CD119: 1 | CE119: 0 | CF119: 0 | CG119: 0 | CH119: 0 | CI119: 0 | CJ119: 0 | CK119: 0 | CL119: 28577 | CM119: 28577 | CN119: 28577 | CO119: 85731 | CP119: 0 | CQ119: 0 | CR119: 28577 | CS119: 28577 | CT119: 28577 | CU119: 85731 | CV119: 28577 | CW119: 0 | CX119: 0 | CY119: 0 | CZ119: 0.9345794393 | DA119: 28577 | DB119: 0 | DC119: 0.9345794393 | DD119: 0 | DE119: 28577 | DF119: 0 | DG119: 0.9345794393 | DH119: 10603.25008 | DI119: 0.3467676633 | DJ119: 189.9251355 | DK119: 0.07712124112 | DL119: 2462.68256 | DM119: 11457.22876 | DN119: 30878.57249 | DO119: 39284.69043 | DP119: 30878.57249 | DQ119: 88032.57249 | DR119: 202994.3192 | DS119: =IF(AND(DR119=MIN(DR$96:DR$338),SUM(DS$95:DS118)=0),1,0) -> 0 | DT119: 28577 | DU119: 0 | DV119: 0 | DW119: 0 | DX119: 0.9345794393 | DY119: 28577 | DZ119: 0 | EA119: 0.9345794393 | EB119: 0 | EC119: 28577 | ED119: 0 | EE119: 0.9345794393 | EF119: 10603.25008 | EG119: 0.3467676633 | EH119: 189.9251355 | EI119: 0.07712124112 | EJ119: 2462.68256 | EK119: 11457.22876 | EL119: 30878.57249 | EM119: 39284.69043 | EN119: 30878.57249 | EO119: 88032.57249 | EP119: 202994.3192 | EQ119: =IF(AND(EP119=MIN(EP$96:EP$338),SUM(EQ$95:EQ118)=0),1,0) -> 0
AU120: ='Default Assets'!A120 -> Systems-Subway Ventilation | BA120: 0 | BB120: 0 | BC120: 2 | BD120: 2 | BE120: 0 | BF120: 0.9808341882 | BG120: 0.01916581175 | BH120: 0 | BI120: 0 | BJ120: 0 | BK120: 0 | BL120: 0 | BM120: 0.9587049164 | BN120: 0.0412950836 | BO120: 0 | BP120: 0 | BQ120: 0 | BR120: 1 | BS120: 0 | BT120: 0 | BU120: 0 | BV120: 0 | BW120: 0 | BX120: 1 | BY120: 0 | BZ120: 0 | CA120: 0 | CB120: 0 | CC120: 0 | CD120: 0 | CE120: 0 | CF120: 0 | CG120: 0 | CH120: 0.8848084477 | CI120: 0.1151915523 | CJ120: 0 | CK120: 0 | CL120: 28577 | CM120: 28577 | CN120: 2857.7 | CO120: 85731 | CP120: 0 | CQ120: 0 | CR120: 28577 | CS120: 28577 | CT120: 2857.7 | CU120: 85731 | CV120: 69837.01907 | CW120: 0 | CX120: 0 | CY120: 0 | CZ120: 0.5813205571 | DA120: 28577 | DB120: 0 | DC120: 0 | DD120: 0.9345794393 | DE120: 28577 | DF120: 0 | DG120: 0.9345794393 | DH120: 10603.25008 | DI120: 0.3467676633 | DJ120: 189.9251355 | DK120: 0.07712124112 | DL120: 2462.68256 | DM120: 11457.22876 | DN120: 30878.57249 | DO120: 30878.57249 | DP120: 71268.62707 | DQ120: 88032.57249 | DR120: 234978.2558 | DS120: =IF(AND(DR120=MIN(DR$96:DR$338),SUM(DS$95:DS119)=0),1,0) -> 0 | DT120: 69837.01907 | DU120: 0 | DV120: 0 | DW120: 0 | DX120: 0.5813205571 | DY120: 28577 | DZ120: 0 | EA120: 0 | EB120: 0.9345794393 | EC120: 28577 | ED120: 0 | EE120: 0.9345794393 | EF120: 10603.25008 | EG120: 0.3467676633 | EH120: 189.9251355 | EI120: 0.07712124112 | EJ120: 2462.68256 | EK120: 11457.22876 | EL120: 30878.57249 | EM120: 30878.57249 | EN120: 71268.62707 | EO120: 88032.57249 | EP120: 234978.2558 | EQ120: =IF(AND(EP120=MIN(EP$96:EP$338),SUM(EQ$95:EQ119)=0),1,0) -> 0
AU121: ='Default Assets'!A121 -> Systems-Sump Pump/Discharge Pipes | BA121: 0 | BB121: 0 | BC121: 2 | BD121: 2 | BE121: 1 | BF121: 0.9808341882 | BG121: 0.01916581175 | BH121: 0 | BI121: 0 | BJ121: 0 | BK121: 0 | BL121: 0 | BM121: 0.9587049164 | BN121: 0.0412950836 | BO121: 0 | BP121: 0 | BQ121: 0 | BR121: 1 | BS121: 0 | BT121: 0 | BU121: 0 | BV121: 0 | BW121: 0 | BX121: 1 | BY121: 0 | BZ121: 0 | CA121: 0 | CB121: 0 | CC121: 0 | CD121: 0 | CE121: 1 | CF121: 0 | CG121: 0 | CH121: 0 | CI121: 0 | CJ121: 0 | CK121: 0 | CL121: 28577 | CM121: 28577 | CN121: 28577 | CO121: 85731 | CP121: 0 | CQ121: 0 | CR121: 28577 | CS121: 28577 | CT121: 28577 | CU121: 85731 | CV121: 28577 | CW121: 0 | CX121: 0 | CY121: 0.9345794393 | CZ121: 0 | DA121: 28577 | DB121: 0 | DC121: 0 | DD121: 0.9345794393 | DE121: 28577 | DF121: 0 | DG121: 0.9345794393 | DH121: 10603.25008 | DI121: 0.3467676633 | DJ121: 189.9251355 | DK121: 0.07712124112 | DL121: 2462.68256 | DM121: 11457.22876 | DN121: 30878.57249 | DO121: 30878.57249 | DP121: 39284.69043 | DQ121: 88032.57249 | DR121: 202994.3192 | DS121: =IF(AND(DR121=MIN(DR$96:DR$338),SUM(DS$95:DS120)=0),1,0) -> 0 | DT121: 28577 | DU121: 0 | DV121: 0 | DW121: 0.9345794393 | DX121: 0 | DY121: 28577 | DZ121: 0 | EA121: 0 | EB121: 0.9345794393 | EC121: 28577 | ED121: 0 | EE121: 0.9345794393 | EF121: 10603.25008 | EG121: 0.3467676633 | EH121: 189.9251355 | EI121: 0.07712124112 | EJ121: 2462.68256 | EK121: 11457.22876 | EL121: 30878.57249 | EM121: 30878.57249 | EN121: 39284.69043 | EO121: 88032.57249 | EP121: 202994.3192 | EQ121: =IF(AND(EP121=MIN(EP$96:EP$338),SUM(EQ$95:EQ120)=0),1,0) -> 0
AU122: ='Default Assets'!A122 -> Systems-System Utilities | BA122: 0 | BB122: 0 | BC122: 2 | BD122: 2 | BE122: 2 | BF122: 0.9808341882 | BG122: 0.01916581175 | BH122: 0 | BI122: 0 | BJ122: 0 | BK122: 0 | BL122: 0 | BM122: 0.9587049164 | BN122: 0.0412950836 | BO122: 0 | BP122: 0 | BQ122: 0 | BR122: 1 | BS122: 0 | BT122: 0 | BU122: 0 | BV122: 0 | BW122: 0 | BX122: 1 | BY122: 0 | BZ122: 0 | CA122: 0 | CB122: 0 | CC122: 0 | CD122: 1 | CE122: 0 | CF122: 0 | CG122: 0 | CH122: 0 | CI122: 0 | CJ122: 0 | CK122: 0 | CL122: 28577 | CM122: 28577 | CN122: 28577 | CO122: 85731 | CP122: 0 | CQ122: 0 | CR122: 28577 | CS122: 28577 | CT122: 28577 | CU122: 85731 | CV122: 28577 | CW122: 0 | CX122: 0 | CY122: 0 | CZ122: 0.9345794393 | DA122: 28577 | DB122: 0 | DC122: 0 | DD122: 0.9345794393 | DE122: 28577 | DF122: 0 | DG122: 0.9345794393 | DH122: 10603.25008 | DI122: 0.3467676633 | DJ122: 189.9251355 | DK122: 0.07712124112 | DL122: 2462.68256 | DM122: 11457.22876 | DN122: 30878.57249 | DO122: 30878.57249 | DP122: 30878.57249 | DQ122: 88032.57249 | DR122: 194588.2013 | DS122: =IF(AND(DR122=MIN(DR$96:DR$338),SUM(DS$95:DS121)=0),1,0) -> 0 | DT122: 28577 | DU122: 0 | DV122: 0 | DW122: 0 | DX122: 0.9345794393 | DY122: 28577 | DZ122: 0 | EA122: 0 | EB122: 0.9345794393 | EC122: 28577 | ED122: 0 | EE122: 0.9345794393 | EF122: 10603.25008 | EG122: 0.3467676633 | EH122: 189.9251355 | EI122: 0.07712124112 | EJ122: 2462.68256 | EK122: 11457.22876 | EL122: 30878.57249 | EM122: 30878.57249 | EN122: 30878.57249 | EO122: 88032.57249 | EP122: 194588.2013 | EQ122: =IF(AND(EP122=MIN(EP$96:EP$338),SUM(EQ$95:EQ121)=0),1,0) -> 0
AU123: ='Default Assets'!A123 -> Systems-Train Control | BA123: 0 | BB123: 1 | BC123: 0 | BD123: 0 | BE123: 0 | BF123: 0.9808341882 | BG123: 0.01916581175 | BH123: 0 | BI123: 0 | BJ123: 0 | BK123: 0 | BL123: 0 | BM123: 1 | BN123: 0 | BO123: 0 | BP123: 0 | BQ123: 0 | BR123: 0 | BS123: 0 | BT123: 0.9287843724 | BU123: 0.07121562757 | BV123: 0 | BW123: 0 | BX123: 0 | BY123: 0 | BZ123: 0 | CA123: 0.8848084477 | CB123: 0.05759577616 | CC123: 0.05759577616 | CD123: 0 | CE123: 0 | CF123: 0 | CG123: 0 | CH123: 0.8848084477 | CI123: 0.1151915523 | CJ123: 0 | CK123: 28577 | CL123: 0 | CM123: 1428.85 | CN123: 2857.7 | CO123: 85731 | CP123: 0 | CQ123: 28577 | CR123: 0 | CS123: 1428.85 | CT123: 2857.7 | CU123: 85731 | CV123: 69837.01907 | CW123: 0 | CX123: 0 | CY123: 0 | CZ123: 0.5813205571 | DA123: 56638.27628 | DB123: 0 | DC123: 0 | DD123: 0.4714547493 | DE123: 28562.91799 | DF123: 0 | DG123: 0.2377565884 | DH123: 436819.8571 | DI123: 0 | DJ123: 7824.305748 | DK123: 0.08333253435 | DL123: 93892.56921 | DM123: 436819.8571 | DN123: 50886.49493 | DO123: 100904.374 | DP123: 124418.6997 | DQ123: 173481.0647 | DR123: 980403.0596 | DS123: =IF(AND(DR123=MIN(DR$96:DR$338),SUM(DS$95:DS122)=0),1,0) -> 0 | DT123: 69837.01907 | DU123: 0 | DV123: 0 | DW123: 0 | DX123: 0.5813205571 | DY123: 56638.27628 | DZ123: 0 | EA123: 0 | EB123: 0.4714547493 | EC123: 28562.91799 | ED123: 0 | EE123: 0.2377565884 | EF123: 436819.8571 | EG123: 0 | EH123: 7824.305748 | EI123: 0.08333253435 | EJ123: 93892.56921 | EK123: 436819.8571 | EL123: 50886.49493 | EM123: 100904.374 | EN123: 124418.6997 | EO123: 173481.0647 | EP123: 980403.0596 | EQ123: =IF(AND(EP123=MIN(EP$96:EP$338),SUM(EQ$95:EQ122)=0),1,0) -> 0
AU124: ='Default Assets'!A124 -> Systems-Train Control | BA124: 0 | BB124: 1 | BC124: 0 | BD124: 0 | BE124: 1 | BF124: 0.9808341882 | BG124: 0.01916581175 | BH124: 0 | BI124: 0 | BJ124: 0 | BK124: 0 | BL124: 0 | BM124: 1 | BN124: 0 | BO124: 0 | BP124: 0 | BQ124: 0 | BR124: 0 | BS124: 0 | BT124: 0.9287843724 | BU124: 0.07121562757 | BV124: 0 | BW124: 0 | BX124: 0 | BY124: 0 | BZ124: 0 | CA124: 0.8848084477 | CB124: 0.05759577616 | CC124: 0.05759577616 | CD124: 0 | CE124: 1 | CF124: 0 | CG124: 0 | CH124: 0 | CI124: 0 | CJ124: 0 | CK124: 28577 | CL124: 0 | CM124: 1428.85 | CN124: 28577 | CO124: 85731 | CP124: 0 | CQ124: 28577 | CR124: 0 | CS124: 1428.85 | CT124: 28577 | CU124: 85731 | CV124: 28577 | CW124: 0 | CX124: 0 | CY124: 0.9345794393 | CZ124: 0 | DA124: 43806.14223 | DB124: 0 | DC124: 0.2906602786 | DD124: 0.2906602786 | DE124: 22091.61949 | DF124: 0.1465811858 | DG124: 0.1465811858 | DH124: 436819.8571 | DI124: 0 | DJ124: 7824.305748 | DK124: 0.08333253435 | DL124: 93892.56921 | DM124: 436819.8571 | DN124: 99884.07629 | DO124: 198063.1639 | DP124: 436819.8571 | DQ124: 173481.0647 | DR124: 1438960.588 | DS124: =IF(AND(DR124=MIN(DR$96:DR$338),SUM(DS$95:DS123)=0),1,0) -> 0 | DT124: 28577 | DU124: 0 | DV124: 0 | DW124: 0.9345794393 | DX124: 0 | DY124: 43806.14223 | DZ124: 0 | EA124: 0.2906602786 | EB124: 0.2906602786 | EC124: 22091.61949 | ED124: 0.1465811858 | EE124: 0.1465811858 | EF124: 436819.8571 | EG124: 0 | EH124: 7824.305748 | EI124: 0.08333253435 | EJ124: 93892.56921 | EK124: 436819.8571 | EL124: 99884.07629 | EM124: 198063.1639 | EN124: 436819.8571 | EO124: 173481.0647 | EP124: 1438960.588 | EQ124: =IF(AND(EP124=MIN(EP$96:EP$338),SUM(EQ$95:EQ123)=0),1,0) -> 0
AU125: ='Default Assets'!A125 -> Systems-Train Control Cable | BA125: 0 | BB125: 1 | BC125: 0 | BD125: 0 | BE125: 2 | BF125: 0.9808341882 | BG125: 0.01916581175 | BH125: 0 | BI125: 0 | BJ125: 0 | BK125: 0 | BL125: 0 | BM125: 1 | BN125: 0 | BO125: 0 | BP125: 0 | BQ125: 0 | BR125: 0 | BS125: 0 | BT125: 0.9287843724 | BU125: 0.07121562757 | BV125: 0 | BW125: 0 | BX125: 0 | BY125: 0 | BZ125: 0 | CA125: 0.8848084477 | CB125: 0.05759577616 | CC125: 0.05759577616 | CD125: 1 | CE125: 0 | CF125: 0 | CG125: 0 | CH125: 0 | CI125: 0 | CJ125: 0 | CK125: 28577 | CL125: 0 | CM125: 1428.85 | CN125: 28577 | CO125: 85731 | CP125: 0 | CQ125: 28577 | CR125: 0 | CS125: 1428.85 | CT125: 28577 | CU125: 85731 | CV125: 28577 | CW125: 0 | CX125: 0 | CY125: 0 | CZ125: 0.9345794393 | DA125: 43806.14223 | DB125: 0 | DC125: 0 | DD125: 0.5813205571 | DE125: 22091.61949 | DF125: 0 | DG125: 0.2931623717 | DH125: 436819.8571 | DI125: 0 | DJ125: 7824.305748 | DK125: 0.08333253435 | DL125: 93892.56921 | DM125: 436819.8571 | DN125: 49617.38777 | DO125: 98387.82288 | DP125: 116327.0647 | DQ125: 173481.0647 | DR125: 968525.7664 | DS125: =IF(AND(DR125=MIN(DR$96:DR$338),SUM(DS$95:DS124)=0),1,0) -> 0 | DT125: 28577 | DU125: 0 | DV125: 0 | DW125: 0 | DX125: 0.9345794393 | DY125: 43806.14223 | DZ125: 0 | EA125: 0 | EB125: 0.5813205571 | EC125: 22091.61949 | ED125: 0 | EE125: 0.2931623717 | EF125: 436819.8571 | EG125: 0 | EH125: 7824.305748 | EI125: 0.08333253435 | EJ125: 93892.56921 | EK125: 436819.8571 | EL125: 49617.38777 | EM125: 98387.82288 | EN125: 116327.0647 | EO125: 173481.0647 | EP125: 968525.7664 | EQ125: =IF(AND(EP125=MIN(EP$96:EP$338),SUM(EQ$95:EQ124)=0),1,0) -> 0
AU126: ='Default Assets'!A126 -> Systems-Train Control, Elec., Comm., Revenue Collect. & Util. | BA126: 0 | BB126: 1 | BC126: 0 | BD126: 1 | BE126: 0 | BF126: 0.9808341882 | BG126: 0.01916581175 | BH126: 0 | BI126: 0 | BJ126: 0 | BK126: 0 | BL126: 0 | BM126: 1 | BN126: 0 | BO126: 0 | BP126: 0 | BQ126: 0 | BR126: 0 | BS126: 0 | BT126: 0.9287843724 | BU126: 0.07121562757 | BV126: 0 | BW126: 0 | BX126: 0 | BY126: 1 | BZ126: 0 | CA126: 0 | CB126: 0 | CC126: 0 | CD126: 0 | CE126: 0 | CF126: 0 | CG126: 0 | CH126: 0.8848084477 | CI126: 0.1151915523 | CJ126: 0 | CK126: 28577 | CL126: 0 | CM126: 28577 | CN126: 2857.7 | CO126: 85731 | CP126: 0 | CQ126: 28577 | CR126: 0 | CS126: 28577 | CT126: 2857.7 | CU126: 85731 | CV126: 69837.01907 | CW126: 0 | CX126: 0 | CY126: 0 | CZ126: 0.5813205571 | DA126: 28577 | DB126: 0 | DC126: 0.9345794393 | DD126: 0 | DE126: 14411.4998 | DF126: 0.4713122933 | DG126: 0 | DH126: 436819.8571 | DI126: 0 | DJ126: 7824.305748 | DK126: 0.08333253435 | DL126: 93892.56921 | DM126: 436819.8571 | DN126: 220290.0684 | DO126: 436819.8571 | DP126: 124418.6997 | DQ126: 173481.0647 | DR126: 1485722.116 | DS126: =IF(AND(DR126=MIN(DR$96:DR$338),SUM(DS$95:DS125)=0),1,0) -> 0 | DT126: 69837.01907 | DU126: 0 | DV126: 0 | DW126: 0 | DX126: 0.5813205571 | DY126: 28577 | DZ126: 0 | EA126: 0.9345794393 | EB126: 0 | EC126: 14411.4998 | ED126: 0.4713122933 | EE126: 0 | EF126: 436819.8571 | EG126: 0 | EH126: 7824.305748 | EI126: 0.08333253435 | EJ126: 93892.56921 | EK126: 436819.8571 | EL126: 220290.0684 | EM126: 436819.8571 | EN126: 124418.6997 | EO126: 173481.0647 | EP126: 1485722.116 | EQ126: =IF(AND(EP126=MIN(EP$96:EP$338),SUM(EQ$95:EQ125)=0),1,0) -> 0
AU127: ='Default Assets'!A127 -> Systems-Trolley Wire | BA127: 0 | BB127: 1 | BC127: 0 | BD127: 1 | BE127: 1 | BF127: 0.9808341882 | BG127: 0.01916581175 | BH127: 0 | BI127: 0 | BJ127: 0 | BK127: 0 | BL127: 0 | BM127: 1 | BN127: 0 | BO127: 0 | BP127: 0 | BQ127: 0 | BR127: 0 | BS127: 0 | BT127: 0.9287843724 | BU127: 0.07121562757 | BV127: 0 | BW127: 0 | BX127: 0 | BY127: 1 | BZ127: 0 | CA127: 0 | CB127: 0 | CC127: 0 | CD127: 0 | CE127: 1 | CF127: 0 | CG127: 0 | CH127: 0 | CI127: 0 | CJ127: 0 | CK127: 28577 | CL127: 0 | CM127: 28577 | CN127: 28577 | CO127: 85731 | CP127: 0 | CQ127: 28577 | CR127: 0 | CS127: 28577 | CT127: 28577 | CU127: 85731 | CV127: 28577 | CW127: 0 | CX127: 0 | CY127: 0.9345794393 | CZ127: 0 | DA127: 28577 | DB127: 0 | DC127: 0.9345794393 | DD127: 0 | DE127: 14411.4998 | DF127: 0.4713122933 | DG127: 0 | DH127: 436819.8571 | DI127: 0 | DJ127: 7824.305748 | DK127: 0.08333253435 | DL127: 93892.56921 | DM127: 436819.8571 | DN127: 220290.0684 | DO127: 436819.8571 | DP127: 436819.8571 | DQ127: 173481.0647 | DR127: 1798123.274 | DS127: =IF(AND(DR127=MIN(DR$96:DR$338),SUM(DS$95:DS126)=0),1,0) -> 0 | DT127: 28577 | DU127: 0 | DV127: 0 | DW127: 0.9345794393 | DX127: 0 | DY127: 28577 | DZ127: 0 | EA127: 0.9345794393 | EB127: 0 | EC127: 14411.4998 | ED127: 0.4713122933 | EE127: 0 | EF127: 436819.8571 | EG127: 0 | EH127: 7824.305748 | EI127: 0.08333253435 | EJ127: 93892.56921 | EK127: 436819.8571 | EL127: 220290.0684 | EM127: 436819.8571 | EN127: 436819.8571 | EO127: 173481.0647 | EP127: 1798123.274 | EQ127: =IF(AND(EP127=MIN(EP$96:EP$338),SUM(EQ$95:EQ126)=0),1,0) -> 0
AU128: ='Default Assets'!A128 -> Systems-Tunnel Handrail | BA128: 0 | BB128: 1 | BC128: 0 | BD128: 1 | BE128: 2 | BF128: 0.9808341882 | BG128: 0.01916581175 | BH128: 0 | BI128: 0 | BJ128: 0 | BK128: 0 | BL128: 0 | BM128: 1 | BN128: 0 | BO128: 0 | BP128: 0 | BQ128: 0 | BR128: 0 | BS128: 0 | BT128: 0.9287843724 | BU128: 0.07121562757 | BV128: 0 | BW128: 0 | BX128: 0 | BY128: 1 | BZ128: 0 | CA128: 0 | CB128: 0 | CC128: 0 | CD128: 1 | CE128: 0 | CF128: 0 | CG128: 0 | CH128: 0 | CI128: 0 | CJ128: 0 | CK128: 28577 | CL128: 0 | CM128: 28577 | CN128: 28577 | CO128: 85731 | CP128: 0 | CQ128: 28577 | CR128: 0 | CS128: 28577 | CT128: 28577 | CU128: 85731 | CV128: 28577 | CW128: 0 | CX128: 0 | CY128: 0 | CZ128: 0.9345794393 | DA128: 28577 | DB128: 0 | DC128: 0.9345794393 | DD128: 0 | DE128: 14411.4998 | DF128: 0.4713122933 | DG128: 0 | DH128: 436819.8571 | DI128: 0 | DJ128: 7824.305748 | DK128: 0.08333253435 | DL128: 93892.56921 | DM128: 436819.8571 | DN128: 220290.0684 | DO128: 436819.8571 | DP128: 116327.0647 | DQ128: 173481.0647 | DR128: 1477630.481 | DS128: =IF(AND(DR128=MIN(DR$96:DR$338),SUM(DS$95:DS127)=0),1,0) -> 0 | DT128: 28577 | DU128: 0 | DV128: 0 | DW128: 0 | DX128: 0.9345794393 | DY128: 28577 | DZ128: 0 | EA128: 0.9345794393 | EB128: 0 | EC128: 14411.4998 | ED128: 0.4713122933 | EE128: 0 | EF128: 436819.8571 | EG128: 0 | EH128: 7824.305748 | EI128: 0.08333253435 | EJ128: 93892.56921 | EK128: 436819.8571 | EL128: 220290.0684 | EM128: 436819.8571 | EN128: 116327.0647 | EO128: 173481.0647 | EP128: 1477630.481 | EQ128: =IF(AND(EP128=MIN(EP$96:EP$338),SUM(EQ$95:EQ127)=0),1,0) -> 0
AU129: ='Default Assets'!A129 -> Systems-Turnstile | BA129: 0 | BB129: 1 | BC129: 0 | BD129: 2 | BE129: 0 | BF129: 0.9808341882 | BG129: 0.01916581175 | BH129: 0 | BI129: 0 | BJ129: 0 | BK129: 0 | BL129: 0 | BM129: 1 | BN129: 0 | BO129: 0 | BP129: 0 | BQ129: 0 | BR129: 0 | BS129: 0 | BT129: 0.9287843724 | BU129: 0.07121562757 | BV129: 0 | BW129: 0 | BX129: 1 | BY129: 0 | BZ129: 0 | CA129: 0 | CB129: 0 | CC129: 0 | CD129: 0 | CE129: 0 | CF129: 0 | CG129: 0 | CH129: 0.8848084477 | CI129: 0.1151915523 | CJ129: 0 | CK129: 28577 | CL129: 0 | CM129: 28577 | CN129: 2857.7 | CO129: 85731 | CP129: 0 | CQ129: 28577 | CR129: 0 | CS129: 28577 | CT129: 2857.7 | CU129: 85731 | CV129: 69837.01907 | CW129: 0 | CX129: 0 | CY129: 0 | CZ129: 0.5813205571 | DA129: 28577 | DB129: 0 | DC129: 0 | DD129: 0.9345794393 | DE129: 14411.4998 | DF129: 0 | DG129: 0.4713122933 | DH129: 436819.8571 | DI129: 0 | DJ129: 7824.305748 | DK129: 0.08333253435 | DL129: 93892.56921 | DM129: 436819.8571 | DN129: 58664.22192 | DO129: 116327.0647 | DP129: 124418.6997 | DQ129: 173481.0647 | DR129: 1003603.477 | DS129: =IF(AND(DR129=MIN(DR$96:DR$338),SUM(DS$95:DS128)=0),1,0) -> 0 | DT129: 69837.01907 | DU129: 0 | DV129: 0 | DW129: 0 | DX129: 0.5813205571 | DY129: 28577 | DZ129: 0 | EA129: 0 | EB129: 0.9345794393 | EC129: 14411.4998 | ED129: 0 | EE129: 0.4713122933 | EF129: 436819.8571 | EG129: 0 | EH129: 7824.305748 | EI129: 0.08333253435 | EJ129: 93892.56921 | EK129: 436819.8571 | EL129: 58664.22192 | EM129: 116327.0647 | EN129: 124418.6997 | EO129: 173481.0647 | EP129: 1003603.477 | EQ129: =IF(AND(EP129=MIN(EP$96:EP$338),SUM(EQ$95:EQ128)=0),1,0) -> 0
AU130: ='Default Assets'!A130 -> User Specified | BA130: 0 | BB130: 1 | BC130: 0 | BD130: 2 | BE130: 1 | BF130: 0.9808341882 | BG130: 0.01916581175 | BH130: 0 | BI130: 0 | BJ130: 0 | BK130: 0 | BL130: 0 | BM130: 1 | BN130: 0 | BO130: 0 | BP130: 0 | BQ130: 0 | BR130: 0 | BS130: 0 | BT130: 0.9287843724 | BU130: 0.07121562757 | BV130: 0 | BW130: 0 | BX130: 1 | BY130: 0 | BZ130: 0 | CA130: 0 | CB130: 0 | CC130: 0 | CD130: 0 | CE130: 1 | CF130: 0 | CG130: 0 | CH130: 0 | CI130: 0 | CJ130: 0 | CK130: 28577 | CL130: 0 | CM130: 28577 | CN130: 28577 | CO130: 85731 | CP130: 0 | CQ130: 28577 | CR130: 0 | CS130: 28577 | CT130: 28577 | CU130: 85731 | CV130: 28577 | CW130: 0 | CX130: 0 | CY130: 0.9345794393 | CZ130: 0 | DA130: 28577 | DB130: 0 | DC130: 0 | DD130: 0.9345794393 | DE130: 14411.4998 | DF130: 0 | DG130: 0.4713122933 | DH130: 436819.8571 | DI130: 0 | DJ130: 7824.305748 | DK130: 0.08333253435 | DL130: 93892.56921 | DM130: 436819.8571 | DN130: 58664.22192 | DO130: 116327.0647 | DP130: 436819.8571 | DQ130: 173481.0647 | DR130: 1316004.635 | DS130: =IF(AND(DR130=MIN(DR$96:DR$338),SUM(DS$95:DS129)=0),1,0) -> 0 | DT130: 28577 | DU130: 0 | DV130: 0 | DW130: 0.9345794393 | DX130: 0 | DY130: 28577 | DZ130: 0 | EA130: 0 | EB130: 0.9345794393 | EC130: 14411.4998 | ED130: 0 | EE130: 0.4713122933 | EF130: 436819.8571 | EG130: 0 | EH130: 7824.305748 | EI130: 0.08333253435 | EJ130: 93892.56921 | EK130: 436819.8571 | EL130: 58664.22192 | EM130: 116327.0647 | EN130: 436819.8571 | EO130: 173481.0647 | EP130: 1316004.635 | EQ130: =IF(AND(EP130=MIN(EP$96:EP$338),SUM(EQ$95:EQ129)=0),1,0) -> 0
BA131: 0 | BB131: 1 | BC131: 0 | BD131: 2 | BE131: 2 | BF131: 0.9808341882 | BG131: 0.01916581175 | BH131: 0 | BI131: 0 | BJ131: 0 | BK131: 0 | BL131: 0 | BM131: 1 | BN131: 0 | BO131: 0 | BP131: 0 | BQ131: 0 | BR131: 0 | BS131: 0 | BT131: 0.9287843724 | BU131: 0.07121562757 | BV131: 0 | BW131: 0 | BX131: 1 | BY131: 0 | BZ131: 0 | CA131: 0 | CB131: 0 | CC131: 0 | CD131: 1 | CE131: 0 | CF131: 0 | CG131: 0 | CH131: 0 | CI131: 0 | CJ131: 0 | CK131: 28577 | CL131: 0 | CM131: 28577 | CN131: 28577 | CO131: 85731 | CP131: 0 | CQ131: 28577 | CR131: 0 | CS131: 28577 | CT131: 28577 | CU131: 85731 | CV131: 28577 | CW131: 0 | CX131: 0 | CY131: 0 | CZ131: 0.9345794393 | DA131: 28577 | DB131: 0 | DC131: 0 | DD131: 0.9345794393 | DE131: 14411.4998 | DF131: 0 | DG131: 0.4713122933 | DH131: 436819.8571 | DI131: 0 | DJ131: 7824.305748 | DK131: 0.08333253435 | DL131: 93892.56921 | DM131: 436819.8571 | DN131: 58664.22192 | DO131: 116327.0647 | DP131: 116327.0647 | DQ131: 173481.0647 | DR131: 995511.8423 | DS131: =IF(AND(DR131=MIN(DR$96:DR$338),SUM(DS$95:DS130)=0),1,0) -> 0 | DT131: 28577 | DU131: 0 | DV131: 0 | DW131: 0 | DX131: 0.9345794393 | DY131: 28577 | DZ131: 0 | EA131: 0 | EB131: 0.9345794393 | EC131: 14411.4998 | ED131: 0 | EE131: 0.4713122933 | EF131: 436819.8571 | EG131: 0 | EH131: 7824.305748 | EI131: 0.08333253435 | EJ131: 93892.56921 | EK131: 436819.8571 | EL131: 58664.22192 | EM131: 116327.0647 | EN131: 116327.0647 | EO131: 173481.0647 | EP131: 995511.8423 | EQ131: =IF(AND(EP131=MIN(EP$96:EP$338),SUM(EQ$95:EQ130)=0),1,0) -> 0
AU132: Asset Condition Dropdown | BA132: 0 | BB132: 1 | BC132: 1 | BD132: 0 | BE132: 0 | BF132: 0.9808341882 | BG132: 0.01916581175 | BH132: 0 | BI132: 0 | BJ132: 0 | BK132: 0 | BL132: 0 | BM132: 1 | BN132: 0 | BO132: 0 | BP132: 0 | BQ132: 0 | BR132: 0 | BS132: 1 | BT132: 0 | BU132: 0 | BV132: 0 | BW132: 0 | BX132: 0 | BY132: 0 | BZ132: 0 | CA132: 0.8848084477 | CB132: 0.05759577616 | CC132: 0.05759577616 | CD132: 0 | CE132: 0 | CF132: 0 | CG132: 0 | CH132: 0.8848084477 | CI132: 0.1151915523 | CJ132: 0 | CK132: 28577 | CL132: 28577 | CM132: 1428.85 | CN132: 2857.7 | CO132: 85731 | CP132: 0 | CQ132: 28577 | CR132: 28577 | CS132: 1428.85 | CT132: 2857.7 | CU132: 85731 | CV132: 69837.01907 | CW132: 0 | CX132: 0 | CY132: 0 | CZ132: 0.5813205571 | DA132: 56638.27628 | DB132: 0 | DC132: 0 | DD132: 0.4714547493 | DE132: 28577 | DF132: 0.9345794393 | DG132: 0 | DH132: 436819.8571 | DI132: 0 | DJ132: 7824.305748 | DK132: 0.08333253435 | DL132: 93892.56921 | DM132: 436819.8571 | DN132: 436819.8571 | DO132: 100904.374 | DP132: 124418.6997 | DQ132: 173481.0647 | DR132: 1366336.422 | DS132: =IF(AND(DR132=MIN(DR$96:DR$338),SUM(DS$95:DS131)=0),1,0) -> 0 | DT132: 69837.01907 | DU132: 0 | DV132: 0 | DW132: 0 | DX132: 0.5813205571 | DY132: 56638.27628 | DZ132: 0 | EA132: 0 | EB132: 0.4714547493 | EC132: 28577 | ED132: 0.9345794393 | EE132: 0 | EF132: 436819.8571 | EG132: 0 | EH132: 7824.305748 | EI132: 0.08333253435 | EJ132: 93892.56921 | EK132: 436819.8571 | EL132: 436819.8571 | EM132: 100904.374 | EN132: 124418.6997 | EO132: 173481.0647 | EP132: 1366336.422 | EQ132: =IF(AND(EP132=MIN(EP$96:EP$338),SUM(EQ$95:EQ131)=0),1,0) -> 0
AU133: ='Default Assets'!A138 -> 5-Excellent | BA133: 0 | BB133: 1 | BC133: 1 | BD133: 0 | BE133: 1 | BF133: 0.9808341882 | BG133: 0.01916581175 | BH133: 0 | BI133: 0 | BJ133: 0 | BK133: 0 | BL133: 0 | BM133: 1 | BN133: 0 | BO133: 0 | BP133: 0 | BQ133: 0 | BR133: 0 | BS133: 1 | BT133: 0 | BU133: 0 | BV133: 0 | BW133: 0 | BX133: 0 | BY133: 0 | BZ133: 0 | CA133: 0.8848084477 | CB133: 0.05759577616 | CC133: 0.05759577616 | CD133: 0 | CE133: 1 | CF133: 0 | CG133: 0 | CH133: 0 | CI133: 0 | CJ133: 0 | CK133: 28577 | CL133: 28577 | CM133: 1428.85 | CN133: 28577 | CO133: 85731 | CP133: 0 | CQ133: 28577 | CR133: 28577 | CS133: 1428.85 | CT133: 28577 | CU133: 85731 | CV133: 28577 | CW133: 0 | CX133: 0 | CY133: 0.9345794393 | CZ133: 0 | DA133: 43806.14223 | DB133: 0 | DC133: 0.2906602786 | DD133: 0.2906602786 | DE133: 28577 | DF133: 0.9345794393 | DG133: 0 | DH133: 436819.8571 | DI133: 0 | DJ133: 7824.305748 | DK133: 0.08333253435 | DL133: 93892.56921 | DM133: 436819.8571 | DN133: 436819.8571 | DO133: 198063.1639 | DP133: 436819.8571 | DQ133: 173481.0647 | DR133: 1775896.369 | DS133: =IF(AND(DR133=MIN(DR$96:DR$338),SUM(DS$95:DS132)=0),1,0) -> 0 | DT133: 28577 | DU133: 0 | DV133: 0 | DW133: 0.9345794393 | DX133: 0 | DY133: 43806.14223 | DZ133: 0 | EA133: 0.2906602786 | EB133: 0.2906602786 | EC133: 28577 | ED133: 0.9345794393 | EE133: 0 | EF133: 436819.8571 | EG133: 0 | EH133: 7824.305748 | EI133: 0.08333253435 | EJ133: 93892.56921 | EK133: 436819.8571 | EL133: 436819.8571 | EM133: 198063.1639 | EN133: 436819.8571 | EO133: 173481.0647 | EP133: 1775896.369 | EQ133: =IF(AND(EP133=MIN(EP$96:EP$338),SUM(EQ$95:EQ132)=0),1,0) -> 0
AU134: ='Default Assets'!A137 -> 4-Good | BA134: 0 | BB134: 1 | BC134: 1 | BD134: 0 | BE134: 2 | BF134: 0.9808341882 | BG134: 0.01916581175 | BH134: 0 | BI134: 0 | BJ134: 0 | BK134: 0 | BL134: 0 | BM134: 1 | BN134: 0 | BO134: 0 | BP134: 0 | BQ134: 0 | BR134: 0 | BS134: 1 | BT134: 0 | BU134: 0 | BV134: 0 | BW134: 0 | BX134: 0 | BY134: 0 | BZ134: 0 | CA134: 0.8848084477 | CB134: 0.05759577616 | CC134: 0.05759577616 | CD134: 1 | CE134: 0 | CF134: 0 | CG134: 0 | CH134: 0 | CI134: 0 | CJ134: 0 | CK134: 28577 | CL134: 28577 | CM134: 1428.85 | CN134: 28577 | CO134: 85731 | CP134: 0 | CQ134: 28577 | CR134: 28577 | CS134: 1428.85 | CT134: 28577 | CU134: 85731 | CV134: 28577 | CW134: 0 | CX134: 0 | CY134: 0 | CZ134: 0.9345794393 | DA134: 43806.14223 | DB134: 0 | DC134: 0 | DD134: 0.5813205571 | DE134: 28577 | DF134: 0.9345794393 | DG134: 0 | DH134: 436819.8571 | DI134: 0 | DJ134: 7824.305748 | DK134: 0.08333253435 | DL134: 93892.56921 | DM134: 436819.8571 | DN134: 436819.8571 | DO134: 98387.82288 | DP134: 116327.0647 | DQ134: 173481.0647 | DR134: 1355728.236 | DS134: =IF(AND(DR134=MIN(DR$96:DR$338),SUM(DS$95:DS133)=0),1,0) -> 0 | DT134: 28577 | DU134: 0 | DV134: 0 | DW134: 0 | DX134: 0.9345794393 | DY134: 43806.14223 | DZ134: 0 | EA134: 0 | EB134: 0.5813205571 | EC134: 28577 | ED134: 0.9345794393 | EE134: 0 | EF134: 436819.8571 | EG134: 0 | EH134: 7824.305748 | EI134: 0.08333253435 | EJ134: 93892.56921 | EK134: 436819.8571 | EL134: 436819.8571 | EM134: 98387.82288 | EN134: 116327.0647 | EO134: 173481.0647 | EP134: 1355728.236 | EQ134: =IF(AND(EP134=MIN(EP$96:EP$338),SUM(EQ$95:EQ133)=0),1,0) -> 0
AU135: ='Default Assets'!A136 -> 3-Adequate | BA135: 0 | BB135: 1 | BC135: 1 | BD135: 1 | BE135: 0 | BF135: 0.9808341882 | BG135: 0.01916581175 | BH135: 0 | BI135: 0 | BJ135: 0 | BK135: 0 | BL135: 0 | BM135: 1 | BN135: 0 | BO135: 0 | BP135: 0 | BQ135: 0 | BR135: 0 | BS135: 1 | BT135: 0 | BU135: 0 | BV135: 0 | BW135: 0 | BX135: 0 | BY135: 1 | BZ135: 0 | CA135: 0 | CB135: 0 | CC135: 0 | CD135: 0 | CE135: 0 | CF135: 0 | CG135: 0 | CH135: 0.8848084477 | CI135: 0.1151915523 | CJ135: 0 | CK135: 28577 | CL135: 28577 | CM135: 28577 | CN135: 2857.7 | CO135: 85731 | CP135: 0 | CQ135: 28577 | CR135: 28577 | CS135: 28577 | CT135: 2857.7 | CU135: 85731 | CV135: 69837.01907 | CW135: 0 | CX135: 0 | CY135: 0 | CZ135: 0.5813205571 | DA135: 28577 | DB135: 0 | DC135: 0.9345794393 | DD135: 0 | DE135: 28577 | DF135: 0.9345794393 | DG135: 0 | DH135: 436819.8571 | DI135: 0 | DJ135: 7824.305748 | DK135: 0.08333253435 | DL135: 93892.56921 | DM135: 436819.8571 | DN135: 436819.8571 | DO135: 436819.8571 | DP135: 124418.6997 | DQ135: 173481.0647 | DR135: 1702251.905 | DS135: =IF(AND(DR135=MIN(DR$96:DR$338),SUM(DS$95:DS134)=0),1,0) -> 0 | DT135: 69837.01907 | DU135: 0 | DV135: 0 | DW135: 0 | DX135: 0.5813205571 | DY135: 28577 | DZ135: 0 | EA135: 0.9345794393 | EB135: 0 | EC135: 28577 | ED135: 0.9345794393 | EE135: 0 | EF135: 436819.8571 | EG135: 0 | EH135: 7824.305748 | EI135: 0.08333253435 | EJ135: 93892.56921 | EK135: 436819.8571 | EL135: 436819.8571 | EM135: 436819.8571 | EN135: 124418.6997 | EO135: 173481.0647 | EP135: 1702251.905 | EQ135: =IF(AND(EP135=MIN(EP$96:EP$338),SUM(EQ$95:EQ134)=0),1,0) -> 0
AU136: ='Default Assets'!A135 -> 2-Marginal | BA136: 0 | BB136: 1 | BC136: 1 | BD136: 1 | BE136: 1 | BF136: 0.9808341882 | BG136: 0.01916581175 | BH136: 0 | BI136: 0 | BJ136: 0 | BK136: 0 | BL136: 0 | BM136: 1 | BN136: 0 | BO136: 0 | BP136: 0 | BQ136: 0 | BR136: 0 | BS136: 1 | BT136: 0 | BU136: 0 | BV136: 0 | BW136: 0 | BX136: 0 | BY136: 1 | BZ136: 0 | CA136: 0 | CB136: 0 | CC136: 0 | CD136: 0 | CE136: 1 | CF136: 0 | CG136: 0 | CH136: 0 | CI136: 0 | CJ136: 0 | CK136: 28577 | CL136: 28577 | CM136: 28577 | CN136: 28577 | CO136: 85731 | CP136: 0 | CQ136: 28577 | CR136: 28577 | CS136: 28577 | CT136: 28577 | CU136: 85731 | CV136: 28577 | CW136: 0 | CX136: 0 | CY136: 0.9345794393 | CZ136: 0 | DA136: 28577 | DB136: 0 | DC136: 0.9345794393 | DD136: 0 | DE136: 28577 | DF136: 0.9345794393 | DG136: 0 | DH136: 436819.8571 | DI136: 0 | DJ136: 7824.305748 | DK136: 0.08333253435 | DL136: 93892.56921 | DM136: 436819.8571 | DN136: 436819.8571 | DO136: 436819.8571 | DP136: 436819.8571 | DQ136: 173481.0647 | DR136: 2014653.062 | DS136: =IF(AND(DR136=MIN(DR$96:DR$338),SUM(DS$95:DS135)=0),1,0) -> 0 | DT136: 28577 | DU136: 0 | DV136: 0 | DW136: 0.9345794393 | DX136: 0 | DY136: 28577 | DZ136: 0 | EA136: 0.9345794393 | EB136: 0 | EC136: 28577 | ED136: 0.9345794393 | EE136: 0 | EF136: 436819.8571 | EG136: 0 | EH136: 7824.305748 | EI136: 0.08333253435 | EJ136: 93892.56921 | EK136: 436819.8571 | EL136: 436819.8571 | EM136: 436819.8571 | EN136: 436819.8571 | EO136: 173481.0647 | EP136: 2014653.062 | EQ136: =IF(AND(EP136=MIN(EP$96:EP$338),SUM(EQ$95:EQ135)=0),1,0) -> 0
AU137: ='Default Assets'!A134 -> 1-Poor | BA137: 0 | BB137: 1 | BC137: 1 | BD137: 1 | BE137: 2 | BF137: 0.9808341882 | BG137: 0.01916581175 | BH137: 0 | BI137: 0 | BJ137: 0 | BK137: 0 | BL137: 0 | BM137: 1 | BN137: 0 | BO137: 0 | BP137: 0 | BQ137: 0 | BR137: 0 | BS137: 1 | BT137: 0 | BU137: 0 | BV137: 0 | BW137: 0 | BX137: 0 | BY137: 1 | BZ137: 0 | CA137: 0 | CB137: 0 | CC137: 0 | CD137: 1 | CE137: 0 | CF137: 0 | CG137: 0 | CH137: 0 | CI137: 0 | CJ137: 0 | CK137: 28577 | CL137: 28577 | CM137: 28577 | CN137: 28577 | CO137: 85731 | CP137: 0 | CQ137: 28577 | CR137: 28577 | CS137: 28577 | CT137: 28577 | CU137: 85731 | CV137: 28577 | CW137: 0 | CX137: 0 | CY137: 0 | CZ137: 0.9345794393 | DA137: 28577 | DB137: 0 | DC137: 0.9345794393 | DD137: 0 | DE137: 28577 | DF137: 0.9345794393 | DG137: 0 | DH137: 436819.8571 | DI137: 0 | DJ137: 7824.305748 | DK137: 0.08333253435 | DL137: 93892.56921 | DM137: 436819.8571 | DN137: 436819.8571 | DO137: 436819.8571 | DP137: 116327.0647 | DQ137: 173481.0647 | DR137: 1694160.27 | DS137: =IF(AND(DR137=MIN(DR$96:DR$338),SUM(DS$95:DS136)=0),1,0) -> 0 | DT137: 28577 | DU137: 0 | DV137: 0 | DW137: 0 | DX137: 0.9345794393 | DY137: 28577 | DZ137: 0 | EA137: 0.9345794393 | EB137: 0 | EC137: 28577 | ED137: 0.9345794393 | EE137: 0 | EF137: 436819.8571 | EG137: 0 | EH137: 7824.305748 | EI137: 0.08333253435 | EJ137: 93892.56921 | EK137: 436819.8571 | EL137: 436819.8571 | EM137: 436819.8571 | EN137: 116327.0647 | EO137: 173481.0647 | EP137: 1694160.27 | EQ137: =IF(AND(EP137=MIN(EP$96:EP$338),SUM(EQ$95:EQ136)=0),1,0) -> 0
BA138: 0 | BB138: 1 | BC138: 1 | BD138: 2 | BE138: 0 | BF138: 0.9808341882 | BG138: 0.01916581175 | BH138: 0 | BI138: 0 | BJ138: 0 | BK138: 0 | BL138: 0 | BM138: 1 | BN138: 0 | BO138: 0 | BP138: 0 | BQ138: 0 | BR138: 0 | BS138: 1 | BT138: 0 | BU138: 0 | BV138: 0 | BW138: 0 | BX138: 1 | BY138: 0 | BZ138: 0 | CA138: 0 | CB138: 0 | CC138: 0 | CD138: 0 | CE138: 0 | CF138: 0 | CG138: 0 | CH138: 0.8848084477 | CI138: 0.1151915523 | CJ138: 0 | CK138: 28577 | CL138: 28577 | CM138: 28577 | CN138: 2857.7 | CO138: 85731 | CP138: 0 | CQ138: 28577 | CR138: 28577 | CS138: 28577 | CT138: 2857.7 | CU138: 85731 | CV138: 69837.01907 | CW138: 0 | CX138: 0 | CY138: 0 | CZ138: 0.5813205571 | DA138: 28577 | DB138: 0 | DC138: 0 | DD138: 0.9345794393 | DE138: 28577 | DF138: 0.9345794393 | DG138: 0 | DH138: 436819.8571 | DI138: 0 | DJ138: 7824.305748 | DK138: 0.08333253435 | DL138: 93892.56921 | DM138: 436819.8571 | DN138: 436819.8571 | DO138: 116327.0647 | DP138: 124418.6997 | DQ138: 173481.0647 | DR138: 1381759.113 | DS138: =IF(AND(DR138=MIN(DR$96:DR$338),SUM(DS$95:DS137)=0),1,0) -> 0 | DT138: 69837.01907 | DU138: 0 | DV138: 0 | DW138: 0 | DX138: 0.5813205571 | DY138: 28577 | DZ138: 0 | EA138: 0 | EB138: 0.9345794393 | EC138: 28577 | ED138: 0.9345794393 | EE138: 0 | EF138: 436819.8571 | EG138: 0 | EH138: 7824.305748 | EI138: 0.08333253435 | EJ138: 93892.56921 | EK138: 436819.8571 | EL138: 436819.8571 | EM138: 116327.0647 | EN138: 124418.6997 | EO138: 173481.0647 | EP138: 1381759.113 | EQ138: =IF(AND(EP138=MIN(EP$96:EP$338),SUM(EQ$95:EQ137)=0),1,0) -> 0
BA139: 0 | BB139: 1 | BC139: 1 | BD139: 2 | BE139: 1 | BF139: 0.9808341882 | BG139: 0.01916581175 | BH139: 0 | BI139: 0 | BJ139: 0 | BK139: 0 | BL139: 0 | BM139: 1 | BN139: 0 | BO139: 0 | BP139: 0 | BQ139: 0 | BR139: 0 | BS139: 1 | BT139: 0 | BU139: 0 | BV139: 0 | BW139: 0 | BX139: 1 | BY139: 0 | BZ139: 0 | CA139: 0 | CB139: 0 | CC139: 0 | CD139: 0 | CE139: 1 | CF139: 0 | CG139: 0 | CH139: 0 | CI139: 0 | CJ139: 0 | CK139: 28577 | CL139: 28577 | CM139: 28577 | CN139: 28577 | CO139: 85731 | CP139: 0 | CQ139: 28577 | CR139: 28577 | CS139: 28577 | CT139: 28577 | CU139: 85731 | CV139: 28577 | CW139: 0 | CX139: 0 | CY139: 0.9345794393 | CZ139: 0 | DA139: 28577 | DB139: 0 | DC139: 0 | DD139: 0.9345794393 | DE139: 28577 | DF139: 0.9345794393 | DG139: 0 | DH139: 436819.8571 | DI139: 0 | DJ139: 7824.305748 | DK139: 0.08333253435 | DL139: 93892.56921 | DM139: 436819.8571 | DN139: 436819.8571 | DO139: 116327.0647 | DP139: 436819.8571 | DQ139: 173481.0647 | DR139: 1694160.27 | DS139: =IF(AND(DR139=MIN(DR$96:DR$338),SUM(DS$95:DS138)=0),1,0) -> 0 | DT139: 28577 | DU139: 0 | DV139: 0 | DW139: 0.9345794393 | DX139: 0 | DY139: 28577 | DZ139: 0 | EA139: 0 | EB139: 0.9345794393 | EC139: 28577 | ED139: 0.9345794393 | EE139: 0 | EF139: 436819.8571 | EG139: 0 | EH139: 7824.305748 | EI139: 0.08333253435 | EJ139: 93892.56921 | EK139: 436819.8571 | EL139: 436819.8571 | EM139: 116327.0647 | EN139: 436819.8571 | EO139: 173481.0647 | EP139: 1694160.27 | EQ139: =IF(AND(EP139=MIN(EP$96:EP$338),SUM(EQ$95:EQ138)=0),1,0) -> 0
BA140: 0 | BB140: 1 | BC140: 1 | BD140: 2 | BE140: 2 | BF140: 0.9808341882 | BG140: 0.01916581175 | BH140: 0 | BI140: 0 | BJ140: 0 | BK140: 0 | BL140: 0 | BM140: 1 | BN140: 0 | BO140: 0 | BP140: 0 | BQ140: 0 | BR140: 0 | BS140: 1 | BT140: 0 | BU140: 0 | BV140: 0 | BW140: 0 | BX140: 1 | BY140: 0 | BZ140: 0 | CA140: 0 | CB140: 0 | CC140: 0 | CD140: 1 | CE140: 0 | CF140: 0 | CG140: 0 | CH140: 0 | CI140: 0 | CJ140: 0 | CK140: 28577 | CL140: 28577 | CM140: 28577 | CN140: 28577 | CO140: 85731 | CP140: 0 | CQ140: 28577 | CR140: 28577 | CS140: 28577 | CT140: 28577 | CU140: 85731 | CV140: 28577 | CW140: 0 | CX140: 0 | CY140: 0 | CZ140: 0.9345794393 | DA140: 28577 | DB140: 0 | DC140: 0 | DD140: 0.9345794393 | DE140: 28577 | DF140: 0.9345794393 | DG140: 0 | DH140: 436819.8571 | DI140: 0 | DJ140: 7824.305748 | DK140: 0.08333253435 | DL140: 93892.56921 | DM140: 436819.8571 | DN140: 436819.8571 | DO140: 116327.0647 | DP140: 116327.0647 | DQ140: 173481.0647 | DR140: 1373667.478 | DS140: =IF(AND(DR140=MIN(DR$96:DR$338),SUM(DS$95:DS139)=0),1,0) -> 0 | DT140: 28577 | DU140: 0 | DV140: 0 | DW140: 0 | DX140: 0.9345794393 | DY140: 28577 | DZ140: 0 | EA140: 0 | EB140: 0.9345794393 | EC140: 28577 | ED140: 0.9345794393 | EE140: 0 | EF140: 436819.8571 | EG140: 0 | EH140: 7824.305748 | EI140: 0.08333253435 | EJ140: 93892.56921 | EK140: 436819.8571 | EL140: 436819.8571 | EM140: 116327.0647 | EN140: 116327.0647 | EO140: 173481.0647 | EP140: 1373667.478 | EQ140: =IF(AND(EP140=MIN(EP$96:EP$338),SUM(EQ$95:EQ139)=0),1,0) -> 0
BA141: 0 | BB141: 1 | BC141: 2 | BD141: 0 | BE141: 0 | BF141: 0.9808341882 | BG141: 0.01916581175 | BH141: 0 | BI141: 0 | BJ141: 0 | BK141: 0 | BL141: 0 | BM141: 1 | BN141: 0 | BO141: 0 | BP141: 0 | BQ141: 0 | BR141: 1 | BS141: 0 | BT141: 0 | BU141: 0 | BV141: 0 | BW141: 0 | BX141: 0 | BY141: 0 | BZ141: 0 | CA141: 0.8848084477 | CB141: 0.05759577616 | CC141: 0.05759577616 | CD141: 0 | CE141: 0 | CF141: 0 | CG141: 0 | CH141: 0.8848084477 | CI141: 0.1151915523 | CJ141: 0 | CK141: 28577 | CL141: 28577 | CM141: 1428.85 | CN141: 2857.7 | CO141: 85731 | CP141: 0 | CQ141: 28577 | CR141: 28577 | CS141: 1428.85 | CT141: 2857.7 | CU141: 85731 | CV141: 69837.01907 | CW141: 0 | CX141: 0 | CY141: 0 | CZ141: 0.5813205571 | DA141: 56638.27628 | DB141: 0 | DC141: 0 | DD141: 0.4714547493 | DE141: 28577 | DF141: 0 | DG141: 0.9345794393 | DH141: 436819.8571 | DI141: 0 | DJ141: 7824.305748 | DK141: 0.08333253435 | DL141: 93892.56921 | DM141: 436819.8571 | DN141: 116327.0647 | DO141: 100904.374 | DP141: 124418.6997 | DQ141: 173481.0647 | DR141: 1045843.629 | DS141: =IF(AND(DR141=MIN(DR$96:DR$338),SUM(DS$95:DS140)=0),1,0) -> 0 | DT141: 69837.01907 | DU141: 0 | DV141: 0 | DW141: 0 | DX141: 0.5813205571 | DY141: 56638.27628 | DZ141: 0 | EA141: 0 | EB141: 0.4714547493 | EC141: 28577 | ED141: 0 | EE141: 0.9345794393 | EF141: 436819.8571 | EG141: 0 | EH141: 7824.305748 | EI141: 0.08333253435 | EJ141: 93892.56921 | EK141: 436819.8571 | EL141: 116327.0647 | EM141: 100904.374 | EN141: 124418.6997 | EO141: 173481.0647 | EP141: 1045843.629 | EQ141: =IF(AND(EP141=MIN(EP$96:EP$338),SUM(EQ$95:EQ140)=0),1,0) -> 0
BA142: 0 | BB142: 1 | BC142: 2 | BD142: 0 | BE142: 1 | BF142: 0.9808341882 | BG142: 0.01916581175 | BH142: 0 | BI142: 0 | BJ142: 0 | BK142: 0 | BL142: 0 | BM142: 1 | BN142: 0 | BO142: 0 | BP142: 0 | BQ142: 0 | BR142: 1 | BS142: 0 | BT142: 0 | BU142: 0 | BV142: 0 | BW142: 0 | BX142: 0 | BY142: 0 | BZ142: 0 | CA142: 0.8848084477 | CB142: 0.05759577616 | CC142: 0.05759577616 | CD142: 0 | CE142: 1 | CF142: 0 | CG142: 0 | CH142: 0 | CI142: 0 | CJ142: 0 | CK142: 28577 | CL142: 28577 | CM142: 1428.85 | CN142: 28577 | CO142: 85731 | CP142: 0 | CQ142: 28577 | CR142: 28577 | CS142: 1428.85 | CT142: 28577 | CU142: 85731 | CV142: 28577 | CW142: 0 | CX142: 0 | CY142: 0.9345794393 | CZ142: 0 | DA142: 43806.14223 | DB142: 0 | DC142: 0.2906602786 | DD142: 0.2906602786 | DE142: 28577 | DF142: 0 | DG142: 0.9345794393 | DH142: 436819.8571 | DI142: 0 | DJ142: 7824.305748 | DK142: 0.08333253435 | DL142: 93892.56921 | DM142: 436819.8571 | DN142: 116327.0647 | DO142: 198063.1639 | DP142: 436819.8571 | DQ142: 173481.0647 | DR142: 1455403.577 | DS142: =IF(AND(DR142=MIN(DR$96:DR$338),SUM(DS$95:DS141)=0),1,0) -> 0 | DT142: 28577 | DU142: 0 | DV142: 0 | DW142: 0.9345794393 | DX142: 0 | DY142: 43806.14223 | DZ142: 0 | EA142: 0.2906602786 | EB142: 0.2906602786 | EC142: 28577 | ED142: 0 | EE142: 0.9345794393 | EF142: 436819.8571 | EG142: 0 | EH142: 7824.305748 | EI142: 0.08333253435 | EJ142: 93892.56921 | EK142: 436819.8571 | EL142: 116327.0647 | EM142: 198063.1639 | EN142: 436819.8571 | EO142: 173481.0647 | EP142: 1455403.577 | EQ142: =IF(AND(EP142=MIN(EP$96:EP$338),SUM(EQ$95:EQ141)=0),1,0) -> 0
BA143: 0 | BB143: 1 | BC143: 2 | BD143: 0 | BE143: 2 | BF143: 0.9808341882 | BG143: 0.01916581175 | BH143: 0 | BI143: 0 | BJ143: 0 | BK143: 0 | BL143: 0 | BM143: 1 | BN143: 0 | BO143: 0 | BP143: 0 | BQ143: 0 | BR143: 1 | BS143: 0 | BT143: 0 | BU143: 0 | BV143: 0 | BW143: 0 | BX143: 0 | BY143: 0 | BZ143: 0 | CA143: 0.8848084477 | CB143: 0.05759577616 | CC143: 0.05759577616 | CD143: 1 | CE143: 0 | CF143: 0 | CG143: 0 | CH143: 0 | CI143: 0 | CJ143: 0 | CK143: 28577 | CL143: 28577 | CM143: 1428.85 | CN143: 28577 | CO143: 85731 | CP143: 0 | CQ143: 28577 | CR143: 28577 | CS143: 1428.85 | CT143: 28577 | CU143: 85731 | CV143: 28577 | CW143: 0 | CX143: 0 | CY143: 0 | CZ143: 0.9345794393 | DA143: 43806.14223 | DB143: 0 | DC143: 0 | DD143: 0.5813205571 | DE143: 28577 | DF143: 0 | DG143: 0.9345794393 | DH143: 436819.8571 | DI143: 0 | DJ143: 7824.305748 | DK143: 0.08333253435 | DL143: 93892.56921 | DM143: 436819.8571 | DN143: 116327.0647 | DO143: 98387.82288 | DP143: 116327.0647 | DQ143: 173481.0647 | DR143: 1035235.443 | DS143: =IF(AND(DR143=MIN(DR$96:DR$338),SUM(DS$95:DS142)=0),1,0) -> 0 | DT143: 28577 | DU143: 0 | DV143: 0 | DW143: 0 | DX143: 0.9345794393 | DY143: 43806.14223 | DZ143: 0 | EA143: 0 | EB143: 0.5813205571 | EC143: 28577 | ED143: 0 | EE143: 0.9345794393 | EF143: 436819.8571 | EG143: 0 | EH143: 7824.305748 | EI143: 0.08333253435 | EJ143: 93892.56921 | EK143: 436819.8571 | EL143: 116327.0647 | EM143: 98387.82288 | EN143: 116327.0647 | EO143: 173481.0647 | EP143: 1035235.443 | EQ143: =IF(AND(EP143=MIN(EP$96:EP$338),SUM(EQ$95:EQ142)=0),1,0) -> 0
BA144: 0 | BB144: 1 | BC144: 2 | BD144: 1 | BE144: 0 | BF144: 0.9808341882 | BG144: 0.01916581175 | BH144: 0 | BI144: 0 | BJ144: 0 | BK144: 0 | BL144: 0 | BM144: 1 | BN144: 0 | BO144: 0 | BP144: 0 | BQ144: 0 | BR144: 1 | BS144: 0 | BT144: 0 | BU144: 0 | BV144: 0 | BW144: 0 | BX144: 0 | BY144: 1 | BZ144: 0 | CA144: 0 | CB144: 0 | CC144: 0 | CD144: 0 | CE144: 0 | CF144: 0 | CG144: 0 | CH144: 0.8848084477 | CI144: 0.1151915523 | CJ144: 0 | CK144: 28577 | CL144: 28577 | CM144: 28577 | CN144: 2857.7 | CO144: 85731 | CP144: 0 | CQ144: 28577 | CR144: 28577 | CS144: 28577 | CT144: 2857.7 | CU144: 85731 | CV144: 69837.01907 | CW144: 0 | CX144: 0 | CY144: 0 | CZ144: 0.5813205571 | DA144: 28577 | DB144: 0 | DC144: 0.9345794393 | DD144: 0 | DE144: 28577 | DF144: 0 | DG144: 0.9345794393 | DH144: 436819.8571 | DI144: 0 | DJ144: 7824.305748 | DK144: 0.08333253435 | DL144: 93892.56921 | DM144: 436819.8571 | DN144: 116327.0647 | DO144: 436819.8571 | DP144: 124418.6997 | DQ144: 173481.0647 | DR144: 1381759.113 | DS144: =IF(AND(DR144=MIN(DR$96:DR$338),SUM(DS$95:DS143)=0),1,0) -> 0 | DT144: 69837.01907 | DU144: 0 | DV144: 0 | DW144: 0 | DX144: 0.5813205571 | DY144: 28577 | DZ144: 0 | EA144: 0.9345794393 | EB144: 0 | EC144: 28577 | ED144: 0 | EE144: 0.9345794393 | EF144: 436819.8571 | EG144: 0 | EH144: 7824.305748 | EI144: 0.08333253435 | EJ144: 93892.56921 | EK144: 436819.8571 | EL144: 116327.0647 | EM144: 436819.8571 | EN144: 124418.6997 | EO144: 173481.0647 | EP144: 1381759.113 | EQ144: =IF(AND(EP144=MIN(EP$96:EP$338),SUM(EQ$95:EQ143)=0),1,0) -> 0
BA145: 0 | BB145: 1 | BC145: 2 | BD145: 1 | BE145: 1 | BF145: 0.9808341882 | BG145: 0.01916581175 | BH145: 0 | BI145: 0 | BJ145: 0 | BK145: 0 | BL145: 0 | BM145: 1 | BN145: 0 | BO145: 0 | BP145: 0 | BQ145: 0 | BR145: 1 | BS145: 0 | BT145: 0 | BU145: 0 | BV145: 0 | BW145: 0 | BX145: 0 | BY145: 1 | BZ145: 0 | CA145: 0 | CB145: 0 | CC145: 0 | CD145: 0 | CE145: 1 | CF145: 0 | CG145: 0 | CH145: 0 | CI145: 0 | CJ145: 0 | CK145: 28577 | CL145: 28577 | CM145: 28577 | CN145: 28577 | CO145: 85731 | CP145: 0 | CQ145: 28577 | CR145: 28577 | CS145: 28577 | CT145: 28577 | CU145: 85731 | CV145: 28577 | CW145: 0 | CX145: 0 | CY145: 0.9345794393 | CZ145: 0 | DA145: 28577 | DB145: 0 | DC145: 0.9345794393 | DD145: 0 | DE145: 28577 | DF145: 0 | DG145: 0.9345794393 | DH145: 436819.8571 | DI145: 0 | DJ145: 7824.305748 | DK145: 0.08333253435 | DL145: 93892.56921 | DM145: 436819.8571 | DN145: 116327.0647 | DO145: 436819.8571 | DP145: 436819.8571 | DQ145: 173481.0647 | DR145: 1694160.27 | DS145: =IF(AND(DR145=MIN(DR$96:DR$338),SUM(DS$95:DS144)=0),1,0) -> 0 | DT145: 28577 | DU145: 0 | DV145: 0 | DW145: 0.9345794393 | DX145: 0 | DY145: 28577 | DZ145: 0 | EA145: 0.9345794393 | EB145: 0 | EC145: 28577 | ED145: 0 | EE145: 0.9345794393 | EF145: 436819.8571 | EG145: 0 | EH145: 7824.305748 | EI145: 0.08333253435 | EJ145: 93892.56921 | EK145: 436819.8571 | EL145: 116327.0647 | EM145: 436819.8571 | EN145: 436819.8571 | EO145: 173481.0647 | EP145: 1694160.27 | EQ145: =IF(AND(EP145=MIN(EP$96:EP$338),SUM(EQ$95:EQ144)=0),1,0) -> 0
BA146: 0 | BB146: 1 | BC146: 2 | BD146: 1 | BE146: 2 | BF146: 0.9808341882 | BG146: 0.01916581175 | BH146: 0 | BI146: 0 | BJ146: 0 | BK146: 0 | BL146: 0 | BM146: 1 | BN146: 0 | BO146: 0 | BP146: 0 | BQ146: 0 | BR146: 1 | BS146: 0 | BT146: 0 | BU146: 0 | BV146: 0 | BW146: 0 | BX146: 0 | BY146: 1 | BZ146: 0 | CA146: 0 | CB146: 0 | CC146: 0 | CD146: 1 | CE146: 0 | CF146: 0 | CG146: 0 | CH146: 0 | CI146: 0 | CJ146: 0 | CK146: 28577 | CL146: 28577 | CM146: 28577 | CN146: 28577 | CO146: 85731 | CP146: 0 | CQ146: 28577 | CR146: 28577 | CS146: 28577 | CT146: 28577 | CU146: 85731 | CV146: 28577 | CW146: 0 | CX146: 0 | CY146: 0 | CZ146: 0.9345794393 | DA146: 28577 | DB146: 0 | DC146: 0.9345794393 | DD146: 0 | DE146: 28577 | DF146: 0 | DG146: 0.9345794393 | DH146: 436819.8571 | DI146: 0 | DJ146: 7824.305748 | DK146: 0.08333253435 | DL146: 93892.56921 | DM146: 436819.8571 | DN146: 116327.0647 | DO146: 436819.8571 | DP146: 116327.0647 | DQ146: 173481.0647 | DR146: 1373667.478 | DS146: =IF(AND(DR146=MIN(DR$96:DR$338),SUM(DS$95:DS145)=0),1,0) -> 0 | DT146: 28577 | DU146: 0 | DV146: 0 | DW146: 0 | DX146: 0.9345794393 | DY146: 28577 | DZ146: 0 | EA146: 0.9345794393 | EB146: 0 | EC146: 28577 | ED146: 0 | EE146: 0.9345794393 | EF146: 436819.8571 | EG146: 0 | EH146: 7824.305748 | EI146: 0.08333253435 | EJ146: 93892.56921 | EK146: 436819.8571 | EL146: 116327.0647 | EM146: 436819.8571 | EN146: 116327.0647 | EO146: 173481.0647 | EP146: 1373667.478 | EQ146: =IF(AND(EP146=MIN(EP$96:EP$338),SUM(EQ$95:EQ145)=0),1,0) -> 0
BA147: 0 | BB147: 1 | BC147: 2 | BD147: 2 | BE147: 0 | BF147: 0.9808341882 | BG147: 0.01916581175 | BH147: 0 | BI147: 0 | BJ147: 0 | BK147: 0 | BL147: 0 | BM147: 1 | BN147: 0 | BO147: 0 | BP147: 0 | BQ147: 0 | BR147: 1 | BS147: 0 | BT147: 0 | BU147: 0 | BV147: 0 | BW147: 0 | BX147: 1 | BY147: 0 | BZ147: 0 | CA147: 0 | CB147: 0 | CC147: 0 | CD147: 0 | CE147: 0 | CF147: 0 | CG147: 0 | CH147: 0.8848084477 | CI147: 0.1151915523 | CJ147: 0 | CK147: 28577 | CL147: 28577 | CM147: 28577 | CN147: 2857.7 | CO147: 85731 | CP147: 0 | CQ147: 28577 | CR147: 28577 | CS147: 28577 | CT147: 2857.7 | CU147: 85731 | CV147: 69837.01907 | CW147: 0 | CX147: 0 | CY147: 0 | CZ147: 0.5813205571 | DA147: 28577 | DB147: 0 | DC147: 0 | DD147: 0.9345794393 | DE147: 28577 | DF147: 0 | DG147: 0.9345794393 | DH147: 436819.8571 | DI147: 0 | DJ147: 7824.305748 | DK147: 0.08333253435 | DL147: 93892.56921 | DM147: 436819.8571 | DN147: 116327.0647 | DO147: 116327.0647 | DP147: 124418.6997 | DQ147: 173481.0647 | DR147: 1061266.32 | DS147: =IF(AND(DR147=MIN(DR$96:DR$338),SUM(DS$95:DS146)=0),1,0) -> 0 | DT147: 69837.01907 | DU147: 0 | DV147: 0 | DW147: 0 | DX147: 0.5813205571 | DY147: 28577 | DZ147: 0 | EA147: 0 | EB147: 0.9345794393 | EC147: 28577 | ED147: 0 | EE147: 0.9345794393 | EF147: 436819.8571 | EG147: 0 | EH147: 7824.305748 | EI147: 0.08333253435 | EJ147: 93892.56921 | EK147: 436819.8571 | EL147: 116327.0647 | EM147: 116327.0647 | EN147: 124418.6997 | EO147: 173481.0647 | EP147: 1061266.32 | EQ147: =IF(AND(EP147=MIN(EP$96:EP$338),SUM(EQ$95:EQ146)=0),1,0) -> 0
BA148: 0 | BB148: 1 | BC148: 2 | BD148: 2 | BE148: 1 | BF148: 0.9808341882 | BG148: 0.01916581175 | BH148: 0 | BI148: 0 | BJ148: 0 | BK148: 0 | BL148: 0 | BM148: 1 | BN148: 0 | BO148: 0 | BP148: 0 | BQ148: 0 | BR148: 1 | BS148: 0 | BT148: 0 | BU148: 0 | BV148: 0 | BW148: 0 | BX148: 1 | BY148: 0 | BZ148: 0 | CA148: 0 | CB148: 0 | CC148: 0 | CD148: 0 | CE148: 1 | CF148: 0 | CG148: 0 | CH148: 0 | CI148: 0 | CJ148: 0 | CK148: 28577 | CL148: 28577 | CM148: 28577 | CN148: 28577 | CO148: 85731 | CP148: 0 | CQ148: 28577 | CR148: 28577 | CS148: 28577 | CT148: 28577 | CU148: 85731 | CV148: 28577 | CW148: 0 | CX148: 0 | CY148: 0.9345794393 | CZ148: 0 | DA148: 28577 | DB148: 0 | DC148: 0 | DD148: 0.9345794393 | DE148: 28577 | DF148: 0 | DG148: 0.9345794393 | DH148: 436819.8571 | DI148: 0 | DJ148: 7824.305748 | DK148: 0.08333253435 | DL148: 93892.56921 | DM148: 436819.8571 | DN148: 116327.0647 | DO148: 116327.0647 | DP148: 436819.8571 | DQ148: 173481.0647 | DR148: 1373667.478 | DS148: =IF(AND(DR148=MIN(DR$96:DR$338),SUM(DS$95:DS147)=0),1,0) -> 0 | DT148: 28577 | DU148: 0 | DV148: 0 | DW148: 0.9345794393 | DX148: 0 | DY148: 28577 | DZ148: 0 | EA148: 0 | EB148: 0.9345794393 | EC148: 28577 | ED148: 0 | EE148: 0.9345794393 | EF148: 436819.8571 | EG148: 0 | EH148: 7824.305748 | EI148: 0.08333253435 | EJ148: 93892.56921 | EK148: 436819.8571 | EL148: 116327.0647 | EM148: 116327.0647 | EN148: 436819.8571 | EO148: 173481.0647 | EP148: 1373667.478 | EQ148: =IF(AND(EP148=MIN(EP$96:EP$338),SUM(EQ$95:EQ147)=0),1,0) -> 0
